Workbook

Sheet POSTS-MA (hidden)
B2: STRUCTURAL DETAILS FOR SIGNAL MAST ARM MOUNTED SIGNS
B3: HEIGHT | C3: LENGTH | D3: STIFFENER
B4: INCH | D4: QTY | E4: SPACING
B5: 24 | C5: 24 | D5: 2 | E5: =IF(D5="X","X",mastarmspace(C5,D5)) -> 12 | F5: =(C5-((D5-1)*E5))/2 -> 6 | J5: 2 | K5: =J5+1 -> 3 | L5: 4 | M5: 5 | N5: 6 | O5: 7 | P5: 8 | Q5: 9 | R5: 10 | S5: 11 | T5: 12 | U5: 13 | V5: 14
B6: 24 | C6: =C5+6 -> 30 | D6: 2 | E6: 18 | F6: 6 | I6: 2 | J6: =mastarmposts($I6*12,J$5*12,MAH,MAW,MAQ) -> 2 | K6: =mastarmposts($I6*12,K$5*12,MAH,MAW,MAQ) -> 2 | L6: 2 | M6: 3 | N6: 3 | O6: 3 | P6: 4 | Q6: 4 | R6: 4 | S6: 5 | T6: 5 | U6: 5 | V6: 5
B7: 24 | C7: 36 | D7: 2 | E7: 24 | F7: 6 | I7: 3 | J7: 2 | K7: 2 | L7: 2 | M7: 3 | N7: 3 | O7: 3 | P7: 4 | Q7: 4 | R7: 5 | S7: 5 | T7: 5 | U7: 5 | V7: 5
B8: 24 | C8: 42 | D8: 2 | E8: 30 | F8: 6 | I8: 4 | J8: 2 | K8: 2 | L8: 2 | M8: 3 | N8: 3 | O8: 3 | P8: 4 | Q8: 4 | R8: 5 | S8: 5 | T8: 5 | U8: 5 | V8: 6
B9: 24 | C9: 48 | D9: 2 | E9: 36 | F9: 6 | I9: 5 | J9: 2 | K9: 2 | L9: 2 | M9: 3 | N9: 4 | O9: 4 | P9: 5 | Q9: 5 | R9: 5 | S9: 5 | T9: 5 | U9: 5 | V9: 6
B10: 24 | C10: 54 | D10: 3 | E10: 21 | F10: 6 | I10: 6 | J10: X | K10: X | L10: 2 | M10: 3 | N10: 4 | O10: 4 | P10: 5 | Q10: 5 | R10: 5 | S10: 5 | T10: 5 | U10: 5 | V10: 6
B11: 24 | C11: 60 | D11: 3 | E11: 24 | F11: 6 | I11: 7 | J11: X | K11: X | L11: X | M11: 4 | N11: 4 | O11: 5 | P11: 5 | Q11: 5 | R11: 5 | S11: 5 | T11: 5 | U11: 5 | V11: 6
B12: 24 | C12: 66 | D12: 3 | E12: 27 | F12: 6
B13: 24 | C13: 72 | D13: 3 | E13: 30 | F13: 6 | J13: 2 | K13: =J13+1 -> 3 | L13: 4 | M13: 5 | N13: 6 | O13: 7 | P13: 8 | Q13: 9 | R13: 10 | S13: 11 | T13: 12 | U13: 13 | V13: 14
B14: 24 | C14: 78 | D14: 3 | E14: 33 | F14: 6 | I14: 2 | J14: =mastarmposts($I14*12,J$5*12,MAH,MAW,MAS) -> 12 | K14: 24 | L14: 36 | M14: 24 | N14: 30 | O14: 36 | P14: 27 | Q14: 30 | R14: 36 | S14: 30 | T14: 33 | U14: 36 | V14: 36
B15: 24 | C15: 84 | D15: 3 | E15: 36 | F15: 6 | I15: 3 | J15: 12 | K15: 24 | L15: 36 | M15: 24 | N15: 30 | O15: 36 | P15: 27 | Q15: 30 | R15: 27 | S15: 30 | T15: 33 | U15: 36 | V15: 36
B16: 24 | C16: 90 | D16: 4 | E16: 24 | F16: 9 | I16: 4 | J16: 12 | K16: 24 | L16: 36 | M16: 24 | N16: 30 | O16: 36 | P16: 27 | Q16: 30 | R16: 27 | S16: 30 | T16: 33 | U16: 36 | V16: 30
B17: 24 | C17: 96 | D17: 4 | E17: 27 | F17: 7.5 | I17: 5 | J17: 12 | K17: 24 | L17: 36 | M17: 24 | N17: 18 | O17: 24 | P17: 21 | Q17: 24 | R17: 27 | S17: 30 | T17: 33 | U17: 36 | V17: 30
B18: 24 | C18: 102 | D18: 4 | E18: 30 | F18: 6 | I18: 6 | J18: X | K18: X | L18: 36 | M18: 24 | N18: 18 | O18: 24 | P18: 21 | Q18: 24 | R18: 27 | S18: 30 | T18: 33 | U18: 36 | V18: 30
B19: 24 | C19: 108 | D19: 4 | E19: 30 | F19: 9 | I19: 7 | J19: X | K19: X | L19: X | M19: 15 | N19: 18 | O19: 18 | P19: 21 | Q19: 24 | R19: 27 | S19: 30 | T19: 33 | U19: 36 | V19: 30
B20: 24 | C20: 114 | D20: 4 | E20: 33 | F20: 7.5
B21: 24 | C21: 120 | D21: 4 | E21: 36 | F21: 6
B22: 24 | C22: 126 | D22: 5 | E22: 27 | F22: 9
B23: 24 | C23: 132 | D23: 5 | E23: 30 | F23: 6
B24: 24 | C24: 138 | D24: 5 | E24: 30 | F24: 9
B25: 24 | C25: 144 | D25: 5 | E25: 33 | F25: 6
B26: 24 | C26: 150 | D26: 5 | E26: 33 | F26: 9
B27: 24 | C27: 156 | D27: 5 | E27: 36 | F27: 6
B28: 24 | C28: 162 | D28: 5 | E28: 36 | F28: 9
B29: 24 | C29: 168 | D29: 5 | E29: 36 | F29: 12
B30: 30 | C30: 24 | D30: 2 | E30: 12 | F30: 6
B31: 30 | C31: =C30+6 -> 30 | D31: 2 | E31: 18 | F31: 6
B32: 30 | C32: 36 | D32: 2 | E32: 24 | F32: 6
B33: 30 | C33: 42 | D33: 2 | E33: 30 | F33: 6
B34: 30 | C34: 48 | D34: 2 | E34: 36 | F34: 6
B35: 30 | C35: 54 | D35: 3 | E35: 21 | F35: 6
B36: 30 | C36: 60 | D36: 3 | E36: 24 | F36: 6
B37: 30 | C37: 66 | D37: 3 | E37: 27 | F37: 6
B38: 30 | C38: 72 | D38: 3 | E38: 30 | F38: 6
B39: 30 | C39: 78 | D39: 3 | E39: 33 | F39: 6
B40: 30 | C40: 84 | D40: 3 | E40: 36 | F40: 6
B41: 30 | C41: 90 | D41: 4 | E41: 24 | F41: 9
B42: 30 | C42: 96 | D42: 4 | E42: 27 | F42: 7.5
B43: 30 | C43: 102 | D43: 4 | E43: 30 | F43: 6
B44: 30 | C44: 108 | D44: 4 | E44: 30 | F44: 9
B45: 30 | C45: 114 | D45: 5 | E45: 24 | F45: 9
B46: 30 | C46: 120 | D46: 5 | E46: 27 | F46: 6
B47: 30 | C47: 126 | D47: 5 | E47: 27 | F47: 9
B48: 30 | C48: 132 | D48: 5 | E48: 30 | F48: 6
B49: 30 | C49: 138 | D49: 5 | E49: 30 | F49: 9
B50: 30 | C50: 144 | D50: 5 | E50: 33 | F50: 6
B51: 30 | C51: 150 | D51: 5 | E51: 33 | F51: 9
B52: 30 | C52: 156 | D52: 5 | E52: 36 | F52: 6
B53: 30 | C53: 162 | D53: 5 | E53: 36 | F53: 9
B54: 30 | C54: 168 | D54: 5 | E54: 36 | F54: 12
B55: 36 | C55: 24 | D55: 2 | E55: 12 | F55: 6
B56: 36 | C56: =C55+6 -> 30 | D56: 2 | E56: 18 | F56: 6
B57: 36 | C57: 36 | D57: 2 | E57: 24 | F57: 6
B58: 36 | C58: 42 | D58: 2 | E58: 30 | F58: 6
B59: 36 | C59: 48 | D59: 2 | E59: 36 | F59: 6
B60: 36 | C60: 54 | D60: 3 | E60: 21 | F60: 6
B61: 36 | C61: 60 | D61: 3 | E61: 24 | F61: 6
B62: 36 | C62: 66 | D62: 3 | E62: 27 | F62: 6
B63: 36 | C63: 72 | D63: 3 | E63: 30 | F63: 6
B64: 36 | C64: 78 | D64: 3 | E64: 33 | F64: 6
B65: 36 | C65: 84 | D65: 3 | E65: 36 | F65: 6
B66: 36 | C66: 90 | D66: 4 | E66: 24 | F66: 9
B67: 36 | C67: 96 | D67: 4 | E67: 27 | F67: 7.5
B68: 36 | C68: 102 | D68: 4 | E68: 30 | F68: 6
B69: 36 | C69: 108 | D69: 4 | E69: =IF(D69="X","X",mastarmspace(C69,D69)) -> 30 | F69: =(C69-((D69-1)*E69))/2 -> 9
B70: 36 | C70: 114 | D70: 5 | E70: 24 | F70: 9
B71: 36 | C71: 120 | D71: 5 | E71: 27 | F71: 6
B72: 36 | C72: 126 | D72: 5 | E72: 27 | F72: 9
B73: 36 | C73: 132 | D73: 5 | E73: 30 | F73: 6
B74: 36 | C74: 138 | D74: 5 | E74: 30 | F74: 9
B75: 36 | C75: 144 | D75: 5 | E75: 33 | F75: 6
B76: 36 | C76: 150 | D76: 5 | E76: 33 | F76: 9
B77: 36 | C77: 156 | D77: 5 | E77: 36 | F77: 6
B78: 36 | C78: 162 | D78: 5 | E78: 36 | F78: 9
B79: 36 | C79: 168 | D79: 5 | E79: 36 | F79: 12
B80: 42 | C80: 24 | D80: 2 | E80: 12 | F80: 6
B81: 42 | C81: =C80+6 -> 30 | D81: 2 | E81: 18 | F81: 6
B82: 42 | C82: 36 | D82: 2 | E82: 24 | F82: 6
B83: 42 | C83: 42 | D83: 2 | E83: 30 | F83: 6
B84: 42 | C84: 48 | D84: 2 | E84: 36 | F84: 6
B85: 42 | C85: 54 | D85: 3 | E85: 21 | F85: 6
B86: 42 | C86: 60 | D86: 3 | E86: 24 | F86: 6
B87: 42 | C87: 66 | D87: 3 | E87: 27 | F87: 6
B88: 42 | C88: 72 | D88: 3 | E88: 30 | F88: 6
B89: 42 | C89: 78 | D89: 3 | E89: 33 | F89: 6
B90: 42 | C90: 84 | D90: 3 | E90: 36 | F90: 6
B91: 42 | C91: 90 | D91: 4 | E91: 24 | F91: 9
B92: 42 | C92: 96 | D92: 4 | E92: 27 | F92: 7.5
B93: 42 | C93: 102 | D93: 4 | E93: 30 | F93: 6
B94: 42 | C94: 108 | D94: 4 | E94: 30 | F94: 9
B95: 42 | C95: 114 | D95: 5 | E95: 24 | F95: 9
B96: 42 | C96: 120 | D96: 5 | E96: 27 | F96: 6
B97: 42 | C97: 126 | D97: 5 | E97: 27 | F97: 9
B98: 42 | C98: 132 | D98: 5 | E98: 30 | F98: 6
B99: 42 | C99: 138 | D99: 5 | E99: 30 | F99: 9
B100: 42 | C100: 144 | D100: 5 | E100: 33 | F100: 6
B101: 42 | C101: 150 | D101: 5 | E101: 33 | F101: 9
B102: 42 | C102: 156 | D102: 5 | E102: 36 | F102: 6
B103: 42 | C103: 162 | D103: 6 | E103: 30 | F103: 6
B104: 42 | C104: 168 | D104: 6 | E104: 30 | F104: 9
B105: 48 | C105: 24 | D105: 2 | E105: 12 | F105: 6
B106: 48 | C106: =C105+6 -> 30 | D106: 2 | E106: 18 | F106: 6
B107: 48 | C107: 36 | D107: 2 | E107: 24 | F107: 6
B108: 48 | C108: 42 | D108: 2 | E108: 30 | F108: 6
B109: 48 | C109: 48 | D109: 2 | E109: 36 | F109: 6
B110: 48 | C110: 54 | D110: 3 | E110: 21 | F110: 6
B111: 48 | C111: 60 | D111: 3 | E111: 24 | F111: 6
B112: 48 | C112: 66 | D112: 3 | E112: 27 | F112: 6
B113: 48 | C113: 72 | D113: 3 | E113: 30 | F113: 6
B114: 48 | C114: 78 | D114: 3 | E114: 33 | F114: 6
B115: 48 | C115: 84 | D115: 3 | E115: 36 | F115: 6
B116: 48 | C116: 90 | D116: 4 | E116: 24 | F116: 9
B117: 48 | C117: 96 | D117: 4 | E117: 27 | F117: 7.5
B118: 48 | C118: 102 | D118: 4 | E118: 30 | F118: 6
B119: 48 | C119: 108 | D119: 4 | E119: 30 | F119: 9
B120: 48 | C120: 114 | D120: 5 | E120: 24 | F120: 9
B121: 48 | C121: 120 | D121: 5 | E121: 27 | F121: 6
B122: 48 | C122: 126 | D122: 5 | E122: 27 | F122: 9
B123: 48 | C123: 132 | D123: 5 | E123: 30 | F123: 6
B124: 48 | C124: 138 | D124: 5 | E124: 30 | F124: 9
B125: 48 | C125: 144 | D125: 5 | E125: 33 | F125: 6
B126: 48 | C126: 150 | D126: 5 | E126: 33 | F126: 9
B127: 48 | C127: 156 | D127: 5 | E127: 36 | F127: 6
B128: 48 | C128: 162 | D128: 6 | E128: 30 | F128: 6
B129: 48 | C129: 168 | D129: 6 | E129: 30 | F129: 9
B130: 54 | C130: 24 | D130: 2 | E130: 12 | F130: 6
B131: 54 | C131: =C130+6 -> 30 | D131: 2 | E131: 18 | F131: 6
B132: 54 | C132: 36 | D132: 2 | E132: 24 | F132: 6
B133: 54 | C133: 42 | D133: 2 | E133: =IF(D133="X","X",mastarmspace(C133,D133)) -> 30 | F133: =(C133-((D133-1)*E133))/2 -> 6
B134: 54 | C134: 48 | D134: 2 | E134: 36 | F134: 6
B135: 54 | C135: 54 | D135: 3 | E135: 21 | F135: 6
B136: 54 | C136: 60 | D136: 3 | E136: 24 | F136: 6
B137: 54 | C137: 66 | D137: 4 | E137: 18 | F137: 6
B138: 54 | C138: 72 | D138: 4 | E138: 18 | F138: 9
B139: 54 | C139: 78 | D139: 4 | E139: 21 | F139: 7.5
B140: 54 | C140: 84 | D140: 4 | E140: 24 | F140: 6
B141: 54 | C141: 90 | D141: 5 | E141: 18 | F141: 9
B142: 54 | C142: 96 | D142: 5 | E142: 21 | F142: 6
B143: 54 | C143: 102 | D143: 5 | E143: 21 | F143: 9
B144: 54 | C144: 108 | D144: 5 | E144: 24 | F144: 6
B145: 54 | C145: 114 | D145: 5 | E145: 24 | F145: 9
B146: 54 | C146: 120 | D146: 5 | E146: 27 | F146: 6
B147: 54 | C147: 126 | D147: 5 | E147: 27 | F147: 9
B148: 54 | C148: 132 | D148: 5 | E148: 30 | F148: 6
B149: 54 | C149: 138 | D149: 5 | E149: 30 | F149: 9
B150: 54 | C150: 144 | D150: 5 | E150: 33 | F150: 6
B151: 54 | C151: 150 | D151: 5 | E151: 33 | F151: 9
B152: 54 | C152: 156 | D152: 5 | E152: 36 | F152: 6
B153: 54 | C153: 162 | D153: 6 | E153: 30 | F153: 6
B154: 54 | C154: 168 | D154: 6 | E154: 30 | F154: 9
B155: 60 | C155: 24 | D155: 2 | E155: 12 | F155: 6
B156: 60 | C156: =C155+6 -> 30 | D156: 2 | E156: 18 | F156: 6
B157: 60 | C157: 36 | D157: 2 | E157: 24 | F157: 6
B158: 60 | C158: 42 | D158: 2 | E158: 30 | F158: 6
B159: 60 | C159: 48 | D159: 2 | E159: 36 | F159: 6
B160: 60 | C160: 54 | D160: 3 | E160: 21 | F160: 6
B161: 60 | C161: 60 | D161: 3 | E161: 24 | F161: 6
B162: 60 | C162: 66 | D162: 4 | E162: 18 | F162: 6
B163: 60 | C163: 72 | D163: 4 | E163: 18 | F163: 9
B164: 60 | C164: 78 | D164: 4 | E164: 21 | F164: 7.5
B165: 60 | C165: 84 | D165: 4 | E165: 24 | F165: 6
B166: 60 | C166: 90 | D166: 5 | E166: 18 | F166: 9
B167: 60 | C167: 96 | D167: 5 | E167: 21 | F167: 6
B168: 60 | C168: 102 | D168: 5 | E168: 21 | F168: 9
B169: 60 | C169: 108 | D169: 5 | E169: 24 | F169: 6
B170: 60 | C170: 114 | D170: 5 | E170: 24 | F170: 9
B171: 60 | C171: 120 | D171: 5 | E171: 27 | F171: 6
B172: 60 | C172: 126 | D172: 5 | E172: 27 | F172: 9
B173: 60 | C173: 132 | D173: 5 | E173: 30 | F173: 6
B174: 60 | C174: 138 | D174: 5 | E174: 30 | F174: 9
B175: 60 | C175: 144 | D175: 5 | E175: 33 | F175: 6
B176: 60 | C176: 150 | D176: 5 | E176: 33 | F176: 9
B177: 60 | C177: 156 | D177: 5 | E177: 36 | F177: 6
B178: 60 | C178: 162 | D178: 6 | E178: 30 | F178: 6
B179: 60 | C179: 168 | D179: 6 | E179: 30 | F179: 9
B180: 66 | C180: 24 | D180: X | E180: X
B181: 66 | C181: =C180+6 -> 30 | D181: X | E181: X
B182: 66 | C182: 36 | D182: X | E182: X
B183: 66 | C183: 42 | D183: 2 | E183: 30 | F183: 6
B184: 66 | C184: 48 | D184: 2 | E184: 36 | F184: 6
B185: 66 | C185: 54 | D185: 3 | E185: 21 | F185: 6
B186: 66 | C186: 60 | D186: 3 | E186: 24 | F186: 6
B187: 66 | C187: 66 | D187: 4 | E187: 18 | F187: 6
B188: 66 | C188: 72 | D188: 4 | E188: 18 | F188: 9
B189: 66 | C189: 78 | D189: 4 | E189: 21 | F189: 7.5
B190: 66 | C190: 84 | D190: 4 | E190: 24 | F190: 6
B191: 66 | C191: 90 | D191: 5 | E191: 18 | F191: 9
B192: 66 | C192: 96 | D192: 5 | E192: 21 | F192: 6
B193: 66 | C193: 102 | D193: 5 | E193: 21 | F193: 9
B194: 66 | C194: 108 | D194: 5 | E194: 24 | F194: 6
B195: 66 | C195: 114 | D195: 5 | E195: 24 | F195: 9
B196: 66 | C196: 120 | D196: 5 | E196: 27 | F196: 6
B197: 66 | C197: 126 | D197: 5 | E197: =IF(D197="X","X",mastarmspace(C197,D197)) -> 27 | F197: =(C197-((D197-1)*E197))/2 -> 9
B198: 66 | C198: 132 | D198: 5 | E198: 30 | F198: 6
B199: 66 | C199: 138 | D199: 5 | E199: 30 | F199: 9
B200: 66 | C200: 144 | D200: 5 | E200: 33 | F200: 6
B201: 66 | C201: 150 | D201: 5 | E201: 33 | F201: 9
... 78 more rows

Sheet SEQ-PSTAB
B1: =IF(G1="X","Choose one---","") -> Choose one--- | E1: =IF(G1="X","------->","") -> -------> | G1: X | H1: STATEMENT OF ESTIMATED QUANTITIES | J1: <------- | K1: Use this chart title if you are preparing a complete state project plan set.
B2: =IF(G2="X","Choose one---","") ->  | E2: =IF(G2="X","------->","") ->  | H2: PERMANENT SIGNING TABULATION | J2: <------- | K2: Use this chart title if your plan sheet set is part of a larger state project.
B3: =IF(G3="X","Choose one---","") ->  | E3: =IF(G3="X","------->","") ->  | H3: Custom Title - Type Here | J3: <------- | K3: Use this chart title if your plan sheet set is part of a larger state project.
H5: PERMANENT SIGNING SUMMARY | N5: ST
C6: SHEET NO | K6: SP | M6: SP 1010-001 | N6: TOTAL | O6: x
B7: TAB | D7: ITEM NO | H7: ITEM | J7: UNIT | K7: 2020-002 | N7: SIGNING | O7: x
K8: QUANTITIES | M8: QUANTITIES | N8: QUANTITIES | O8: x
D9: 2011.601 | H9: AS BUILT | J9: LUMP SUM | K9: 0 | O9: SIGNING
D10: 2021.501 | H10: MOBILIZATION | J10: LUMP SUM | O10: SIGNING
B11: ST-A | C11: ST2-ST5 | D11: 2104.502 | H11: REMOVE DELINEATOR / MARKER | J11: EACH | K11: 14 | M11: 8 | N11: =#REF! ->  | O11: X
D12: 2104.502 | F12: /01190 | H12: REMOVE DELINEATOR / MARKER PANEL | J12: EACH | O12: SIGNING
B13: ST-A | C13: ST2-ST5 | D13: 2104.502 | F13: /01220 | H13: REMOVE SIGN | J13: EACH | K13: 15 | M13: 11 | N13: =#REF! ->  | O13: X
D14: 2104.502 | H14: REMOVE SIGN TYPE SPECIAL | J14: EACH | O14: SIGNING
D15: 2104.502 | H15: REMOVE OVERHEAD SIGN | J15: EACH | K15: =#REF! ->  | O15: SIGNING
D16: 2104.502 | H16: REMOVE OVERHEAD BRIDGE MOUNTED SIGN | J16: EACH | K16: =#REF! ->  | O16: SIGNING
D17: 2104.502 | H17: REMOVE MONOTUBE SIGN | J17: EACH | K17: =#REF! ->  | O17: SIGNING
D18: 2104.502 | H18: REMOVE I BEAM SIGN | J18: EACH | K18: =#REF! ->  | O18: SIGNING
D19: 2104.502 | F19: /01440 | H19: REMOVE SIGN LIGHTING SYSTEM | J19: EACH | K19: =#REF! ->  | O19: SIGNING
D20: 2104.502 | H20: REMOVE EXTRUDED SIGN PANEL | J20: EACH | O20: SIGNING
B21: ST-A | C21: ST2-ST5 | D21: 2104.502 | H21: REMOVE SIGN PANEL | J21: EACH | N21: =#REF! ->  | O21: X
B22: ST-A | C22: ST2 | D22: 2104.502 | H22: REMOVE SIGN PANEL TYPE SPECIAL | J22: EACH | K22: =#REF! ->  | M22: 1 | O22: SIGNING
D23: 2104.502 | H23: SALVAGE DELINEATOR / MARKER | J23: EACH | O23: SIGNING
B24: ST-A | C24: ST2-ST5 | D24: 2104.502 | F24: /03300 | H24: SALVAGE SIGN | J24: EACH | K24: =M24+N24 ->  | M24: 1 | N24: =#REF! ->  | O24: X
B25: ST-A | C25: ST2-ST5 | D25: 2104.502 | F25: /03300 | H25: SALVAGE SIGN TYPE SPECIAL | J25: EACH | K25: =M25+N25 ->  | M25: 1 | N25: =#REF! ->  | O25: X
D26: 2104.502 | H26: SALVAGE EXTRUDED SIGN PANEL | J26: EACH | O26: SIGNING
B27: ST-A | C27: ST2-ST5 | D27: 2104.502 | H27: SALVAGE SIGN PANEL | J27: EACH | N27: =#REF! ->  | O27: SIGNING
D28: 2104.502 | H28: SALVAGE SIGN PANEL TYPE SPECIAL | J28: EACH | K28: 0 | O28: SIGNING
D29: 2104.502 | H29: SALVAGE OVERHEAD SIGN | J29: EACH | K29: 0 | O29: SIGNING
D30: 2104.502 | H30: SALVAGE OVERHEAD BRIDGE MOUNTED SIGN | J30: EACH | K30: 0 | O30: SIGNING
D31: 2104.502 | H31: SALVAGE MONOTUBE SIGN | J31: EACH | O31: SIGNING
D32: 2104.502 | H32: SALVAGE I-BEAM SIGN | J32: EACH | O32: SIGNING
D33: 2104.503 | H33: REMOVE SIGN WALKWAY | J33: LIN FT | K33: =#REF! ->  | O33: SIGNING
D34: 2564.502 | F34: /00040 | H34: MODIFY POST | J34: EACH | K34: 0 | O34: SIGNING
D35: 2564.502 | H35: INSTALL EXTRUDED SIGN PANEL | J35: EACH | K35: 0 | O35: SIGNING
B36: ST-A | C36: ST2-ST5 | D36: 2564.502 | H36: INSTALL SIGN PANEL | J36: EACH | K36: 0 | N36: ='SEQ-PSTAB'!P86 -> 0 | O36: SIGNING
D37: 2564.502 | H37: INSTALL SIGN PANEL TYPE SPECIAL | J37: EACH | K37: 0 | O37: SIGNING
D38: 2564.502 | H38: EXTEND WALKWAY SUPPORT | J38: EACH | K38: 0 | O38: SIGNING
D39: 2564.502 | H39: FRICTION FUSE | J39: EACH | K39: 0 | O39: SIGNING
D40: 2564.502 | H40: KEEPER PLATE | J40: EACH | K40: 0 | O40: SIGNING
D41: 2564.502 | H41: DELINEATOR TYPE SPECIAL | J41: EACH | O41: SIGNING
D42: 2564.51 | F42: /00010 | H42: OVERHEAD SIGN STRUCTURE REPAIR | J42: HOUR | K42: 0 | O42: SIGNING
D43: 2564.518 | H43: SIGN PANELS TYPE SPECIAL | J43: SQ FT | O43: SIGNING
D44: 2564.602 | F44: /01501 | H44: INSTALL SIGN COLLAR | J44: EACH | K44: 0 | O44: SIGNING
D45: 2564.602 | F45: /01505 | H45: SIGN COLLAR | J45: EACH | K45: 0 | O45: SIGNING
B46: ST-A | C46: ST2-ST5 | D46: 2564.602 | H46: INSTALL SIGN | J46: EACH | K46: =M46+N46 ->  | M46: 1 | N46: =#REF! ->  | O46: X
D47: 2564.602 | H47: INSTALL DELINEATOR / MARKER | J47: EACH | O47: SIGNING
D48: 2564.602 | F48: /01531 | H48: FOUNDATION SPECIAL OH | J48: EACH | K48: 0 | O48: SIGNING
D49: 2564.602 | F49: /01535 | H49: REPAIR SIGN TYPE OH | J49: EACH | K49: 0 | O49: SIGNING
D50: 2564.602 | F50: /01583 | H50: REPOSITION SIGN PANEL | J50: EACH | K50: 0 | O50: SIGNING
D51: 2564.602 | H51: INSTALL I-BEAM SIGN | J51: EACH | K51: 0 | O51: SIGNING
D52: 2564.602 | H52: INSTALL MONOTUBE SIGN | J52: EACH | O52: SIGNING
D53: 2564.602 | H53: INSTALL OVERHEAD SIGN | J53: EACH | K53: 0 | O53: SIGNING
D54: 2564.602 | H54: INSTALL OVERHEAD BRIDGE MOUNTED SIGN | J54: EACH | O54: SIGNING
D55: 2564.602 | H55: INSTALL SIGN TYPE SPECIAL | J55: EACH | O55: SIGNING
D56: 2564.602 | H56: INTERNALLY ILLUMINATED SIGN | J56: EACH | K56: 0 | O56: SIGNING
B57: ST-C | C57: ST3,ST4 | D57: 2564.602 | H57: DELINEATOR/MARKER | J57: EACH | K57: =#REF! ->  | M57: =#REF! ->  | O57: SIGNING
D58: 2564.602 | H58: DELINEATOR/MARKER PANEL | J58: EACH | O58: SIGNING
D59: 2564.602 | H59: CONCRETE FOOTING (ROCK SOCKET) | J59: EACH | K59: 0 | O59: SIGNING
D60: 2546.607 | H60: MEDIAN BARRIER FOOTING (SHAFT) | J60: CU YD | O60: SIGNING
D61: 2546.607 | H61: MEDIAN BARRIER FOOTING (SPREAD) | J61: CU YD | O61: SIGNING
D62: 2546.607 | H62: CONCRETE FOOTING (I-BEAM) | J62: CU YD | O62: SIGNING
D63: 2546.607 | H63: CONCRETE FOOTING (OVERHEAD SHAFT) | J63: CU YD | O63: SIGNING
D64: 2546.607 | H64: CONCRETE FOOTING (OVERHEAD SPREAD) | J64: CU YD | O64: SIGNING
D65: 2546.607 | H65: CONCRETE FOOTING (MONOTUBE) | J65: CU YD | O65: SIGNING
D66: 2546.608 | H66: STRUCTURAL STEEL - I-BEAM SIGN | I66: (P) | J66: POUND | O66: SIGNING
D67: 2546.608 | H67: STRUCTURAL STEEL - OVERHEAD SIGN POST | I67: (P) | J67: POUND | O67: SIGNING
D68: 2546.608 | H68: STRUCTURAL STEEL - OVERHEAD SIGN TRUSS | I68: (P) | J68: POUND | O68: SIGNING
D69: 2546.608 | H69: STRUCTURAL STEEL - OVERHEAD WALKWAY | I69: (P) | J69: POUND | O69: SIGNING
D70: 2546.608 | H70: STRUCTURAL STEEL - MONOTUBE SIGN | I70: (P) | J70: POUND | O70: SIGNING
D71: 2546.608 | H71: STRUCTURAL STEEL - BRIDGE MOUNTED TRUSS | I71: (P) | J71: POUND | O71: SIGNING
D72: 2546.608 | H72: STRUCTURAL STEEL - PANEL MOUNTING POST | I72: (P) | J72: POUND | O72: SIGNING
D73: 2546.618 | H73: SIGN | J73: SQ FT | O73: SIGNING
D74: 2546.618 | H74: SIGN PANEL | J74: SQ FT | O74: SIGNING
D75: 2564.618 | H75: SIGN PANEL OVERLAY | J75: SQ FT | O75: SIGNING
D76: 2564.618 | H76: EXTRUDED PANEL | J76: SQ FT | O76: SIGNING
D77: 2564.618 | H77: SIGN TYPE SPECIAL | J77: SQ FT | O77: SIGNING
B79: GENERAL NOTE:
B80: (P) DENOTES PLAN QUANTITY | O80: X
B81: ="(3) OTHER NOTES." -> (3) OTHER NOTES. | O81: X
B82: ="(4) OTHER NOTES." -> (4) OTHER NOTES. | O82: X
O83: x
A84: GENERAL INFORMATION: | O84: X
A85: 1. | B85: MOUNTING HEIGHT IS MINIMUM (WITH A + 6 INCH TOLERANCE) | O85: X | P85: X
A86: 2. | B86: SEE CURRENT MNDOT STANDARD SIGNS AND MARKINGS MANUAL FOR STANDARD SIGN DESIGNS, SPLICE PLATES, | O86: X
B87: STRINGERS AND PUNCHING CODES. | O87: X
A88: 3. | B88: SEE PANEL LAYOUTS FOR DESIGNS OF PANEL OVERLAYS OR PANEL CODES THAT BEGIN WITH THE LETTER "P" (P1, P2 ETC.). | O88: X
A89: 4. | B89: SEE STANDARD PLANS AND DETAILS FOR SIGN STRUCTURE INSTALLATION AND PLACEMENT. | O89: X
O90: X
O91: X
A92: General information notes should be included on the same sheet as the PERMANENT SIGNING SUMMARY or SEQ in most SP's | O92: X
O93: x

Sheet SEQ-4Temp (hidden)
B5: =IF('SEQ-PSTAB'!G1<>"",'SEQ-PSTAB'!H1,IF('SEQ-PSTAB'!G2<>"",'SEQ-PSTAB'!H2,'SEQ-PSTAB'!H3)) -> STATEMENT OF ESTIMATED QUANTITIES | H5: X
C6: SHEET NO | H6: TOTAL
B7: TAB | D7: ITEM NO | F7: ITEM | G7: UNIT | H7: ESTIMATED
H8: QUANTITIES

Sheet POSTS25 (hidden)
B2: 2.5# POSTS
B3: HEIGHT | C3: LENGTH | D3: V-POST | E3: K-POST
B4: INCH
B5: 12 | C5: 12 | D5: 1 | E5: 0
B6: =B5+6 -> 18 | C6: 12 | D6: 1 | E6: 0
B7: 24 | C7: 12 | D7: 1 | E7: 0
B8: 30 | C8: 12 | D8: 1 | E8: 0
B9: 36 | C9: 12 | D9: 2 | E9: 0
B10: 42 | C10: 12 | D10: 2 | E10: 0
B11: 48 | C11: 12 | D11: 2 | E11: 0
B12: 54 | C12: 12 | D12: 2 | E12: 0
B13: 60 | C13: 12 | D13: 2 | E13: 1
B14: 66 | C14: 12 | D14: 2 | E14: 1
B15: 72 | C15: 12 | D15: 2 | E15: 1
B16: 78 | C16: 12 | D16: 2 | E16: 1
B17: 84 | C17: 12 | D17: 2 | E17: 1
B18: 90 | C18: 12 | D18: 2 | E18: 1
B19: 96 | C19: 12 | D19: 2 | E19: 1
B20: 102 | C20: 12 | D20: 2 | E20: 1
B21: 108 | C21: 12 | D21: 2 | E21: 1
B22: 114 | C22: 12 | D22: 2 | E22: 1
B23: 120 | C23: 12 | D23: 2 | E23: 1
B24: 126 | C24: 12 | D24: 2 | E24: 1
B25: 132 | C25: 12 | D25: 2 | E25: 1
B26: 138 | C26: 12 | D26: 2 | E26: 1
B27: 144 | C27: 12 | D27: 2 | E27: 1
B28: 150 | C28: 12 | D28: 2 | E28: 1
B29: 12 | C29: 18 | D29: 1 | E29: 0
B30: =B29+6 -> 18 | C30: 18 | D30: 1 | E30: 0
B31: 24 | C31: 18 | D31: 2 | E31: 0
B32: 30 | C32: 18 | D32: 2 | E32: 0
B33: 36 | C33: 18 | D33: 2 | E33: 0
B34: 42 | C34: 18 | D34: 2 | E34: 1
B35: 48 | C35: 18 | D35: 2 | E35: 1
B36: 54 | C36: 18 | D36: 2 | E36: 1
B37: 60 | C37: 18 | D37: 2 | E37: 1
B38: 66 | C38: 18 | D38: 2 | E38: 1
B39: 72 | C39: 18 | D39: 2 | E39: 1
B40: 78 | C40: 18 | D40: 2 | E40: 1
B41: 84 | C41: 18 | D41: 2 | E41: 1
B42: 90 | C42: 18 | D42: 2 | E42: 1
B43: 96 | C43: 18 | D43: 2 | E43: 1
B44: 102 | C44: 18 | D44: 2 | E44: 1
B45: 108 | C45: 18 | D45: 2 | E45: 1
B46: 114 | C46: 18 | D46: 2 | E46: 1
B47: 120 | C47: 18 | D47: 2 | E47: 1
B48: 126 | C48: 18 | D48: 2 | E48: 1
B49: 132 | C49: 18 | D49: 2 | E49: 2
B50: 138 | C50: 18 | D50: 2 | E50: 2
B51: 144 | C51: 18 | D51: 2 | E51: 2
B52: 150 | C52: 18 | D52: 2 | E52: 2
B53: 12 | C53: 24 | D53: 1 | E53: 0
B54: =B53+6 -> 18 | C54: 24 | D54: 2 | E54: 0
B55: 24 | C55: 24 | D55: 2 | E55: 0
B56: 30 | C56: 24 | D56: 2 | E56: 0
B57: 36 | C57: 24 | D57: 2 | E57: 1
B58: 42 | C58: 24 | D58: 2 | E58: 1
B59: 48 | C59: 24 | D59: 2 | E59: 1
B60: 54 | C60: 24 | D60: 2 | E60: 1
B61: 60 | C61: 24 | D61: 2 | E61: 1
B62: 66 | C62: 24 | D62: 2 | E62: 1
B63: 72 | C63: 24 | D63: 2 | E63: 1
B64: 78 | C64: 24 | D64: 2 | E64: 1
B65: 84 | C65: 24 | D65: 2 | E65: 1
B66: 90 | C66: 24 | D66: 2 | E66: 1
B67: 96 | C67: 24 | D67: 2 | E67: 1
B68: 102 | C68: 24 | D68: 2 | E68: 1
B69: 108 | C69: 24 | D69: 2 | E69: 1
B70: 114 | C70: 24 | D70: 2 | E70: 2
B71: 120 | C71: 24 | D71: 2 | E71: 2
B72: 126 | C72: 24 | D72: 2 | E72: 2
B73: 132 | C73: 24 | D73: 2 | E73: 2
B74: 138 | C74: 24 | D74: 2 | E74: 2
B75: 144 | C75: 24 | D75: 2 | E75: 2
B76: 150 | C76: 24 | D76: 2 | E76: 2
B77: 12 | C77: 30 | D77: 1 | E77: 0
B78: =B77+6 -> 18 | C78: 30 | D78: 2 | E78: 0
B79: 24 | C79: 30 | D79: 2 | E79: 0
B80: 30 | C80: 30 | D80: 2 | E80: 1
B81: 36 | C81: 30 | D81: 2 | E81: 1
B82: 42 | C82: 30 | D82: 2 | E82: 1
B83: 48 | C83: 30 | D83: 2 | E83: 1
B84: 54 | C84: 30 | D84: 2 | E84: 1
B85: 60 | C85: 30 | D85: 2 | E85: 1
B86: 66 | C86: 30 | D86: 2 | E86: 1
B87: 72 | C87: 30 | D87: 2 | E87: 1
B88: 78 | C88: 30 | D88: 2 | E88: 1
B89: 84 | C89: 30 | D89: 2 | E89: 1
B90: 90 | C90: 30 | D90: 2 | E90: 1
B91: 96 | C91: 30 | D91: 2 | E91: 1
B92: 102 | C92: 30 | D92: 2 | E92: 2
B93: 108 | C93: 30 | D93: 2 | E93: 2
B94: 114 | C94: 30 | D94: 2 | E94: 2
B95: 120 | C95: 30 | D95: 2 | E95: 2
B96: 126 | C96: 30 | D96: 2 | E96: 2
B97: 132 | C97: 30 | D97: 2 | E97: 2
B98: 138 | C98: 30 | D98: 2 | E98: 2
B99: 12 | C99: 36 | D99: 2 | E99: 0
B100: =B99+6 -> 18 | C100: 36 | D100: 2 | E100: 0
B101: 24 | C101: 36 | D101: 2 | E101: 1
B102: 30 | C102: 36 | D102: 2 | E102: 1
B103: 36 | C103: 36 | D103: 2 | E103: 1
B104: 42 | C104: 36 | D104: 2 | E104: 1
B105: 48 | C105: 36 | D105: 2 | E105: 1
B106: 54 | C106: 36 | D106: 2 | E106: 1
B107: 60 | C107: 36 | D107: 2 | E107: 1
B108: 66 | C108: 36 | D108: 2 | E108: 1
B109: 72 | C109: 36 | D109: 2 | E109: 1
B110: 78 | C110: 36 | D110: 2 | E110: 1
B111: 84 | C111: 36 | D111: 2 | E111: 1
B112: 90 | C112: 36 | D112: 2 | E112: 2
B113: 96 | C113: 36 | D113: 2 | E113: 2
B114: 102 | C114: 36 | D114: 2 | E114: 2
B115: 108 | C115: 36 | D115: 2 | E115: 2
B116: 114 | C116: 36 | D116: 2 | E116: 2
B117: 120 | C117: 36 | D117: 2 | E117: 2
B118: 12 | C118: 42 | D118: 2 | E118: 0
B119: =B118+6 -> 18 | C119: 42 | D119: 2 | E119: 0
B120: 24 | C120: 42 | D120: 2 | E120: 1
B121: 30 | C121: 42 | D121: 2 | E121: 1
B122: 36 | C122: 42 | D122: 2 | E122: 1
B123: 42 | C123: 42 | D123: 2 | E123: 1
B124: 48 | C124: 42 | D124: 2 | E124: 1
B125: 54 | C125: 42 | D125: 2 | E125: 1
B126: 60 | C126: 42 | D126: 2 | E126: 1
B127: 66 | C127: 42 | D127: 2 | E127: 1
B128: 72 | C128: 42 | D128: 2 | E128: 1
B129: 78 | C129: 42 | D129: 2 | E129: 2
B130: 84 | C130: 42 | D130: 2 | E130: 2
B131: 90 | C131: 42 | D131: 2 | E131: 2
B132: 96 | C132: 42 | D132: 2 | E132: 2
B133: 102 | C133: 42 | D133: 2 | E133: 2
B134: 108 | C134: 42 | D134: 2 | E134: 2
B135: 114 | C135: 42 | D135: 2 | E135: 2
B136: 120 | C136: 42 | D136: 2 | E136: 2
B137: 12 | C137: 48 | D137: 2 | E137: 0
B138: =B137+6 -> 18 | C138: 48 | D138: 2 | E138: 1
B139: 24 | C139: 48 | D139: 2 | E139: 1
B140: 30 | C140: 48 | D140: 2 | E140: 1
B141: 36 | C141: 48 | D141: 2 | E141: 1
B142: 42 | C142: 48 | D142: 2 | E142: 1
B143: 48 | C143: 48 | D143: 2 | E143: 1
B144: 54 | C144: 48 | D144: 2 | E144: 1
B145: 60 | C145: 48 | D145: 2 | E145: 1
B146: 66 | C146: 48 | D146: 2 | E146: 1
B147: 72 | C147: 48 | D147: 2 | E147: 2
B148: 78 | C148: 48 | D148: 2 | E148: 2
B149: 84 | C149: 48 | D149: 2 | E149: 2
B150: 90 | C150: 48 | D150: 2 | E150: 2
B151: 96 | C151: 48 | D151: 2 | E151: 2
B152: 102 | C152: 48 | D152: 2 | E152: 2
B153: 108 | C153: 48 | D153: 2 | E153: 2
B154: 12 | C154: 54 | D154: 1 | E154: 0
B155: =B154+6 -> 18 | C155: 54 | D155: 2 | E155: 1
B156: 24 | C156: 54 | D156: 2 | E156: 1
B157: 30 | C157: 54 | D157: 2 | E157: 1
B158: 36 | C158: 54 | D158: 2 | E158: 1
B159: 42 | C159: 54 | D159: 2 | E159: 1
B160: 48 | C160: 54 | D160: 2 | E160: 1
B161: 54 | C161: 54 | D161: 2 | E161: 1
B162: 60 | C162: 54 | D162: 2 | E162: 1
B163: 66 | C163: 54 | D163: 2 | E163: 2
B164: 72 | C164: 54 | D164: 2 | E164: 2
B165: 78 | C165: 54 | D165: 2 | E165: 2
B166: 84 | C166: 54 | D166: 2 | E166: 2
B167: 90 | C167: 54 | D167: 2 | E167: 2
B168: 96 | C168: 54 | D168: 2 | E168: 2
B169: 12 | C169: 60 | D169: 1 | E169: 0
B170: =B169+6 -> 18 | C170: 60 | D170: 2 | E170: 1
B171: 24 | C171: 60 | D171: 2 | E171: 1
B172: 30 | C172: 60 | D172: 2 | E172: 1
B173: 36 | C173: 60 | D173: 2 | E173: 1
B174: 42 | C174: 60 | D174: 2 | E174: 1
B175: 48 | C175: 60 | D175: 2 | E175: 1
B176: 54 | C176: 60 | D176: 2 | E176: 1
B177: 60 | C177: 60 | D177: 2 | E177: 2
B178: 66 | C178: 60 | D178: 2 | E178: 2
B179: 72 | C179: 60 | D179: 2 | E179: 2
B180: 78 | C180: 60 | D180: 2 | E180: 2
B181: 84 | C181: 60 | D181: 2 | E181: 2
B182: 90 | C182: 60 | D182: 2 | E182: 2
B183: 12 | C183: 66 | D183: 1 | E183: 0
B184: =B183+6 -> 18 | C184: 66 | D184: 2 | E184: 2
B185: 24 | C185: 66 | D185: 2 | E185: 2
B186: 30 | C186: 66 | D186: 2 | E186: 2
B187: 36 | C187: 66 | D187: 2 | E187: 2
B188: 42 | C188: 66 | D188: 2 | E188: 2
B189: 48 | C189: 66 | D189: 2 | E189: 2
B190: 54 | C190: 66 | D190: 2 | E190: 2
B191: 60 | C191: 66 | D191: 2 | E191: 2
B192: 66 | C192: 66 | D192: 2 | E192: 2
B193: 72 | C193: 66 | D193: 2 | E193: 2
B194: 78 | C194: 66 | D194: 2 | E194: 2
B195: 84 | C195: 66 | D195: 2 | E195: 2
B196: 90 | C196: 66 | D196: 2 | E196: 2
B197: 12 | C197: 72 | D197: 2 | E197: 2
B198: =B197+6 -> 18 | C198: 72 | D198: 2 | E198: 2
B199: 24 | C199: 72 | D199: 2 | E199: 2
B200: 30 | C200: 72 | D200: 2 | E200: 2
B201: 36 | C201: 72 | D201: 2 | E201: 2
... 211 more rows

Sheet POSTS30 (hidden)
B2: 3.0# POSTS
B3: HEIGHT | C3: LENGTH | D3: V-POST | E3: K-POST
B4: INCH
B5: 12 | C5: 12 | D5: 1 | E5: 0
B6: 18 | C6: 12 | D6: 1 | E6: 0
B7: 24 | C7: 12 | D7: 1 | E7: 0
B8: 30 | C8: 12 | D8: 1 | E8: 0
B9: 36 | C9: 12 | D9: 2 | E9: 0
B10: 42 | C10: 12 | D10: 2 | E10: 0
B11: 48 | C11: 12 | D11: 2 | E11: 0
B12: 54 | C12: 12 | D12: 2 | E12: 0
B13: 60 | C13: 12 | D13: 2 | E13: 0
B14: 66 | C14: 12 | D14: 2 | E14: 0
B15: 72 | C15: 12 | D15: 2 | E15: 1
B16: 78 | C16: 12 | D16: 2 | E16: 1
B17: 84 | C17: 12 | D17: 2 | E17: 1
B18: 90 | C18: 12 | D18: 2 | E18: 1
B19: 96 | C19: 12 | D19: 2 | E19: 1
B20: 102 | C20: 12 | D20: 2 | E20: 1
B21: 108 | C21: 12 | D21: 2 | E21: 1
B22: 114 | C22: 12 | D22: 2 | E22: 1
B23: 120 | C23: 12 | D23: 2 | E23: 1
B24: 126 | C24: 12 | D24: 2 | E24: 1
B25: 132 | C25: 12 | D25: 2 | E25: 1
B26: 138 | C26: 12 | D26: 2 | E26: 1
B27: 144 | C27: 12 | D27: 2 | E27: 1
B28: 150 | C28: 12 | D28: 2 | E28: 1
B29: 12 | C29: 18 | D29: 1 | E29: 0
B30: 18 | C30: 18 | D30: 1 | E30: 0
B31: 24 | C31: 18 | D31: 1 | E31: 0
B32: 30 | C32: 18 | D32: 2 | E32: 0
B33: 36 | C33: 18 | D33: 2 | E33: 0
B34: 42 | C34: 18 | D34: 2 | E34: 0
B35: 48 | C35: 18 | D35: 2 | E35: 1
B36: 54 | C36: 18 | D36: 2 | E36: 1
B37: 60 | C37: 18 | D37: 2 | E37: 1
B38: 66 | C38: 18 | D38: 2 | E38: 1
B39: 72 | C39: 18 | D39: 2 | E39: 1
B40: 78 | C40: 18 | D40: 2 | E40: 1
B41: 84 | C41: 18 | D41: 2 | E41: 1
B42: 90 | C42: 18 | D42: 2 | E42: 1
B43: 96 | C43: 18 | D43: 2 | E43: 1
B44: 102 | C44: 18 | D44: 2 | E44: 1
B45: 108 | C45: 18 | D45: 2 | E45: 1
B46: 114 | C46: 18 | D46: 2 | E46: 1
B47: 120 | C47: 18 | D47: 2 | E47: 1
B48: 126 | C48: 18 | D48: 2 | E48: 1
B49: 132 | C49: 18 | D49: 2 | E49: 1
B50: 138 | C50: 18 | D50: 2 | E50: 2
B51: 144 | C51: 18 | D51: 2 | E51: 2
B52: 150 | C52: 18 | D52: 2 | E52: 2
B53: 12 | C53: 24 | D53: 1 | E53: 0
B54: 18 | C54: 24 | D54: 1 | E54: 0
B55: 24 | C55: 24 | D55: 2 | E55: 0
B56: 30 | C56: 24 | D56: 2 | E56: 0
B57: 36 | C57: 24 | D57: 2 | E57: 0
B58: 42 | C58: 24 | D58: 2 | E58: 1
B59: 48 | C59: 24 | D59: 2 | E59: 1
B60: 54 | C60: 24 | D60: 2 | E60: 1
B61: 60 | C61: 24 | D61: 2 | E61: 1
B62: 66 | C62: 24 | D62: 2 | E62: 1
B63: 72 | C63: 24 | D63: 2 | E63: 1
B64: 78 | C64: 24 | D64: 2 | E64: 1
B65: 84 | C65: 24 | D65: 2 | E65: 1
B66: 90 | C66: 24 | D66: 2 | E66: 1
B67: 96 | C67: 24 | D67: 2 | E67: 1
B68: 102 | C68: 24 | D68: 2 | E68: 1
B69: 108 | C69: 24 | D69: 2 | E69: 1
B70: 114 | C70: 24 | D70: 2 | E70: 2
B71: 120 | C71: 24 | D71: 2 | E71: 2
B72: 126 | C72: 24 | D72: 2 | E72: 2
B73: 132 | C73: 24 | D73: 2 | E73: 2
B74: 138 | C74: 24 | D74: 2 | E74: 2
B75: 144 | C75: 24 | D75: 2 | E75: 2
B76: 150 | C76: 24 | D76: 2 | E76: 2
B77: 12 | C77: 30 | D77: 1 | E77: 0
B78: 18 | C78: 30 | D78: 2 | E78: 0
B79: 24 | C79: 30 | D79: 2 | E79: 0
B80: 30 | C80: 30 | D80: 2 | E80: 0
B81: 36 | C81: 30 | D81: 2 | E81: 1
B82: 42 | C82: 30 | D82: 2 | E82: 1
B83: 48 | C83: 30 | D83: 2 | E83: 1
B84: 54 | C84: 30 | D84: 2 | E84: 1
B85: 60 | C85: 30 | D85: 2 | E85: 1
B86: 66 | C86: 30 | D86: 2 | E86: 1
B87: 72 | C87: 30 | D87: 2 | E87: 1
B88: 78 | C88: 30 | D88: 2 | E88: 1
B89: 84 | C89: 30 | D89: 2 | E89: 1
B90: 90 | C90: 30 | D90: 2 | E90: 1
B91: 96 | C91: 30 | D91: 2 | E91: 1
B92: 102 | C92: 30 | D92: 2 | E92: 2
B93: 108 | C93: 30 | D93: 2 | E93: 2
B94: 114 | C94: 30 | D94: 2 | E94: 2
B95: 120 | C95: 30 | D95: 2 | E95: 2
B96: 126 | C96: 30 | D96: 2 | E96: 2
B97: 132 | C97: 30 | D97: 2 | E97: 2
B98: 138 | C98: 30 | D98: 2 | E98: 2
B99: 144 | C99: 30 | D99: 2 | E99: 2
B100: 12 | C100: 36 | D100: 2 | E100: 0
B101: 18 | C101: 36 | D101: 2 | E101: 0
B102: 24 | C102: 36 | D102: 2 | E102: 0
B103: 30 | C103: 36 | D103: 2 | E103: 1
B104: 36 | C104: 36 | D104: 2 | E104: 1
B105: 42 | C105: 36 | D105: 2 | E105: 1
B106: 48 | C106: 36 | D106: 2 | E106: 1
B107: 54 | C107: 36 | D107: 2 | E107: 1
B108: 60 | C108: 36 | D108: 2 | E108: 1
B109: 66 | C109: 36 | D109: 2 | E109: 1
B110: 72 | C110: 36 | D110: 2 | E110: 1
B111: 78 | C111: 36 | D111: 2 | E111: 1
B112: 84 | C112: 36 | D112: 2 | E112: 1
B113: 90 | C113: 36 | D113: 2 | E113: 2
B114: 96 | C114: 36 | D114: 2 | E114: 2
B115: 102 | C115: 36 | D115: 2 | E115: 2
B116: 108 | C116: 36 | D116: 2 | E116: 2
B117: 114 | C117: 36 | D117: 2 | E117: 2
B118: 120 | C118: 36 | D118: 2 | E118: 2
B119: 126 | C119: 36 | D119: 2 | E119: 2
B120: 132 | C120: 36 | D120: 2 | E120: 2
B121: 12 | C121: 42 | D121: 2 | E121: 0
B122: 18 | C122: 42 | D122: 2 | E122: 0
B123: 24 | C123: 42 | D123: 2 | E123: 1
B124: 30 | C124: 42 | D124: 2 | E124: 1
B125: 36 | C125: 42 | D125: 2 | E125: 1
B126: 42 | C126: 42 | D126: 2 | E126: 1
B127: 48 | C127: 42 | D127: 2 | E127: 1
B128: 54 | C128: 42 | D128: 2 | E128: 1
B129: 60 | C129: 42 | D129: 2 | E129: 1
B130: 66 | C130: 42 | D130: 2 | E130: 1
B131: 72 | C131: 42 | D131: 2 | E131: 1
B132: 78 | C132: 42 | D132: 2 | E132: 1
B133: 84 | C133: 42 | D133: 2 | E133: 2
B134: 90 | C134: 42 | D134: 2 | E134: 2
B135: 96 | C135: 42 | D135: 2 | E135: 2
B136: 102 | C136: 42 | D136: 2 | E136: 2
B137: 108 | C137: 42 | D137: 2 | E137: 2
B138: 114 | C138: 42 | D138: 2 | E138: 2
B139: 120 | C139: 42 | D139: 2 | E139: 2
B140: 12 | C140: 48 | D140: 2 | E140: 0
B141: 18 | C141: 48 | D141: 2 | E141: 0
B142: 24 | C142: 48 | D142: 2 | E142: 1
B143: 30 | C143: 48 | D143: 2 | E143: 1
B144: 36 | C144: 48 | D144: 2 | E144: 1
B145: 42 | C145: 48 | D145: 2 | E145: 1
B146: 48 | C146: 48 | D146: 2 | E146: 1
B147: 54 | C147: 48 | D147: 2 | E147: 1
B148: 60 | C148: 48 | D148: 2 | E148: 1
B149: 66 | C149: 48 | D149: 2 | E149: 1
B150: 72 | C150: 48 | D150: 2 | E150: 1
B151: 78 | C151: 48 | D151: 2 | E151: 2
B152: 84 | C152: 48 | D152: 2 | E152: 2
B153: 90 | C153: 48 | D153: 2 | E153: 2
B154: 96 | C154: 48 | D154: 2 | E154: 2
B155: 102 | C155: 48 | D155: 2 | E155: 2
B156: 108 | C156: 48 | D156: 2 | E156: 2
B157: 12 | C157: 54 | D157: 2 | E157: 0
B158: 18 | C158: 54 | D158: 2 | E158: 1
B159: 24 | C159: 54 | D159: 2 | E159: 1
B160: 30 | C160: 54 | D160: 2 | E160: 1
B161: 36 | C161: 54 | D161: 2 | E161: 1
B162: 42 | C162: 54 | D162: 2 | E162: 1
B163: 48 | C163: 54 | D163: 2 | E163: 1
B164: 54 | C164: 54 | D164: 2 | E164: 1
B165: 60 | C165: 54 | D165: 2 | E165: 1
B166: 66 | C166: 54 | D166: 2 | E166: 1
B167: 72 | C167: 54 | D167: 2 | E167: 2
B168: 78 | C168: 54 | D168: 2 | E168: 2
B169: 84 | C169: 54 | D169: 2 | E169: 2
B170: 90 | C170: 54 | D170: 2 | E170: 2
B171: 96 | C171: 54 | D171: 2 | E171: 2
B172: 102 | C172: 54 | D172: 2 | E172: 2
B173: 12 | C173: 60 | D173: 2 | E173: 0
B174: 18 | C174: 60 | D174: 2 | E174: 1
B175: 24 | C175: 60 | D175: 2 | E175: 1
B176: 30 | C176: 60 | D176: 2 | E176: 1
B177: 36 | C177: 60 | D177: 2 | E177: 1
B178: 42 | C178: 60 | D178: 2 | E178: 1
B179: 48 | C179: 60 | D179: 2 | E179: 1
B180: 54 | C180: 60 | D180: 2 | E180: 1
B181: 60 | C181: 60 | D181: 2 | E181: 1
B182: 66 | C182: 60 | D182: 2 | E182: 2
B183: 72 | C183: 60 | D183: 2 | E183: 2
B184: 78 | C184: 60 | D184: 2 | E184: 2
B185: 84 | C185: 60 | D185: 2 | E185: 2
B186: 90 | C186: 60 | D186: 2 | E186: 2
B187: 96 | C187: 60 | D187: 2 | E187: 2
B188: 12 | C188: 66 | D188: 3 | E188: 0
B189: 18 | C189: 66 | D189: 2 | E189: 2
B190: 24 | C190: 66 | D190: 2 | E190: 2
B191: 30 | C191: 66 | D191: 2 | E191: 2
B192: 36 | C192: 66 | D192: 2 | E192: 2
B193: 42 | C193: 66 | D193: 2 | E193: 2
B194: 48 | C194: 66 | D194: 2 | E194: 2
B195: 54 | C195: 66 | D195: 2 | E195: 2
B196: 60 | C196: 66 | D196: 2 | E196: 2
B197: 66 | C197: 66 | D197: 2 | E197: 2
B198: 72 | C198: 66 | D198: 2 | E198: 2
B199: 78 | C199: 66 | D199: 2 | E199: 2
B200: 84 | C200: 66 | D200: 2 | E200: 2
B201: 90 | C201: 66 | D201: 2 | E201: 2
... 231 more rows

Sheet ESGNPOSTS (hidden)
B2: E SIGN POST SPACING
B3: WIDTH | C3: 2 POSTS | D3: 3 POSTS | E3: 4 POSTS
B4: INCH
B5: 48 | C5: 30
B6: =B5+6 -> 54 | C6: 30
B7: =B6+6 -> 60 | C7: 36
B8: 66 | C8: 36
B9: 72 | C9: 42
B10: 78 | C10: 48
B11: 84 | C11: 48
B12: 90 | C12: 54
B13: 96 | C13: 54
B14: 102 | D14: 36
B15: 108 | D15: 36
B16: 114 | D16: 42
B17: 120 | D17: 42
B18: 126 | D18: 42
B19: 132 | D19: 48
B20: 138 | D20: 48
B21: 144 | D21: 54
B22: 150 | E22: 42
B23: 156 | E23: 42
B24: 162 | E24: 42
B25: 168 | E25: 42
B26: 174 | E26: 48
B27: 180 | E27: 48

Sheet POSTSPACING (hidden)
B2: SIGN POST SPACING
B3: WIDTH | C3: 2 POSTS | D3: 3 POSTS | E3: 4 POSTS
B4: INCH
B5: 36 | C5: 24
B6: =B5+6 -> 42 | C6: 30
B7: 48 | C7: 30
B8: 54 | C8: 30
B9: 60 | C9: 36
B10: 66 | C10: 42
B11: 72 | C11: 42
B12: 78 | C12: 54
B13: 84 | C13: 54
B14: 90 | C14: 54
B15: 96 | C15: 54
B16: 102 | C16: 60 | D16: 45
B17: 108 | C17: 66 | D17: 45
B18: 114 | C18: 66 | D18: 45
B19: 120 | C19: 72 | D19: 45
B20: 126 | C20: 78 | D20: 45
B21: 132 | C21: 78 | D21: 45
B22: 138 | C22: 78 | D22: 48
B23: 144 | C23: 90 | D23: 51 | E23: 45
B24: 150 | C24: 90 | D24: 54 | E24: 45
B25: 156 | C25: 90 | D25: 54 | E25: 45
B26: 162 | C26: 96 | D26: 57 | E26: 48
B27: 168 | C27: 96 | D27: 60 | E27: 48
B28: 174 | C28: 102 | D28: 63 | E28: 54
B29: 180 | C29: 108 | D29: 63 | E29: 54

Sheet PICILINKS (hidden)
A1: Rev | B1: Item_Number | C1: Short_Description | D1: Units_Code
B2: 2102.501/00010 | C2: PAVEMENT MARKING REMOVAL | D2: S F
A3: F | B3: 2104.509/00170 | C3: REMOVE DELINEATOR | D3: EACH | E3: DELREM
A4: F | B4: 2104.509/00180 | C4: REMOVE MARKER | D4: EACH
B5: 2104.509/00199 | C5: REMOVE SIGN | D5: EACH
B6: 2104.509/00200 | C6: REMOVE SIGN TYPE A (BRIDGE MOUNTED) | D6: EACH
A7: x | B7: 2104.509/00201 | C7: REMOVE SIGN TYPE A | D7: EACH | E7: AREM | F7: ABASRM
A8: F | B8: 2104.509/00203 | C8: REMOVE SIGN TYPE C | D8: EACH
A9: F | B9: 2104.509/00205 | C9: REMOVE SIGN TYPE D | D9: EACH | E9: DREM
B10: 2104.509/00206 | C10: REMOVE SIGN TYPE EA | D10: EACH
B11: 2104.509/00207 | C11: REMOVE SIGN TYPE EO | D11: EACH
B12: 2104.509/00208 | C12: REMOVE SIGN TYPE OH (BRIDGE MOUNTED) | D12: EACH
B13: 2104.509/00209 | C13: REMOVE SIGN TYPE OH | D13: EACH
B14: 2104.509/00210 | C14: REMOVE SIGN TYPE D (BRIDGE MOUNTED) | D14: EACH
B15: 2104.509/00220 | C15: REMOVE SIGN TYPE SPECIAL | D15: EACH | E15: AEXTRM
B16: 2104.509/00250 | C16: REMOVE SIGN PANEL OVERLAY TYPE A | D16: EACH
B17: 2104.509/00251 | C17: REMOVE SIGN PANEL OVERLAY TYPE OH | D17: EACH
B18: 2104.509/00252 | C18: REMOVE SIGN PANEL OVERLAY TYPE EA | D18: EACH
B19: 2104.509/00253 | C19: REMOVE SIGN PANEL OVERLAY TYPE EO | D19: EACH
B20: 2104.509/00410 | C20: REMOVE SIGN BASE | D20: EACH
B21: 2104.509/00411 | C21: REMOVE SIGN BASE-TYPE OH | D21: EACH
B22: 2104.509/00412 | C22: REMOVE SIGN BASE-TYPE A | D22: EACH | E22: ABASRM
B23: 2104.509/00497 | C23: REMOVE SIGN PANEL TYPE C | D23: EACH
B24: 2104.509/00498 | C24: REMOVE SIGN PANEL TYPE D | D24: EACH
B25: 2104.509/00499 | C25: REMOVE SIGN PANEL TYPE A | D25: EACH | F25: AEXTRM
B26: 2104.509/00500 | C26: REMOVE SIGN PANEL TYPE OH | D26: EACH
B27: 2104.509/00660 | C27: REMOVE HISTORIC PLAQUE | D27: EACH
B28: 2104.509/00700 | C28: REMOVE WOOD INFORMATION SIGN | D28: EACH
B29: 2104.523/00067 | C29: SALVAGE HISTORIC MARKER | D29: EACH
B30: 2104.523/00068 | C30: SALVAGE HISTORIC PLAQUE | D30: EACH
B31: 2104.523/00069 | C31: SALVAGE DEDICATION PLAQUE | D31: EACH
A32: F | B32: 2104.523/00072 | C32: SALVAGE MARKER | D32: EACH | E32: DELS&I
A33: F | B33: 2104.523/00075 | C33: SALVAGE DELINEATOR | D33: EACH | E33: DELS&I
B34: 2104.523/00078 | C34: SALVAGE GUIDE POST TYPE A | D34: EACH
B35: 2104.523/00080 | C35: SALVAGE GUIDE POST TYPE B | D35: EACH
B36: 2104.523/00475 | C36: SALVAGE PED PUSH BUTTON AND SIGN | D36: EACH
B37: 2104.523/00530 | C37: SALVAGE R10-10 SIGN | D37: EACH
B38: 2104.523/00531 | C38: SALVAGE R11-2 SIGN | D38: EACH
B39: 2104.523/00537 | C39: SALVAGE SIGN SUPPORT | D39: EACH
B40: 2104.523/00538 | C40: SALVAGE COMMERCIAL SIGN | D40: EACH
B41: 2104.523/00539 | C41: SALVAGE SIGN | D41: EACH
A42: x | B42: 2104.523/00540 | C42: SALVAGE SIGN TYPE A | D42: EACH | E42: ASAL | F42: AS&IHP
A43: x | B43: 2104.523/00543 | C43: SALVAGE SIGN TYPE C | D43: EACH | E43: CS&I | F43: CSAL
A44: x | B44: 2104.523/00544 | C44: SALVAGE SIGN TYPE D | D44: EACH | E44: DS&I | F44: DSAL
B45: 2104.523/00547 | C45: SALVAGE SIGN TYPE EA | D45: EACH
B46: 2104.523/00548 | C46: SALVAGE SIGN TYPE EO | D46: EACH
B47: 2104.523/00549 | C47: SALVAGE SIGN TYPE OH (BR MOUNTED) | D47: EACH
B48: 2104.523/00550 | C48: SALVAGE SIGN TYPE OH | D48: EACH
B49: 2104.523/00560 | C49: SALVAGE SIGN TYPE SPECIAL | D49: EACH
B50: 2104.523/00593 | C50: SALVAGE SIGN PANEL TYPE A | D50: EACH | E50: ASPNLSAL | F50: ASPNLIN | G50: ASPNLSAL
B51: 2104.523/00594 | C51: SALVAGE SIGN PANEL TYPE A (EXTRUD) | D51: EACH | E51: AEXTSA | F51: AEXTRM | G51: ASPNLSAL
B52: 2104.523/00595 | C52: SALVAGE SIGN PANEL TYPE A (FLT SHT) | D52: EACH
B53: 2104.523/00598 | C53: SALVAGE SIGN PANEL TYPE EA | D53: EACH
B54: 2104.523/00600 | C54: SALVAGE SIGN PANEL TYPE EO | D54: EACH
B55: 2104.523/00601 | C55: SALVAGE SIGN PANEL TYPE OH | D55: EACH
B56: 2104.523/00605 | C56: SALVAGE SIGN PANEL TP OH (FLT SHT) | D56: EACH
B57: 2104.523/00606 | C57: SALVAGE SIGN PANEL TYPE C | D57: EACH
B58: 2104.523/00608 | C58: SALVAGE SIGN PANEL TYPE D | D58: EACH
B59: 2104.523/00610 | C59: SALVAGE SIGN PANEL TYPE D (BR MTD) | D59: EACH
B60: 2104.523/00652 | C60: SALVAGE SIGN POST TYPE B | D60: EACH
B61: 2104.602/00025 | C61: RELOCATE COMMERCIAL SIGN | D61: EACH
B62: 2232.602/00010 | C62: MILLED RUMBLE STRIPS | D62: EACH
B63: 2232.603/00025 | C63: MILLED RUMBLE STRIPS | D63: L F
B64: 2232.603/00030 | C64: MILLED RUMBLE STRIPS-INTERMITTENT | D64: L F
B65: 2232.603/00035 | C65: MILLED RUMBLE STRIPS-CENTERLINE | D65: L F
B66: 2554.602/00080 | C66: REPLACE DELINEATOR TYPE SPEC (NEW) | D66: EACH
B67: 2554.602/00081 | C67: REPLACE DELINEATOR TYPE SPEC(SALV) | D67: EACH
B68: 2563.601/00210 | C68: STOP SIGN RELOCATION | D68: LS
B69: 2563.601/00220 | C69: SIGN REMOVAL | D69: LS
B70: 2563.613/01200 | C70: SIGNS BY SQUARE INCH | D70: UDAY
B71: 2563.613/01220 | C71: 24"X24" SIGN | D71: UDAY
B72: 2563.613/01221 | C72: 24"X24" SIGN WITH SUPPORTS | D72: UDAY
B73: 2563.613/01441 | C73: 4'X4' SIGN WITH SUPPORTS | D73: UDAY
B74: 2563.618/00011 | C74: CONSTRUCTION SIGN-SPECIAL | D74: S F
B75: 2563.618/00024 | C75: FURNISH, INSTALL & REMOVE TYPE D SIGNS | D75: S F
B76: 2563.618/00030 | C76: SIGN PANEL COVER | D76: S F
B77: 2564.511/00010 | C77: CONCRETE FOOTINGS (TYPE OH SPREAD) | D77: C Y
B78: 2564.511/00011 | C78: CONCRETE FOOTINGS (TYPE A SIGNS) | D78: C Y
B79: 2564.511/00012 | C79: CONCRETE FOOTINGS (TYPE OH SHAFT) | D79: C Y
B80: 2564.511/00013 | C80: CONCRETE FOOTINGS DESIGN SPECIAL | D80: C Y
B81: 2564.515/00010 | C81: SIGN SUPPORT | D81: EACH
B82: 2564.515/00011 | C82: SIGN SUPPORT TYPE A | D82: EACH
B83: 2564.515/00020 | C83: SIGN SUPPORT SIGN OH | D83: EACH
B84: 2564.515/00030 | C84: SIGN SUPPORT CANTILEVER | D84: EACH
A85: x | B85: 2564.522/00111 | C85: STRUCT STEEL-POSTS FOR TYPE A SIGNS | D85: LB | E85: AS&IHP | F85: ASIGNHP
B86: 2564.522/00121 | C86: STRUCT STEEL-POSTS FOR OH SIGNS (A) | D86: LB
B87: 2564.522/00122 | C87: STRUCT STEEL-POSTS FOR OH SIGNS (B) | D87: LB
B88: 2564.522/00221 | C88: STRUCT STEEL-TRUSSES FOR OH SIGNS (A) | D88: LB
B89: 2564.522/00222 | C89: STRUCT STEEL-TRUSSES FOR OH SIGNS (B) | D89: LB
B90: 2564.522/00225 | C90: STR STEEL-TRUSSES FOR OH SIGNS BR MTD | D90: LB
B91: 2564.522/00226 | C91: STR STEEL-TRUS FOR OH SIGNS (A) BR MTD | D91: LB
B92: 2564.522/00228 | C92: STR STEEL-TRUSSES FOR A SIGNS BR MTD | D92: LB
B93: 2564.522/00251 | C93: STR STEEL-SIGN CMS 100 A (BR MTD) | D93: LB
B94: 2564.522/00322 | C94: STR STEEL-WLKWY SPRT FOR OH SIGNS (B) | D94: LB
B95: 2564.522/00422 | C95: STR STEEL-WLKWY GRTNG FOR OH SIGNS (B) | D95: LB
B96: 2564.522/00522 | C96: STR STEEL-PANEL MT PST FOR OH SIGNS (B) | D96: LB
B97: 2564.522/00530 | C97: STR STEEL-SIGN BRKT OH SIGNS (B) | D97: LB
A98: x | B98: 2564.524/00010 | C98: MODIFY POST | D98: EACH | E98: APSTMOD
B99: 2564.531/00105 | C99: SIGN PANELS TYPE SPECIAL | D99: S F
A100: x | B100: 2564.531/00110 | C100: SIGN PANELS TYPE A | D100: S F | E100: ASPNL | F100: OL | G100: AEXT | H100: ASIGNHP
A101: x | B101: 2564.531/00111 | C101: SIGN PANELS TYPE A (EXTRUDED) | D101: S F
A102: x | B102: 2564.531/00112 | C102: SIGN PANELS TYPE A (FLAT SHEET) | D102: S F
A103: x | B103: 2564.531/00130 | C103: SIGN PANELS TYPE C | D103: S F | E103: CSIGN
A104: x | B104: 2564.531/00140 | C104: SIGN PANELS TYPE D | D104: S F | E104: DSIGN | F104: OL
B105: 2564.531/00141 | C105: SIGN PANELS TYPE D-SIGNALS | D105: S F
B106: 2564.531/00142 | C106: SIGN PANELS TYPE D-SIGNAL SYS A | D106: S F
B107: 2564.531/00143 | C107: SIGN PANELS TYPE D-SIGNAL SYS B | D107: S F
B108: 2564.531/00144 | C108: SIGN PANELS TYPE D-SIGNAL SYS C | D108: S F
B109: 2564.531/00145 | C109: SIGN PANELS TYPE D-SIGNAL SYS D | D109: S F
B110: 2564.531/00146 | C110: SIGN PANELS TYPE D-SIGNAL SYS E | D110: S F
B111: 2564.531/00149 | C111: SIGN PANELS TYPE D-SIGNAL SYS I | D111: S F
B112: 2564.531/00151 | C112: SIGN PANELS TYPE EA | D112: S F
B113: 2564.531/00158 | C113: SIGN PANELS TYPE EO | D113: S F
B114: 2564.531/00159 | C114: SIGN PANELS TYPE EO (EXTRUDED) | D114: S F
B115: 2564.531/00160 | C115: SIGN PANELS TYPE EO (LOUVERED) | D115: S F
B116: 2564.531/00189 | C116: SIGN PANELS TYPE OVERLAY | D116: S F | E116: OL | F116: APSTCLP
B117: 2564.531/00190 | C117: SIGN PANELS TYPE OH | D117: S F | E117: OL
B118: 2564.531/00191 | C118: SIGN PANELS TYPE OH (EXTRUDED) | D118: S F
B119: 2564.531/00192 | C119: SIGN PANELS TYPE OH (LOUVERED) | D119: S F
B120: 2564.531/00193 | C120: SIGN PANELS TYPE OH (FLAT SHEET) | D120: S F
B121: 2564.533/00130 | C121: FURNISH SIGN PANELS TYPE C | D121: S F
B122: 2564.533/00140 | C122: FURNISH SIGN PANELS TYPE D | D122: S F
B123: 2564.533/00190 | C123: FURNISH SIGN PANELS TYPE OVERLAY | D123: S F
B124: 2564.533/00195 | C124: FURNISH SIGN PANELS TYPE OH | D124: S F
A125: x | B125: 2564.534/00010 | C125: SAW SIGN PANELS | D125: L F
B126: 2564.534/00011 | C126: SAW SIGN PANELS TYPE A | D126: L F | E126: ASPNLSAW
B127: 2564.534/00016 | C127: SAW SIGN PANELS TYPE OH | D127: L F
A128: x | B128: 2564.534/00017 | C128: SAW SIGN PANELS TYPE OH (EXTRUDED) | D128: L F
A129: x | B129: 2564.535/00010 | C129: SIGN PANEL OVERLAY TYPE A | D129: S F | E129: ASPNLOL | F129: APSTCLP | G129: APSTMOD | H129: OL
B130: 2564.535/00100 | C130: SIGN PANEL OVERLAY TYPE OH | D130: S F | E130: OL
B131: 2564.535/00110 | C131: SIGN PANEL OVERLAY TYPE EO | D131: S F
B132: 2564.535/00120 | C132: SIGN PANEL OVERLAY TYPE EA | D132: S F
B133: 2564.536/00010 | C133: INSTALL SIGN PANEL | D133: EACH
A134: x | B134: 2564.536/00011 | C134: INSTALL SIGN PANEL TYPE A | D134: EACH | E134: ASPNLIN
A135: x | B135: 2564.536/00013 | C135: INSTALL SIGN PANEL TYPE C | D135: EACH
B136: 2564.536/00014 | C136: INSTALL SIGN PANEL TYPE D | D136: EACH
B137: 2564.536/00020 | C137: INSTALL SIGN PANEL TYPE OH | D137: EACH
B138: 2564.536/00030 | C138: INSTALL SIGN PANEL TYPE EO | D138: EACH
A139: x | B139: 2564.537/00010 | C139: INSTALL SIGN TYPE A | D139: EACH | E139: AS&IHP
A140: x | B140: 2564.537/00013 | C140: INSTALL SIGN TYPE C | D140: EACH | E140: CS&I | F140: CINS
A141: x | B141: 2564.537/00014 | C141: INSTALL SIGN TYPE D | D141: EACH | E141: DS&I | F141: DINS
B142: 2564.537/00020 | C142: INSTALL SIGN TYPE OH | D142: EACH
B143: 2564.537/00021 | C143: INSTALL SIGN TYPE OH (BR MOUNT) | D143: EACH
B144: 2564.537/00022 | C144: INSTALL SIGN TYPE CMS (BR MOUNT) | D144: EACH
B145: 2564.537/00030 | C145: INSTALL SIGN TYPE SPECIAL | D145: EACH
B146: 2564.537/00040 | C146: INSTALL SIGN TYPE EO | D146: EACH
B147: 2564.537/00045 | C147: INSTALL SIGN TYPE EA | D147: EACH
B148: 2564.538/00009 | C148: SIGN LEGEND REVISION | D148: EACH
B149: 2564.538/00010 | C149: SIGN LEGEND REVISION TYPE EA | D149: EACH
B150: 2564.538/00015 | C150: SIGN LEGEND REVISION TYPE EO | D150: EACH
B151: 2564.538/00020 | C151: SIGN LEGEND REVISION TYPE OH | D151: EACH
B152: 2564.538/00021 | C152: SIGN LEGEND REVISION TYPE OH-SPECIAL | D152: EACH
B153: 2564.538/00031 | C153: SIGN LEGEND REVISION TYPE A | D153: EACH | E153: ALGNDREV
B154: 2564.538/00034 | C154: SIGN LEGEND REVISION TYPE D | D154: EACH
B155: 2564.539/00010 | C155: OVERHEAD SIGN IDENTIFICATION PLATE | D155: EACH
B156: 2564.540/00010 | C156: EXTEND WALKWAY SUPPORT | D156: EACH
B157: 2564.540/00011 | C157: EXTEND WALKWAY SUPPORT (A) | D157: EACH
B158: 2564.540/00012 | C158: EXTEND WALK SUPPORT (B) | D158: EACH
A159: x | B159: 2564.550/00010 | C159: DELINEATOR | D159: EACH | E159: DELIN
A160: x | B160: 2564.550/00011 | C160: DELINEATOR TYPE SPECIAL | D160: EACH | E160: DELIN
A161: x | B161: 2564.550/00020 | C161: DELINEATOR TYPE ONE TENTH MILE | D161: EACH | E161: DELIN
A162: x | B162: 2564.550/00030 | C162: DELINEATOR TYPE CYLINDER STYLE | D162: EACH | E162: DELIN
A163: x | B163: 2564.550/00040 | C163: DELINEATOR TYPE ALIGNMENT | D163: EACH | E163: DELIN
A164: x | B164: 2564.550/00111 | C164: DELINEATOR TYPE X4-6 | D164: EACH | E164: DELIN
A165: x | B165: 2564.551/00010 | C165: REFERENCE POST MARKER | D165: EACH | E165: RPM
A166: x | B166: 2564.552/00010 | C166: HAZARD MARKER X4-2 | D166: EACH | E166: DELIN
A167: x | B167: 2564.553/00010 | C167: CLEARANCE MARKER X4-4 | D167: EACH | E167: DELIN
A168: x | B168: 2564.554/00010 | C168: SNOW PLOW MARKER X4-5 | D168: EACH | E168: DELIN
A169: x | B169: 2564.555/00010 | C169: END OF ROADWAY MARKER X4-11 | D169: EACH | E169: DELIN
B170: 2564.601/00100 | C170: INTERNALLY LIT SIGNING OH | D170: LS
B171: 2564.601/00101 | C171: INTERNALLY LIT SIGNING OH A | D171: LS
B172: 2564.601/00102 | C172: INTERNALLY LIT SIGNING OH B | D172: LS
B173: 2564.601/00103 | C173: INTERNALLY LIT SIGNING OH C | D173: LS
B174: 2564.601/00104 | C174: INTERNALLY LIT SIGNING OH D | D174: LS
B175: 2564.601/00105 | C175: INTERNALLY LIT SIGNING OH E | D175: LS
B176: 2564.601/00106 | C176: INTERNALLY LIT SIGNING OH F | D176: LS
B177: 2564.601/00107 | C177: INTERNALLY LIT SIGNING OH G | D177: LS
B178: 2564.601/00108 | C178: INTERNALLY LIT SIGNING OH H | D178: LS
B179: 2564.601/00109 | C179: INTERNALLY LIT SIGNING OH I | D179: LS
B180: 2564.601/00110 | C180: INTERNALLY LIT SIGNING OH J | D180: LS
B181: 2564.601/00111 | C181: INTERNALLY LIT SIGNING OH K | D181: LS
B182: 2564.601/00112 | C182: INTERNALLY LIT SIGNING OH L | D182: LS
B183: 2564.602/00001 | C183: INSTALL SIGN COLLAR | D183: EACH
B184: 2564.602/00005 | C184: SIGN COLLAR | D184: EACH
B185: 2564.602/00008 | C185: CONC PEDESTAL EXTENSION DES SPEC | D185: EACH
A186: x | B186: 2564.602/00010 | C186: INSTALL DELINEATOR | D186: EACH | E186: DELS&I
B187: 2564.602/00015 | C187: INSTALL SIGN | D187: EACH
B188: 2564.602/00018 | C188: INSTALL STEEL POST | D188: EACH
B189: 2564.602/00023 | C189: SALV & INST WILDLIFE WARNING REFLECTER | D189: EACH
B190: 2564.602/00024 | C190: SALVAGE AND INSTALL OH SIGNS | D190: EACH
B191: 2564.602/00025 | C191: SALVAGE, MOD & REINSTALL OH SIGN | D191: EACH
B192: 2564.602/00026 | C192: SALVAGE AND REINSTALL OH SIGN | D192: EACH
B193: 2564.602/00027 | C193: SALVAGE, MOD & REINSTALL TYPE A SIGN | D193: EACH | F193: ABASRM | G193: AEXTSA | H193: AEXTRM
B194: 2564.602/00031 | C194: FOUNDATION SPECIAL OH | D194: EACH
B195: 2564.602/00033 | C195: MEDIAN SIGN POST ANCHOR | D195: EACH
B196: 2564.602/00035 | C196: REPAIR SIGN TYPE OH | D196: EACH
B197: 2564.602/00036 | C197: REPAIR SIGN TYPE OH | D197: EACH
B198: 2564.602/00037 | C198: SHORTEN PANEL MOUNTING POST | D198: EACH
B199: 2564.602/00038 | C199: SHORTEN TYPE A SIGN POST | D199: EACH | E199: APSTMOD
B200: 2564.602/00042 | C200: EXTEND TYPE A SIGN POST | D200: EACH | E200: APSTMOD
... 94 more rows

Sheet STD PLANS
E3: user note
B4: STANDARD PLANS | E4: INCLUDE in plans with:
A5: x | B5: NUMBER | C5: DESCRIPTION
A6: SIGNING | B6: 5-297.701 | C6: STANDARD SIGN PLACEMENT | E6: SIGN, INSTALL SIGN PAY ITEMS
A7: SIGNING | B7: 5-297.702 | C7: DELINEATOR AND MARKER PLACEMENT | E7: DELINEATOR/MARKER, INSTALL DELIN/MARKER
A8: SIGNING | B8: 5-297.703 | C8: SIGN, DELINEATOR, AND MARKER PLACEMENT NEAR INTERCHANGE RAMP GORES | E8: DELINATION ON RAMPS/LOOPS
A9: SIGNING | B9: 5-297.710 | C9: EXTRUDED PANEL MOUNTING DETAILS (4 SHEETS) | E9: EXIT PANELS ON SIGNS WITH EXTRUDED PANELS
A10: SIGNING | B10: 5-297.711 | C10: I-BEAM SUPPORTED SIGN STRUCTURE DETAILS - FOOTING AND BASE CONNECTIONS (2 SHEETS) | E10: I BEAM STRUCTURES
B11: 5-297.713 | C11: I-BEAM SUPPORTED SIGN STRUCTURE DETAILS - SHALLOW SPREAD FOUNDATION
A12: X | B12: 5-297.721 | C12: THREE WALL BASE - FOR 1-3/4" SQUARE TUBE RISER POST | E12: 1-3/4 INCH RISER POSTS
B13: 5-297.726 | C13: SIGN MOUNTED ON CONCRETE WALL (3 SHEETS)
A14: X | B14: 5-297.730 | C14: SIGN MOUNTING SYSTEMS FOR ROUND SUPPORTS | E14: PANELS MOUNTED TO ROUND POSTS
A15: X | B15: 5-297.731 | C15: SIGN MOUNTING DETAILS FOR SIGNAL MAST ARMS | E15: MAST ARM SIGNING
A16: SIGNING | B16: 5-297.740 | C16: CONCRETE RAIL MOUNTED SIGN (4 SHEETS) | E16: CONCRETE RAIL MOUNTED SIGNS
A17: SIGNING | B17: 5-297.741 | C17: STRUCTURAL DETAILS FOR BRIDGE MOUNTED SIGNS - STREET NAME | E17: BRIDGE MOUNTED STREET NAME SIGNS
A18: SIGNING | B18: 5-297.742 | C18: STRUCTURAL DETAILS FOR BRIDGE MOUNTED SIGNS - MINOR GUIDE SIGNS | E18: BRIDGE MOUNTED GUIDE SIGNS
A19: X | B19: 5-297.745 | C19: MONOTUBE OVERHEAD SIGN STRUCTURES - GENERAL ELEVATIONS SECTIONS AND NOTES | E19: MONOTUBE STRUCTURES
A20: SIGNING | B20: 5-297.746 | C20: MONOTUBE OVERHEAD SIGN STRUCTURES - FOUNDATION DETAILS (2 SHEETS) | E20: MONOTUBE STRUCTURES
A21: SIGNING | B21: 5-297.747 | C21: MONOTUBE OVERHEAD SIGN STRUCTURES - SIMPLE SPAN (2 SHEETS) | E21: MONOTUBE STRUCTURES
A22: SIGNING | B22: 5-297.748 | C22: MONOTUBE OVERHEAD SIGN STRUCTURES - CANTILEVER (2 SHEETS) | E22: MONOTUBE STRUCTURES
A23: SIGNING | B23: 5-297.749 | C23: MONOTUBE OVERHEAD SIGN STRUCTURES - SIGN PANEL AND EXIT PANEL (2 SHEETS) | E23: MONOTUBE STRUCTURES
A24: SIGNING | B24: 5-297.750 | C24: PANEL MOUNTING POST MODIFICATION DETAILS | E24: PANEL MOUNTING POSTS
A25: SIGNING | B25: 5-297.752 | C25: TYPE F MEDIAN BARRIER FOUNDATION - SPREAD FOOTING | E25: OH STRUCTURES WITH SPREAD MEDIAN BARRIER FOOTING
A26: SIGNING | B26: 5-297.753 | C26: TYPE F MEDIAN BARRIER FOUNDATION - DRILLED SHAFT FOOTING | E26: OH STRUCTURES WITH DRILLED SHAFT MEDIAN BARRIER FOOTING
A27: SIGNING | B27: 5-297.754 | C27: SINGLE SLOPE MEDIAN BARRIER FOUNDATION - SPREAD FOOTING | E27: OH STRUCTURES WITH SPREAD FOOTING & SINGLE SLOPE MEDIAN BARRIER FOOTING
A28: SIGNING | B28: 5-297.755 | C28: SINGLE SLOPE MEDIAN BARRIER FOUNDATION - DRILLED SHAFT FOOTING | E28: OH STRUCTURES WITH DRILLED SHAFT SINGLE SLOPE MEDIAN BARRIER FOOTING
A29: X | B29: 5-297.761 | C29: STANDARD OVERHEAD SIGN STRUCTURES - DESIGN D - GENERAL ELEVATIONS, SECTIONS AND NOTES | E29: OH DESIGN D SIGN STRUCTURES
A30: X | B30: 5-297.762 | C30: STANDARD OVERHEAD SIGN STRUCTURES - DESIGN D - CAMBER POST TYPE AND ESTIMATED QUANTITIES | E30: OH DESIGN D SIGN STRUCTURES
A31: SIGNING | B31: 5-297.763 | C31: STANDARD OVERHEAD SIGN STRUCTURES - DESIGN D - FOUNDATION DETAILS (2 SHEETS) | E31: OH DESIGN D SIGN STRUCTURES WITH FOUNDATIONS
A32: SIGNING | B32: 5-297.764 | C32: STANDARD OVERHEAD SIGN STRUCTURES - DESIGN D - BASE PLATE, HANDHOLE, AND COVER PLATE DETAILS | E32: OH DESIGN D SIGN STRUCTURES
A33: SIGNING | B33: 5-297.765 | C33: STANDARD OVERHEAD SIGN STRUCTURES - DESIGN D - TRUSS TO POST CONNECTION DETAILS. | E33: OH DESIGN D SIGN STRUCTURES
A34: SIGNING | B34: 5-297.766 | C34: STANDARD OVERHEAD SIGN STRUCTURES - DESIGN D - SIGN TRUSS DETAILS TYPE A | E34: OH DESIGN D SIGN STRUCTURES WITH THIS TRUSS TYPE
A35: SIGNING | B35: 5-297.767 | C35: STANDARD OVERHEAD SIGN STRUCTURES - DESIGN D - SIGN TRUSS DETAILS TYPE B | E35: OH DESIGN D SIGN STRUCTURES WITH THIS TRUSS TYPE
A36: SIGNING | B36: 5-297.768 | C36: STANDARD OVERHEAD SIGN STRUCTURES - DESIGN D - SIGN TRUSS DETAILS TYPE C | E36: OH DESIGN D SIGN STRUCTURES WITH THIS TRUSS TYPE
A37: SIGNING | B37: 5-297.769 | C37: STANDARD OVERHEAD SIGN STRUCTURES - DESIGN D - WALKWAY DETAILS (3 SHEETS) | E37: OH DESIGN D SIGN STRUCTURES WITH WALKWAY
A38: SIGNING | B38: 5-297.770 | C38: STANDARD OVERHEAD SIGN STRUCTURES - DESIGN D - WALKWAY AND RAILING RETROFIT DETAILS | E38: OH DESIGN D SIGN STRUCTURES WITH WALKWAY RAILING
A39: X | B39: 5-297.772 | C39: STANDARD OVERHEAD SIGN STRUCTURES - DESIGN D - DMS MOUNTING DETAILS | E39: DMS ON OH STRUCTURES
A40: SIGNING | B40: 5-297.771 | C40: STANDARD OVERHEAD SIGN STRUCTURES - DESIGN D - ROCK SOCKET FOUNDATION DETAILS | E40: OH ROCK SOCKET FOUNDATION
A41: X | B41: 5-297.774 | C41: STANDARD OVERHEAD SIGN STRUCTURES - DESIGN D - VARIABLE LENGTH DRILLED SHAFT DETAILS | E41: OH VARIABLE DEPTH FOUNDATION
A42: SIGNING | B42: 5-297.779 | C42: OVERHEAD SIGN STRUCTURE - FOUNDATION EXTENSION - DESIGN D EXTENSION DETAILS - TYPE 1-4 POSTS | E42: FOUNDATION EXTENSION DESIGN D TYPE 1-4 POSTS
A43: X | B43: 5-297.780 | C43: OVERHEAD SIGN STRUCTURE - FOUNDATION EXTENSION - DESIGN D EXTENSION DETAILS - TYPE 5-6 POSTS (2 SHEETS) | E43: FOUNDATION EXTENSION DESIGN D TYPE 5-6 POSTS
A44: SIGNING | B44: 5-297.781 | C44: OVERHEAD SIGN STRUCTURE - FOUNDATION EXTENSION - INTERIM DESIGN B EXTENSION DETAILS - TYPE 1-4 POSTS | E44: FOUNDATION EXTENSION INTERIM DESIGN B TYPE 1-4 POSTS
A45: SIGNING | B45: 5-297.782 | C45: OVERHEAD SIGN STRUCTURE - FOUNDATION EXTENSION - INTERIM DESIGN B EXTENSION DETAILS - TYPE 5-7 POSTS (2 SHEETS) | E45: FOUNDATION EXTENSION INTERIM DESIGN B TYPE 5-7 POSTS
A46: SIGNING | B46: 5-297.783 | C46: OVERHEAD SIGN STRUCTURE - FOUNDATION EXTENSION - DESIGN B EXTENSION DETAILS - TYPE 1-3 POSTS | E46: FOUNDATION EXTENSION DESIGN B TYPE 1-3 POSTS
A47: SIGNING | B47: 5-297.784 | C47: OVERHEAD SIGN STRUCTURE - FOUNDATION EXTENSION - DESIGN B EXTENSION DETAILS - TYPE 4-5 POSTS (2 SHEETS) | E47: FOUNDATION EXTENSION DESIGN B TYPE 4-5 POSTS
A48: SIGNING | B48: 5-297.785 | C48: OVERHEAD SIGN STRUCTURE - FOUNDATION EXTENSION - DESIGN B EXTENSION DETAILS - TYPE 6-7 POSTS (2 SHEETS) | E48: FOUNDATION EXTENSION DESIGN B TYPE 6-7 POSTS
A49: SIGNING | B49: 5-297.786 | C49: OVERHEAD SIGN STRUCTURE - FOUNDATION EXTENSION - DESIGN B EXTENSION DETAILS - TYPE 8-9 POSTS (2 SHEETS) | E49: FOUNDATION EXTENSION DESIGN B TYPE 8-9 POSTS
A50: SIGNING | B50: 5-297.787 | C50: OVERHEAD SIGN STRUCTURE - FOUNDATION EXTENSION - DESIGN B EXTENSION DETAILS - TYPE 10-13 POSTS (3 SHEETS) | E50: FOUNDATION EXTENSION DESIGN B TYPE 10-13 POSTS
A51: SIGNING | B51: 5-297.788 | C51: OVERHEAD SIGN STRUCTURE - FOUNDATION EXTENSION - DESIGN B EXTENSION DETAILS - TYPE 14-15 POSTS | E51: FOUNDATION EXTENSION DESIGN B TYPE 14-15 POSTS
A52: SIGNING | B52: 5-297.789 | C52: OVERHEAD SIGN STRUCTURE - FOUNDATION EXTENSION - DESIGN B EXTENSION DETAILS - TYPE 16-19 POSTS (2 SHEETS) | E52: FOUNDATION EXTENSION DESIGN B TYPE 16-19 POSTS
B58: DETAILS | E58: INCLUDE in plans with:
A59: x | B59: NUMBER | C59: DESCRIPTION
A60: x | C60: SQUARE TUBE SIGN MOUNTING DETAIL | E60: SIGN, SIGN PANEL, INSTALL SIGN, INSTALL SIGN PANEL PAY ITEMS
A61: x | C61: SQUARE TUBE FIN BASE DETAIL | E61: 2 INCH RISER POST STRUCTURE
A62: x | C62: SQUARE TUBE SHEAR BOLT DETAIL | E62: 2 INCH RISER POST STRUCTURE IN CONCRETE
A63: x | C63: SQUARE TUBE SLIP BASE DETAIL | E63: 2-1/2 INCH RISER POST STRUCTURE
A64: x | C64: I BEAM SUPPORTED SIGN STRUCTURE DETAIL SHALLOW SPREAD FOOTING | E64: I BEAM STRUCTURES WITH SHALLOW FOUNDATIONS
B69: Designer Note: include only Standard Plans pertinent to project | O69: x

Sheet SIGN
B2: SIGN AND DELINEATOR / MARKER | Z2: ST-A
C3: PANEL | J3: SUPPORT | P3: REMOVE SIGN | Q3: SIGN | R3: SALVAGE SIGN | S3: INSTALL SIGN | T3: REMOVE SIGN PANEL | U3: SIGN PANEL | V3: SALVAGE SIGN PANEL | W3: INSTALL SIGN PANEL | X3: REMOVE DELINEATOR /MARKER | Y3: DELINEATOR /MARKER | Z3: DELINEATOR /MARKER PANEL
B4: SIGN | D4: LEGEND | E4: SIZE (W x H) | H4: AREA | I4: MOUNTING HEIGHT | J4: NUMBER OF POSTS | K4: TYPE | L4: A DISTANCE | M4: RISER POST SIZE | N4: KNEE | O4: SURFACE TYPE
B5: NUMBER | C5: PANEL | N5: BRACES
C6: CODE
E7: INCH | H7: SQ FT | I7: FEET | L7: FEET | M7: INCHES | N7: QTY | P7: EACH | Q7: SQ FT | R7: EACH | S7: EACH | T7: EACH | U7: SQ FT | V7: EACH | W7: EACH | X7: EACH | Y7: EACH | Z7: EACH
B8: S-7 | D8: =VLOOKUP(SIGN!C8,Table22[[CODE NO]:[PANEL LEGEND]],2) ->  | F8: x | H8: =(E8*G8)/144 -> 0 | Q8: =(E8*G8)/144 -> 0 | U8: =(E8*G8)/144 -> 0
D9: =VLOOKUP(SIGN!C9,Table22[[CODE NO]:[PANEL LEGEND]],2) ->  | F9: x | Q9: 0 | U9: 0
B10: S-9 | D10: =VLOOKUP(SIGN!C10,Table22[[CODE NO]:[PANEL LEGEND]],2) ->  | F10: x | Q10: 0 | U10: 0
D11: =VLOOKUP(SIGN!C11,Table22[[CODE NO]:[PANEL LEGEND]],2) ->  | F11: x | H11: =(E11*G11)/144 -> 0 | Q11: 0 | U11: 0
B12: S-13 | D12: =VLOOKUP(SIGN!C12,Table22[[CODE NO]:[PANEL LEGEND]],2) ->  | F12: x | Q12: 0 | U12: 0
D13: =VLOOKUP(SIGN!C13,Table22[[CODE NO]:[PANEL LEGEND]],2) ->  | F13: x | Q13: 0 | U13: 0
B14: S-14 | D14: =VLOOKUP(SIGN!C14,Table22[[CODE NO]:[PANEL LEGEND]],2) ->  | F14: x | Q14: 0 | U14: 0
D15: =VLOOKUP(SIGN!C15,Table22[[CODE NO]:[PANEL LEGEND]],2) ->  | F15: x | Q15: 0 | U15: 0
B16: S-34 | D16: =VLOOKUP(SIGN!C16,Table22[[CODE NO]:[PANEL LEGEND]],2) ->  | F16: x | H16: =(E16*G16)/144 -> 0 | Q16: 0 | U16: 0
D17: =VLOOKUP(SIGN!C17,Table22[[CODE NO]:[PANEL LEGEND]],2) ->  | F17: x | H17: =(E17*G17)/144 -> 0 | Q17: 0 | U17: 0
B18: S-36 | D18: =VLOOKUP(SIGN!C18,Table22[[CODE NO]:[PANEL LEGEND]],2) ->  | F18: x | Q18: 0 | U18: 0
D19: =VLOOKUP(SIGN!C19,Table22[[CODE NO]:[PANEL LEGEND]],2) ->  | F19: x | Q19: 0 | U19: 0
B20: S-40 | D20: =VLOOKUP(SIGN!C20,Table22[[CODE NO]:[PANEL LEGEND]],2) ->  | F20: x | Q20: 0 | U20: 0
D21: =VLOOKUP(SIGN!C21,Table22[[CODE NO]:[PANEL LEGEND]],2) ->  | F21: x | Q21: 0 | U21: 0
B22: S-42 | D22: =VLOOKUP(SIGN!C22,Table22[[CODE NO]:[PANEL LEGEND]],2) ->  | F22: x | Q22: 0 | U22: 0
D23: =VLOOKUP(SIGN!C23,Table22[[CODE NO]:[PANEL LEGEND]],2) ->  | F23: x | Q23: 0 | U23: 0
B24: S-43 | D24: =VLOOKUP(SIGN!C24,Table22[[CODE NO]:[PANEL LEGEND]],2) ->  | F24: x | Q24: 0 | U24: 0
D25: =VLOOKUP(SIGN!C25,Table22[[CODE NO]:[PANEL LEGEND]],2) ->  | F25: x | Q25: 0 | U25: 0
B26: S-48 | D26: =VLOOKUP(SIGN!C26,Table22[[CODE NO]:[PANEL LEGEND]],2) ->  | F26: x | Q26: 0 | U26: =(E26*G26)/144 -> 0
D27: =VLOOKUP(SIGN!C27,Table22[[CODE NO]:[PANEL LEGEND]],2) ->  | F27: x | Q27: 0 | U27: =(E27*G27)/144 -> 0
B28: S-50 | D28: =VLOOKUP(SIGN!C28,Table22[[CODE NO]:[PANEL LEGEND]],2) ->  | F28: x | Q28: =(E28*G28)/144 -> 0 | U28: =(E28*G28)/144 -> 0
D29: =VLOOKUP(SIGN!C29,Table22[[CODE NO]:[PANEL LEGEND]],2) ->  | F29: x | Q29: 0 | U29: 0
D30: =VLOOKUP(SIGN!C30,Table22[[CODE NO]:[PANEL LEGEND]],2) ->  | F30: x | Q30: 0 | U30: 0
L31: TOTAL | P31: =SUM(P8:P30) -> 0 | Q31: 0 | R31: 0 | S31: 0 | T31: 0 | U31: 0 | V31: 0 | W31: 0 | X31: 0 | Y31: 0 | Z31: 0
B33: SPECIFIC NOTE(S):
B34: (1) MOUNT BACK TO BACK
B35: (2) MOUNT SIDE-BY-SIDE

Sheet Mast Arm tab for Signal Plans
B2: SIGN PANELS ON SIGNALS
B3: POLE NUMBER | C3: "A" DISTANCE (FEET) OR POLE | D3: PANEL
D4: QTY | E4: CODE NUMBER | F4: LEGEND | G4: SIZE (INCHES) | J4: AREA (SQ FT)
J7: =(G7*I7)/144 -> 0
J8: =(G8*I8)/144 -> 0
J9: =(G9*I9)/144 -> 0
J10: =(G10*I10)/144 -> 0
J11: =(G11*I11)/144 -> 0
J12: =(G12*I12)/144 -> 0
J13: =(G13*I13)/144 -> 0
J14: =(G14*I14)/144 -> 0
J15: 0
J16: 0
J17: =(G17*I17)/144 -> 0
J18: =(G18*I18)/144 -> 0
J19: 0
J20: 0
J21: =(G21*I21)/144 -> 0
J22: =(G22*I22)/144 -> 0
B24: SPECIFIC NOTE(S):
B26: GENERAL NOTE(S):
B27: 1. SEE THE CURRENT MnDOT STANDARD SIGNS AND MARKINGS MANUAL FOR STANDARD SIGN DESIGNS, ARROW DETAILS AND SPLICE PLATE DETAILS.
B28: 2. FOR NON STANDARD SIGN DESIGNS, LAYOUTS ARE INCLUDED. SIGN PANEL DIMENSIONS ARE IN INCHES.
B29: 3. SEE STANDARD PLAN 5-297.731 FOR SIGN MOUNTING TO MAST ARM.
B30: 4. SEE STANDARD PLAN 5-297.730 FOR SIGN MOUNTING TO ROUND POST.
B31: 5. MOUNTING HEIGHT OF POLE MOUNTED SIGN PANELS MUST BE 7 FOOT MINIMUM.
B32: MOUNTING HEIGHT IS MEASURED FROM BOTTOM OF SIGN PANEL TO SURFACE IMMEDIATELY BELOW THE SIGN PANEL.
B33: 6. "A" DISTANCE = DISTANCE FROM THE END OF THE MAST ARM TO THE EDGE OF EACH SIGN PANEL.
B37: SIGN PANELS ON MAST ARMS
B38: SIGN NUMBER | C38: "A" DISTANCE (FEET) OR POLE | D38: PANEL
D39: QTY | E39: CODE NUMBER | F39: LEGEND | G39: SIZE (INCHES) | J39: AREA (SQ FT)
J42: =(G42*I42)/144 -> 0
J43: =(G43*I43)/144 -> 0
J44: =(G44*I44)/144 -> 0
J45: =(G45*I45)/144 -> 0
J46: 0
J47: 0
J48: 0
J49: 0
B50: TOTAL | J50: =SUM(J42:J49) -> 0
B52: SPECIFIC NOTE(S):
B54: GENERAL NOTE(S):
B55: 1. SEE THE CURRENT MnDOT STANDARD SIGNS AND MARKINGS MANUAL FOR STANDARD SIGN DESIGNS, ARROW DETAILS AND SPLICE PLATE DETAILS.
B56: 2. FOR NON STANDARD SIGN DESIGNS, LAYOUTS ARE INCLUDED. SIGN PANEL DIMENSIONS ARE IN INCHES.
B57: 3. SEE STANDARD PLAN 5-297.731 FOR SIGN MOUNTING TO MAST ARM.
B58: 4. "A" DISTANCE = DISTANCE FROM THE END OF THE MAST ARM TO THE EDGE OF EACH SIGN PANEL.

Sheet Delineator, Marker, Reference
F2: Windloading Chart for Delineators, Markers and Reference Location Signs
L3: 4 foot Mounting Height
A5: Panel Height (Inches) | B5: 120
B6: 114
B7: 108
B8: 102
B9: 96
B10: 90
B11: 84
B12: 78
B13: 72
B14: 66
B15: 60
B16: 54
B17: 48
B18: 42
B19: 36 | D19: 1 post | H19: 1 post
B20: 30 | D20: 3 Wall | H20: Fin Base
B21: 24 | D21: (1 3/4 inch) | H21: (2 inch)
B22: 18
B23: 12
C24: 12 | D24: 18 | E24: 24 | F24: 30 | G24: 36 | H24: 42 | I24: 48 | J24: 54 | K24: 60 | L24: 66 | M24: 72 | N24: 78 | O24: 84 | P24: 90 | Q24: 96 | R24: 102 | S24: 108 | T24: 114 | U24: 120 | V24: 126 | W24: 132 | X24: 138 | Y24: 144 | Z24: 150 | AA24: 156 | AB24: 162 | AC24: 168 | AD24: 174 | AE24: 180
B25: Panel Width (Inches)
C26: Three Walled Base Riser Post 1 3/4 in, 14 gauge | Z26: Date: September 3, 2020
C27: Fin Base Riser Post 2 in, 12 gauge
C28: Typically used for delineators, markers, reference location signs, roundabout directional arrows, and chevrons
C29: Aluminum Stringers
C30: 90 mph Wind Load

Sheet Signs
I2: Windloading Chart for Signs on Square Tube Posts
A5: Panel Height (Inches) | B5: 144
B6: 138 | AB6: 3 post
B7: 132 | AB7: Slip Base
B8: 126 | M8: 1 post | T8: 2 post | AB8: (4 inch)
B9: 120 | M9: Slip Base | T9: Slip Base
B10: 114 | M10: (4 inch) | T10: (4 inch)
B11: 108
B12: 102 | AD12: 5 post
B13: 96 | Z13: 4 post | AD13: Slip Base
B14: 90 | Z14: Slip Base
B15: 84 | Z15: (2 1/2 inch)
B16: 78
B17: 72
B18: 66 | G18: 1 post
B19: 60 | G19: Slip Base
B20: 54 | G20: (2 1/2 inch) | O20: 2 post | Y20: 3 post
B21: 48 | O21: Slip Base | Y21: Slip Base
B22: 42 | O22: (2 1/2 inch) | Y22: (2 1/2 inch)
B23: 36 | E23: 1 post
B24: 30 | E24: Fin Base or
B25: 24 | E25: Shear Bolt Base
B26: 18 | E26: (2 inch)
B27: 12
C28: 12 | D28: 18 | E28: 24 | F28: 30 | G28: 36 | H28: 42 | I28: 48 | J28: 54 | K28: 60 | L28: 66 | M28: 72 | N28: 78 | O28: 84 | P28: 90 | Q28: 96 | R28: 102 | S28: 108 | T28: 114 | U28: 120 | V28: 126 | W28: 132 | X28: 138 | Y28: 144 | Z28: 150 | AA28: 156 | AB28: 162 | AC28: 168 | AD28: 174 | AE28: 180
B29: Panel Width (Inches)
C30: Slip Base Riser Post 4 inch, 8 gauge | Z30: Date: October 23, 2020
C31: Slip Base Riser Post 2-1/2 inch, 10 gauge with 2-3/16 inch insert
C32: Fin Base Riser Post 2 in, 12 gauge
C33: Shear Bolt Base Riser Post 2 in, 12 gauge
C34: Typically used for all signs
C35: Based on 7 foot mounting height with a 3 foot ditch
C36: Aluminum Stringers
C37: 90 mph Wind Load

Sheet SIGN TYPE SPECIAL
B2: SIGN TYPE SPECIAL | U2: ST-B
C3: PANEL | I3: SUPPORT | N3: REMOVE SIGN TYPE SPECIAL | O3: SIGN TYPE SPECIAL | P3: SALVAGE SIGN TYPE SPECIAL | Q3: INSTALL SIGN TYPE SPECIAL | R3: REMOVE SIGN PANEL TYPE SECIAL | S3: SIGN PANELS TYPE SPECIAL | T3: SALVAGE SIGN PANEL TYPE SPECIAL | U3: INSTALL SIGN PANEL TYPE SPECIAL
B4: SIGN | D4: LEGEND | E4: SIZE (W x H) | H4: MOUNTING HEIGHT | I4: NUMBER OF POSTS | J4: TYPE | K4: A DISTANCE | L4: RISER POST SIZE | M4: SURFACE TYPE
B5: NUMBER | C5: PANEL
C6: CODE
E7: INCH | H7: FEET | K7: FEET | L7: INCHES | N7: EACH | O7: SQ FT | P7: EACH | Q7: EACH | R7: EACH | S7: SQ FT | T7: EACH | U7: EACH
B8: S-501 | D8: LED STOP | E8: 36 | F8: x | G8: 36 | H8: 7 | I8: 1 | J8: SQ | L8: 2 | M8: SOIL | O8: =(E8*G8)/144 -> 9
B9: S-502 | D9: STREET NAME | F9: x | H9: 7 | O9: =(E9*G9)/144 -> 0 | P9: 1 | Q9: 1
B10: S-503 | F10: x | O10: =(E10*G10)/144 -> 0
B11: S-504 | F11: x | O11: =(E11*G11)/144 -> 0
B12: S-505 | F12: x
K13: TOTAL | N13: =SUM(N8:N12) -> 0 | O13: 9 | P13: 1 | Q13: 1 | R13: 0 | S13: 0 | T13: =SUM(T8:T12) -> 0 | U13: 0

Sheet EXT & OVERLAY
B2: PANEL OVERLAY, EXTRUDED PANEL AND PANEL MOUNTING POST | X2: ST-C
B3: SIGN SUPPORT NUMBER | C3: PANEL NUMBER | D3: PANEL OVERLAY | I3: EXTRUDED PANELS | T3: PANEL MOUNTING POSTS | AA3: PANEL MOUNTING POSTS
D4: PANEL LEGEND | E4: SIGN PANEL OVERLAY | I4: EXISTING EXTRUDED PANEL | L4: F. & I. EXTRUDED PANEL | P4: REMOVE EXTRUDED PANEL SECTIONS | S4: REMOVE EXTRUDED PANEL | T4: NO. | U4: TYPE | V4: LENGTH | W4: STRUCTURAL STEEL-PANEL MOUNTING POST | X4: ATTACH TO TRUSS TYPE | AA4: EXTEND APPROX. | AB4: SHORTEN APPROX.
E10: INCH | H10: SQ FT | I10: INCH | L10: INCH | O10: SQ FT | P10: INCH | S10: EACH | V10: INCH | W10: POUND | AA10: INCH | AB10: INCH
B11: IB MN101-020 | C11: EP-1 | D11: EXIT 40 | E11: 96 | F11: x | G11: 30 | H11: =E11*G11/144 -> 20 | J11: x | L11: 96 | M11: x | N11: 30 | O11: =L11*N11/144 -> 20 | Q11: x | T11: 2 | U11: U | W11: 42
C12: IB MN101-020 | D12: COUNTY 144-141ST AVE 1/2 MILE | E12: 144 | F12: x | G12: 108 | H12: 108 | J12: x | L12: 144 | M12: x | N12: 108 | O12: =L12*N12/144 -> 108 | Q12: x
B13: IB MN101-021 | C13: EP-1 | D13: EXIT 40 | E13: 96 | F13: x | G13: 30 | H13: 20 | J13: x | L13: 96 | M13: x | N13: 30 | O13: =L13*N13/144 -> 20 | Q13: x | T13: 2 | U13: U | W13: 42
C14: IB MN101-021 | D14: COUNTY 144-141ST AVE 45 DEG ARROW | E14: 144 | F14: x | G14: 126 | H14: 126 | I14: 144 | J14: x | K14: 126 | Q14: x
B15: IB MN101-023 | C15: EP-2 | D15: EXIT 39 | E15: 96 | F15: x | G15: 30 | H15: 20 | J15: x | L15: 96 | M15: x | N15: 30 | O15: =L15*N15/144 -> 20 | Q15: x | T15: 2 | U15: U | W15: 42
C16: IB MN101-023 | D16: MN SCHOOL OF BARTENDING 1/2 MILE | E16: 240 | F16: x | G16: 96 | H16: 160 | I16: 240 | J16: x | K16: 126 | P16: 240 | Q16: x | R16: 30 | AB16: 30
B17: OH MN101-521 | C17: EP-3 | D17: EXIT 43 | E17: 96 | F17: x | G17: 30 | H17: 20 | J17: x | L17: 96 | M17: x | N17: 30 | O17: =L17*N17/144 -> 20 | Q17: x | T17: 2 | U17: U | W17: 42
C18: OH MN101-521 | D18: MN 51 ST PAUL MINNEAPOLIS 1 MILE EXIT ONLY | E18: 174 | F18: x | G18: 156 | H18: 188.5 | I18: 174 | J18: x | K18: 126 | L18: 174 | M18: x | N18: 30 | O18: 36.25 | Q18: x | T18: 3 | U18: W6x12 | V18: 160 | W18: 534 | X18: C
B19: OH MN101-522 | C19: EP-4 | D19: EXIT 44 | E19: 96 | F19: x | G19: 30 | H19: 20 | J19: x | L19: 96 | M19: x | N19: 30 | O19: 20 | Q19: x | T19: 2 | U19: U | W19: 42
C20: OH MN101-522(L) | D20: HAMLINE AVE 1 MILE | E20: 126 | F20: x | G20: 90 | H20: 78.75 | J20: x | L20: 126 | M20: x | N20: 90 | O20: 78.75 | Q20: x | T20: 2 | U20: S4x7.7 | V20: 94 | W20: 156 | X20: B
C21: EP-5 | D21: EXIT 43 | E21: 96 | F21: x | G21: 30 | H21: 20 | J21: x | L21: 96 | M21: x | N21: 30 | O21: 20 | Q21: x | T21: 2 | U21: U | W21: 42
C22: OH MN101-522(R) | D22: MN 51 ST PAUL MINNEAPOLIS EXIT ONLY | E22: 174 | F22: x | G22: 144 | H22: 174 | J22: x | L22: 174 | M22: x | N22: 144 | O22: 174 | Q22: x | T22: 3 | U22: W6x12 | V22: 148 | W22: 498 | X22: C
B23: OH MN101-989 | C23: OH MN101-989 | D23: McKNIGHT RD 1/2 ,MN 120 CENTURY AVE 1 1/4, I694 I494 2 | E23: 258 | F23: x | G23: 96 | H23: 172 | J23: x | L23: 258 | M23: x | N23: 96 | O23: 172 | Q23: x
B24: TOTAL | H24: =SUM(H11:H23) -> 1127.25 | O24: =SUM(O11:O23) -> 689 | S24: =SUM(S11:S23) -> 0 | W24: =SUM(W11:W23) -> 1440
B27: SPECIFIC NOTE(S):
B29: GENERAL NOTE(S):
B30: 1. TRUSS DEPTH AND CHORD ANGLE INFORMATION FOR PANEL MOUNTING POSTS ARE BASED ON TRUSS TYPE AND APPLY TO DESIGN B, INTERIM DESIGN B AND DESIGN D STRUCTURES.
B31: TRUSS TYPE A: TRUSS DEPTH = 72 INCHES, CHORD ANGLES = 6 x 6 x 1/2
B32: TRUSS TYPE B: TRUSS DEPTH = 72 INCHES, CHORD ANGLES = 6 x 6 x 3/4
B33: TRUSS TYPE C: TRUSS DEPTH = 72 INCHES, CHORD ANGLES = 8 x 8 x 5/8

Sheet OH STRUCT QUAN
B2: I-BEAM, MONOTUBE AND OVERHEAD SIGN STRUCTURE QUANTITIES | W2: ST-D
B3: SIGN SUPPORT NUMBER | C3: REMOVE I-BEAM SIGN | D3: REMOVE MONOTUBE SIGN | E3: REMOVE OVERHEAD SIGN | G3: REMOVE OVERHEAD BRIDGE MOUNTED SIGN | H3: REMOVE SIGN WALKWAY | I3: SALVAGE OVERHEAD SIGN | K3: INSTALL OVERHEAD SIGN | M3: STRUCTURAL STEEL- I-BEAM SIGN | N3: STRUCTURAL STEEL- OVERHEAD SIGN POST | O3: STRUCTURAL STEEL- OVERHEAD SIGN TRUSS | P3: STUCTURAL STEEL- OVERHEAD WALKWAY | Q3: STRUCTURAL STEEL- MONOTUBE SIGN | R3: STRUCTRUAL STEEL-BRIDGE MOUNTED TRUSS | S3: MEDIAN BARRIER FOOTING (SHAFT) | T3: MEDIAN BARRIER FOOTING (SPREAD) | U3: CONCRETE FOOTING (OVERHEAD SPREAD) | V3: CONCRETE FOOTING (OVERHEAD SHAFT) | W3: CONCRETE FOOTING (MONOTUBE)
E7: SIMPLE SPAN | F7: CANTILEVER | I7: SIMPLE SPAN | J7: CANTILEVER | K7: SIMPLE SPAN | L7: CANTILEVER
C8: EACH | D8: EACH | E8: EACH | F8: EACH | G8: EACH | H8: LIN FT | I8: EACH | J8: EACH | K8: EACH | L8: EACH | M8: POUND | N8: POUND | O8: POUND | P8: POUND | Q8: POUND | R8: POUND | S8: CU YD | T8: CU YD | U8: CU YD | V8: CU TD | W8: CU TD
B9: IB MN101-013 | C9: 1 | D9: 1 | G9: 1 | K9: 1 | M9: 1574
B10: OH MN101-521 | E10: 1 | F10: 1 | L10: 1 | Q10: 0 | S10: 0 | T10: 0 | U10: 0
B11: OH MN101-522 | I11: 1 | N11: 6632 | O11: 7546 | Q11: 0 | S11: 0 | T11: 0 | U11: 0 | V11: 15.9
B12: OH MN101-989 | J12: 1 | N12: 0 | O12: 0 | Q12: 0 | R12: 1050 | S12: 0 | T12: 0 | U12: 0 | V12: 0 | W12: 0
B13: OH MN101-990 | N13: 0 | O13: 0 | Q13: 5362 | S13: 0 | T13: 0 | U13: 0 | V13: 0 | W13: 4.5
B14: TOTAL | C14: =SUM(C9:C13) -> 1 | D14: =SUM(D9:D13) -> 1 | E14: =SUM(E9:F13) -> 2 | G14: =SUM(G9:G13) -> 1 | I14: =SUM(I9:J13) -> 2 | K14: =SUM(K9:L13) -> 2 | M14: =SUM(M9:M13) -> 1574 | N14: =SUM(N9:N13) -> 6632 | O14: 7546 | P14: =SUM(P9:P13) -> 0 | Q14: =SUM(Q9:Q13) -> 5362 | R14: 1050 | S14: 0 | T14: 0 | U14: 0 | V14: 16 | W14: 5
B16: SPECIFIC NOTE(S):
B18: GENERAL NOTE(S):
B19: 1. QUANTITIES SHOWN ARE APPROXIMATE BASED UPON ELEVATIONS AND DIMENSIONS SHOWN IN SIGNING STRUCTURE ELEVATIONS.
B20: FABRICATIONS DEPENDENT ON THESE ELEVATIONS SHALL NOT BE STARTED UNTIL THE ENGINEER HAS MADE FINAL DETERMINATION OF THEM IN THE FIELD.
B21: 2. SEE STRUCTURE ELEVATIONS SHEETS FOR DETAILS.

Sheet Conc Rail Calc
D2: Input Parameters | G2: Output | H2: Output Conditions
D3: Sign Size | F3: Configuration | G3: STRUCTURE TYPE | O3: NOMINAL POST SIZE (IN.) | P3: NOMINAL ARM SIZE (IN.) | Q3: CONCRETE ANCHOR | V3: FILL PLATE THICKNESS (IN.) | W3: BENT PLATE THICKNESS (IN.) | X3: SIDE PLATE THICKNESS (IN.) | Y3: STRUCTURE TYPE
D4: Panel Width "B" (in) | E4: Panel Height "H" (in) | F4: Square or Diamond | H4: Arm Spacing "0.6H" (in) | I4: Sign Area (SF) | J4: Arm, "A" (in) | K4: Maximum Arm (in) | L4: Arm Condition 1 | M4: Arm Condtion 2 | N4: Arm Condition 3 | Q4: DIAMETER (IN.) | R4: EMBEDMENT (IN.) | S4: NUMBER REQUIRED | T4: TORQUE (FT-LBS) | U4: PROOF LOAD (KIPS)
D5: 144 | E5: 24 | F5: square | G5: =Y5 -> III | H5: =MROUND(0.6*E5,3) -> 15 | I5: =D5*E5/144 -> 24 | J5: =IF(F5="Square",2+D5/2,2+(SQRT(2)/2)*D5) -> 74 | K5: =IF(OR(I5<'[2]TABLE DATA'!$D$7,I5='[2]TABLE DATA'!$D$7),717.75/I5,IF(AND('[2]TABLE DATA'!$D$7<I5,OR(I5<'[2]TABLE DATA'!$D$8,I5='[2]TABLE DATA'!$D$8)),1695/I5,IF(AND('[2]TABLE DATA'!$D$8<I5,OR(I5<'[2]TABLE DATA'!$D$9,I5='[2]TABLE DATA'!$D$9)),2268/I5,IF(I5="Arm Too Long", "Reduce V or W","Sign Too Wide")))) -> 29.91 | L5: =717.75/'[2]Input-Output Data'!I5 -> 29.91 | M5: =1695/I5 -> 70.63 | N5: =2268/I5 -> 94.5 | O5: =IF(I5="Arm Too Long", "Reduce V or W",IF($I5>'[2]TABLE DATA'!$D$9,"SIGN TOO LARGE",IF(AND(OR($I5<'[2]TABLE DATA'!$D$7,$I5='[2]TABLE DATA'!$D$7),OR('[2]Input-Output Data'!$J5<'[2]Input-Output Data'!$K5,'[2]Input-Output Data'!$J5='[2]Input-Output Data'!$K5)),'[2]TABLE DATA'!F$7,IF(AND(OR($I5<'[2]TABLE DATA'!$D$7,$I5='[2]TABLE DATA'!$D$7),AND($J5>$L5),OR('[2]Input-Output Data'!$J5<'[2]Input-Output Data'!$M5,'[2]Input-Output Data'!$J5='[2]Input-Output Data'!$M5)),'[2]TABLE DATA'!F$8,IF(AND(OR($I5<'[2]TABLE DATA'!$D$7,$I5='[2]TABLE DATA'!$D$7),AND($J5>$M5),OR('[2]Input-Output Data'!$J5<'[2]Input-Output Data'!$N5,'[2]Input-Output Data'!$J5='[2]Input-Output Data'!$N5)),'[2]TABLE DATA'!F$9,IF(AND(OR($I5<'[2]TABLE DATA'!$D$7,$I5='[2]TABLE DATA'!$D$7),$J5>$N5),"SIGN TOO WIDE",IF(AND(AND($I5>'[2]TABLE DATA'!$D$7,OR($I5<'[2]TABLE DATA'!$D$8,$I5='[2]TABLE DATA'!$D$8)),'[2]Input-Output Data'!$J5<'[2]Input-Output Data'!$K5),'[2]TABLE DATA'!F$8,IF(AND(AND($I5>'[2]TABLE DATA'!$D$7,OR($I5<'[2]TABLE DATA'!$D$8,$I5='[2]TABLE DATA'!$D$8)),AND('[2]Input-Output Data'!$J5>'[2]Input-Output Data'!$M5,OR('[2]Input-Output Data'!$J5<'[2]Input-Output Data'!$N5,'[2]Input-Output Data'!$J5='[2]Input-Output Data'!$N5))),'[2]TABLE DATA'!F$9,IF(AND(AND($I5>'[2]TABLE DATA'!$D$7,OR($I5<'[2]TABLE DATA'!$D$8,$I5='[2]TABLE DATA'!$D$8)),$J5>'[2]Input-Output Data'!$N5),"SIGN TOO WIDE",IF(AND(AND($I5>'[2]TABLE DATA'!$D$8,OR($I5<'[2]TABLE DATA'!$D$9,$I5='[2]TABLE DATA'!$D$9)),'[2]Input-Output Data'!$J5<'[2]Input-Output Data'!$K5),'[2]TABLE DATA'!F$9,"SIGN TOO WIDE")))))))))) -> 5 | P5: =IF(I5="Arm Too Long", "Reduce V or W",IF($I5>'[2]TABLE DATA'!$D$9,"SIGN TOO LARGE",IF(AND(OR($I5<'[2]TABLE DATA'!$D$7,$I5='[2]TABLE DATA'!$D$7),OR('[2]Input-Output Data'!$J5<'[2]Input-Output Data'!$K5,'[2]Input-Output Data'!$J5='[2]Input-Output Data'!$K5)),'[2]TABLE DATA'!G$7,IF(AND(OR($I5<'[2]TABLE DATA'!$D$7,$I5='[2]TABLE DATA'!$D$7),AND($J5>$L5),OR('[2]Input-Output Data'!$J5<'[2]Input-Output Data'!$M5,'[2]Input-Output Data'!$J5='[2]Input-Output Data'!$M5)),'[2]TABLE DATA'!G$8,IF(AND(OR($I5<'[2]TABLE DATA'!$D$7,$I5='[2]TABLE DATA'!$D$7),AND($J5>$M5),OR('[2]Input-Output Data'!$J5<'[2]Input-Output Data'!$N5,'[2]Input-Output Data'!$J5='[2]Input-Output Data'!$N5)),'[2]TABLE DATA'!G$9,IF(AND(OR($I5<'[2]TABLE DATA'!$D$7,$I5='[2]TABLE DATA'!$D$7),$J5>$N5),"SIGN TOO WIDE",IF(AND(AND($I5>'[2]TABLE DATA'!$D$7,OR($I5<'[2]TABLE DATA'!$D$8,$I5='[2]TABLE DATA'!$D$8)),'[2]Input-Output Data'!$J5<'[2]Input-Output Data'!$K5),'[2]TABLE DATA'!G$8,IF(AND(AND($I5>'[2]TABLE DATA'!$D$7,OR($I5<'[2]TABLE DATA'!$D$8,$I5='[2]TABLE DATA'!$D$8)),AND('[2]Input-Output Data'!$J5>'[2]Input-Output Data'!$M5,OR('[2]Input-Output Data'!$J5<'[2]Input-Output Data'!$N5,'[2]Input-Output Data'!$J5='[2]Input-Output Data'!$N5))),'[2]TABLE DATA'!G$9,IF(AND(AND($I5>'[2]TABLE DATA'!$D$7,OR($I5<'[2]TABLE DATA'!$D$8,$I5='[2]TABLE DATA'!$D$8)),$J5>'[2]Input-Output Data'!$N5),"SIGN TOO WIDE",IF(AND(AND($I5>'[2]TABLE DATA'!$D$8,OR($I5<'[2]TABLE DATA'!$D$9,$I5='[2]TABLE DATA'!$D$9)),'[2]Input-Output Data'!$J5<'[2]Input-Output Data'!$K5),'[2]TABLE DATA'!G$9,"SIGN TOO WIDE")))))))))) -> 3 | Q5: =IF(I5="Arm Too Long", "Reduce V or W",IF($I5>'[2]TABLE DATA'!$D$9,"SIGN TOO LARGE",IF(AND(OR($I5<'[2]TABLE DATA'!$D$7,$I5='[2]TABLE DATA'!$D$7),OR('[2]Input-Output Data'!$J5<'[2]Input-Output Data'!$K5,'[2]Input-Output Data'!$J5='[2]Input-Output Data'!$K5)),'[2]TABLE DATA'!H$7,IF(AND(OR($I5<'[2]TABLE DATA'!$D$7,$I5='[2]TABLE DATA'!$D$7),AND($J5>$L5),OR('[2]Input-Output Data'!$J5<'[2]Input-Output Data'!$M5,'[2]Input-Output Data'!$J5='[2]Input-Output Data'!$M5)),'[2]TABLE DATA'!H$8,IF(AND(OR($I5<'[2]TABLE DATA'!$D$7,$I5='[2]TABLE DATA'!$D$7),AND($J5>$M5),OR('[2]Input-Output Data'!$J5<'[2]Input-Output Data'!$N5,'[2]Input-Output Data'!$J5='[2]Input-Output Data'!$N5)),'[2]TABLE DATA'!H$9,IF(AND(OR($I5<'[2]TABLE DATA'!$D$7,$I5='[2]TABLE DATA'!$D$7),$J5>$N5),"SIGN TOO WIDE",IF(AND(AND($I5>'[2]TABLE DATA'!$D$7,OR($I5<'[2]TABLE DATA'!$D$8,$I5='[2]TABLE DATA'!$D$8)),'[2]Input-Output Data'!$J5<'[2]Input-Output Data'!$K5),'[2]TABLE DATA'!H$8,IF(AND(AND($I5>'[2]TABLE DATA'!$D$7,OR($I5<'[2]TABLE DATA'!$D$8,$I5='[2]TABLE DATA'!$D$8)),AND('[2]Input-Output Data'!$J5>'[2]Input-Output Data'!$M5,OR('[2]Input-Output Data'!$J5<'[2]Input-Output Data'!$N5,'[2]Input-Output Data'!$J5='[2]Input-Output Data'!$N5))),'[2]TABLE DATA'!H$9,IF(AND(AND($I5>'[2]TABLE DATA'!$D$7,OR($I5<'[2]TABLE DATA'!$D$8,$I5='[2]TABLE DATA'!$D$8)),$J5>'[2]Input-Output Data'!$N5),"SIGN TOO WIDE",IF(AND(AND($I5>'[2]TABLE DATA'!$D$8,OR($I5<'[2]TABLE DATA'!$D$9,$I5='[2]TABLE DATA'!$D$9)),'[2]Input-Output Data'!$J5<'[2]Input-Output Data'!$K5),'[2]TABLE DATA'!H$9,"SIGN TOO WIDE")))))))))) -> 0.875 | R5: =IF(I5="Arm Too Long", "Reduce V or W",IF($I5>'[2]TABLE DATA'!$D$9,"SIGN TOO LARGE",IF(AND(OR($I5<'[2]TABLE DATA'!$D$7,$I5='[2]TABLE DATA'!$D$7),OR('[2]Input-Output Data'!$J5<'[2]Input-Output Data'!$K5,'[2]Input-Output Data'!$J5='[2]Input-Output Data'!$K5)),'[2]TABLE DATA'!I$7,IF(AND(OR($I5<'[2]TABLE DATA'!$D$7,$I5='[2]TABLE DATA'!$D$7),AND($J5>$L5),OR('[2]Input-Output Data'!$J5<'[2]Input-Output Data'!$M5,'[2]Input-Output Data'!$J5='[2]Input-Output Data'!$M5)),'[2]TABLE DATA'!I$8,IF(AND(OR($I5<'[2]TABLE DATA'!$D$7,$I5='[2]TABLE DATA'!$D$7),AND($J5>$M5),OR('[2]Input-Output Data'!$J5<'[2]Input-Output Data'!$N5,'[2]Input-Output Data'!$J5='[2]Input-Output Data'!$N5)),'[2]TABLE DATA'!I$9,IF(AND(OR($I5<'[2]TABLE DATA'!$D$7,$I5='[2]TABLE DATA'!$D$7),$J5>$N5),"SIGN TOO WIDE",IF(AND(AND($I5>'[2]TABLE DATA'!$D$7,OR($I5<'[2]TABLE DATA'!$D$8,$I5='[2]TABLE DATA'!$D$8)),'[2]Input-Output Data'!$J5<'[2]Input-Output Data'!$K5),'[2]TABLE DATA'!I$8,IF(AND(AND($I5>'[2]TABLE DATA'!$D$7,OR($I5<'[2]TABLE DATA'!$D$8,$I5='[2]TABLE DATA'!$D$8)),AND('[2]Input-Output Data'!$J5>'[2]Input-Output Data'!$M5,OR('[2]Input-Output Data'!$J5<'[2]Input-Output Data'!$N5,'[2]Input-Output Data'!$J5='[2]Input-Output Data'!$N5))),'[2]TABLE DATA'!I$9,IF(AND(AND($I5>'[2]TABLE DATA'!$D$7,OR($I5<'[2]TABLE DATA'!$D$8,$I5='[2]TABLE DATA'!$D$8)),$J5>'[2]Input-Output Data'!$N5),"SIGN TOO WIDE",IF(AND(AND($I5>'[2]TABLE DATA'!$D$8,OR($I5<'[2]TABLE DATA'!$D$9,$I5='[2]TABLE DATA'!$D$9)),'[2]Input-Output Data'!$J5<'[2]Input-Output Data'!$K5),'[2]TABLE DATA'!I$9,"SIGN TOO WIDE")))))))))) -> 8 | S5: =IF(I5="Arm Too Long", "Reduce V or W",IF($I5>'[2]TABLE DATA'!$D$9,"SIGN TOO LARGE",IF(AND(OR($I5<'[2]TABLE DATA'!$D$7,$I5='[2]TABLE DATA'!$D$7),OR('[2]Input-Output Data'!$J5<'[2]Input-Output Data'!$K5,'[2]Input-Output Data'!$J5='[2]Input-Output Data'!$K5)),'[2]TABLE DATA'!J$7,IF(AND(OR($I5<'[2]TABLE DATA'!$D$7,$I5='[2]TABLE DATA'!$D$7),AND($J5>$L5),OR('[2]Input-Output Data'!$J5<'[2]Input-Output Data'!$M5,'[2]Input-Output Data'!$J5='[2]Input-Output Data'!$M5)),'[2]TABLE DATA'!J$8,IF(AND(OR($I5<'[2]TABLE DATA'!$D$7,$I5='[2]TABLE DATA'!$D$7),AND($J5>$M5),OR('[2]Input-Output Data'!$J5<'[2]Input-Output Data'!$N5,'[2]Input-Output Data'!$J5='[2]Input-Output Data'!$N5)),'[2]TABLE DATA'!J$9,IF(AND(OR($I5<'[2]TABLE DATA'!$D$7,$I5='[2]TABLE DATA'!$D$7),$J5>$N5),"SIGN TOO WIDE",IF(AND(AND($I5>'[2]TABLE DATA'!$D$7,OR($I5<'[2]TABLE DATA'!$D$8,$I5='[2]TABLE DATA'!$D$8)),'[2]Input-Output Data'!$J5<'[2]Input-Output Data'!$K5),'[2]TABLE DATA'!J$8,IF(AND(AND($I5>'[2]TABLE DATA'!$D$7,OR($I5<'[2]TABLE DATA'!$D$8,$I5='[2]TABLE DATA'!$D$8)),AND('[2]Input-Output Data'!$J5>'[2]Input-Output Data'!$M5,OR('[2]Input-Output Data'!$J5<'[2]Input-Output Data'!$N5,'[2]Input-Output Data'!$J5='[2]Input-Output Data'!$N5))),'[2]TABLE DATA'!J$9,IF(AND(AND($I5>'[2]TABLE DATA'!$D$7,OR($I5<'[2]TABLE DATA'!$D$8,$I5='[2]TABLE DATA'!$D$8)),$J5>'[2]Input-Output Data'!$N5),"SIGN TOO WIDE",IF(AND(AND($I5>'[2]TABLE DATA'!$D$8,OR($I5<'[2]TABLE DATA'!$D$9,$I5='[2]TABLE DATA'!$D$9)),'[2]Input-Output Data'!$J5<'[2]Input-Output Data'!$K5),'[2]TABLE DATA'!J$9,"SIGN TOO WIDE")))))))))) -> 3 | T5: =IF(I5="Arm Too Long", "Reduce V or W",IF($I5>'[2]TABLE DATA'!$D$9,"SIGN TOO LARGE",IF(AND(OR($I5<'[2]TABLE DATA'!$D$7,$I5='[2]TABLE DATA'!$D$7),OR('[2]Input-Output Data'!$J5<'[2]Input-Output Data'!$K5,'[2]Input-Output Data'!$J5='[2]Input-Output Data'!$K5)),'[2]TABLE DATA'!K$7,IF(AND(OR($I5<'[2]TABLE DATA'!$D$7,$I5='[2]TABLE DATA'!$D$7),AND($J5>$L5),OR('[2]Input-Output Data'!$J5<'[2]Input-Output Data'!$M5,'[2]Input-Output Data'!$J5='[2]Input-Output Data'!$M5)),'[2]TABLE DATA'!K$8,IF(AND(OR($I5<'[2]TABLE DATA'!$D$7,$I5='[2]TABLE DATA'!$D$7),AND($J5>$M5),OR('[2]Input-Output Data'!$J5<'[2]Input-Output Data'!$N5,'[2]Input-Output Data'!$J5='[2]Input-Output Data'!$N5)),'[2]TABLE DATA'!K$9,IF(AND(OR($I5<'[2]TABLE DATA'!$D$7,$I5='[2]TABLE DATA'!$D$7),$J5>$N5),"SIGN TOO WIDE",IF(AND(AND($I5>'[2]TABLE DATA'!$D$7,OR($I5<'[2]TABLE DATA'!$D$8,$I5='[2]TABLE DATA'!$D$8)),'[2]Input-Output Data'!$J5<'[2]Input-Output Data'!$K5),'[2]TABLE DATA'!K$8,IF(AND(AND($I5>'[2]TABLE DATA'!$D$7,OR($I5<'[2]TABLE DATA'!$D$8,$I5='[2]TABLE DATA'!$D$8)),AND('[2]Input-Output Data'!$J5>'[2]Input-Output Data'!$M5,OR('[2]Input-Output Data'!$J5<'[2]Input-Output Data'!$N5,'[2]Input-Output Data'!$J5='[2]Input-Output Data'!$N5))),'[2]TABLE DATA'!K$9,IF(AND(AND($I5>'[2]TABLE DATA'!$D$7,OR($I5<'[2]TABLE DATA'!$D$8,$I5='[2]TABLE DATA'!$D$8)),$J5>'[2]Input-Output Data'!$N5),"SIGN TOO WIDE",IF(AND(AND($I5>'[2]TABLE DATA'!$D$8,OR($I5<'[2]TABLE DATA'!$D$9,$I5='[2]TABLE DATA'!$D$9)),'[2]Input-Output Data'!$J5<'[2]Input-Output Data'!$K5),'[2]TABLE DATA'!K$9,"SIGN TOO WIDE")))))))))) -> 80 | U5: =IF(I5="Arm Too Long", "Reduce V or W",IF($I5>'[2]TABLE DATA'!$D$9,"SIGN TOO LARGE",IF(AND(OR($I5<'[2]TABLE DATA'!$D$7,$I5='[2]TABLE DATA'!$D$7),OR('[2]Input-Output Data'!$J5<'[2]Input-Output Data'!$K5,'[2]Input-Output Data'!$J5='[2]Input-Output Data'!$K5)),'[2]TABLE DATA'!L$7,IF(AND(OR($I5<'[2]TABLE DATA'!$D$7,$I5='[2]TABLE DATA'!$D$7),AND($J5>$L5),OR('[2]Input-Output Data'!$J5<'[2]Input-Output Data'!$M5,'[2]Input-Output Data'!$J5='[2]Input-Output Data'!$M5)),'[2]TABLE DATA'!L$8,IF(AND(OR($I5<'[2]TABLE DATA'!$D$7,$I5='[2]TABLE DATA'!$D$7),AND($J5>$M5),OR('[2]Input-Output Data'!$J5<'[2]Input-Output Data'!$N5,'[2]Input-Output Data'!$J5='[2]Input-Output Data'!$N5)),'[2]TABLE DATA'!L$9,IF(AND(OR($I5<'[2]TABLE DATA'!$D$7,$I5='[2]TABLE DATA'!$D$7),$J5>$N5),"SIGN TOO WIDE",IF(AND(AND($I5>'[2]TABLE DATA'!$D$7,OR($I5<'[2]TABLE DATA'!$D$8,$I5='[2]TABLE DATA'!$D$8)),'[2]Input-Output Data'!$J5<'[2]Input-Output Data'!$K5),'[2]TABLE DATA'!L$8,IF(AND(AND($I5>'[2]TABLE DATA'!$D$7,OR($I5<'[2]TABLE DATA'!$D$8,$I5='[2]TABLE DATA'!$D$8)),AND('[2]Input-Output Data'!$J5>'[2]Input-Output Data'!$M5,OR('[2]Input-Output Data'!$J5<'[2]Input-Output Data'!$N5,'[2]Input-Output Data'!$J5='[2]Input-Output Data'!$N5))),'[2]TABLE DATA'!L$9,IF(AND(AND($I5>'[2]TABLE DATA'!$D$7,OR($I5<'[2]TABLE DATA'!$D$8,$I5='[2]TABLE DATA'!$D$8)),$J5>'[2]Input-Output Data'!$N5),"SIGN TOO WIDE",IF(AND(AND($I5>'[2]TABLE DATA'!$D$8,OR($I5<'[2]TABLE DATA'!$D$9,$I5='[2]TABLE DATA'!$D$9)),'[2]Input-Output Data'!$J5<'[2]Input-Output Data'!$K5),'[2]TABLE DATA'!L$9,"SIGN TOO WIDE")))))))))) -> 14.5 | V5: =IF(I5="Arm Too Long", "Reduce V or W",IF($I5>'[2]TABLE DATA'!$D$9,"SIGN TOO LARGE",IF(AND(OR($I5<'[2]TABLE DATA'!$D$7,$I5='[2]TABLE DATA'!$D$7),OR('[2]Input-Output Data'!$J5<'[2]Input-Output Data'!$K5,'[2]Input-Output Data'!$J5='[2]Input-Output Data'!$K5)),'[2]TABLE DATA'!M$7,IF(AND(OR($I5<'[2]TABLE DATA'!$D$7,$I5='[2]TABLE DATA'!$D$7),AND($J5>$L5),OR('[2]Input-Output Data'!$J5<'[2]Input-Output Data'!$M5,'[2]Input-Output Data'!$J5='[2]Input-Output Data'!$M5)),'[2]TABLE DATA'!M$8,IF(AND(OR($I5<'[2]TABLE DATA'!$D$7,$I5='[2]TABLE DATA'!$D$7),AND($J5>$M5),OR('[2]Input-Output Data'!$J5<'[2]Input-Output Data'!$N5,'[2]Input-Output Data'!$J5='[2]Input-Output Data'!$N5)),'[2]TABLE DATA'!M$9,IF(AND(OR($I5<'[2]TABLE DATA'!$D$7,$I5='[2]TABLE DATA'!$D$7),$J5>$N5),"SIGN TOO WIDE",IF(AND(AND($I5>'[2]TABLE DATA'!$D$7,OR($I5<'[2]TABLE DATA'!$D$8,$I5='[2]TABLE DATA'!$D$8)),'[2]Input-Output Data'!$J5<'[2]Input-Output Data'!$K5),'[2]TABLE DATA'!M$8,IF(AND(AND($I5>'[2]TABLE DATA'!$D$7,OR($I5<'[2]TABLE DATA'!$D$8,$I5='[2]TABLE DATA'!$D$8)),AND('[2]Input-Output Data'!$J5>'[2]Input-Output Data'!$M5,OR('[2]Input-Output Data'!$J5<'[2]Input-Output Data'!$N5,'[2]Input-Output Data'!$J5='[2]Input-Output Data'!$N5))),'[2]TABLE DATA'!M$9,IF(AND(AND($I5>'[2]TABLE DATA'!$D$7,OR($I5<'[2]TABLE DATA'!$D$8,$I5='[2]TABLE DATA'!$D$8)),$J5>'[2]Input-Output Data'!$N5),"SIGN TOO WIDE",IF(AND(AND($I5>'[2]TABLE DATA'!$D$8,OR($I5<'[2]TABLE DATA'!$D$9,$I5='[2]TABLE DATA'!$D$9)),'[2]Input-Output Data'!$J5<'[2]Input-Output Data'!$K5),'[2]TABLE DATA'!M$9,"SIGN TOO WIDE")))))))))) -> 0.75 | W5: =IF(I5="Arm Too Long", "Reduce V or W",IF($I5>'[2]TABLE DATA'!$D$9,"SIGN TOO LARGE",IF(AND(OR($I5<'[2]TABLE DATA'!$D$7,$I5='[2]TABLE DATA'!$D$7),OR('[2]Input-Output Data'!$J5<'[2]Input-Output Data'!$K5,'[2]Input-Output Data'!$J5='[2]Input-Output Data'!$K5)),'[2]TABLE DATA'!N$7,IF(AND(OR($I5<'[2]TABLE DATA'!$D$7,$I5='[2]TABLE DATA'!$D$7),AND($J5>$L5),OR('[2]Input-Output Data'!$J5<'[2]Input-Output Data'!$M5,'[2]Input-Output Data'!$J5='[2]Input-Output Data'!$M5)),'[2]TABLE DATA'!N$8,IF(AND(OR($I5<'[2]TABLE DATA'!$D$7,$I5='[2]TABLE DATA'!$D$7),AND($J5>$M5),OR('[2]Input-Output Data'!$J5<'[2]Input-Output Data'!$N5,'[2]Input-Output Data'!$J5='[2]Input-Output Data'!$N5)),'[2]TABLE DATA'!N$9,IF(AND(OR($I5<'[2]TABLE DATA'!$D$7,$I5='[2]TABLE DATA'!$D$7),$J5>$N5),"SIGN TOO WIDE",IF(AND(AND($I5>'[2]TABLE DATA'!$D$7,OR($I5<'[2]TABLE DATA'!$D$8,$I5='[2]TABLE DATA'!$D$8)),'[2]Input-Output Data'!$J5<'[2]Input-Output Data'!$K5),'[2]TABLE DATA'!N$8,IF(AND(AND($I5>'[2]TABLE DATA'!$D$7,OR($I5<'[2]TABLE DATA'!$D$8,$I5='[2]TABLE DATA'!$D$8)),AND('[2]Input-Output Data'!$J5>'[2]Input-Output Data'!$M5,OR('[2]Input-Output Data'!$J5<'[2]Input-Output Data'!$N5,'[2]Input-Output Data'!$J5='[2]Input-Output Data'!$N5))),'[2]TABLE DATA'!N$9,IF(AND(AND($I5>'[2]TABLE DATA'!$D$7,OR($I5<'[2]TABLE DATA'!$D$8,$I5='[2]TABLE DATA'!$D$8)),$J5>'[2]Input-Output Data'!$N5),"SIGN TOO WIDE",IF(AND(AND($I5>'[2]TABLE DATA'!$D$8,OR($I5<'[2]TABLE DATA'!$D$9,$I5='[2]TABLE DATA'!$D$9)),'[2]Input-Output Data'!$J5<'[2]Input-Output Data'!$K5),'[2]TABLE DATA'!N$9,"SIGN TOO WIDE")))))))))) -> 0.625 | X5: =IF(I5="Arm Too Long", "Reduce V or W",IF($I5>'[2]TABLE DATA'!$D$9,"SIGN TOO LARGE",IF(AND(OR($I5<'[2]TABLE DATA'!$D$7,$I5='[2]TABLE DATA'!$D$7),OR('[2]Input-Output Data'!$J5<'[2]Input-Output Data'!$K5,'[2]Input-Output Data'!$J5='[2]Input-Output Data'!$K5)),'[2]TABLE DATA'!O$7,IF(AND(OR($I5<'[2]TABLE DATA'!$D$7,$I5='[2]TABLE DATA'!$D$7),AND($J5>$L5),OR('[2]Input-Output Data'!$J5<'[2]Input-Output Data'!$M5,'[2]Input-Output Data'!$J5='[2]Input-Output Data'!$M5)),'[2]TABLE DATA'!O$8,IF(AND(OR($I5<'[2]TABLE DATA'!$D$7,$I5='[2]TABLE DATA'!$D$7),AND($J5>$M5),OR('[2]Input-Output Data'!$J5<'[2]Input-Output Data'!$N5,'[2]Input-Output Data'!$J5='[2]Input-Output Data'!$N5)),'[2]TABLE DATA'!O$9,IF(AND(OR($I5<'[2]TABLE DATA'!$D$7,$I5='[2]TABLE DATA'!$D$7),$J5>$N5),"SIGN TOO WIDE",IF(AND(AND($I5>'[2]TABLE DATA'!$D$7,OR($I5<'[2]TABLE DATA'!$D$8,$I5='[2]TABLE DATA'!$D$8)),'[2]Input-Output Data'!$J5<'[2]Input-Output Data'!$K5),'[2]TABLE DATA'!O$8,IF(AND(AND($I5>'[2]TABLE DATA'!$D$7,OR($I5<'[2]TABLE DATA'!$D$8,$I5='[2]TABLE DATA'!$D$8)),AND('[2]Input-Output Data'!$J5>'[2]Input-Output Data'!$M5,OR('[2]Input-Output Data'!$J5<'[2]Input-Output Data'!$N5,'[2]Input-Output Data'!$J5='[2]Input-Output Data'!$N5))),'[2]TABLE DATA'!O$9,IF(AND(AND($I5>'[2]TABLE DATA'!$D$7,OR($I5<'[2]TABLE DATA'!$D$8,$I5='[2]TABLE DATA'!$D$8)),$J5>'[2]Input-Output Data'!$N5),"SIGN TOO WIDE",IF(AND(AND($I5>'[2]TABLE DATA'!$D$8,OR($I5<'[2]TABLE DATA'!$D$9,$I5='[2]TABLE DATA'!$D$9)),'[2]Input-Output Data'!$J5<'[2]Input-Output Data'!$K5),'[2]TABLE DATA'!O$9,"SIGN TOO WIDE")))))))))) -> 0.625 | Y5: =IF(V5=0.5,"I",IF(V5=0.625,"II",IF(V5=0.75,"III","N/A"))) -> III
D6: 48 | E6: 48 | F6: Diamond | G6: =Y6 -> I | H6: 30 | I6: =D6*E6/144 -> 16 | J6: =IF(F6="Square",2+D6/2,2+(SQRT(2)/2)*D6) -> 35.9 | K6: =IF(OR(I6<'[2]TABLE DATA'!$D$7,I6='[2]TABLE DATA'!$D$7),717.75/I6,IF(AND('[2]TABLE DATA'!$D$7<I6,OR(I6<'[2]TABLE DATA'!$D$8,I6='[2]TABLE DATA'!$D$8)),1695/I6,IF(AND('[2]TABLE DATA'!$D$8<I6,OR(I6<'[2]TABLE DATA'!$D$9,I6='[2]TABLE DATA'!$D$9)),2268/I6,IF(I6="Arm Too Long", "Reduce V or W","Sign Too Wide")))) -> 44.86 | L6: =717.75/'[2]Input-Output Data'!I6 -> 44.86 | M6: =1695/I6 -> 105.94 | N6: =2268/I6 -> 141.75 | O6: =IF(I6="Arm Too Long", "Reduce V or W",IF($I6>'[2]TABLE DATA'!$D$9,"SIGN TOO LARGE",IF(AND(OR($I6<'[2]TABLE DATA'!$D$7,$I6='[2]TABLE DATA'!$D$7),OR('[2]Input-Output Data'!$J6<'[2]Input-Output Data'!$K6,'[2]Input-Output Data'!$J6='[2]Input-Output Data'!$K6)),'[2]TABLE DATA'!F$7,IF(AND(OR($I6<'[2]TABLE DATA'!$D$7,$I6='[2]TABLE DATA'!$D$7),AND($J6>$L6),OR('[2]Input-Output Data'!$J6<'[2]Input-Output Data'!$M6,'[2]Input-Output Data'!$J6='[2]Input-Output Data'!$M6)),'[2]TABLE DATA'!F$8,IF(AND(OR($I6<'[2]TABLE DATA'!$D$7,$I6='[2]TABLE DATA'!$D$7),AND($J6>$M6),OR('[2]Input-Output Data'!$J6<'[2]Input-Output Data'!$N6,'[2]Input-Output Data'!$J6='[2]Input-Output Data'!$N6)),'[2]TABLE DATA'!F$9,IF(AND(OR($I6<'[2]TABLE DATA'!$D$7,$I6='[2]TABLE DATA'!$D$7),$J6>$N6),"SIGN TOO WIDE",IF(AND(AND($I6>'[2]TABLE DATA'!$D$7,OR($I6<'[2]TABLE DATA'!$D$8,$I6='[2]TABLE DATA'!$D$8)),'[2]Input-Output Data'!$J6<'[2]Input-Output Data'!$K6),'[2]TABLE DATA'!F$8,IF(AND(AND($I6>'[2]TABLE DATA'!$D$7,OR($I6<'[2]TABLE DATA'!$D$8,$I6='[2]TABLE DATA'!$D$8)),AND('[2]Input-Output Data'!$J6>'[2]Input-Output Data'!$M6,OR('[2]Input-Output Data'!$J6<'[2]Input-Output Data'!$N6,'[2]Input-Output Data'!$J6='[2]Input-Output Data'!$N6))),'[2]TABLE DATA'!F$9,IF(AND(AND($I6>'[2]TABLE DATA'!$D$7,OR($I6<'[2]TABLE DATA'!$D$8,$I6='[2]TABLE DATA'!$D$8)),$J6>'[2]Input-Output Data'!$N6),"SIGN TOO WIDE",IF(AND(AND($I6>'[2]TABLE DATA'!$D$8,OR($I6<'[2]TABLE DATA'!$D$9,$I6='[2]TABLE DATA'!$D$9)),'[2]Input-Output Data'!$J6<'[2]Input-Output Data'!$K6),'[2]TABLE DATA'!F$9,"SIGN TOO WIDE")))))))))) -> 4 | P6: =IF(I6="Arm Too Long", "Reduce V or W",IF($I6>'[2]TABLE DATA'!$D$9,"SIGN TOO LARGE",IF(AND(OR($I6<'[2]TABLE DATA'!$D$7,$I6='[2]TABLE DATA'!$D$7),OR('[2]Input-Output Data'!$J6<'[2]Input-Output Data'!$K6,'[2]Input-Output Data'!$J6='[2]Input-Output Data'!$K6)),'[2]TABLE DATA'!G$7,IF(AND(OR($I6<'[2]TABLE DATA'!$D$7,$I6='[2]TABLE DATA'!$D$7),AND($J6>$L6),OR('[2]Input-Output Data'!$J6<'[2]Input-Output Data'!$M6,'[2]Input-Output Data'!$J6='[2]Input-Output Data'!$M6)),'[2]TABLE DATA'!G$8,IF(AND(OR($I6<'[2]TABLE DATA'!$D$7,$I6='[2]TABLE DATA'!$D$7),AND($J6>$M6),OR('[2]Input-Output Data'!$J6<'[2]Input-Output Data'!$N6,'[2]Input-Output Data'!$J6='[2]Input-Output Data'!$N6)),'[2]TABLE DATA'!G$9,IF(AND(OR($I6<'[2]TABLE DATA'!$D$7,$I6='[2]TABLE DATA'!$D$7),$J6>$N6),"SIGN TOO WIDE",IF(AND(AND($I6>'[2]TABLE DATA'!$D$7,OR($I6<'[2]TABLE DATA'!$D$8,$I6='[2]TABLE DATA'!$D$8)),'[2]Input-Output Data'!$J6<'[2]Input-Output Data'!$K6),'[2]TABLE DATA'!G$8,IF(AND(AND($I6>'[2]TABLE DATA'!$D$7,OR($I6<'[2]TABLE DATA'!$D$8,$I6='[2]TABLE DATA'!$D$8)),AND('[2]Input-Output Data'!$J6>'[2]Input-Output Data'!$M6,OR('[2]Input-Output Data'!$J6<'[2]Input-Output Data'!$N6,'[2]Input-Output Data'!$J6='[2]Input-Output Data'!$N6))),'[2]TABLE DATA'!G$9,IF(AND(AND($I6>'[2]TABLE DATA'!$D$7,OR($I6<'[2]TABLE DATA'!$D$8,$I6='[2]TABLE DATA'!$D$8)),$J6>'[2]Input-Output Data'!$N6),"SIGN TOO WIDE",IF(AND(AND($I6>'[2]TABLE DATA'!$D$8,OR($I6<'[2]TABLE DATA'!$D$9,$I6='[2]TABLE DATA'!$D$9)),'[2]Input-Output Data'!$J6<'[2]Input-Output Data'!$K6),'[2]TABLE DATA'!G$9,"SIGN TOO WIDE")))))))))) -> 2 | Q6: =IF(I6="Arm Too Long", "Reduce V or W",IF($I6>'[2]TABLE DATA'!$D$9,"SIGN TOO LARGE",IF(AND(OR($I6<'[2]TABLE DATA'!$D$7,$I6='[2]TABLE DATA'!$D$7),OR('[2]Input-Output Data'!$J6<'[2]Input-Output Data'!$K6,'[2]Input-Output Data'!$J6='[2]Input-Output Data'!$K6)),'[2]TABLE DATA'!H$7,IF(AND(OR($I6<'[2]TABLE DATA'!$D$7,$I6='[2]TABLE DATA'!$D$7),AND($J6>$L6),OR('[2]Input-Output Data'!$J6<'[2]Input-Output Data'!$M6,'[2]Input-Output Data'!$J6='[2]Input-Output Data'!$M6)),'[2]TABLE DATA'!H$8,IF(AND(OR($I6<'[2]TABLE DATA'!$D$7,$I6='[2]TABLE DATA'!$D$7),AND($J6>$M6),OR('[2]Input-Output Data'!$J6<'[2]Input-Output Data'!$N6,'[2]Input-Output Data'!$J6='[2]Input-Output Data'!$N6)),'[2]TABLE DATA'!H$9,IF(AND(OR($I6<'[2]TABLE DATA'!$D$7,$I6='[2]TABLE DATA'!$D$7),$J6>$N6),"SIGN TOO WIDE",IF(AND(AND($I6>'[2]TABLE DATA'!$D$7,OR($I6<'[2]TABLE DATA'!$D$8,$I6='[2]TABLE DATA'!$D$8)),'[2]Input-Output Data'!$J6<'[2]Input-Output Data'!$K6),'[2]TABLE DATA'!H$8,IF(AND(AND($I6>'[2]TABLE DATA'!$D$7,OR($I6<'[2]TABLE DATA'!$D$8,$I6='[2]TABLE DATA'!$D$8)),AND('[2]Input-Output Data'!$J6>'[2]Input-Output Data'!$M6,OR('[2]Input-Output Data'!$J6<'[2]Input-Output Data'!$N6,'[2]Input-Output Data'!$J6='[2]Input-Output Data'!$N6))),'[2]TABLE DATA'!H$9,IF(AND(AND($I6>'[2]TABLE DATA'!$D$7,OR($I6<'[2]TABLE DATA'!$D$8,$I6='[2]TABLE DATA'!$D$8)),$J6>'[2]Input-Output Data'!$N6),"SIGN TOO WIDE",IF(AND(AND($I6>'[2]TABLE DATA'!$D$8,OR($I6<'[2]TABLE DATA'!$D$9,$I6='[2]TABLE DATA'!$D$9)),'[2]Input-Output Data'!$J6<'[2]Input-Output Data'!$K6),'[2]TABLE DATA'!H$9,"SIGN TOO WIDE")))))))))) -> 0.625 | R6: =IF(I6="Arm Too Long", "Reduce V or W",IF($I6>'[2]TABLE DATA'!$D$9,"SIGN TOO LARGE",IF(AND(OR($I6<'[2]TABLE DATA'!$D$7,$I6='[2]TABLE DATA'!$D$7),OR('[2]Input-Output Data'!$J6<'[2]Input-Output Data'!$K6,'[2]Input-Output Data'!$J6='[2]Input-Output Data'!$K6)),'[2]TABLE DATA'!I$7,IF(AND(OR($I6<'[2]TABLE DATA'!$D$7,$I6='[2]TABLE DATA'!$D$7),AND($J6>$L6),OR('[2]Input-Output Data'!$J6<'[2]Input-Output Data'!$M6,'[2]Input-Output Data'!$J6='[2]Input-Output Data'!$M6)),'[2]TABLE DATA'!I$8,IF(AND(OR($I6<'[2]TABLE DATA'!$D$7,$I6='[2]TABLE DATA'!$D$7),AND($J6>$M6),OR('[2]Input-Output Data'!$J6<'[2]Input-Output Data'!$N6,'[2]Input-Output Data'!$J6='[2]Input-Output Data'!$N6)),'[2]TABLE DATA'!I$9,IF(AND(OR($I6<'[2]TABLE DATA'!$D$7,$I6='[2]TABLE DATA'!$D$7),$J6>$N6),"SIGN TOO WIDE",IF(AND(AND($I6>'[2]TABLE DATA'!$D$7,OR($I6<'[2]TABLE DATA'!$D$8,$I6='[2]TABLE DATA'!$D$8)),'[2]Input-Output Data'!$J6<'[2]Input-Output Data'!$K6),'[2]TABLE DATA'!I$8,IF(AND(AND($I6>'[2]TABLE DATA'!$D$7,OR($I6<'[2]TABLE DATA'!$D$8,$I6='[2]TABLE DATA'!$D$8)),AND('[2]Input-Output Data'!$J6>'[2]Input-Output Data'!$M6,OR('[2]Input-Output Data'!$J6<'[2]Input-Output Data'!$N6,'[2]Input-Output Data'!$J6='[2]Input-Output Data'!$N6))),'[2]TABLE DATA'!I$9,IF(AND(AND($I6>'[2]TABLE DATA'!$D$7,OR($I6<'[2]TABLE DATA'!$D$8,$I6='[2]TABLE DATA'!$D$8)),$J6>'[2]Input-Output Data'!$N6),"SIGN TOO WIDE",IF(AND(AND($I6>'[2]TABLE DATA'!$D$8,OR($I6<'[2]TABLE DATA'!$D$9,$I6='[2]TABLE DATA'!$D$9)),'[2]Input-Output Data'!$J6<'[2]Input-Output Data'!$K6),'[2]TABLE DATA'!I$9,"SIGN TOO WIDE")))))))))) -> 5.625 | S6: =IF(I6="Arm Too Long", "Reduce V or W",IF($I6>'[2]TABLE DATA'!$D$9,"SIGN TOO LARGE",IF(AND(OR($I6<'[2]TABLE DATA'!$D$7,$I6='[2]TABLE DATA'!$D$7),OR('[2]Input-Output Data'!$J6<'[2]Input-Output Data'!$K6,'[2]Input-Output Data'!$J6='[2]Input-Output Data'!$K6)),'[2]TABLE DATA'!J$7,IF(AND(OR($I6<'[2]TABLE DATA'!$D$7,$I6='[2]TABLE DATA'!$D$7),AND($J6>$L6),OR('[2]Input-Output Data'!$J6<'[2]Input-Output Data'!$M6,'[2]Input-Output Data'!$J6='[2]Input-Output Data'!$M6)),'[2]TABLE DATA'!J$8,IF(AND(OR($I6<'[2]TABLE DATA'!$D$7,$I6='[2]TABLE DATA'!$D$7),AND($J6>$M6),OR('[2]Input-Output Data'!$J6<'[2]Input-Output Data'!$N6,'[2]Input-Output Data'!$J6='[2]Input-Output Data'!$N6)),'[2]TABLE DATA'!J$9,IF(AND(OR($I6<'[2]TABLE DATA'!$D$7,$I6='[2]TABLE DATA'!$D$7),$J6>$N6),"SIGN TOO WIDE",IF(AND(AND($I6>'[2]TABLE DATA'!$D$7,OR($I6<'[2]TABLE DATA'!$D$8,$I6='[2]TABLE DATA'!$D$8)),'[2]Input-Output Data'!$J6<'[2]Input-Output Data'!$K6),'[2]TABLE DATA'!J$8,IF(AND(AND($I6>'[2]TABLE DATA'!$D$7,OR($I6<'[2]TABLE DATA'!$D$8,$I6='[2]TABLE DATA'!$D$8)),AND('[2]Input-Output Data'!$J6>'[2]Input-Output Data'!$M6,OR('[2]Input-Output Data'!$J6<'[2]Input-Output Data'!$N6,'[2]Input-Output Data'!$J6='[2]Input-Output Data'!$N6))),'[2]TABLE DATA'!J$9,IF(AND(AND($I6>'[2]TABLE DATA'!$D$7,OR($I6<'[2]TABLE DATA'!$D$8,$I6='[2]TABLE DATA'!$D$8)),$J6>'[2]Input-Output Data'!$N6),"SIGN TOO WIDE",IF(AND(AND($I6>'[2]TABLE DATA'!$D$8,OR($I6<'[2]TABLE DATA'!$D$9,$I6='[2]TABLE DATA'!$D$9)),'[2]Input-Output Data'!$J6<'[2]Input-Output Data'!$K6),'[2]TABLE DATA'!J$9,"SIGN TOO WIDE")))))))))) -> 2 | T6: =IF(I6="Arm Too Long", "Reduce V or W",IF($I6>'[2]TABLE DATA'!$D$9,"SIGN TOO LARGE",IF(AND(OR($I6<'[2]TABLE DATA'!$D$7,$I6='[2]TABLE DATA'!$D$7),OR('[2]Input-Output Data'!$J6<'[2]Input-Output Data'!$K6,'[2]Input-Output Data'!$J6='[2]Input-Output Data'!$K6)),'[2]TABLE DATA'!K$7,IF(AND(OR($I6<'[2]TABLE DATA'!$D$7,$I6='[2]TABLE DATA'!$D$7),AND($J6>$L6),OR('[2]Input-Output Data'!$J6<'[2]Input-Output Data'!$M6,'[2]Input-Output Data'!$J6='[2]Input-Output Data'!$M6)),'[2]TABLE DATA'!K$8,IF(AND(OR($I6<'[2]TABLE DATA'!$D$7,$I6='[2]TABLE DATA'!$D$7),AND($J6>$M6),OR('[2]Input-Output Data'!$J6<'[2]Input-Output Data'!$N6,'[2]Input-Output Data'!$J6='[2]Input-Output Data'!$N6)),'[2]TABLE DATA'!K$9,IF(AND(OR($I6<'[2]TABLE DATA'!$D$7,$I6='[2]TABLE DATA'!$D$7),$J6>$N6),"SIGN TOO WIDE",IF(AND(AND($I6>'[2]TABLE DATA'!$D$7,OR($I6<'[2]TABLE DATA'!$D$8,$I6='[2]TABLE DATA'!$D$8)),'[2]Input-Output Data'!$J6<'[2]Input-Output Data'!$K6),'[2]TABLE DATA'!K$8,IF(AND(AND($I6>'[2]TABLE DATA'!$D$7,OR($I6<'[2]TABLE DATA'!$D$8,$I6='[2]TABLE DATA'!$D$8)),AND('[2]Input-Output Data'!$J6>'[2]Input-Output Data'!$M6,OR('[2]Input-Output Data'!$J6<'[2]Input-Output Data'!$N6,'[2]Input-Output Data'!$J6='[2]Input-Output Data'!$N6))),'[2]TABLE DATA'!K$9,IF(AND(AND($I6>'[2]TABLE DATA'!$D$7,OR($I6<'[2]TABLE DATA'!$D$8,$I6='[2]TABLE DATA'!$D$8)),$J6>'[2]Input-Output Data'!$N6),"SIGN TOO WIDE",IF(AND(AND($I6>'[2]TABLE DATA'!$D$8,OR($I6<'[2]TABLE DATA'!$D$9,$I6='[2]TABLE DATA'!$D$9)),'[2]Input-Output Data'!$J6<'[2]Input-Output Data'!$K6),'[2]TABLE DATA'!K$9,"SIGN TOO WIDE")))))))))) -> 60 | U6: =IF(I6="Arm Too Long", "Reduce V or W",IF($I6>'[2]TABLE DATA'!$D$9,"SIGN TOO LARGE",IF(AND(OR($I6<'[2]TABLE DATA'!$D$7,$I6='[2]TABLE DATA'!$D$7),OR('[2]Input-Output Data'!$J6<'[2]Input-Output Data'!$K6,'[2]Input-Output Data'!$J6='[2]Input-Output Data'!$K6)),'[2]TABLE DATA'!L$7,IF(AND(OR($I6<'[2]TABLE DATA'!$D$7,$I6='[2]TABLE DATA'!$D$7),AND($J6>$L6),OR('[2]Input-Output Data'!$J6<'[2]Input-Output Data'!$M6,'[2]Input-Output Data'!$J6='[2]Input-Output Data'!$M6)),'[2]TABLE DATA'!L$8,IF(AND(OR($I6<'[2]TABLE DATA'!$D$7,$I6='[2]TABLE DATA'!$D$7),AND($J6>$M6),OR('[2]Input-Output Data'!$J6<'[2]Input-Output Data'!$N6,'[2]Input-Output Data'!$J6='[2]Input-Output Data'!$N6)),'[2]TABLE DATA'!L$9,IF(AND(OR($I6<'[2]TABLE DATA'!$D$7,$I6='[2]TABLE DATA'!$D$7),$J6>$N6),"SIGN TOO WIDE",IF(AND(AND($I6>'[2]TABLE DATA'!$D$7,OR($I6<'[2]TABLE DATA'!$D$8,$I6='[2]TABLE DATA'!$D$8)),'[2]Input-Output Data'!$J6<'[2]Input-Output Data'!$K6),'[2]TABLE DATA'!L$8,IF(AND(AND($I6>'[2]TABLE DATA'!$D$7,OR($I6<'[2]TABLE DATA'!$D$8,$I6='[2]TABLE DATA'!$D$8)),AND('[2]Input-Output Data'!$J6>'[2]Input-Output Data'!$M6,OR('[2]Input-Output Data'!$J6<'[2]Input-Output Data'!$N6,'[2]Input-Output Data'!$J6='[2]Input-Output Data'!$N6))),'[2]TABLE DATA'!L$9,IF(AND(AND($I6>'[2]TABLE DATA'!$D$7,OR($I6<'[2]TABLE DATA'!$D$8,$I6='[2]TABLE DATA'!$D$8)),$J6>'[2]Input-Output Data'!$N6),"SIGN TOO WIDE",IF(AND(AND($I6>'[2]TABLE DATA'!$D$8,OR($I6<'[2]TABLE DATA'!$D$9,$I6='[2]TABLE DATA'!$D$9)),'[2]Input-Output Data'!$J6<'[2]Input-Output Data'!$K6),'[2]TABLE DATA'!L$9,"SIGN TOO WIDE")))))))))) -> 7.4 | V6: =IF(I6="Arm Too Long", "Reduce V or W",IF($I6>'[2]TABLE DATA'!$D$9,"SIGN TOO LARGE",IF(AND(OR($I6<'[2]TABLE DATA'!$D$7,$I6='[2]TABLE DATA'!$D$7),OR('[2]Input-Output Data'!$J6<'[2]Input-Output Data'!$K6,'[2]Input-Output Data'!$J6='[2]Input-Output Data'!$K6)),'[2]TABLE DATA'!M$7,IF(AND(OR($I6<'[2]TABLE DATA'!$D$7,$I6='[2]TABLE DATA'!$D$7),AND($J6>$L6),OR('[2]Input-Output Data'!$J6<'[2]Input-Output Data'!$M6,'[2]Input-Output Data'!$J6='[2]Input-Output Data'!$M6)),'[2]TABLE DATA'!M$8,IF(AND(OR($I6<'[2]TABLE DATA'!$D$7,$I6='[2]TABLE DATA'!$D$7),AND($J6>$M6),OR('[2]Input-Output Data'!$J6<'[2]Input-Output Data'!$N6,'[2]Input-Output Data'!$J6='[2]Input-Output Data'!$N6)),'[2]TABLE DATA'!M$9,IF(AND(OR($I6<'[2]TABLE DATA'!$D$7,$I6='[2]TABLE DATA'!$D$7),$J6>$N6),"SIGN TOO WIDE",IF(AND(AND($I6>'[2]TABLE DATA'!$D$7,OR($I6<'[2]TABLE DATA'!$D$8,$I6='[2]TABLE DATA'!$D$8)),'[2]Input-Output Data'!$J6<'[2]Input-Output Data'!$K6),'[2]TABLE DATA'!M$8,IF(AND(AND($I6>'[2]TABLE DATA'!$D$7,OR($I6<'[2]TABLE DATA'!$D$8,$I6='[2]TABLE DATA'!$D$8)),AND('[2]Input-Output Data'!$J6>'[2]Input-Output Data'!$M6,OR('[2]Input-Output Data'!$J6<'[2]Input-Output Data'!$N6,'[2]Input-Output Data'!$J6='[2]Input-Output Data'!$N6))),'[2]TABLE DATA'!M$9,IF(AND(AND($I6>'[2]TABLE DATA'!$D$7,OR($I6<'[2]TABLE DATA'!$D$8,$I6='[2]TABLE DATA'!$D$8)),$J6>'[2]Input-Output Data'!$N6),"SIGN TOO WIDE",IF(AND(AND($I6>'[2]TABLE DATA'!$D$8,OR($I6<'[2]TABLE DATA'!$D$9,$I6='[2]TABLE DATA'!$D$9)),'[2]Input-Output Data'!$J6<'[2]Input-Output Data'!$K6),'[2]TABLE DATA'!M$9,"SIGN TOO WIDE")))))))))) -> 0.5 | W6: =IF(I6="Arm Too Long", "Reduce V or W",IF($I6>'[2]TABLE DATA'!$D$9,"SIGN TOO LARGE",IF(AND(OR($I6<'[2]TABLE DATA'!$D$7,$I6='[2]TABLE DATA'!$D$7),OR('[2]Input-Output Data'!$J6<'[2]Input-Output Data'!$K6,'[2]Input-Output Data'!$J6='[2]Input-Output Data'!$K6)),'[2]TABLE DATA'!N$7,IF(AND(OR($I6<'[2]TABLE DATA'!$D$7,$I6='[2]TABLE DATA'!$D$7),AND($J6>$L6),OR('[2]Input-Output Data'!$J6<'[2]Input-Output Data'!$M6,'[2]Input-Output Data'!$J6='[2]Input-Output Data'!$M6)),'[2]TABLE DATA'!N$8,IF(AND(OR($I6<'[2]TABLE DATA'!$D$7,$I6='[2]TABLE DATA'!$D$7),AND($J6>$M6),OR('[2]Input-Output Data'!$J6<'[2]Input-Output Data'!$N6,'[2]Input-Output Data'!$J6='[2]Input-Output Data'!$N6)),'[2]TABLE DATA'!N$9,IF(AND(OR($I6<'[2]TABLE DATA'!$D$7,$I6='[2]TABLE DATA'!$D$7),$J6>$N6),"SIGN TOO WIDE",IF(AND(AND($I6>'[2]TABLE DATA'!$D$7,OR($I6<'[2]TABLE DATA'!$D$8,$I6='[2]TABLE DATA'!$D$8)),'[2]Input-Output Data'!$J6<'[2]Input-Output Data'!$K6),'[2]TABLE DATA'!N$8,IF(AND(AND($I6>'[2]TABLE DATA'!$D$7,OR($I6<'[2]TABLE DATA'!$D$8,$I6='[2]TABLE DATA'!$D$8)),AND('[2]Input-Output Data'!$J6>'[2]Input-Output Data'!$M6,OR('[2]Input-Output Data'!$J6<'[2]Input-Output Data'!$N6,'[2]Input-Output Data'!$J6='[2]Input-Output Data'!$N6))),'[2]TABLE DATA'!N$9,IF(AND(AND($I6>'[2]TABLE DATA'!$D$7,OR($I6<'[2]TABLE DATA'!$D$8,$I6='[2]TABLE DATA'!$D$8)),$J6>'[2]Input-Output Data'!$N6),"SIGN TOO WIDE",IF(AND(AND($I6>'[2]TABLE DATA'!$D$8,OR($I6<'[2]TABLE DATA'!$D$9,$I6='[2]TABLE DATA'!$D$9)),'[2]Input-Output Data'!$J6<'[2]Input-Output Data'!$K6),'[2]TABLE DATA'!N$9,"SIGN TOO WIDE")))))))))) -> 0.5 | X6: =IF(I6="Arm Too Long", "Reduce V or W",IF($I6>'[2]TABLE DATA'!$D$9,"SIGN TOO LARGE",IF(AND(OR($I6<'[2]TABLE DATA'!$D$7,$I6='[2]TABLE DATA'!$D$7),OR('[2]Input-Output Data'!$J6<'[2]Input-Output Data'!$K6,'[2]Input-Output Data'!$J6='[2]Input-Output Data'!$K6)),'[2]TABLE DATA'!O$7,IF(AND(OR($I6<'[2]TABLE DATA'!$D$7,$I6='[2]TABLE DATA'!$D$7),AND($J6>$L6),OR('[2]Input-Output Data'!$J6<'[2]Input-Output Data'!$M6,'[2]Input-Output Data'!$J6='[2]Input-Output Data'!$M6)),'[2]TABLE DATA'!O$8,IF(AND(OR($I6<'[2]TABLE DATA'!$D$7,$I6='[2]TABLE DATA'!$D$7),AND($J6>$M6),OR('[2]Input-Output Data'!$J6<'[2]Input-Output Data'!$N6,'[2]Input-Output Data'!$J6='[2]Input-Output Data'!$N6)),'[2]TABLE DATA'!O$9,IF(AND(OR($I6<'[2]TABLE DATA'!$D$7,$I6='[2]TABLE DATA'!$D$7),$J6>$N6),"SIGN TOO WIDE",IF(AND(AND($I6>'[2]TABLE DATA'!$D$7,OR($I6<'[2]TABLE DATA'!$D$8,$I6='[2]TABLE DATA'!$D$8)),'[2]Input-Output Data'!$J6<'[2]Input-Output Data'!$K6),'[2]TABLE DATA'!O$8,IF(AND(AND($I6>'[2]TABLE DATA'!$D$7,OR($I6<'[2]TABLE DATA'!$D$8,$I6='[2]TABLE DATA'!$D$8)),AND('[2]Input-Output Data'!$J6>'[2]Input-Output Data'!$M6,OR('[2]Input-Output Data'!$J6<'[2]Input-Output Data'!$N6,'[2]Input-Output Data'!$J6='[2]Input-Output Data'!$N6))),'[2]TABLE DATA'!O$9,IF(AND(AND($I6>'[2]TABLE DATA'!$D$7,OR($I6<'[2]TABLE DATA'!$D$8,$I6='[2]TABLE DATA'!$D$8)),$J6>'[2]Input-Output Data'!$N6),"SIGN TOO WIDE",IF(AND(AND($I6>'[2]TABLE DATA'!$D$8,OR($I6<'[2]TABLE DATA'!$D$9,$I6='[2]TABLE DATA'!$D$9)),'[2]Input-Output Data'!$J6<'[2]Input-Output Data'!$K6),'[2]TABLE DATA'!O$9,"SIGN TOO WIDE")))))))))) -> 0.5 | Y6: =IF(V6=0.5,"I",IF(V6=0.625,"II",IF(V6=0.75,"III","N/A"))) -> I
D7: 102 | E7: 54 | F7: Square | G7: III | H7: 33 | I7: 38.25 | J7: 53 | K7: =IF(OR(I7<'[2]TABLE DATA'!$D$7,I7='[2]TABLE DATA'!$D$7),717.75/I7,IF(AND('[2]TABLE DATA'!$D$7<I7,OR(I7<'[2]TABLE DATA'!$D$8,I7='[2]TABLE DATA'!$D$8)),1695/I7,IF(AND('[2]TABLE DATA'!$D$8<I7,OR(I7<'[2]TABLE DATA'!$D$9,I7='[2]TABLE DATA'!$D$9)),2268/I7,IF(I7="Arm Too Long", "Reduce V or W","Sign Too Wide")))) -> 44.31 | L7: =717.75/'[2]Input-Output Data'!I7 -> 18.76 | M7: 44.31 | N7: 59.29 | O7: =IF(I7="Arm Too Long", "Reduce V or W",IF($I7>'[2]TABLE DATA'!$D$9,"SIGN TOO LARGE",IF(AND(OR($I7<'[2]TABLE DATA'!$D$7,$I7='[2]TABLE DATA'!$D$7),OR('[2]Input-Output Data'!$J7<'[2]Input-Output Data'!$K7,'[2]Input-Output Data'!$J7='[2]Input-Output Data'!$K7)),'[2]TABLE DATA'!F$7,IF(AND(OR($I7<'[2]TABLE DATA'!$D$7,$I7='[2]TABLE DATA'!$D$7),AND($J7>$L7),OR('[2]Input-Output Data'!$J7<'[2]Input-Output Data'!$M7,'[2]Input-Output Data'!$J7='[2]Input-Output Data'!$M7)),'[2]TABLE DATA'!F$8,IF(AND(OR($I7<'[2]TABLE DATA'!$D$7,$I7='[2]TABLE DATA'!$D$7),AND($J7>$M7),OR('[2]Input-Output Data'!$J7<'[2]Input-Output Data'!$N7,'[2]Input-Output Data'!$J7='[2]Input-Output Data'!$N7)),'[2]TABLE DATA'!F$9,IF(AND(OR($I7<'[2]TABLE DATA'!$D$7,$I7='[2]TABLE DATA'!$D$7),$J7>$N7),"SIGN TOO WIDE",IF(AND(AND($I7>'[2]TABLE DATA'!$D$7,OR($I7<'[2]TABLE DATA'!$D$8,$I7='[2]TABLE DATA'!$D$8)),'[2]Input-Output Data'!$J7<'[2]Input-Output Data'!$K7),'[2]TABLE DATA'!F$8,IF(AND(AND($I7>'[2]TABLE DATA'!$D$7,OR($I7<'[2]TABLE DATA'!$D$8,$I7='[2]TABLE DATA'!$D$8)),AND('[2]Input-Output Data'!$J7>'[2]Input-Output Data'!$M7,OR('[2]Input-Output Data'!$J7<'[2]Input-Output Data'!$N7,'[2]Input-Output Data'!$J7='[2]Input-Output Data'!$N7))),'[2]TABLE DATA'!F$9,IF(AND(AND($I7>'[2]TABLE DATA'!$D$7,OR($I7<'[2]TABLE DATA'!$D$8,$I7='[2]TABLE DATA'!$D$8)),$J7>'[2]Input-Output Data'!$N7),"SIGN TOO WIDE",IF(AND(AND($I7>'[2]TABLE DATA'!$D$8,OR($I7<'[2]TABLE DATA'!$D$9,$I7='[2]TABLE DATA'!$D$9)),'[2]Input-Output Data'!$J7<'[2]Input-Output Data'!$K7),'[2]TABLE DATA'!F$9,"SIGN TOO WIDE")))))))))) -> 5 | P7: =IF(I7="Arm Too Long", "Reduce V or W",IF($I7>'[2]TABLE DATA'!$D$9,"SIGN TOO LARGE",IF(AND(OR($I7<'[2]TABLE DATA'!$D$7,$I7='[2]TABLE DATA'!$D$7),OR('[2]Input-Output Data'!$J7<'[2]Input-Output Data'!$K7,'[2]Input-Output Data'!$J7='[2]Input-Output Data'!$K7)),'[2]TABLE DATA'!G$7,IF(AND(OR($I7<'[2]TABLE DATA'!$D$7,$I7='[2]TABLE DATA'!$D$7),AND($J7>$L7),OR('[2]Input-Output Data'!$J7<'[2]Input-Output Data'!$M7,'[2]Input-Output Data'!$J7='[2]Input-Output Data'!$M7)),'[2]TABLE DATA'!G$8,IF(AND(OR($I7<'[2]TABLE DATA'!$D$7,$I7='[2]TABLE DATA'!$D$7),AND($J7>$M7),OR('[2]Input-Output Data'!$J7<'[2]Input-Output Data'!$N7,'[2]Input-Output Data'!$J7='[2]Input-Output Data'!$N7)),'[2]TABLE DATA'!G$9,IF(AND(OR($I7<'[2]TABLE DATA'!$D$7,$I7='[2]TABLE DATA'!$D$7),$J7>$N7),"SIGN TOO WIDE",IF(AND(AND($I7>'[2]TABLE DATA'!$D$7,OR($I7<'[2]TABLE DATA'!$D$8,$I7='[2]TABLE DATA'!$D$8)),'[2]Input-Output Data'!$J7<'[2]Input-Output Data'!$K7),'[2]TABLE DATA'!G$8,IF(AND(AND($I7>'[2]TABLE DATA'!$D$7,OR($I7<'[2]TABLE DATA'!$D$8,$I7='[2]TABLE DATA'!$D$8)),AND('[2]Input-Output Data'!$J7>'[2]Input-Output Data'!$M7,OR('[2]Input-Output Data'!$J7<'[2]Input-Output Data'!$N7,'[2]Input-Output Data'!$J7='[2]Input-Output Data'!$N7))),'[2]TABLE DATA'!G$9,IF(AND(AND($I7>'[2]TABLE DATA'!$D$7,OR($I7<'[2]TABLE DATA'!$D$8,$I7='[2]TABLE DATA'!$D$8)),$J7>'[2]Input-Output Data'!$N7),"SIGN TOO WIDE",IF(AND(AND($I7>'[2]TABLE DATA'!$D$8,OR($I7<'[2]TABLE DATA'!$D$9,$I7='[2]TABLE DATA'!$D$9)),'[2]Input-Output Data'!$J7<'[2]Input-Output Data'!$K7),'[2]TABLE DATA'!G$9,"SIGN TOO WIDE")))))))))) -> 3 | Q7: =IF(I7="Arm Too Long", "Reduce V or W",IF($I7>'[2]TABLE DATA'!$D$9,"SIGN TOO LARGE",IF(AND(OR($I7<'[2]TABLE DATA'!$D$7,$I7='[2]TABLE DATA'!$D$7),OR('[2]Input-Output Data'!$J7<'[2]Input-Output Data'!$K7,'[2]Input-Output Data'!$J7='[2]Input-Output Data'!$K7)),'[2]TABLE DATA'!H$7,IF(AND(OR($I7<'[2]TABLE DATA'!$D$7,$I7='[2]TABLE DATA'!$D$7),AND($J7>$L7),OR('[2]Input-Output Data'!$J7<'[2]Input-Output Data'!$M7,'[2]Input-Output Data'!$J7='[2]Input-Output Data'!$M7)),'[2]TABLE DATA'!H$8,IF(AND(OR($I7<'[2]TABLE DATA'!$D$7,$I7='[2]TABLE DATA'!$D$7),AND($J7>$M7),OR('[2]Input-Output Data'!$J7<'[2]Input-Output Data'!$N7,'[2]Input-Output Data'!$J7='[2]Input-Output Data'!$N7)),'[2]TABLE DATA'!H$9,IF(AND(OR($I7<'[2]TABLE DATA'!$D$7,$I7='[2]TABLE DATA'!$D$7),$J7>$N7),"SIGN TOO WIDE",IF(AND(AND($I7>'[2]TABLE DATA'!$D$7,OR($I7<'[2]TABLE DATA'!$D$8,$I7='[2]TABLE DATA'!$D$8)),'[2]Input-Output Data'!$J7<'[2]Input-Output Data'!$K7),'[2]TABLE DATA'!H$8,IF(AND(AND($I7>'[2]TABLE DATA'!$D$7,OR($I7<'[2]TABLE DATA'!$D$8,$I7='[2]TABLE DATA'!$D$8)),AND('[2]Input-Output Data'!$J7>'[2]Input-Output Data'!$M7,OR('[2]Input-Output Data'!$J7<'[2]Input-Output Data'!$N7,'[2]Input-Output Data'!$J7='[2]Input-Output Data'!$N7))),'[2]TABLE DATA'!H$9,IF(AND(AND($I7>'[2]TABLE DATA'!$D$7,OR($I7<'[2]TABLE DATA'!$D$8,$I7='[2]TABLE DATA'!$D$8)),$J7>'[2]Input-Output Data'!$N7),"SIGN TOO WIDE",IF(AND(AND($I7>'[2]TABLE DATA'!$D$8,OR($I7<'[2]TABLE DATA'!$D$9,$I7='[2]TABLE DATA'!$D$9)),'[2]Input-Output Data'!$J7<'[2]Input-Output Data'!$K7),'[2]TABLE DATA'!H$9,"SIGN TOO WIDE")))))))))) -> 0.875 | R7: =IF(I7="Arm Too Long", "Reduce V or W",IF($I7>'[2]TABLE DATA'!$D$9,"SIGN TOO LARGE",IF(AND(OR($I7<'[2]TABLE DATA'!$D$7,$I7='[2]TABLE DATA'!$D$7),OR('[2]Input-Output Data'!$J7<'[2]Input-Output Data'!$K7,'[2]Input-Output Data'!$J7='[2]Input-Output Data'!$K7)),'[2]TABLE DATA'!I$7,IF(AND(OR($I7<'[2]TABLE DATA'!$D$7,$I7='[2]TABLE DATA'!$D$7),AND($J7>$L7),OR('[2]Input-Output Data'!$J7<'[2]Input-Output Data'!$M7,'[2]Input-Output Data'!$J7='[2]Input-Output Data'!$M7)),'[2]TABLE DATA'!I$8,IF(AND(OR($I7<'[2]TABLE DATA'!$D$7,$I7='[2]TABLE DATA'!$D$7),AND($J7>$M7),OR('[2]Input-Output Data'!$J7<'[2]Input-Output Data'!$N7,'[2]Input-Output Data'!$J7='[2]Input-Output Data'!$N7)),'[2]TABLE DATA'!I$9,IF(AND(OR($I7<'[2]TABLE DATA'!$D$7,$I7='[2]TABLE DATA'!$D$7),$J7>$N7),"SIGN TOO WIDE",IF(AND(AND($I7>'[2]TABLE DATA'!$D$7,OR($I7<'[2]TABLE DATA'!$D$8,$I7='[2]TABLE DATA'!$D$8)),'[2]Input-Output Data'!$J7<'[2]Input-Output Data'!$K7),'[2]TABLE DATA'!I$8,IF(AND(AND($I7>'[2]TABLE DATA'!$D$7,OR($I7<'[2]TABLE DATA'!$D$8,$I7='[2]TABLE DATA'!$D$8)),AND('[2]Input-Output Data'!$J7>'[2]Input-Output Data'!$M7,OR('[2]Input-Output Data'!$J7<'[2]Input-Output Data'!$N7,'[2]Input-Output Data'!$J7='[2]Input-Output Data'!$N7))),'[2]TABLE DATA'!I$9,IF(AND(AND($I7>'[2]TABLE DATA'!$D$7,OR($I7<'[2]TABLE DATA'!$D$8,$I7='[2]TABLE DATA'!$D$8)),$J7>'[2]Input-Output Data'!$N7),"SIGN TOO WIDE",IF(AND(AND($I7>'[2]TABLE DATA'!$D$8,OR($I7<'[2]TABLE DATA'!$D$9,$I7='[2]TABLE DATA'!$D$9)),'[2]Input-Output Data'!$J7<'[2]Input-Output Data'!$K7),'[2]TABLE DATA'!I$9,"SIGN TOO WIDE")))))))))) -> 8 | S7: =IF(I7="Arm Too Long", "Reduce V or W",IF($I7>'[2]TABLE DATA'!$D$9,"SIGN TOO LARGE",IF(AND(OR($I7<'[2]TABLE DATA'!$D$7,$I7='[2]TABLE DATA'!$D$7),OR('[2]Input-Output Data'!$J7<'[2]Input-Output Data'!$K7,'[2]Input-Output Data'!$J7='[2]Input-Output Data'!$K7)),'[2]TABLE DATA'!J$7,IF(AND(OR($I7<'[2]TABLE DATA'!$D$7,$I7='[2]TABLE DATA'!$D$7),AND($J7>$L7),OR('[2]Input-Output Data'!$J7<'[2]Input-Output Data'!$M7,'[2]Input-Output Data'!$J7='[2]Input-Output Data'!$M7)),'[2]TABLE DATA'!J$8,IF(AND(OR($I7<'[2]TABLE DATA'!$D$7,$I7='[2]TABLE DATA'!$D$7),AND($J7>$M7),OR('[2]Input-Output Data'!$J7<'[2]Input-Output Data'!$N7,'[2]Input-Output Data'!$J7='[2]Input-Output Data'!$N7)),'[2]TABLE DATA'!J$9,IF(AND(OR($I7<'[2]TABLE DATA'!$D$7,$I7='[2]TABLE DATA'!$D$7),$J7>$N7),"SIGN TOO WIDE",IF(AND(AND($I7>'[2]TABLE DATA'!$D$7,OR($I7<'[2]TABLE DATA'!$D$8,$I7='[2]TABLE DATA'!$D$8)),'[2]Input-Output Data'!$J7<'[2]Input-Output Data'!$K7),'[2]TABLE DATA'!J$8,IF(AND(AND($I7>'[2]TABLE DATA'!$D$7,OR($I7<'[2]TABLE DATA'!$D$8,$I7='[2]TABLE DATA'!$D$8)),AND('[2]Input-Output Data'!$J7>'[2]Input-Output Data'!$M7,OR('[2]Input-Output Data'!$J7<'[2]Input-Output Data'!$N7,'[2]Input-Output Data'!$J7='[2]Input-Output Data'!$N7))),'[2]TABLE DATA'!J$9,IF(AND(AND($I7>'[2]TABLE DATA'!$D$7,OR($I7<'[2]TABLE DATA'!$D$8,$I7='[2]TABLE DATA'!$D$8)),$J7>'[2]Input-Output Data'!$N7),"SIGN TOO WIDE",IF(AND(AND($I7>'[2]TABLE DATA'!$D$8,OR($I7<'[2]TABLE DATA'!$D$9,$I7='[2]TABLE DATA'!$D$9)),'[2]Input-Output Data'!$J7<'[2]Input-Output Data'!$K7),'[2]TABLE DATA'!J$9,"SIGN TOO WIDE")))))))))) -> 3 | T7: =IF(I7="Arm Too Long", "Reduce V or W",IF($I7>'[2]TABLE DATA'!$D$9,"SIGN TOO LARGE",IF(AND(OR($I7<'[2]TABLE DATA'!$D$7,$I7='[2]TABLE DATA'!$D$7),OR('[2]Input-Output Data'!$J7<'[2]Input-Output Data'!$K7,'[2]Input-Output Data'!$J7='[2]Input-Output Data'!$K7)),'[2]TABLE DATA'!K$7,IF(AND(OR($I7<'[2]TABLE DATA'!$D$7,$I7='[2]TABLE DATA'!$D$7),AND($J7>$L7),OR('[2]Input-Output Data'!$J7<'[2]Input-Output Data'!$M7,'[2]Input-Output Data'!$J7='[2]Input-Output Data'!$M7)),'[2]TABLE DATA'!K$8,IF(AND(OR($I7<'[2]TABLE DATA'!$D$7,$I7='[2]TABLE DATA'!$D$7),AND($J7>$M7),OR('[2]Input-Output Data'!$J7<'[2]Input-Output Data'!$N7,'[2]Input-Output Data'!$J7='[2]Input-Output Data'!$N7)),'[2]TABLE DATA'!K$9,IF(AND(OR($I7<'[2]TABLE DATA'!$D$7,$I7='[2]TABLE DATA'!$D$7),$J7>$N7),"SIGN TOO WIDE",IF(AND(AND($I7>'[2]TABLE DATA'!$D$7,OR($I7<'[2]TABLE DATA'!$D$8,$I7='[2]TABLE DATA'!$D$8)),'[2]Input-Output Data'!$J7<'[2]Input-Output Data'!$K7),'[2]TABLE DATA'!K$8,IF(AND(AND($I7>'[2]TABLE DATA'!$D$7,OR($I7<'[2]TABLE DATA'!$D$8,$I7='[2]TABLE DATA'!$D$8)),AND('[2]Input-Output Data'!$J7>'[2]Input-Output Data'!$M7,OR('[2]Input-Output Data'!$J7<'[2]Input-Output Data'!$N7,'[2]Input-Output Data'!$J7='[2]Input-Output Data'!$N7))),'[2]TABLE DATA'!K$9,IF(AND(AND($I7>'[2]TABLE DATA'!$D$7,OR($I7<'[2]TABLE DATA'!$D$8,$I7='[2]TABLE DATA'!$D$8)),$J7>'[2]Input-Output Data'!$N7),"SIGN TOO WIDE",IF(AND(AND($I7>'[2]TABLE DATA'!$D$8,OR($I7<'[2]TABLE DATA'!$D$9,$I7='[2]TABLE DATA'!$D$9)),'[2]Input-Output Data'!$J7<'[2]Input-Output Data'!$K7),'[2]TABLE DATA'!K$9,"SIGN TOO WIDE")))))))))) -> 80 | U7: =IF(I7="Arm Too Long", "Reduce V or W",IF($I7>'[2]TABLE DATA'!$D$9,"SIGN TOO LARGE",IF(AND(OR($I7<'[2]TABLE DATA'!$D$7,$I7='[2]TABLE DATA'!$D$7),OR('[2]Input-Output Data'!$J7<'[2]Input-Output Data'!$K7,'[2]Input-Output Data'!$J7='[2]Input-Output Data'!$K7)),'[2]TABLE DATA'!L$7,IF(AND(OR($I7<'[2]TABLE DATA'!$D$7,$I7='[2]TABLE DATA'!$D$7),AND($J7>$L7),OR('[2]Input-Output Data'!$J7<'[2]Input-Output Data'!$M7,'[2]Input-Output Data'!$J7='[2]Input-Output Data'!$M7)),'[2]TABLE DATA'!L$8,IF(AND(OR($I7<'[2]TABLE DATA'!$D$7,$I7='[2]TABLE DATA'!$D$7),AND($J7>$M7),OR('[2]Input-Output Data'!$J7<'[2]Input-Output Data'!$N7,'[2]Input-Output Data'!$J7='[2]Input-Output Data'!$N7)),'[2]TABLE DATA'!L$9,IF(AND(OR($I7<'[2]TABLE DATA'!$D$7,$I7='[2]TABLE DATA'!$D$7),$J7>$N7),"SIGN TOO WIDE",IF(AND(AND($I7>'[2]TABLE DATA'!$D$7,OR($I7<'[2]TABLE DATA'!$D$8,$I7='[2]TABLE DATA'!$D$8)),'[2]Input-Output Data'!$J7<'[2]Input-Output Data'!$K7),'[2]TABLE DATA'!L$8,IF(AND(AND($I7>'[2]TABLE DATA'!$D$7,OR($I7<'[2]TABLE DATA'!$D$8,$I7='[2]TABLE DATA'!$D$8)),AND('[2]Input-Output Data'!$J7>'[2]Input-Output Data'!$M7,OR('[2]Input-Output Data'!$J7<'[2]Input-Output Data'!$N7,'[2]Input-Output Data'!$J7='[2]Input-Output Data'!$N7))),'[2]TABLE DATA'!L$9,IF(AND(AND($I7>'[2]TABLE DATA'!$D$7,OR($I7<'[2]TABLE DATA'!$D$8,$I7='[2]TABLE DATA'!$D$8)),$J7>'[2]Input-Output Data'!$N7),"SIGN TOO WIDE",IF(AND(AND($I7>'[2]TABLE DATA'!$D$8,OR($I7<'[2]TABLE DATA'!$D$9,$I7='[2]TABLE DATA'!$D$9)),'[2]Input-Output Data'!$J7<'[2]Input-Output Data'!$K7),'[2]TABLE DATA'!L$9,"SIGN TOO WIDE")))))))))) -> 14.5 | V7: =IF(I7="Arm Too Long", "Reduce V or W",IF($I7>'[2]TABLE DATA'!$D$9,"SIGN TOO LARGE",IF(AND(OR($I7<'[2]TABLE DATA'!$D$7,$I7='[2]TABLE DATA'!$D$7),OR('[2]Input-Output Data'!$J7<'[2]Input-Output Data'!$K7,'[2]Input-Output Data'!$J7='[2]Input-Output Data'!$K7)),'[2]TABLE DATA'!M$7,IF(AND(OR($I7<'[2]TABLE DATA'!$D$7,$I7='[2]TABLE DATA'!$D$7),AND($J7>$L7),OR('[2]Input-Output Data'!$J7<'[2]Input-Output Data'!$M7,'[2]Input-Output Data'!$J7='[2]Input-Output Data'!$M7)),'[2]TABLE DATA'!M$8,IF(AND(OR($I7<'[2]TABLE DATA'!$D$7,$I7='[2]TABLE DATA'!$D$7),AND($J7>$M7),OR('[2]Input-Output Data'!$J7<'[2]Input-Output Data'!$N7,'[2]Input-Output Data'!$J7='[2]Input-Output Data'!$N7)),'[2]TABLE DATA'!M$9,IF(AND(OR($I7<'[2]TABLE DATA'!$D$7,$I7='[2]TABLE DATA'!$D$7),$J7>$N7),"SIGN TOO WIDE",IF(AND(AND($I7>'[2]TABLE DATA'!$D$7,OR($I7<'[2]TABLE DATA'!$D$8,$I7='[2]TABLE DATA'!$D$8)),'[2]Input-Output Data'!$J7<'[2]Input-Output Data'!$K7),'[2]TABLE DATA'!M$8,IF(AND(AND($I7>'[2]TABLE DATA'!$D$7,OR($I7<'[2]TABLE DATA'!$D$8,$I7='[2]TABLE DATA'!$D$8)),AND('[2]Input-Output Data'!$J7>'[2]Input-Output Data'!$M7,OR('[2]Input-Output Data'!$J7<'[2]Input-Output Data'!$N7,'[2]Input-Output Data'!$J7='[2]Input-Output Data'!$N7))),'[2]TABLE DATA'!M$9,IF(AND(AND($I7>'[2]TABLE DATA'!$D$7,OR($I7<'[2]TABLE DATA'!$D$8,$I7='[2]TABLE DATA'!$D$8)),$J7>'[2]Input-Output Data'!$N7),"SIGN TOO WIDE",IF(AND(AND($I7>'[2]TABLE DATA'!$D$8,OR($I7<'[2]TABLE DATA'!$D$9,$I7='[2]TABLE DATA'!$D$9)),'[2]Input-Output Data'!$J7<'[2]Input-Output Data'!$K7),'[2]TABLE DATA'!M$9,"SIGN TOO WIDE")))))))))) -> 0.75 | W7: =IF(I7="Arm Too Long", "Reduce V or W",IF($I7>'[2]TABLE DATA'!$D$9,"SIGN TOO LARGE",IF(AND(OR($I7<'[2]TABLE DATA'!$D$7,$I7='[2]TABLE DATA'!$D$7),OR('[2]Input-Output Data'!$J7<'[2]Input-Output Data'!$K7,'[2]Input-Output Data'!$J7='[2]Input-Output Data'!$K7)),'[2]TABLE DATA'!N$7,IF(AND(OR($I7<'[2]TABLE DATA'!$D$7,$I7='[2]TABLE DATA'!$D$7),AND($J7>$L7),OR('[2]Input-Output Data'!$J7<'[2]Input-Output Data'!$M7,'[2]Input-Output Data'!$J7='[2]Input-Output Data'!$M7)),'[2]TABLE DATA'!N$8,IF(AND(OR($I7<'[2]TABLE DATA'!$D$7,$I7='[2]TABLE DATA'!$D$7),AND($J7>$M7),OR('[2]Input-Output Data'!$J7<'[2]Input-Output Data'!$N7,'[2]Input-Output Data'!$J7='[2]Input-Output Data'!$N7)),'[2]TABLE DATA'!N$9,IF(AND(OR($I7<'[2]TABLE DATA'!$D$7,$I7='[2]TABLE DATA'!$D$7),$J7>$N7),"SIGN TOO WIDE",IF(AND(AND($I7>'[2]TABLE DATA'!$D$7,OR($I7<'[2]TABLE DATA'!$D$8,$I7='[2]TABLE DATA'!$D$8)),'[2]Input-Output Data'!$J7<'[2]Input-Output Data'!$K7),'[2]TABLE DATA'!N$8,IF(AND(AND($I7>'[2]TABLE DATA'!$D$7,OR($I7<'[2]TABLE DATA'!$D$8,$I7='[2]TABLE DATA'!$D$8)),AND('[2]Input-Output Data'!$J7>'[2]Input-Output Data'!$M7,OR('[2]Input-Output Data'!$J7<'[2]Input-Output Data'!$N7,'[2]Input-Output Data'!$J7='[2]Input-Output Data'!$N7))),'[2]TABLE DATA'!N$9,IF(AND(AND($I7>'[2]TABLE DATA'!$D$7,OR($I7<'[2]TABLE DATA'!$D$8,$I7='[2]TABLE DATA'!$D$8)),$J7>'[2]Input-Output Data'!$N7),"SIGN TOO WIDE",IF(AND(AND($I7>'[2]TABLE DATA'!$D$8,OR($I7<'[2]TABLE DATA'!$D$9,$I7='[2]TABLE DATA'!$D$9)),'[2]Input-Output Data'!$J7<'[2]Input-Output Data'!$K7),'[2]TABLE DATA'!N$9,"SIGN TOO WIDE")))))))))) -> 0.625 | X7: =IF(I7="Arm Too Long", "Reduce V or W",IF($I7>'[2]TABLE DATA'!$D$9,"SIGN TOO LARGE",IF(AND(OR($I7<'[2]TABLE DATA'!$D$7,$I7='[2]TABLE DATA'!$D$7),OR('[2]Input-Output Data'!$J7<'[2]Input-Output Data'!$K7,'[2]Input-Output Data'!$J7='[2]Input-Output Data'!$K7)),'[2]TABLE DATA'!O$7,IF(AND(OR($I7<'[2]TABLE DATA'!$D$7,$I7='[2]TABLE DATA'!$D$7),AND($J7>$L7),OR('[2]Input-Output Data'!$J7<'[2]Input-Output Data'!$M7,'[2]Input-Output Data'!$J7='[2]Input-Output Data'!$M7)),'[2]TABLE DATA'!O$8,IF(AND(OR($I7<'[2]TABLE DATA'!$D$7,$I7='[2]TABLE DATA'!$D$7),AND($J7>$M7),OR('[2]Input-Output Data'!$J7<'[2]Input-Output Data'!$N7,'[2]Input-Output Data'!$J7='[2]Input-Output Data'!$N7)),'[2]TABLE DATA'!O$9,IF(AND(OR($I7<'[2]TABLE DATA'!$D$7,$I7='[2]TABLE DATA'!$D$7),$J7>$N7),"SIGN TOO WIDE",IF(AND(AND($I7>'[2]TABLE DATA'!$D$7,OR($I7<'[2]TABLE DATA'!$D$8,$I7='[2]TABLE DATA'!$D$8)),'[2]Input-Output Data'!$J7<'[2]Input-Output Data'!$K7),'[2]TABLE DATA'!O$8,IF(AND(AND($I7>'[2]TABLE DATA'!$D$7,OR($I7<'[2]TABLE DATA'!$D$8,$I7='[2]TABLE DATA'!$D$8)),AND('[2]Input-Output Data'!$J7>'[2]Input-Output Data'!$M7,OR('[2]Input-Output Data'!$J7<'[2]Input-Output Data'!$N7,'[2]Input-Output Data'!$J7='[2]Input-Output Data'!$N7))),'[2]TABLE DATA'!O$9,IF(AND(AND($I7>'[2]TABLE DATA'!$D$7,OR($I7<'[2]TABLE DATA'!$D$8,$I7='[2]TABLE DATA'!$D$8)),$J7>'[2]Input-Output Data'!$N7),"SIGN TOO WIDE",IF(AND(AND($I7>'[2]TABLE DATA'!$D$8,OR($I7<'[2]TABLE DATA'!$D$9,$I7='[2]TABLE DATA'!$D$9)),'[2]Input-Output Data'!$J7<'[2]Input-Output Data'!$K7),'[2]TABLE DATA'!O$9,"SIGN TOO WIDE")))))))))) -> 0.625 | Y7: =IF(V7=0.5,"I",IF(V7=0.625,"II",IF(V7=0.75,"III","N/A"))) -> III
D8: 48 | E8: 60 | F8: Square | G8: I | H8: 36 | I8: 20 | J8: 26 | K8: =IF(OR(I8<'[2]TABLE DATA'!$D$7,I8='[2]TABLE DATA'!$D$7),717.75/I8,IF(AND('[2]TABLE DATA'!$D$7<I8,OR(I8<'[2]TABLE DATA'!$D$8,I8='[2]TABLE DATA'!$D$8)),1695/I8,IF(AND('[2]TABLE DATA'!$D$8<I8,OR(I8<'[2]TABLE DATA'!$D$9,I8='[2]TABLE DATA'!$D$9)),2268/I8,IF(I8="Arm Too Long", "Reduce V or W","Sign Too Wide")))) -> 35.89 | L8: =717.75/'[2]Input-Output Data'!I8 -> 35.89 | M8: 84.75 | N8: 113.4 | O8: =IF(I8="Arm Too Long", "Reduce V or W",IF($I8>'[2]TABLE DATA'!$D$9,"SIGN TOO LARGE",IF(AND(OR($I8<'[2]TABLE DATA'!$D$7,$I8='[2]TABLE DATA'!$D$7),OR('[2]Input-Output Data'!$J8<'[2]Input-Output Data'!$K8,'[2]Input-Output Data'!$J8='[2]Input-Output Data'!$K8)),'[2]TABLE DATA'!F$7,IF(AND(OR($I8<'[2]TABLE DATA'!$D$7,$I8='[2]TABLE DATA'!$D$7),AND($J8>$L8),OR('[2]Input-Output Data'!$J8<'[2]Input-Output Data'!$M8,'[2]Input-Output Data'!$J8='[2]Input-Output Data'!$M8)),'[2]TABLE DATA'!F$8,IF(AND(OR($I8<'[2]TABLE DATA'!$D$7,$I8='[2]TABLE DATA'!$D$7),AND($J8>$M8),OR('[2]Input-Output Data'!$J8<'[2]Input-Output Data'!$N8,'[2]Input-Output Data'!$J8='[2]Input-Output Data'!$N8)),'[2]TABLE DATA'!F$9,IF(AND(OR($I8<'[2]TABLE DATA'!$D$7,$I8='[2]TABLE DATA'!$D$7),$J8>$N8),"SIGN TOO WIDE",IF(AND(AND($I8>'[2]TABLE DATA'!$D$7,OR($I8<'[2]TABLE DATA'!$D$8,$I8='[2]TABLE DATA'!$D$8)),'[2]Input-Output Data'!$J8<'[2]Input-Output Data'!$K8),'[2]TABLE DATA'!F$8,IF(AND(AND($I8>'[2]TABLE DATA'!$D$7,OR($I8<'[2]TABLE DATA'!$D$8,$I8='[2]TABLE DATA'!$D$8)),AND('[2]Input-Output Data'!$J8>'[2]Input-Output Data'!$M8,OR('[2]Input-Output Data'!$J8<'[2]Input-Output Data'!$N8,'[2]Input-Output Data'!$J8='[2]Input-Output Data'!$N8))),'[2]TABLE DATA'!F$9,IF(AND(AND($I8>'[2]TABLE DATA'!$D$7,OR($I8<'[2]TABLE DATA'!$D$8,$I8='[2]TABLE DATA'!$D$8)),$J8>'[2]Input-Output Data'!$N8),"SIGN TOO WIDE",IF(AND(AND($I8>'[2]TABLE DATA'!$D$8,OR($I8<'[2]TABLE DATA'!$D$9,$I8='[2]TABLE DATA'!$D$9)),'[2]Input-Output Data'!$J8<'[2]Input-Output Data'!$K8),'[2]TABLE DATA'!F$9,"SIGN TOO WIDE")))))))))) -> 4 | P8: =IF(I8="Arm Too Long", "Reduce V or W",IF($I8>'[2]TABLE DATA'!$D$9,"SIGN TOO LARGE",IF(AND(OR($I8<'[2]TABLE DATA'!$D$7,$I8='[2]TABLE DATA'!$D$7),OR('[2]Input-Output Data'!$J8<'[2]Input-Output Data'!$K8,'[2]Input-Output Data'!$J8='[2]Input-Output Data'!$K8)),'[2]TABLE DATA'!G$7,IF(AND(OR($I8<'[2]TABLE DATA'!$D$7,$I8='[2]TABLE DATA'!$D$7),AND($J8>$L8),OR('[2]Input-Output Data'!$J8<'[2]Input-Output Data'!$M8,'[2]Input-Output Data'!$J8='[2]Input-Output Data'!$M8)),'[2]TABLE DATA'!G$8,IF(AND(OR($I8<'[2]TABLE DATA'!$D$7,$I8='[2]TABLE DATA'!$D$7),AND($J8>$M8),OR('[2]Input-Output Data'!$J8<'[2]Input-Output Data'!$N8,'[2]Input-Output Data'!$J8='[2]Input-Output Data'!$N8)),'[2]TABLE DATA'!G$9,IF(AND(OR($I8<'[2]TABLE DATA'!$D$7,$I8='[2]TABLE DATA'!$D$7),$J8>$N8),"SIGN TOO WIDE",IF(AND(AND($I8>'[2]TABLE DATA'!$D$7,OR($I8<'[2]TABLE DATA'!$D$8,$I8='[2]TABLE DATA'!$D$8)),'[2]Input-Output Data'!$J8<'[2]Input-Output Data'!$K8),'[2]TABLE DATA'!G$8,IF(AND(AND($I8>'[2]TABLE DATA'!$D$7,OR($I8<'[2]TABLE DATA'!$D$8,$I8='[2]TABLE DATA'!$D$8)),AND('[2]Input-Output Data'!$J8>'[2]Input-Output Data'!$M8,OR('[2]Input-Output Data'!$J8<'[2]Input-Output Data'!$N8,'[2]Input-Output Data'!$J8='[2]Input-Output Data'!$N8))),'[2]TABLE DATA'!G$9,IF(AND(AND($I8>'[2]TABLE DATA'!$D$7,OR($I8<'[2]TABLE DATA'!$D$8,$I8='[2]TABLE DATA'!$D$8)),$J8>'[2]Input-Output Data'!$N8),"SIGN TOO WIDE",IF(AND(AND($I8>'[2]TABLE DATA'!$D$8,OR($I8<'[2]TABLE DATA'!$D$9,$I8='[2]TABLE DATA'!$D$9)),'[2]Input-Output Data'!$J8<'[2]Input-Output Data'!$K8),'[2]TABLE DATA'!G$9,"SIGN TOO WIDE")))))))))) -> 2 | Q8: =IF(I8="Arm Too Long", "Reduce V or W",IF($I8>'[2]TABLE DATA'!$D$9,"SIGN TOO LARGE",IF(AND(OR($I8<'[2]TABLE DATA'!$D$7,$I8='[2]TABLE DATA'!$D$7),OR('[2]Input-Output Data'!$J8<'[2]Input-Output Data'!$K8,'[2]Input-Output Data'!$J8='[2]Input-Output Data'!$K8)),'[2]TABLE DATA'!H$7,IF(AND(OR($I8<'[2]TABLE DATA'!$D$7,$I8='[2]TABLE DATA'!$D$7),AND($J8>$L8),OR('[2]Input-Output Data'!$J8<'[2]Input-Output Data'!$M8,'[2]Input-Output Data'!$J8='[2]Input-Output Data'!$M8)),'[2]TABLE DATA'!H$8,IF(AND(OR($I8<'[2]TABLE DATA'!$D$7,$I8='[2]TABLE DATA'!$D$7),AND($J8>$M8),OR('[2]Input-Output Data'!$J8<'[2]Input-Output Data'!$N8,'[2]Input-Output Data'!$J8='[2]Input-Output Data'!$N8)),'[2]TABLE DATA'!H$9,IF(AND(OR($I8<'[2]TABLE DATA'!$D$7,$I8='[2]TABLE DATA'!$D$7),$J8>$N8),"SIGN TOO WIDE",IF(AND(AND($I8>'[2]TABLE DATA'!$D$7,OR($I8<'[2]TABLE DATA'!$D$8,$I8='[2]TABLE DATA'!$D$8)),'[2]Input-Output Data'!$J8<'[2]Input-Output Data'!$K8),'[2]TABLE DATA'!H$8,IF(AND(AND($I8>'[2]TABLE DATA'!$D$7,OR($I8<'[2]TABLE DATA'!$D$8,$I8='[2]TABLE DATA'!$D$8)),AND('[2]Input-Output Data'!$J8>'[2]Input-Output Data'!$M8,OR('[2]Input-Output Data'!$J8<'[2]Input-Output Data'!$N8,'[2]Input-Output Data'!$J8='[2]Input-Output Data'!$N8))),'[2]TABLE DATA'!H$9,IF(AND(AND($I8>'[2]TABLE DATA'!$D$7,OR($I8<'[2]TABLE DATA'!$D$8,$I8='[2]TABLE DATA'!$D$8)),$J8>'[2]Input-Output Data'!$N8),"SIGN TOO WIDE",IF(AND(AND($I8>'[2]TABLE DATA'!$D$8,OR($I8<'[2]TABLE DATA'!$D$9,$I8='[2]TABLE DATA'!$D$9)),'[2]Input-Output Data'!$J8<'[2]Input-Output Data'!$K8),'[2]TABLE DATA'!H$9,"SIGN TOO WIDE")))))))))) -> 0.625 | R8: =IF(I8="Arm Too Long", "Reduce V or W",IF($I8>'[2]TABLE DATA'!$D$9,"SIGN TOO LARGE",IF(AND(OR($I8<'[2]TABLE DATA'!$D$7,$I8='[2]TABLE DATA'!$D$7),OR('[2]Input-Output Data'!$J8<'[2]Input-Output Data'!$K8,'[2]Input-Output Data'!$J8='[2]Input-Output Data'!$K8)),'[2]TABLE DATA'!I$7,IF(AND(OR($I8<'[2]TABLE DATA'!$D$7,$I8='[2]TABLE DATA'!$D$7),AND($J8>$L8),OR('[2]Input-Output Data'!$J8<'[2]Input-Output Data'!$M8,'[2]Input-Output Data'!$J8='[2]Input-Output Data'!$M8)),'[2]TABLE DATA'!I$8,IF(AND(OR($I8<'[2]TABLE DATA'!$D$7,$I8='[2]TABLE DATA'!$D$7),AND($J8>$M8),OR('[2]Input-Output Data'!$J8<'[2]Input-Output Data'!$N8,'[2]Input-Output Data'!$J8='[2]Input-Output Data'!$N8)),'[2]TABLE DATA'!I$9,IF(AND(OR($I8<'[2]TABLE DATA'!$D$7,$I8='[2]TABLE DATA'!$D$7),$J8>$N8),"SIGN TOO WIDE",IF(AND(AND($I8>'[2]TABLE DATA'!$D$7,OR($I8<'[2]TABLE DATA'!$D$8,$I8='[2]TABLE DATA'!$D$8)),'[2]Input-Output Data'!$J8<'[2]Input-Output Data'!$K8),'[2]TABLE DATA'!I$8,IF(AND(AND($I8>'[2]TABLE DATA'!$D$7,OR($I8<'[2]TABLE DATA'!$D$8,$I8='[2]TABLE DATA'!$D$8)),AND('[2]Input-Output Data'!$J8>'[2]Input-Output Data'!$M8,OR('[2]Input-Output Data'!$J8<'[2]Input-Output Data'!$N8,'[2]Input-Output Data'!$J8='[2]Input-Output Data'!$N8))),'[2]TABLE DATA'!I$9,IF(AND(AND($I8>'[2]TABLE DATA'!$D$7,OR($I8<'[2]TABLE DATA'!$D$8,$I8='[2]TABLE DATA'!$D$8)),$J8>'[2]Input-Output Data'!$N8),"SIGN TOO WIDE",IF(AND(AND($I8>'[2]TABLE DATA'!$D$8,OR($I8<'[2]TABLE DATA'!$D$9,$I8='[2]TABLE DATA'!$D$9)),'[2]Input-Output Data'!$J8<'[2]Input-Output Data'!$K8),'[2]TABLE DATA'!I$9,"SIGN TOO WIDE")))))))))) -> 5.625 | S8: =IF(I8="Arm Too Long", "Reduce V or W",IF($I8>'[2]TABLE DATA'!$D$9,"SIGN TOO LARGE",IF(AND(OR($I8<'[2]TABLE DATA'!$D$7,$I8='[2]TABLE DATA'!$D$7),OR('[2]Input-Output Data'!$J8<'[2]Input-Output Data'!$K8,'[2]Input-Output Data'!$J8='[2]Input-Output Data'!$K8)),'[2]TABLE DATA'!J$7,IF(AND(OR($I8<'[2]TABLE DATA'!$D$7,$I8='[2]TABLE DATA'!$D$7),AND($J8>$L8),OR('[2]Input-Output Data'!$J8<'[2]Input-Output Data'!$M8,'[2]Input-Output Data'!$J8='[2]Input-Output Data'!$M8)),'[2]TABLE DATA'!J$8,IF(AND(OR($I8<'[2]TABLE DATA'!$D$7,$I8='[2]TABLE DATA'!$D$7),AND($J8>$M8),OR('[2]Input-Output Data'!$J8<'[2]Input-Output Data'!$N8,'[2]Input-Output Data'!$J8='[2]Input-Output Data'!$N8)),'[2]TABLE DATA'!J$9,IF(AND(OR($I8<'[2]TABLE DATA'!$D$7,$I8='[2]TABLE DATA'!$D$7),$J8>$N8),"SIGN TOO WIDE",IF(AND(AND($I8>'[2]TABLE DATA'!$D$7,OR($I8<'[2]TABLE DATA'!$D$8,$I8='[2]TABLE DATA'!$D$8)),'[2]Input-Output Data'!$J8<'[2]Input-Output Data'!$K8),'[2]TABLE DATA'!J$8,IF(AND(AND($I8>'[2]TABLE DATA'!$D$7,OR($I8<'[2]TABLE DATA'!$D$8,$I8='[2]TABLE DATA'!$D$8)),AND('[2]Input-Output Data'!$J8>'[2]Input-Output Data'!$M8,OR('[2]Input-Output Data'!$J8<'[2]Input-Output Data'!$N8,'[2]Input-Output Data'!$J8='[2]Input-Output Data'!$N8))),'[2]TABLE DATA'!J$9,IF(AND(AND($I8>'[2]TABLE DATA'!$D$7,OR($I8<'[2]TABLE DATA'!$D$8,$I8='[2]TABLE DATA'!$D$8)),$J8>'[2]Input-Output Data'!$N8),"SIGN TOO WIDE",IF(AND(AND($I8>'[2]TABLE DATA'!$D$8,OR($I8<'[2]TABLE DATA'!$D$9,$I8='[2]TABLE DATA'!$D$9)),'[2]Input-Output Data'!$J8<'[2]Input-Output Data'!$K8),'[2]TABLE DATA'!J$9,"SIGN TOO WIDE")))))))))) -> 2 | T8: =IF(I8="Arm Too Long", "Reduce V or W",IF($I8>'[2]TABLE DATA'!$D$9,"SIGN TOO LARGE",IF(AND(OR($I8<'[2]TABLE DATA'!$D$7,$I8='[2]TABLE DATA'!$D$7),OR('[2]Input-Output Data'!$J8<'[2]Input-Output Data'!$K8,'[2]Input-Output Data'!$J8='[2]Input-Output Data'!$K8)),'[2]TABLE DATA'!K$7,IF(AND(OR($I8<'[2]TABLE DATA'!$D$7,$I8='[2]TABLE DATA'!$D$7),AND($J8>$L8),OR('[2]Input-Output Data'!$J8<'[2]Input-Output Data'!$M8,'[2]Input-Output Data'!$J8='[2]Input-Output Data'!$M8)),'[2]TABLE DATA'!K$8,IF(AND(OR($I8<'[2]TABLE DATA'!$D$7,$I8='[2]TABLE DATA'!$D$7),AND($J8>$M8),OR('[2]Input-Output Data'!$J8<'[2]Input-Output Data'!$N8,'[2]Input-Output Data'!$J8='[2]Input-Output Data'!$N8)),'[2]TABLE DATA'!K$9,IF(AND(OR($I8<'[2]TABLE DATA'!$D$7,$I8='[2]TABLE DATA'!$D$7),$J8>$N8),"SIGN TOO WIDE",IF(AND(AND($I8>'[2]TABLE DATA'!$D$7,OR($I8<'[2]TABLE DATA'!$D$8,$I8='[2]TABLE DATA'!$D$8)),'[2]Input-Output Data'!$J8<'[2]Input-Output Data'!$K8),'[2]TABLE DATA'!K$8,IF(AND(AND($I8>'[2]TABLE DATA'!$D$7,OR($I8<'[2]TABLE DATA'!$D$8,$I8='[2]TABLE DATA'!$D$8)),AND('[2]Input-Output Data'!$J8>'[2]Input-Output Data'!$M8,OR('[2]Input-Output Data'!$J8<'[2]Input-Output Data'!$N8,'[2]Input-Output Data'!$J8='[2]Input-Output Data'!$N8))),'[2]TABLE DATA'!K$9,IF(AND(AND($I8>'[2]TABLE DATA'!$D$7,OR($I8<'[2]TABLE DATA'!$D$8,$I8='[2]TABLE DATA'!$D$8)),$J8>'[2]Input-Output Data'!$N8),"SIGN TOO WIDE",IF(AND(AND($I8>'[2]TABLE DATA'!$D$8,OR($I8<'[2]TABLE DATA'!$D$9,$I8='[2]TABLE DATA'!$D$9)),'[2]Input-Output Data'!$J8<'[2]Input-Output Data'!$K8),'[2]TABLE DATA'!K$9,"SIGN TOO WIDE")))))))))) -> 60 | U8: =IF(I8="Arm Too Long", "Reduce V or W",IF($I8>'[2]TABLE DATA'!$D$9,"SIGN TOO LARGE",IF(AND(OR($I8<'[2]TABLE DATA'!$D$7,$I8='[2]TABLE DATA'!$D$7),OR('[2]Input-Output Data'!$J8<'[2]Input-Output Data'!$K8,'[2]Input-Output Data'!$J8='[2]Input-Output Data'!$K8)),'[2]TABLE DATA'!L$7,IF(AND(OR($I8<'[2]TABLE DATA'!$D$7,$I8='[2]TABLE DATA'!$D$7),AND($J8>$L8),OR('[2]Input-Output Data'!$J8<'[2]Input-Output Data'!$M8,'[2]Input-Output Data'!$J8='[2]Input-Output Data'!$M8)),'[2]TABLE DATA'!L$8,IF(AND(OR($I8<'[2]TABLE DATA'!$D$7,$I8='[2]TABLE DATA'!$D$7),AND($J8>$M8),OR('[2]Input-Output Data'!$J8<'[2]Input-Output Data'!$N8,'[2]Input-Output Data'!$J8='[2]Input-Output Data'!$N8)),'[2]TABLE DATA'!L$9,IF(AND(OR($I8<'[2]TABLE DATA'!$D$7,$I8='[2]TABLE DATA'!$D$7),$J8>$N8),"SIGN TOO WIDE",IF(AND(AND($I8>'[2]TABLE DATA'!$D$7,OR($I8<'[2]TABLE DATA'!$D$8,$I8='[2]TABLE DATA'!$D$8)),'[2]Input-Output Data'!$J8<'[2]Input-Output Data'!$K8),'[2]TABLE DATA'!L$8,IF(AND(AND($I8>'[2]TABLE DATA'!$D$7,OR($I8<'[2]TABLE DATA'!$D$8,$I8='[2]TABLE DATA'!$D$8)),AND('[2]Input-Output Data'!$J8>'[2]Input-Output Data'!$M8,OR('[2]Input-Output Data'!$J8<'[2]Input-Output Data'!$N8,'[2]Input-Output Data'!$J8='[2]Input-Output Data'!$N8))),'[2]TABLE DATA'!L$9,IF(AND(AND($I8>'[2]TABLE DATA'!$D$7,OR($I8<'[2]TABLE DATA'!$D$8,$I8='[2]TABLE DATA'!$D$8)),$J8>'[2]Input-Output Data'!$N8),"SIGN TOO WIDE",IF(AND(AND($I8>'[2]TABLE DATA'!$D$8,OR($I8<'[2]TABLE DATA'!$D$9,$I8='[2]TABLE DATA'!$D$9)),'[2]Input-Output Data'!$J8<'[2]Input-Output Data'!$K8),'[2]TABLE DATA'!L$9,"SIGN TOO WIDE")))))))))) -> 7.4 | V8: =IF(I8="Arm Too Long", "Reduce V or W",IF($I8>'[2]TABLE DATA'!$D$9,"SIGN TOO LARGE",IF(AND(OR($I8<'[2]TABLE DATA'!$D$7,$I8='[2]TABLE DATA'!$D$7),OR('[2]Input-Output Data'!$J8<'[2]Input-Output Data'!$K8,'[2]Input-Output Data'!$J8='[2]Input-Output Data'!$K8)),'[2]TABLE DATA'!M$7,IF(AND(OR($I8<'[2]TABLE DATA'!$D$7,$I8='[2]TABLE DATA'!$D$7),AND($J8>$L8),OR('[2]Input-Output Data'!$J8<'[2]Input-Output Data'!$M8,'[2]Input-Output Data'!$J8='[2]Input-Output Data'!$M8)),'[2]TABLE DATA'!M$8,IF(AND(OR($I8<'[2]TABLE DATA'!$D$7,$I8='[2]TABLE DATA'!$D$7),AND($J8>$M8),OR('[2]Input-Output Data'!$J8<'[2]Input-Output Data'!$N8,'[2]Input-Output Data'!$J8='[2]Input-Output Data'!$N8)),'[2]TABLE DATA'!M$9,IF(AND(OR($I8<'[2]TABLE DATA'!$D$7,$I8='[2]TABLE DATA'!$D$7),$J8>$N8),"SIGN TOO WIDE",IF(AND(AND($I8>'[2]TABLE DATA'!$D$7,OR($I8<'[2]TABLE DATA'!$D$8,$I8='[2]TABLE DATA'!$D$8)),'[2]Input-Output Data'!$J8<'[2]Input-Output Data'!$K8),'[2]TABLE DATA'!M$8,IF(AND(AND($I8>'[2]TABLE DATA'!$D$7,OR($I8<'[2]TABLE DATA'!$D$8,$I8='[2]TABLE DATA'!$D$8)),AND('[2]Input-Output Data'!$J8>'[2]Input-Output Data'!$M8,OR('[2]Input-Output Data'!$J8<'[2]Input-Output Data'!$N8,'[2]Input-Output Data'!$J8='[2]Input-Output Data'!$N8))),'[2]TABLE DATA'!M$9,IF(AND(AND($I8>'[2]TABLE DATA'!$D$7,OR($I8<'[2]TABLE DATA'!$D$8,$I8='[2]TABLE DATA'!$D$8)),$J8>'[2]Input-Output Data'!$N8),"SIGN TOO WIDE",IF(AND(AND($I8>'[2]TABLE DATA'!$D$8,OR($I8<'[2]TABLE DATA'!$D$9,$I8='[2]TABLE DATA'!$D$9)),'[2]Input-Output Data'!$J8<'[2]Input-Output Data'!$K8),'[2]TABLE DATA'!M$9,"SIGN TOO WIDE")))))))))) -> 0.5 | W8: =IF(I8="Arm Too Long", "Reduce V or W",IF($I8>'[2]TABLE DATA'!$D$9,"SIGN TOO LARGE",IF(AND(OR($I8<'[2]TABLE DATA'!$D$7,$I8='[2]TABLE DATA'!$D$7),OR('[2]Input-Output Data'!$J8<'[2]Input-Output Data'!$K8,'[2]Input-Output Data'!$J8='[2]Input-Output Data'!$K8)),'[2]TABLE DATA'!N$7,IF(AND(OR($I8<'[2]TABLE DATA'!$D$7,$I8='[2]TABLE DATA'!$D$7),AND($J8>$L8),OR('[2]Input-Output Data'!$J8<'[2]Input-Output Data'!$M8,'[2]Input-Output Data'!$J8='[2]Input-Output Data'!$M8)),'[2]TABLE DATA'!N$8,IF(AND(OR($I8<'[2]TABLE DATA'!$D$7,$I8='[2]TABLE DATA'!$D$7),AND($J8>$M8),OR('[2]Input-Output Data'!$J8<'[2]Input-Output Data'!$N8,'[2]Input-Output Data'!$J8='[2]Input-Output Data'!$N8)),'[2]TABLE DATA'!N$9,IF(AND(OR($I8<'[2]TABLE DATA'!$D$7,$I8='[2]TABLE DATA'!$D$7),$J8>$N8),"SIGN TOO WIDE",IF(AND(AND($I8>'[2]TABLE DATA'!$D$7,OR($I8<'[2]TABLE DATA'!$D$8,$I8='[2]TABLE DATA'!$D$8)),'[2]Input-Output Data'!$J8<'[2]Input-Output Data'!$K8),'[2]TABLE DATA'!N$8,IF(AND(AND($I8>'[2]TABLE DATA'!$D$7,OR($I8<'[2]TABLE DATA'!$D$8,$I8='[2]TABLE DATA'!$D$8)),AND('[2]Input-Output Data'!$J8>'[2]Input-Output Data'!$M8,OR('[2]Input-Output Data'!$J8<'[2]Input-Output Data'!$N8,'[2]Input-Output Data'!$J8='[2]Input-Output Data'!$N8))),'[2]TABLE DATA'!N$9,IF(AND(AND($I8>'[2]TABLE DATA'!$D$7,OR($I8<'[2]TABLE DATA'!$D$8,$I8='[2]TABLE DATA'!$D$8)),$J8>'[2]Input-Output Data'!$N8),"SIGN TOO WIDE",IF(AND(AND($I8>'[2]TABLE DATA'!$D$8,OR($I8<'[2]TABLE DATA'!$D$9,$I8='[2]TABLE DATA'!$D$9)),'[2]Input-Output Data'!$J8<'[2]Input-Output Data'!$K8),'[2]TABLE DATA'!N$9,"SIGN TOO WIDE")))))))))) -> 0.5 | X8: =IF(I8="Arm Too Long", "Reduce V or W",IF($I8>'[2]TABLE DATA'!$D$9,"SIGN TOO LARGE",IF(AND(OR($I8<'[2]TABLE DATA'!$D$7,$I8='[2]TABLE DATA'!$D$7),OR('[2]Input-Output Data'!$J8<'[2]Input-Output Data'!$K8,'[2]Input-Output Data'!$J8='[2]Input-Output Data'!$K8)),'[2]TABLE DATA'!O$7,IF(AND(OR($I8<'[2]TABLE DATA'!$D$7,$I8='[2]TABLE DATA'!$D$7),AND($J8>$L8),OR('[2]Input-Output Data'!$J8<'[2]Input-Output Data'!$M8,'[2]Input-Output Data'!$J8='[2]Input-Output Data'!$M8)),'[2]TABLE DATA'!O$8,IF(AND(OR($I8<'[2]TABLE DATA'!$D$7,$I8='[2]TABLE DATA'!$D$7),AND($J8>$M8),OR('[2]Input-Output Data'!$J8<'[2]Input-Output Data'!$N8,'[2]Input-Output Data'!$J8='[2]Input-Output Data'!$N8)),'[2]TABLE DATA'!O$9,IF(AND(OR($I8<'[2]TABLE DATA'!$D$7,$I8='[2]TABLE DATA'!$D$7),$J8>$N8),"SIGN TOO WIDE",IF(AND(AND($I8>'[2]TABLE DATA'!$D$7,OR($I8<'[2]TABLE DATA'!$D$8,$I8='[2]TABLE DATA'!$D$8)),'[2]Input-Output Data'!$J8<'[2]Input-Output Data'!$K8),'[2]TABLE DATA'!O$8,IF(AND(AND($I8>'[2]TABLE DATA'!$D$7,OR($I8<'[2]TABLE DATA'!$D$8,$I8='[2]TABLE DATA'!$D$8)),AND('[2]Input-Output Data'!$J8>'[2]Input-Output Data'!$M8,OR('[2]Input-Output Data'!$J8<'[2]Input-Output Data'!$N8,'[2]Input-Output Data'!$J8='[2]Input-Output Data'!$N8))),'[2]TABLE DATA'!O$9,IF(AND(AND($I8>'[2]TABLE DATA'!$D$7,OR($I8<'[2]TABLE DATA'!$D$8,$I8='[2]TABLE DATA'!$D$8)),$J8>'[2]Input-Output Data'!$N8),"SIGN TOO WIDE",IF(AND(AND($I8>'[2]TABLE DATA'!$D$8,OR($I8<'[2]TABLE DATA'!$D$9,$I8='[2]TABLE DATA'!$D$9)),'[2]Input-Output Data'!$J8<'[2]Input-Output Data'!$K8),'[2]TABLE DATA'!O$9,"SIGN TOO WIDE")))))))))) -> 0.5 | Y8: I
D9: 48 | E9: 48 | F9: Square | G9: I | H9: 30 | I9: 16 | J9: 26 | K9: =IF(OR(I9<'[2]TABLE DATA'!$D$7,I9='[2]TABLE DATA'!$D$7),717.75/I9,IF(AND('[2]TABLE DATA'!$D$7<I9,OR(I9<'[2]TABLE DATA'!$D$8,I9='[2]TABLE DATA'!$D$8)),1695/I9,IF(AND('[2]TABLE DATA'!$D$8<I9,OR(I9<'[2]TABLE DATA'!$D$9,I9='[2]TABLE DATA'!$D$9)),2268/I9,IF(I9="Arm Too Long", "Reduce V or W","Sign Too Wide")))) -> 44.86 | L9: =717.75/'[2]Input-Output Data'!I9 -> 59.81 | M9: 105.94 | N9: 141.75 | O9: =IF(I9="Arm Too Long", "Reduce V or W",IF($I9>'[2]TABLE DATA'!$D$9,"SIGN TOO LARGE",IF(AND(OR($I9<'[2]TABLE DATA'!$D$7,$I9='[2]TABLE DATA'!$D$7),OR('[2]Input-Output Data'!$J9<'[2]Input-Output Data'!$K9,'[2]Input-Output Data'!$J9='[2]Input-Output Data'!$K9)),'[2]TABLE DATA'!F$7,IF(AND(OR($I9<'[2]TABLE DATA'!$D$7,$I9='[2]TABLE DATA'!$D$7),AND($J9>$L9),OR('[2]Input-Output Data'!$J9<'[2]Input-Output Data'!$M9,'[2]Input-Output Data'!$J9='[2]Input-Output Data'!$M9)),'[2]TABLE DATA'!F$8,IF(AND(OR($I9<'[2]TABLE DATA'!$D$7,$I9='[2]TABLE DATA'!$D$7),AND($J9>$M9),OR('[2]Input-Output Data'!$J9<'[2]Input-Output Data'!$N9,'[2]Input-Output Data'!$J9='[2]Input-Output Data'!$N9)),'[2]TABLE DATA'!F$9,IF(AND(OR($I9<'[2]TABLE DATA'!$D$7,$I9='[2]TABLE DATA'!$D$7),$J9>$N9),"SIGN TOO WIDE",IF(AND(AND($I9>'[2]TABLE DATA'!$D$7,OR($I9<'[2]TABLE DATA'!$D$8,$I9='[2]TABLE DATA'!$D$8)),'[2]Input-Output Data'!$J9<'[2]Input-Output Data'!$K9),'[2]TABLE DATA'!F$8,IF(AND(AND($I9>'[2]TABLE DATA'!$D$7,OR($I9<'[2]TABLE DATA'!$D$8,$I9='[2]TABLE DATA'!$D$8)),AND('[2]Input-Output Data'!$J9>'[2]Input-Output Data'!$M9,OR('[2]Input-Output Data'!$J9<'[2]Input-Output Data'!$N9,'[2]Input-Output Data'!$J9='[2]Input-Output Data'!$N9))),'[2]TABLE DATA'!F$9,IF(AND(AND($I9>'[2]TABLE DATA'!$D$7,OR($I9<'[2]TABLE DATA'!$D$8,$I9='[2]TABLE DATA'!$D$8)),$J9>'[2]Input-Output Data'!$N9),"SIGN TOO WIDE",IF(AND(AND($I9>'[2]TABLE DATA'!$D$8,OR($I9<'[2]TABLE DATA'!$D$9,$I9='[2]TABLE DATA'!$D$9)),'[2]Input-Output Data'!$J9<'[2]Input-Output Data'!$K9),'[2]TABLE DATA'!F$9,"SIGN TOO WIDE")))))))))) -> 4 | P9: =IF(I9="Arm Too Long", "Reduce V or W",IF($I9>'[2]TABLE DATA'!$D$9,"SIGN TOO LARGE",IF(AND(OR($I9<'[2]TABLE DATA'!$D$7,$I9='[2]TABLE DATA'!$D$7),OR('[2]Input-Output Data'!$J9<'[2]Input-Output Data'!$K9,'[2]Input-Output Data'!$J9='[2]Input-Output Data'!$K9)),'[2]TABLE DATA'!G$7,IF(AND(OR($I9<'[2]TABLE DATA'!$D$7,$I9='[2]TABLE DATA'!$D$7),AND($J9>$L9),OR('[2]Input-Output Data'!$J9<'[2]Input-Output Data'!$M9,'[2]Input-Output Data'!$J9='[2]Input-Output Data'!$M9)),'[2]TABLE DATA'!G$8,IF(AND(OR($I9<'[2]TABLE DATA'!$D$7,$I9='[2]TABLE DATA'!$D$7),AND($J9>$M9),OR('[2]Input-Output Data'!$J9<'[2]Input-Output Data'!$N9,'[2]Input-Output Data'!$J9='[2]Input-Output Data'!$N9)),'[2]TABLE DATA'!G$9,IF(AND(OR($I9<'[2]TABLE DATA'!$D$7,$I9='[2]TABLE DATA'!$D$7),$J9>$N9),"SIGN TOO WIDE",IF(AND(AND($I9>'[2]TABLE DATA'!$D$7,OR($I9<'[2]TABLE DATA'!$D$8,$I9='[2]TABLE DATA'!$D$8)),'[2]Input-Output Data'!$J9<'[2]Input-Output Data'!$K9),'[2]TABLE DATA'!G$8,IF(AND(AND($I9>'[2]TABLE DATA'!$D$7,OR($I9<'[2]TABLE DATA'!$D$8,$I9='[2]TABLE DATA'!$D$8)),AND('[2]Input-Output Data'!$J9>'[2]Input-Output Data'!$M9,OR('[2]Input-Output Data'!$J9<'[2]Input-Output Data'!$N9,'[2]Input-Output Data'!$J9='[2]Input-Output Data'!$N9))),'[2]TABLE DATA'!G$9,IF(AND(AND($I9>'[2]TABLE DATA'!$D$7,OR($I9<'[2]TABLE DATA'!$D$8,$I9='[2]TABLE DATA'!$D$8)),$J9>'[2]Input-Output Data'!$N9),"SIGN TOO WIDE",IF(AND(AND($I9>'[2]TABLE DATA'!$D$8,OR($I9<'[2]TABLE DATA'!$D$9,$I9='[2]TABLE DATA'!$D$9)),'[2]Input-Output Data'!$J9<'[2]Input-Output Data'!$K9),'[2]TABLE DATA'!G$9,"SIGN TOO WIDE")))))))))) -> 2 | Q9: =IF(I9="Arm Too Long", "Reduce V or W",IF($I9>'[2]TABLE DATA'!$D$9,"SIGN TOO LARGE",IF(AND(OR($I9<'[2]TABLE DATA'!$D$7,$I9='[2]TABLE DATA'!$D$7),OR('[2]Input-Output Data'!$J9<'[2]Input-Output Data'!$K9,'[2]Input-Output Data'!$J9='[2]Input-Output Data'!$K9)),'[2]TABLE DATA'!H$7,IF(AND(OR($I9<'[2]TABLE DATA'!$D$7,$I9='[2]TABLE DATA'!$D$7),AND($J9>$L9),OR('[2]Input-Output Data'!$J9<'[2]Input-Output Data'!$M9,'[2]Input-Output Data'!$J9='[2]Input-Output Data'!$M9)),'[2]TABLE DATA'!H$8,IF(AND(OR($I9<'[2]TABLE DATA'!$D$7,$I9='[2]TABLE DATA'!$D$7),AND($J9>$M9),OR('[2]Input-Output Data'!$J9<'[2]Input-Output Data'!$N9,'[2]Input-Output Data'!$J9='[2]Input-Output Data'!$N9)),'[2]TABLE DATA'!H$9,IF(AND(OR($I9<'[2]TABLE DATA'!$D$7,$I9='[2]TABLE DATA'!$D$7),$J9>$N9),"SIGN TOO WIDE",IF(AND(AND($I9>'[2]TABLE DATA'!$D$7,OR($I9<'[2]TABLE DATA'!$D$8,$I9='[2]TABLE DATA'!$D$8)),'[2]Input-Output Data'!$J9<'[2]Input-Output Data'!$K9),'[2]TABLE DATA'!H$8,IF(AND(AND($I9>'[2]TABLE DATA'!$D$7,OR($I9<'[2]TABLE DATA'!$D$8,$I9='[2]TABLE DATA'!$D$8)),AND('[2]Input-Output Data'!$J9>'[2]Input-Output Data'!$M9,OR('[2]Input-Output Data'!$J9<'[2]Input-Output Data'!$N9,'[2]Input-Output Data'!$J9='[2]Input-Output Data'!$N9))),'[2]TABLE DATA'!H$9,IF(AND(AND($I9>'[2]TABLE DATA'!$D$7,OR($I9<'[2]TABLE DATA'!$D$8,$I9='[2]TABLE DATA'!$D$8)),$J9>'[2]Input-Output Data'!$N9),"SIGN TOO WIDE",IF(AND(AND($I9>'[2]TABLE DATA'!$D$8,OR($I9<'[2]TABLE DATA'!$D$9,$I9='[2]TABLE DATA'!$D$9)),'[2]Input-Output Data'!$J9<'[2]Input-Output Data'!$K9),'[2]TABLE DATA'!H$9,"SIGN TOO WIDE")))))))))) -> 0.625 | R9: =IF(I9="Arm Too Long", "Reduce V or W",IF($I9>'[2]TABLE DATA'!$D$9,"SIGN TOO LARGE",IF(AND(OR($I9<'[2]TABLE DATA'!$D$7,$I9='[2]TABLE DATA'!$D$7),OR('[2]Input-Output Data'!$J9<'[2]Input-Output Data'!$K9,'[2]Input-Output Data'!$J9='[2]Input-Output Data'!$K9)),'[2]TABLE DATA'!I$7,IF(AND(OR($I9<'[2]TABLE DATA'!$D$7,$I9='[2]TABLE DATA'!$D$7),AND($J9>$L9),OR('[2]Input-Output Data'!$J9<'[2]Input-Output Data'!$M9,'[2]Input-Output Data'!$J9='[2]Input-Output Data'!$M9)),'[2]TABLE DATA'!I$8,IF(AND(OR($I9<'[2]TABLE DATA'!$D$7,$I9='[2]TABLE DATA'!$D$7),AND($J9>$M9),OR('[2]Input-Output Data'!$J9<'[2]Input-Output Data'!$N9,'[2]Input-Output Data'!$J9='[2]Input-Output Data'!$N9)),'[2]TABLE DATA'!I$9,IF(AND(OR($I9<'[2]TABLE DATA'!$D$7,$I9='[2]TABLE DATA'!$D$7),$J9>$N9),"SIGN TOO WIDE",IF(AND(AND($I9>'[2]TABLE DATA'!$D$7,OR($I9<'[2]TABLE DATA'!$D$8,$I9='[2]TABLE DATA'!$D$8)),'[2]Input-Output Data'!$J9<'[2]Input-Output Data'!$K9),'[2]TABLE DATA'!I$8,IF(AND(AND($I9>'[2]TABLE DATA'!$D$7,OR($I9<'[2]TABLE DATA'!$D$8,$I9='[2]TABLE DATA'!$D$8)),AND('[2]Input-Output Data'!$J9>'[2]Input-Output Data'!$M9,OR('[2]Input-Output Data'!$J9<'[2]Input-Output Data'!$N9,'[2]Input-Output Data'!$J9='[2]Input-Output Data'!$N9))),'[2]TABLE DATA'!I$9,IF(AND(AND($I9>'[2]TABLE DATA'!$D$7,OR($I9<'[2]TABLE DATA'!$D$8,$I9='[2]TABLE DATA'!$D$8)),$J9>'[2]Input-Output Data'!$N9),"SIGN TOO WIDE",IF(AND(AND($I9>'[2]TABLE DATA'!$D$8,OR($I9<'[2]TABLE DATA'!$D$9,$I9='[2]TABLE DATA'!$D$9)),'[2]Input-Output Data'!$J9<'[2]Input-Output Data'!$K9),'[2]TABLE DATA'!I$9,"SIGN TOO WIDE")))))))))) -> 5.625 | S9: =IF(I9="Arm Too Long", "Reduce V or W",IF($I9>'[2]TABLE DATA'!$D$9,"SIGN TOO LARGE",IF(AND(OR($I9<'[2]TABLE DATA'!$D$7,$I9='[2]TABLE DATA'!$D$7),OR('[2]Input-Output Data'!$J9<'[2]Input-Output Data'!$K9,'[2]Input-Output Data'!$J9='[2]Input-Output Data'!$K9)),'[2]TABLE DATA'!J$7,IF(AND(OR($I9<'[2]TABLE DATA'!$D$7,$I9='[2]TABLE DATA'!$D$7),AND($J9>$L9),OR('[2]Input-Output Data'!$J9<'[2]Input-Output Data'!$M9,'[2]Input-Output Data'!$J9='[2]Input-Output Data'!$M9)),'[2]TABLE DATA'!J$8,IF(AND(OR($I9<'[2]TABLE DATA'!$D$7,$I9='[2]TABLE DATA'!$D$7),AND($J9>$M9),OR('[2]Input-Output Data'!$J9<'[2]Input-Output Data'!$N9,'[2]Input-Output Data'!$J9='[2]Input-Output Data'!$N9)),'[2]TABLE DATA'!J$9,IF(AND(OR($I9<'[2]TABLE DATA'!$D$7,$I9='[2]TABLE DATA'!$D$7),$J9>$N9),"SIGN TOO WIDE",IF(AND(AND($I9>'[2]TABLE DATA'!$D$7,OR($I9<'[2]TABLE DATA'!$D$8,$I9='[2]TABLE DATA'!$D$8)),'[2]Input-Output Data'!$J9<'[2]Input-Output Data'!$K9),'[2]TABLE DATA'!J$8,IF(AND(AND($I9>'[2]TABLE DATA'!$D$7,OR($I9<'[2]TABLE DATA'!$D$8,$I9='[2]TABLE DATA'!$D$8)),AND('[2]Input-Output Data'!$J9>'[2]Input-Output Data'!$M9,OR('[2]Input-Output Data'!$J9<'[2]Input-Output Data'!$N9,'[2]Input-Output Data'!$J9='[2]Input-Output Data'!$N9))),'[2]TABLE DATA'!J$9,IF(AND(AND($I9>'[2]TABLE DATA'!$D$7,OR($I9<'[2]TABLE DATA'!$D$8,$I9='[2]TABLE DATA'!$D$8)),$J9>'[2]Input-Output Data'!$N9),"SIGN TOO WIDE",IF(AND(AND($I9>'[2]TABLE DATA'!$D$8,OR($I9<'[2]TABLE DATA'!$D$9,$I9='[2]TABLE DATA'!$D$9)),'[2]Input-Output Data'!$J9<'[2]Input-Output Data'!$K9),'[2]TABLE DATA'!J$9,"SIGN TOO WIDE")))))))))) -> 2 | T9: =IF(I9="Arm Too Long", "Reduce V or W",IF($I9>'[2]TABLE DATA'!$D$9,"SIGN TOO LARGE",IF(AND(OR($I9<'[2]TABLE DATA'!$D$7,$I9='[2]TABLE DATA'!$D$7),OR('[2]Input-Output Data'!$J9<'[2]Input-Output Data'!$K9,'[2]Input-Output Data'!$J9='[2]Input-Output Data'!$K9)),'[2]TABLE DATA'!K$7,IF(AND(OR($I9<'[2]TABLE DATA'!$D$7,$I9='[2]TABLE DATA'!$D$7),AND($J9>$L9),OR('[2]Input-Output Data'!$J9<'[2]Input-Output Data'!$M9,'[2]Input-Output Data'!$J9='[2]Input-Output Data'!$M9)),'[2]TABLE DATA'!K$8,IF(AND(OR($I9<'[2]TABLE DATA'!$D$7,$I9='[2]TABLE DATA'!$D$7),AND($J9>$M9),OR('[2]Input-Output Data'!$J9<'[2]Input-Output Data'!$N9,'[2]Input-Output Data'!$J9='[2]Input-Output Data'!$N9)),'[2]TABLE DATA'!K$9,IF(AND(OR($I9<'[2]TABLE DATA'!$D$7,$I9='[2]TABLE DATA'!$D$7),$J9>$N9),"SIGN TOO WIDE",IF(AND(AND($I9>'[2]TABLE DATA'!$D$7,OR($I9<'[2]TABLE DATA'!$D$8,$I9='[2]TABLE DATA'!$D$8)),'[2]Input-Output Data'!$J9<'[2]Input-Output Data'!$K9),'[2]TABLE DATA'!K$8,IF(AND(AND($I9>'[2]TABLE DATA'!$D$7,OR($I9<'[2]TABLE DATA'!$D$8,$I9='[2]TABLE DATA'!$D$8)),AND('[2]Input-Output Data'!$J9>'[2]Input-Output Data'!$M9,OR('[2]Input-Output Data'!$J9<'[2]Input-Output Data'!$N9,'[2]Input-Output Data'!$J9='[2]Input-Output Data'!$N9))),'[2]TABLE DATA'!K$9,IF(AND(AND($I9>'[2]TABLE DATA'!$D$7,OR($I9<'[2]TABLE DATA'!$D$8,$I9='[2]TABLE DATA'!$D$8)),$J9>'[2]Input-Output Data'!$N9),"SIGN TOO WIDE",IF(AND(AND($I9>'[2]TABLE DATA'!$D$8,OR($I9<'[2]TABLE DATA'!$D$9,$I9='[2]TABLE DATA'!$D$9)),'[2]Input-Output Data'!$J9<'[2]Input-Output Data'!$K9),'[2]TABLE DATA'!K$9,"SIGN TOO WIDE")))))))))) -> 60 | U9: =IF(I9="Arm Too Long", "Reduce V or W",IF($I9>'[2]TABLE DATA'!$D$9,"SIGN TOO LARGE",IF(AND(OR($I9<'[2]TABLE DATA'!$D$7,$I9='[2]TABLE DATA'!$D$7),OR('[2]Input-Output Data'!$J9<'[2]Input-Output Data'!$K9,'[2]Input-Output Data'!$J9='[2]Input-Output Data'!$K9)),'[2]TABLE DATA'!L$7,IF(AND(OR($I9<'[2]TABLE DATA'!$D$7,$I9='[2]TABLE DATA'!$D$7),AND($J9>$L9),OR('[2]Input-Output Data'!$J9<'[2]Input-Output Data'!$M9,'[2]Input-Output Data'!$J9='[2]Input-Output Data'!$M9)),'[2]TABLE DATA'!L$8,IF(AND(OR($I9<'[2]TABLE DATA'!$D$7,$I9='[2]TABLE DATA'!$D$7),AND($J9>$M9),OR('[2]Input-Output Data'!$J9<'[2]Input-Output Data'!$N9,'[2]Input-Output Data'!$J9='[2]Input-Output Data'!$N9)),'[2]TABLE DATA'!L$9,IF(AND(OR($I9<'[2]TABLE DATA'!$D$7,$I9='[2]TABLE DATA'!$D$7),$J9>$N9),"SIGN TOO WIDE",IF(AND(AND($I9>'[2]TABLE DATA'!$D$7,OR($I9<'[2]TABLE DATA'!$D$8,$I9='[2]TABLE DATA'!$D$8)),'[2]Input-Output Data'!$J9<'[2]Input-Output Data'!$K9),'[2]TABLE DATA'!L$8,IF(AND(AND($I9>'[2]TABLE DATA'!$D$7,OR($I9<'[2]TABLE DATA'!$D$8,$I9='[2]TABLE DATA'!$D$8)),AND('[2]Input-Output Data'!$J9>'[2]Input-Output Data'!$M9,OR('[2]Input-Output Data'!$J9<'[2]Input-Output Data'!$N9,'[2]Input-Output Data'!$J9='[2]Input-Output Data'!$N9))),'[2]TABLE DATA'!L$9,IF(AND(AND($I9>'[2]TABLE DATA'!$D$7,OR($I9<'[2]TABLE DATA'!$D$8,$I9='[2]TABLE DATA'!$D$8)),$J9>'[2]Input-Output Data'!$N9),"SIGN TOO WIDE",IF(AND(AND($I9>'[2]TABLE DATA'!$D$8,OR($I9<'[2]TABLE DATA'!$D$9,$I9='[2]TABLE DATA'!$D$9)),'[2]Input-Output Data'!$J9<'[2]Input-Output Data'!$K9),'[2]TABLE DATA'!L$9,"SIGN TOO WIDE")))))))))) -> 7.4 | V9: =IF(I9="Arm Too Long", "Reduce V or W",IF($I9>'[2]TABLE DATA'!$D$9,"SIGN TOO LARGE",IF(AND(OR($I9<'[2]TABLE DATA'!$D$7,$I9='[2]TABLE DATA'!$D$7),OR('[2]Input-Output Data'!$J9<'[2]Input-Output Data'!$K9,'[2]Input-Output Data'!$J9='[2]Input-Output Data'!$K9)),'[2]TABLE DATA'!M$7,IF(AND(OR($I9<'[2]TABLE DATA'!$D$7,$I9='[2]TABLE DATA'!$D$7),AND($J9>$L9),OR('[2]Input-Output Data'!$J9<'[2]Input-Output Data'!$M9,'[2]Input-Output Data'!$J9='[2]Input-Output Data'!$M9)),'[2]TABLE DATA'!M$8,IF(AND(OR($I9<'[2]TABLE DATA'!$D$7,$I9='[2]TABLE DATA'!$D$7),AND($J9>$M9),OR('[2]Input-Output Data'!$J9<'[2]Input-Output Data'!$N9,'[2]Input-Output Data'!$J9='[2]Input-Output Data'!$N9)),'[2]TABLE DATA'!M$9,IF(AND(OR($I9<'[2]TABLE DATA'!$D$7,$I9='[2]TABLE DATA'!$D$7),$J9>$N9),"SIGN TOO WIDE",IF(AND(AND($I9>'[2]TABLE DATA'!$D$7,OR($I9<'[2]TABLE DATA'!$D$8,$I9='[2]TABLE DATA'!$D$8)),'[2]Input-Output Data'!$J9<'[2]Input-Output Data'!$K9),'[2]TABLE DATA'!M$8,IF(AND(AND($I9>'[2]TABLE DATA'!$D$7,OR($I9<'[2]TABLE DATA'!$D$8,$I9='[2]TABLE DATA'!$D$8)),AND('[2]Input-Output Data'!$J9>'[2]Input-Output Data'!$M9,OR('[2]Input-Output Data'!$J9<'[2]Input-Output Data'!$N9,'[2]Input-Output Data'!$J9='[2]Input-Output Data'!$N9))),'[2]TABLE DATA'!M$9,IF(AND(AND($I9>'[2]TABLE DATA'!$D$7,OR($I9<'[2]TABLE DATA'!$D$8,$I9='[2]TABLE DATA'!$D$8)),$J9>'[2]Input-Output Data'!$N9),"SIGN TOO WIDE",IF(AND(AND($I9>'[2]TABLE DATA'!$D$8,OR($I9<'[2]TABLE DATA'!$D$9,$I9='[2]TABLE DATA'!$D$9)),'[2]Input-Output Data'!$J9<'[2]Input-Output Data'!$K9),'[2]TABLE DATA'!M$9,"SIGN TOO WIDE")))))))))) -> 0.5 | W9: =IF(I9="Arm Too Long", "Reduce V or W",IF($I9>'[2]TABLE DATA'!$D$9,"SIGN TOO LARGE",IF(AND(OR($I9<'[2]TABLE DATA'!$D$7,$I9='[2]TABLE DATA'!$D$7),OR('[2]Input-Output Data'!$J9<'[2]Input-Output Data'!$K9,'[2]Input-Output Data'!$J9='[2]Input-Output Data'!$K9)),'[2]TABLE DATA'!N$7,IF(AND(OR($I9<'[2]TABLE DATA'!$D$7,$I9='[2]TABLE DATA'!$D$7),AND($J9>$L9),OR('[2]Input-Output Data'!$J9<'[2]Input-Output Data'!$M9,'[2]Input-Output Data'!$J9='[2]Input-Output Data'!$M9)),'[2]TABLE DATA'!N$8,IF(AND(OR($I9<'[2]TABLE DATA'!$D$7,$I9='[2]TABLE DATA'!$D$7),AND($J9>$M9),OR('[2]Input-Output Data'!$J9<'[2]Input-Output Data'!$N9,'[2]Input-Output Data'!$J9='[2]Input-Output Data'!$N9)),'[2]TABLE DATA'!N$9,IF(AND(OR($I9<'[2]TABLE DATA'!$D$7,$I9='[2]TABLE DATA'!$D$7),$J9>$N9),"SIGN TOO WIDE",IF(AND(AND($I9>'[2]TABLE DATA'!$D$7,OR($I9<'[2]TABLE DATA'!$D$8,$I9='[2]TABLE DATA'!$D$8)),'[2]Input-Output Data'!$J9<'[2]Input-Output Data'!$K9),'[2]TABLE DATA'!N$8,IF(AND(AND($I9>'[2]TABLE DATA'!$D$7,OR($I9<'[2]TABLE DATA'!$D$8,$I9='[2]TABLE DATA'!$D$8)),AND('[2]Input-Output Data'!$J9>'[2]Input-Output Data'!$M9,OR('[2]Input-Output Data'!$J9<'[2]Input-Output Data'!$N9,'[2]Input-Output Data'!$J9='[2]Input-Output Data'!$N9))),'[2]TABLE DATA'!N$9,IF(AND(AND($I9>'[2]TABLE DATA'!$D$7,OR($I9<'[2]TABLE DATA'!$D$8,$I9='[2]TABLE DATA'!$D$8)),$J9>'[2]Input-Output Data'!$N9),"SIGN TOO WIDE",IF(AND(AND($I9>'[2]TABLE DATA'!$D$8,OR($I9<'[2]TABLE DATA'!$D$9,$I9='[2]TABLE DATA'!$D$9)),'[2]Input-Output Data'!$J9<'[2]Input-Output Data'!$K9),'[2]TABLE DATA'!N$9,"SIGN TOO WIDE")))))))))) -> 0.5 | X9: =IF(I9="Arm Too Long", "Reduce V or W",IF($I9>'[2]TABLE DATA'!$D$9,"SIGN TOO LARGE",IF(AND(OR($I9<'[2]TABLE DATA'!$D$7,$I9='[2]TABLE DATA'!$D$7),OR('[2]Input-Output Data'!$J9<'[2]Input-Output Data'!$K9,'[2]Input-Output Data'!$J9='[2]Input-Output Data'!$K9)),'[2]TABLE DATA'!O$7,IF(AND(OR($I9<'[2]TABLE DATA'!$D$7,$I9='[2]TABLE DATA'!$D$7),AND($J9>$L9),OR('[2]Input-Output Data'!$J9<'[2]Input-Output Data'!$M9,'[2]Input-Output Data'!$J9='[2]Input-Output Data'!$M9)),'[2]TABLE DATA'!O$8,IF(AND(OR($I9<'[2]TABLE DATA'!$D$7,$I9='[2]TABLE DATA'!$D$7),AND($J9>$M9),OR('[2]Input-Output Data'!$J9<'[2]Input-Output Data'!$N9,'[2]Input-Output Data'!$J9='[2]Input-Output Data'!$N9)),'[2]TABLE DATA'!O$9,IF(AND(OR($I9<'[2]TABLE DATA'!$D$7,$I9='[2]TABLE DATA'!$D$7),$J9>$N9),"SIGN TOO WIDE",IF(AND(AND($I9>'[2]TABLE DATA'!$D$7,OR($I9<'[2]TABLE DATA'!$D$8,$I9='[2]TABLE DATA'!$D$8)),'[2]Input-Output Data'!$J9<'[2]Input-Output Data'!$K9),'[2]TABLE DATA'!O$8,IF(AND(AND($I9>'[2]TABLE DATA'!$D$7,OR($I9<'[2]TABLE DATA'!$D$8,$I9='[2]TABLE DATA'!$D$8)),AND('[2]Input-Output Data'!$J9>'[2]Input-Output Data'!$M9,OR('[2]Input-Output Data'!$J9<'[2]Input-Output Data'!$N9,'[2]Input-Output Data'!$J9='[2]Input-Output Data'!$N9))),'[2]TABLE DATA'!O$9,IF(AND(AND($I9>'[2]TABLE DATA'!$D$7,OR($I9<'[2]TABLE DATA'!$D$8,$I9='[2]TABLE DATA'!$D$8)),$J9>'[2]Input-Output Data'!$N9),"SIGN TOO WIDE",IF(AND(AND($I9>'[2]TABLE DATA'!$D$8,OR($I9<'[2]TABLE DATA'!$D$9,$I9='[2]TABLE DATA'!$D$9)),'[2]Input-Output Data'!$J9<'[2]Input-Output Data'!$K9),'[2]TABLE DATA'!O$9,"SIGN TOO WIDE")))))))))) -> 0.5 | Y9: I
D10: 72 | E10: 60 | F10: Square | G10: II | H10: 36 | I10: 30 | J10: 38 | K10: =IF(OR(I10<'[2]TABLE DATA'!$D$7,I10='[2]TABLE DATA'!$D$7),717.75/I10,IF(AND('[2]TABLE DATA'!$D$7<I10,OR(I10<'[2]TABLE DATA'!$D$8,I10='[2]TABLE DATA'!$D$8)),1695/I10,IF(AND('[2]TABLE DATA'!$D$8<I10,OR(I10<'[2]TABLE DATA'!$D$9,I10='[2]TABLE DATA'!$D$9)),2268/I10,IF(I10="Arm Too Long", "Reduce V or W","Sign Too Wide")))) -> 56.5 | L10: =717.75/'[2]Input-Output Data'!I10 -> 23.93 | M10: 56.5 | N10: 75.6 | O10: =IF(I10="Arm Too Long", "Reduce V or W",IF($I10>'[2]TABLE DATA'!$D$9,"SIGN TOO LARGE",IF(AND(OR($I10<'[2]TABLE DATA'!$D$7,$I10='[2]TABLE DATA'!$D$7),OR('[2]Input-Output Data'!$J10<'[2]Input-Output Data'!$K10,'[2]Input-Output Data'!$J10='[2]Input-Output Data'!$K10)),'[2]TABLE DATA'!F$7,IF(AND(OR($I10<'[2]TABLE DATA'!$D$7,$I10='[2]TABLE DATA'!$D$7),AND($J10>$L10),OR('[2]Input-Output Data'!$J10<'[2]Input-Output Data'!$M10,'[2]Input-Output Data'!$J10='[2]Input-Output Data'!$M10)),'[2]TABLE DATA'!F$8,IF(AND(OR($I10<'[2]TABLE DATA'!$D$7,$I10='[2]TABLE DATA'!$D$7),AND($J10>$M10),OR('[2]Input-Output Data'!$J10<'[2]Input-Output Data'!$N10,'[2]Input-Output Data'!$J10='[2]Input-Output Data'!$N10)),'[2]TABLE DATA'!F$9,IF(AND(OR($I10<'[2]TABLE DATA'!$D$7,$I10='[2]TABLE DATA'!$D$7),$J10>$N10),"SIGN TOO WIDE",IF(AND(AND($I10>'[2]TABLE DATA'!$D$7,OR($I10<'[2]TABLE DATA'!$D$8,$I10='[2]TABLE DATA'!$D$8)),'[2]Input-Output Data'!$J10<'[2]Input-Output Data'!$K10),'[2]TABLE DATA'!F$8,IF(AND(AND($I10>'[2]TABLE DATA'!$D$7,OR($I10<'[2]TABLE DATA'!$D$8,$I10='[2]TABLE DATA'!$D$8)),AND('[2]Input-Output Data'!$J10>'[2]Input-Output Data'!$M10,OR('[2]Input-Output Data'!$J10<'[2]Input-Output Data'!$N10,'[2]Input-Output Data'!$J10='[2]Input-Output Data'!$N10))),'[2]TABLE DATA'!F$9,IF(AND(AND($I10>'[2]TABLE DATA'!$D$7,OR($I10<'[2]TABLE DATA'!$D$8,$I10='[2]TABLE DATA'!$D$8)),$J10>'[2]Input-Output Data'!$N10),"SIGN TOO WIDE",IF(AND(AND($I10>'[2]TABLE DATA'!$D$8,OR($I10<'[2]TABLE DATA'!$D$9,$I10='[2]TABLE DATA'!$D$9)),'[2]Input-Output Data'!$J10<'[2]Input-Output Data'!$K10),'[2]TABLE DATA'!F$9,"SIGN TOO WIDE")))))))))) -> 5 | P10: =IF(I10="Arm Too Long", "Reduce V or W",IF($I10>'[2]TABLE DATA'!$D$9,"SIGN TOO LARGE",IF(AND(OR($I10<'[2]TABLE DATA'!$D$7,$I10='[2]TABLE DATA'!$D$7),OR('[2]Input-Output Data'!$J10<'[2]Input-Output Data'!$K10,'[2]Input-Output Data'!$J10='[2]Input-Output Data'!$K10)),'[2]TABLE DATA'!G$7,IF(AND(OR($I10<'[2]TABLE DATA'!$D$7,$I10='[2]TABLE DATA'!$D$7),AND($J10>$L10),OR('[2]Input-Output Data'!$J10<'[2]Input-Output Data'!$M10,'[2]Input-Output Data'!$J10='[2]Input-Output Data'!$M10)),'[2]TABLE DATA'!G$8,IF(AND(OR($I10<'[2]TABLE DATA'!$D$7,$I10='[2]TABLE DATA'!$D$7),AND($J10>$M10),OR('[2]Input-Output Data'!$J10<'[2]Input-Output Data'!$N10,'[2]Input-Output Data'!$J10='[2]Input-Output Data'!$N10)),'[2]TABLE DATA'!G$9,IF(AND(OR($I10<'[2]TABLE DATA'!$D$7,$I10='[2]TABLE DATA'!$D$7),$J10>$N10),"SIGN TOO WIDE",IF(AND(AND($I10>'[2]TABLE DATA'!$D$7,OR($I10<'[2]TABLE DATA'!$D$8,$I10='[2]TABLE DATA'!$D$8)),'[2]Input-Output Data'!$J10<'[2]Input-Output Data'!$K10),'[2]TABLE DATA'!G$8,IF(AND(AND($I10>'[2]TABLE DATA'!$D$7,OR($I10<'[2]TABLE DATA'!$D$8,$I10='[2]TABLE DATA'!$D$8)),AND('[2]Input-Output Data'!$J10>'[2]Input-Output Data'!$M10,OR('[2]Input-Output Data'!$J10<'[2]Input-Output Data'!$N10,'[2]Input-Output Data'!$J10='[2]Input-Output Data'!$N10))),'[2]TABLE DATA'!G$9,IF(AND(AND($I10>'[2]TABLE DATA'!$D$7,OR($I10<'[2]TABLE DATA'!$D$8,$I10='[2]TABLE DATA'!$D$8)),$J10>'[2]Input-Output Data'!$N10),"SIGN TOO WIDE",IF(AND(AND($I10>'[2]TABLE DATA'!$D$8,OR($I10<'[2]TABLE DATA'!$D$9,$I10='[2]TABLE DATA'!$D$9)),'[2]Input-Output Data'!$J10<'[2]Input-Output Data'!$K10),'[2]TABLE DATA'!G$9,"SIGN TOO WIDE")))))))))) -> 3 | Q10: =IF(I10="Arm Too Long", "Reduce V or W",IF($I10>'[2]TABLE DATA'!$D$9,"SIGN TOO LARGE",IF(AND(OR($I10<'[2]TABLE DATA'!$D$7,$I10='[2]TABLE DATA'!$D$7),OR('[2]Input-Output Data'!$J10<'[2]Input-Output Data'!$K10,'[2]Input-Output Data'!$J10='[2]Input-Output Data'!$K10)),'[2]TABLE DATA'!H$7,IF(AND(OR($I10<'[2]TABLE DATA'!$D$7,$I10='[2]TABLE DATA'!$D$7),AND($J10>$L10),OR('[2]Input-Output Data'!$J10<'[2]Input-Output Data'!$M10,'[2]Input-Output Data'!$J10='[2]Input-Output Data'!$M10)),'[2]TABLE DATA'!H$8,IF(AND(OR($I10<'[2]TABLE DATA'!$D$7,$I10='[2]TABLE DATA'!$D$7),AND($J10>$M10),OR('[2]Input-Output Data'!$J10<'[2]Input-Output Data'!$N10,'[2]Input-Output Data'!$J10='[2]Input-Output Data'!$N10)),'[2]TABLE DATA'!H$9,IF(AND(OR($I10<'[2]TABLE DATA'!$D$7,$I10='[2]TABLE DATA'!$D$7),$J10>$N10),"SIGN TOO WIDE",IF(AND(AND($I10>'[2]TABLE DATA'!$D$7,OR($I10<'[2]TABLE DATA'!$D$8,$I10='[2]TABLE DATA'!$D$8)),'[2]Input-Output Data'!$J10<'[2]Input-Output Data'!$K10),'[2]TABLE DATA'!H$8,IF(AND(AND($I10>'[2]TABLE DATA'!$D$7,OR($I10<'[2]TABLE DATA'!$D$8,$I10='[2]TABLE DATA'!$D$8)),AND('[2]Input-Output Data'!$J10>'[2]Input-Output Data'!$M10,OR('[2]Input-Output Data'!$J10<'[2]Input-Output Data'!$N10,'[2]Input-Output Data'!$J10='[2]Input-Output Data'!$N10))),'[2]TABLE DATA'!H$9,IF(AND(AND($I10>'[2]TABLE DATA'!$D$7,OR($I10<'[2]TABLE DATA'!$D$8,$I10='[2]TABLE DATA'!$D$8)),$J10>'[2]Input-Output Data'!$N10),"SIGN TOO WIDE",IF(AND(AND($I10>'[2]TABLE DATA'!$D$8,OR($I10<'[2]TABLE DATA'!$D$9,$I10='[2]TABLE DATA'!$D$9)),'[2]Input-Output Data'!$J10<'[2]Input-Output Data'!$K10),'[2]TABLE DATA'!H$9,"SIGN TOO WIDE")))))))))) -> 0.875 | R10: =IF(I10="Arm Too Long", "Reduce V or W",IF($I10>'[2]TABLE DATA'!$D$9,"SIGN TOO LARGE",IF(AND(OR($I10<'[2]TABLE DATA'!$D$7,$I10='[2]TABLE DATA'!$D$7),OR('[2]Input-Output Data'!$J10<'[2]Input-Output Data'!$K10,'[2]Input-Output Data'!$J10='[2]Input-Output Data'!$K10)),'[2]TABLE DATA'!I$7,IF(AND(OR($I10<'[2]TABLE DATA'!$D$7,$I10='[2]TABLE DATA'!$D$7),AND($J10>$L10),OR('[2]Input-Output Data'!$J10<'[2]Input-Output Data'!$M10,'[2]Input-Output Data'!$J10='[2]Input-Output Data'!$M10)),'[2]TABLE DATA'!I$8,IF(AND(OR($I10<'[2]TABLE DATA'!$D$7,$I10='[2]TABLE DATA'!$D$7),AND($J10>$M10),OR('[2]Input-Output Data'!$J10<'[2]Input-Output Data'!$N10,'[2]Input-Output Data'!$J10='[2]Input-Output Data'!$N10)),'[2]TABLE DATA'!I$9,IF(AND(OR($I10<'[2]TABLE DATA'!$D$7,$I10='[2]TABLE DATA'!$D$7),$J10>$N10),"SIGN TOO WIDE",IF(AND(AND($I10>'[2]TABLE DATA'!$D$7,OR($I10<'[2]TABLE DATA'!$D$8,$I10='[2]TABLE DATA'!$D$8)),'[2]Input-Output Data'!$J10<'[2]Input-Output Data'!$K10),'[2]TABLE DATA'!I$8,IF(AND(AND($I10>'[2]TABLE DATA'!$D$7,OR($I10<'[2]TABLE DATA'!$D$8,$I10='[2]TABLE DATA'!$D$8)),AND('[2]Input-Output Data'!$J10>'[2]Input-Output Data'!$M10,OR('[2]Input-Output Data'!$J10<'[2]Input-Output Data'!$N10,'[2]Input-Output Data'!$J10='[2]Input-Output Data'!$N10))),'[2]TABLE DATA'!I$9,IF(AND(AND($I10>'[2]TABLE DATA'!$D$7,OR($I10<'[2]TABLE DATA'!$D$8,$I10='[2]TABLE DATA'!$D$8)),$J10>'[2]Input-Output Data'!$N10),"SIGN TOO WIDE",IF(AND(AND($I10>'[2]TABLE DATA'!$D$8,OR($I10<'[2]TABLE DATA'!$D$9,$I10='[2]TABLE DATA'!$D$9)),'[2]Input-Output Data'!$J10<'[2]Input-Output Data'!$K10),'[2]TABLE DATA'!I$9,"SIGN TOO WIDE")))))))))) -> 8 | S10: =IF(I10="Arm Too Long", "Reduce V or W",IF($I10>'[2]TABLE DATA'!$D$9,"SIGN TOO LARGE",IF(AND(OR($I10<'[2]TABLE DATA'!$D$7,$I10='[2]TABLE DATA'!$D$7),OR('[2]Input-Output Data'!$J10<'[2]Input-Output Data'!$K10,'[2]Input-Output Data'!$J10='[2]Input-Output Data'!$K10)),'[2]TABLE DATA'!J$7,IF(AND(OR($I10<'[2]TABLE DATA'!$D$7,$I10='[2]TABLE DATA'!$D$7),AND($J10>$L10),OR('[2]Input-Output Data'!$J10<'[2]Input-Output Data'!$M10,'[2]Input-Output Data'!$J10='[2]Input-Output Data'!$M10)),'[2]TABLE DATA'!J$8,IF(AND(OR($I10<'[2]TABLE DATA'!$D$7,$I10='[2]TABLE DATA'!$D$7),AND($J10>$M10),OR('[2]Input-Output Data'!$J10<'[2]Input-Output Data'!$N10,'[2]Input-Output Data'!$J10='[2]Input-Output Data'!$N10)),'[2]TABLE DATA'!J$9,IF(AND(OR($I10<'[2]TABLE DATA'!$D$7,$I10='[2]TABLE DATA'!$D$7),$J10>$N10),"SIGN TOO WIDE",IF(AND(AND($I10>'[2]TABLE DATA'!$D$7,OR($I10<'[2]TABLE DATA'!$D$8,$I10='[2]TABLE DATA'!$D$8)),'[2]Input-Output Data'!$J10<'[2]Input-Output Data'!$K10),'[2]TABLE DATA'!J$8,IF(AND(AND($I10>'[2]TABLE DATA'!$D$7,OR($I10<'[2]TABLE DATA'!$D$8,$I10='[2]TABLE DATA'!$D$8)),AND('[2]Input-Output Data'!$J10>'[2]Input-Output Data'!$M10,OR('[2]Input-Output Data'!$J10<'[2]Input-Output Data'!$N10,'[2]Input-Output Data'!$J10='[2]Input-Output Data'!$N10))),'[2]TABLE DATA'!J$9,IF(AND(AND($I10>'[2]TABLE DATA'!$D$7,OR($I10<'[2]TABLE DATA'!$D$8,$I10='[2]TABLE DATA'!$D$8)),$J10>'[2]Input-Output Data'!$N10),"SIGN TOO WIDE",IF(AND(AND($I10>'[2]TABLE DATA'!$D$8,OR($I10<'[2]TABLE DATA'!$D$9,$I10='[2]TABLE DATA'!$D$9)),'[2]Input-Output Data'!$J10<'[2]Input-Output Data'!$K10),'[2]TABLE DATA'!J$9,"SIGN TOO WIDE")))))))))) -> 2 | T10: =IF(I10="Arm Too Long", "Reduce V or W",IF($I10>'[2]TABLE DATA'!$D$9,"SIGN TOO LARGE",IF(AND(OR($I10<'[2]TABLE DATA'!$D$7,$I10='[2]TABLE DATA'!$D$7),OR('[2]Input-Output Data'!$J10<'[2]Input-Output Data'!$K10,'[2]Input-Output Data'!$J10='[2]Input-Output Data'!$K10)),'[2]TABLE DATA'!K$7,IF(AND(OR($I10<'[2]TABLE DATA'!$D$7,$I10='[2]TABLE DATA'!$D$7),AND($J10>$L10),OR('[2]Input-Output Data'!$J10<'[2]Input-Output Data'!$M10,'[2]Input-Output Data'!$J10='[2]Input-Output Data'!$M10)),'[2]TABLE DATA'!K$8,IF(AND(OR($I10<'[2]TABLE DATA'!$D$7,$I10='[2]TABLE DATA'!$D$7),AND($J10>$M10),OR('[2]Input-Output Data'!$J10<'[2]Input-Output Data'!$N10,'[2]Input-Output Data'!$J10='[2]Input-Output Data'!$N10)),'[2]TABLE DATA'!K$9,IF(AND(OR($I10<'[2]TABLE DATA'!$D$7,$I10='[2]TABLE DATA'!$D$7),$J10>$N10),"SIGN TOO WIDE",IF(AND(AND($I10>'[2]TABLE DATA'!$D$7,OR($I10<'[2]TABLE DATA'!$D$8,$I10='[2]TABLE DATA'!$D$8)),'[2]Input-Output Data'!$J10<'[2]Input-Output Data'!$K10),'[2]TABLE DATA'!K$8,IF(AND(AND($I10>'[2]TABLE DATA'!$D$7,OR($I10<'[2]TABLE DATA'!$D$8,$I10='[2]TABLE DATA'!$D$8)),AND('[2]Input-Output Data'!$J10>'[2]Input-Output Data'!$M10,OR('[2]Input-Output Data'!$J10<'[2]Input-Output Data'!$N10,'[2]Input-Output Data'!$J10='[2]Input-Output Data'!$N10))),'[2]TABLE DATA'!K$9,IF(AND(AND($I10>'[2]TABLE DATA'!$D$7,OR($I10<'[2]TABLE DATA'!$D$8,$I10='[2]TABLE DATA'!$D$8)),$J10>'[2]Input-Output Data'!$N10),"SIGN TOO WIDE",IF(AND(AND($I10>'[2]TABLE DATA'!$D$8,OR($I10<'[2]TABLE DATA'!$D$9,$I10='[2]TABLE DATA'!$D$9)),'[2]Input-Output Data'!$J10<'[2]Input-Output Data'!$K10),'[2]TABLE DATA'!K$9,"SIGN TOO WIDE")))))))))) -> 80 | U10: =IF(I10="Arm Too Long", "Reduce V or W",IF($I10>'[2]TABLE DATA'!$D$9,"SIGN TOO LARGE",IF(AND(OR($I10<'[2]TABLE DATA'!$D$7,$I10='[2]TABLE DATA'!$D$7),OR('[2]Input-Output Data'!$J10<'[2]Input-Output Data'!$K10,'[2]Input-Output Data'!$J10='[2]Input-Output Data'!$K10)),'[2]TABLE DATA'!L$7,IF(AND(OR($I10<'[2]TABLE DATA'!$D$7,$I10='[2]TABLE DATA'!$D$7),AND($J10>$L10),OR('[2]Input-Output Data'!$J10<'[2]Input-Output Data'!$M10,'[2]Input-Output Data'!$J10='[2]Input-Output Data'!$M10)),'[2]TABLE DATA'!L$8,IF(AND(OR($I10<'[2]TABLE DATA'!$D$7,$I10='[2]TABLE DATA'!$D$7),AND($J10>$M10),OR('[2]Input-Output Data'!$J10<'[2]Input-Output Data'!$N10,'[2]Input-Output Data'!$J10='[2]Input-Output Data'!$N10)),'[2]TABLE DATA'!L$9,IF(AND(OR($I10<'[2]TABLE DATA'!$D$7,$I10='[2]TABLE DATA'!$D$7),$J10>$N10),"SIGN TOO WIDE",IF(AND(AND($I10>'[2]TABLE DATA'!$D$7,OR($I10<'[2]TABLE DATA'!$D$8,$I10='[2]TABLE DATA'!$D$8)),'[2]Input-Output Data'!$J10<'[2]Input-Output Data'!$K10),'[2]TABLE DATA'!L$8,IF(AND(AND($I10>'[2]TABLE DATA'!$D$7,OR($I10<'[2]TABLE DATA'!$D$8,$I10='[2]TABLE DATA'!$D$8)),AND('[2]Input-Output Data'!$J10>'[2]Input-Output Data'!$M10,OR('[2]Input-Output Data'!$J10<'[2]Input-Output Data'!$N10,'[2]Input-Output Data'!$J10='[2]Input-Output Data'!$N10))),'[2]TABLE DATA'!L$9,IF(AND(AND($I10>'[2]TABLE DATA'!$D$7,OR($I10<'[2]TABLE DATA'!$D$8,$I10='[2]TABLE DATA'!$D$8)),$J10>'[2]Input-Output Data'!$N10),"SIGN TOO WIDE",IF(AND(AND($I10>'[2]TABLE DATA'!$D$8,OR($I10<'[2]TABLE DATA'!$D$9,$I10='[2]TABLE DATA'!$D$9)),'[2]Input-Output Data'!$J10<'[2]Input-Output Data'!$K10),'[2]TABLE DATA'!L$9,"SIGN TOO WIDE")))))))))) -> 14.5 | V10: =IF(I10="Arm Too Long", "Reduce V or W",IF($I10>'[2]TABLE DATA'!$D$9,"SIGN TOO LARGE",IF(AND(OR($I10<'[2]TABLE DATA'!$D$7,$I10='[2]TABLE DATA'!$D$7),OR('[2]Input-Output Data'!$J10<'[2]Input-Output Data'!$K10,'[2]Input-Output Data'!$J10='[2]Input-Output Data'!$K10)),'[2]TABLE DATA'!M$7,IF(AND(OR($I10<'[2]TABLE DATA'!$D$7,$I10='[2]TABLE DATA'!$D$7),AND($J10>$L10),OR('[2]Input-Output Data'!$J10<'[2]Input-Output Data'!$M10,'[2]Input-Output Data'!$J10='[2]Input-Output Data'!$M10)),'[2]TABLE DATA'!M$8,IF(AND(OR($I10<'[2]TABLE DATA'!$D$7,$I10='[2]TABLE DATA'!$D$7),AND($J10>$M10),OR('[2]Input-Output Data'!$J10<'[2]Input-Output Data'!$N10,'[2]Input-Output Data'!$J10='[2]Input-Output Data'!$N10)),'[2]TABLE DATA'!M$9,IF(AND(OR($I10<'[2]TABLE DATA'!$D$7,$I10='[2]TABLE DATA'!$D$7),$J10>$N10),"SIGN TOO WIDE",IF(AND(AND($I10>'[2]TABLE DATA'!$D$7,OR($I10<'[2]TABLE DATA'!$D$8,$I10='[2]TABLE DATA'!$D$8)),'[2]Input-Output Data'!$J10<'[2]Input-Output Data'!$K10),'[2]TABLE DATA'!M$8,IF(AND(AND($I10>'[2]TABLE DATA'!$D$7,OR($I10<'[2]TABLE DATA'!$D$8,$I10='[2]TABLE DATA'!$D$8)),AND('[2]Input-Output Data'!$J10>'[2]Input-Output Data'!$M10,OR('[2]Input-Output Data'!$J10<'[2]Input-Output Data'!$N10,'[2]Input-Output Data'!$J10='[2]Input-Output Data'!$N10))),'[2]TABLE DATA'!M$9,IF(AND(AND($I10>'[2]TABLE DATA'!$D$7,OR($I10<'[2]TABLE DATA'!$D$8,$I10='[2]TABLE DATA'!$D$8)),$J10>'[2]Input-Output Data'!$N10),"SIGN TOO WIDE",IF(AND(AND($I10>'[2]TABLE DATA'!$D$8,OR($I10<'[2]TABLE DATA'!$D$9,$I10='[2]TABLE DATA'!$D$9)),'[2]Input-Output Data'!$J10<'[2]Input-Output Data'!$K10),'[2]TABLE DATA'!M$9,"SIGN TOO WIDE")))))))))) -> 0.625 | W10: =IF(I10="Arm Too Long", "Reduce V or W",IF($I10>'[2]TABLE DATA'!$D$9,"SIGN TOO LARGE",IF(AND(OR($I10<'[2]TABLE DATA'!$D$7,$I10='[2]TABLE DATA'!$D$7),OR('[2]Input-Output Data'!$J10<'[2]Input-Output Data'!$K10,'[2]Input-Output Data'!$J10='[2]Input-Output Data'!$K10)),'[2]TABLE DATA'!N$7,IF(AND(OR($I10<'[2]TABLE DATA'!$D$7,$I10='[2]TABLE DATA'!$D$7),AND($J10>$L10),OR('[2]Input-Output Data'!$J10<'[2]Input-Output Data'!$M10,'[2]Input-Output Data'!$J10='[2]Input-Output Data'!$M10)),'[2]TABLE DATA'!N$8,IF(AND(OR($I10<'[2]TABLE DATA'!$D$7,$I10='[2]TABLE DATA'!$D$7),AND($J10>$M10),OR('[2]Input-Output Data'!$J10<'[2]Input-Output Data'!$N10,'[2]Input-Output Data'!$J10='[2]Input-Output Data'!$N10)),'[2]TABLE DATA'!N$9,IF(AND(OR($I10<'[2]TABLE DATA'!$D$7,$I10='[2]TABLE DATA'!$D$7),$J10>$N10),"SIGN TOO WIDE",IF(AND(AND($I10>'[2]TABLE DATA'!$D$7,OR($I10<'[2]TABLE DATA'!$D$8,$I10='[2]TABLE DATA'!$D$8)),'[2]Input-Output Data'!$J10<'[2]Input-Output Data'!$K10),'[2]TABLE DATA'!N$8,IF(AND(AND($I10>'[2]TABLE DATA'!$D$7,OR($I10<'[2]TABLE DATA'!$D$8,$I10='[2]TABLE DATA'!$D$8)),AND('[2]Input-Output Data'!$J10>'[2]Input-Output Data'!$M10,OR('[2]Input-Output Data'!$J10<'[2]Input-Output Data'!$N10,'[2]Input-Output Data'!$J10='[2]Input-Output Data'!$N10))),'[2]TABLE DATA'!N$9,IF(AND(AND($I10>'[2]TABLE DATA'!$D$7,OR($I10<'[2]TABLE DATA'!$D$8,$I10='[2]TABLE DATA'!$D$8)),$J10>'[2]Input-Output Data'!$N10),"SIGN TOO WIDE",IF(AND(AND($I10>'[2]TABLE DATA'!$D$8,OR($I10<'[2]TABLE DATA'!$D$9,$I10='[2]TABLE DATA'!$D$9)),'[2]Input-Output Data'!$J10<'[2]Input-Output Data'!$K10),'[2]TABLE DATA'!N$9,"SIGN TOO WIDE")))))))))) -> 0.625 | X10: =IF(I10="Arm Too Long", "Reduce V or W",IF($I10>'[2]TABLE DATA'!$D$9,"SIGN TOO LARGE",IF(AND(OR($I10<'[2]TABLE DATA'!$D$7,$I10='[2]TABLE DATA'!$D$7),OR('[2]Input-Output Data'!$J10<'[2]Input-Output Data'!$K10,'[2]Input-Output Data'!$J10='[2]Input-Output Data'!$K10)),'[2]TABLE DATA'!O$7,IF(AND(OR($I10<'[2]TABLE DATA'!$D$7,$I10='[2]TABLE DATA'!$D$7),AND($J10>$L10),OR('[2]Input-Output Data'!$J10<'[2]Input-Output Data'!$M10,'[2]Input-Output Data'!$J10='[2]Input-Output Data'!$M10)),'[2]TABLE DATA'!O$8,IF(AND(OR($I10<'[2]TABLE DATA'!$D$7,$I10='[2]TABLE DATA'!$D$7),AND($J10>$M10),OR('[2]Input-Output Data'!$J10<'[2]Input-Output Data'!$N10,'[2]Input-Output Data'!$J10='[2]Input-Output Data'!$N10)),'[2]TABLE DATA'!O$9,IF(AND(OR($I10<'[2]TABLE DATA'!$D$7,$I10='[2]TABLE DATA'!$D$7),$J10>$N10),"SIGN TOO WIDE",IF(AND(AND($I10>'[2]TABLE DATA'!$D$7,OR($I10<'[2]TABLE DATA'!$D$8,$I10='[2]TABLE DATA'!$D$8)),'[2]Input-Output Data'!$J10<'[2]Input-Output Data'!$K10),'[2]TABLE DATA'!O$8,IF(AND(AND($I10>'[2]TABLE DATA'!$D$7,OR($I10<'[2]TABLE DATA'!$D$8,$I10='[2]TABLE DATA'!$D$8)),AND('[2]Input-Output Data'!$J10>'[2]Input-Output Data'!$M10,OR('[2]Input-Output Data'!$J10<'[2]Input-Output Data'!$N10,'[2]Input-Output Data'!$J10='[2]Input-Output Data'!$N10))),'[2]TABLE DATA'!O$9,IF(AND(AND($I10>'[2]TABLE DATA'!$D$7,OR($I10<'[2]TABLE DATA'!$D$8,$I10='[2]TABLE DATA'!$D$8)),$J10>'[2]Input-Output Data'!$N10),"SIGN TOO WIDE",IF(AND(AND($I10>'[2]TABLE DATA'!$D$8,OR($I10<'[2]TABLE DATA'!$D$9,$I10='[2]TABLE DATA'!$D$9)),'[2]Input-Output Data'!$J10<'[2]Input-Output Data'!$K10),'[2]TABLE DATA'!O$9,"SIGN TOO WIDE")))))))))) -> 0.625 | Y10: II
D11: 84 | E11: 66 | F11: Square | G11: II | H11: 39 | I11: 38.5 | J11: 44 | K11: =IF(OR(I11<'[2]TABLE DATA'!$D$7,I11='[2]TABLE DATA'!$D$7),717.75/I11,IF(AND('[2]TABLE DATA'!$D$7<I11,OR(I11<'[2]TABLE DATA'!$D$8,I11='[2]TABLE DATA'!$D$8)),1695/I11,IF(AND('[2]TABLE DATA'!$D$8<I11,OR(I11<'[2]TABLE DATA'!$D$9,I11='[2]TABLE DATA'!$D$9)),2268/I11,IF(I11="Arm Too Long", "Reduce V or W","Sign Too Wide")))) -> 44.03 | L11: =717.75/'[2]Input-Output Data'!I11 -> 18.64 | M11: 44.03 | N11: 58.91 | O11: =IF(I11="Arm Too Long", "Reduce V or W",IF($I11>'[2]TABLE DATA'!$D$9,"SIGN TOO LARGE",IF(AND(OR($I11<'[2]TABLE DATA'!$D$7,$I11='[2]TABLE DATA'!$D$7),OR('[2]Input-Output Data'!$J11<'[2]Input-Output Data'!$K11,'[2]Input-Output Data'!$J11='[2]Input-Output Data'!$K11)),'[2]TABLE DATA'!F$7,IF(AND(OR($I11<'[2]TABLE DATA'!$D$7,$I11='[2]TABLE DATA'!$D$7),AND($J11>$L11),OR('[2]Input-Output Data'!$J11<'[2]Input-Output Data'!$M11,'[2]Input-Output Data'!$J11='[2]Input-Output Data'!$M11)),'[2]TABLE DATA'!F$8,IF(AND(OR($I11<'[2]TABLE DATA'!$D$7,$I11='[2]TABLE DATA'!$D$7),AND($J11>$M11),OR('[2]Input-Output Data'!$J11<'[2]Input-Output Data'!$N11,'[2]Input-Output Data'!$J11='[2]Input-Output Data'!$N11)),'[2]TABLE DATA'!F$9,IF(AND(OR($I11<'[2]TABLE DATA'!$D$7,$I11='[2]TABLE DATA'!$D$7),$J11>$N11),"SIGN TOO WIDE",IF(AND(AND($I11>'[2]TABLE DATA'!$D$7,OR($I11<'[2]TABLE DATA'!$D$8,$I11='[2]TABLE DATA'!$D$8)),'[2]Input-Output Data'!$J11<'[2]Input-Output Data'!$K11),'[2]TABLE DATA'!F$8,IF(AND(AND($I11>'[2]TABLE DATA'!$D$7,OR($I11<'[2]TABLE DATA'!$D$8,$I11='[2]TABLE DATA'!$D$8)),AND('[2]Input-Output Data'!$J11>'[2]Input-Output Data'!$M11,OR('[2]Input-Output Data'!$J11<'[2]Input-Output Data'!$N11,'[2]Input-Output Data'!$J11='[2]Input-Output Data'!$N11))),'[2]TABLE DATA'!F$9,IF(AND(AND($I11>'[2]TABLE DATA'!$D$7,OR($I11<'[2]TABLE DATA'!$D$8,$I11='[2]TABLE DATA'!$D$8)),$J11>'[2]Input-Output Data'!$N11),"SIGN TOO WIDE",IF(AND(AND($I11>'[2]TABLE DATA'!$D$8,OR($I11<'[2]TABLE DATA'!$D$9,$I11='[2]TABLE DATA'!$D$9)),'[2]Input-Output Data'!$J11<'[2]Input-Output Data'!$K11),'[2]TABLE DATA'!F$9,"SIGN TOO WIDE")))))))))) -> 5 | P11: =IF(I11="Arm Too Long", "Reduce V or W",IF($I11>'[2]TABLE DATA'!$D$9,"SIGN TOO LARGE",IF(AND(OR($I11<'[2]TABLE DATA'!$D$7,$I11='[2]TABLE DATA'!$D$7),OR('[2]Input-Output Data'!$J11<'[2]Input-Output Data'!$K11,'[2]Input-Output Data'!$J11='[2]Input-Output Data'!$K11)),'[2]TABLE DATA'!G$7,IF(AND(OR($I11<'[2]TABLE DATA'!$D$7,$I11='[2]TABLE DATA'!$D$7),AND($J11>$L11),OR('[2]Input-Output Data'!$J11<'[2]Input-Output Data'!$M11,'[2]Input-Output Data'!$J11='[2]Input-Output Data'!$M11)),'[2]TABLE DATA'!G$8,IF(AND(OR($I11<'[2]TABLE DATA'!$D$7,$I11='[2]TABLE DATA'!$D$7),AND($J11>$M11),OR('[2]Input-Output Data'!$J11<'[2]Input-Output Data'!$N11,'[2]Input-Output Data'!$J11='[2]Input-Output Data'!$N11)),'[2]TABLE DATA'!G$9,IF(AND(OR($I11<'[2]TABLE DATA'!$D$7,$I11='[2]TABLE DATA'!$D$7),$J11>$N11),"SIGN TOO WIDE",IF(AND(AND($I11>'[2]TABLE DATA'!$D$7,OR($I11<'[2]TABLE DATA'!$D$8,$I11='[2]TABLE DATA'!$D$8)),'[2]Input-Output Data'!$J11<'[2]Input-Output Data'!$K11),'[2]TABLE DATA'!G$8,IF(AND(AND($I11>'[2]TABLE DATA'!$D$7,OR($I11<'[2]TABLE DATA'!$D$8,$I11='[2]TABLE DATA'!$D$8)),AND('[2]Input-Output Data'!$J11>'[2]Input-Output Data'!$M11,OR('[2]Input-Output Data'!$J11<'[2]Input-Output Data'!$N11,'[2]Input-Output Data'!$J11='[2]Input-Output Data'!$N11))),'[2]TABLE DATA'!G$9,IF(AND(AND($I11>'[2]TABLE DATA'!$D$7,OR($I11<'[2]TABLE DATA'!$D$8,$I11='[2]TABLE DATA'!$D$8)),$J11>'[2]Input-Output Data'!$N11),"SIGN TOO WIDE",IF(AND(AND($I11>'[2]TABLE DATA'!$D$8,OR($I11<'[2]TABLE DATA'!$D$9,$I11='[2]TABLE DATA'!$D$9)),'[2]Input-Output Data'!$J11<'[2]Input-Output Data'!$K11),'[2]TABLE DATA'!G$9,"SIGN TOO WIDE")))))))))) -> 3 | Q11: =IF(I11="Arm Too Long", "Reduce V or W",IF($I11>'[2]TABLE DATA'!$D$9,"SIGN TOO LARGE",IF(AND(OR($I11<'[2]TABLE DATA'!$D$7,$I11='[2]TABLE DATA'!$D$7),OR('[2]Input-Output Data'!$J11<'[2]Input-Output Data'!$K11,'[2]Input-Output Data'!$J11='[2]Input-Output Data'!$K11)),'[2]TABLE DATA'!H$7,IF(AND(OR($I11<'[2]TABLE DATA'!$D$7,$I11='[2]TABLE DATA'!$D$7),AND($J11>$L11),OR('[2]Input-Output Data'!$J11<'[2]Input-Output Data'!$M11,'[2]Input-Output Data'!$J11='[2]Input-Output Data'!$M11)),'[2]TABLE DATA'!H$8,IF(AND(OR($I11<'[2]TABLE DATA'!$D$7,$I11='[2]TABLE DATA'!$D$7),AND($J11>$M11),OR('[2]Input-Output Data'!$J11<'[2]Input-Output Data'!$N11,'[2]Input-Output Data'!$J11='[2]Input-Output Data'!$N11)),'[2]TABLE DATA'!H$9,IF(AND(OR($I11<'[2]TABLE DATA'!$D$7,$I11='[2]TABLE DATA'!$D$7),$J11>$N11),"SIGN TOO WIDE",IF(AND(AND($I11>'[2]TABLE DATA'!$D$7,OR($I11<'[2]TABLE DATA'!$D$8,$I11='[2]TABLE DATA'!$D$8)),'[2]Input-Output Data'!$J11<'[2]Input-Output Data'!$K11),'[2]TABLE DATA'!H$8,IF(AND(AND($I11>'[2]TABLE DATA'!$D$7,OR($I11<'[2]TABLE DATA'!$D$8,$I11='[2]TABLE DATA'!$D$8)),AND('[2]Input-Output Data'!$J11>'[2]Input-Output Data'!$M11,OR('[2]Input-Output Data'!$J11<'[2]Input-Output Data'!$N11,'[2]Input-Output Data'!$J11='[2]Input-Output Data'!$N11))),'[2]TABLE DATA'!H$9,IF(AND(AND($I11>'[2]TABLE DATA'!$D$7,OR($I11<'[2]TABLE DATA'!$D$8,$I11='[2]TABLE DATA'!$D$8)),$J11>'[2]Input-Output Data'!$N11),"SIGN TOO WIDE",IF(AND(AND($I11>'[2]TABLE DATA'!$D$8,OR($I11<'[2]TABLE DATA'!$D$9,$I11='[2]TABLE DATA'!$D$9)),'[2]Input-Output Data'!$J11<'[2]Input-Output Data'!$K11),'[2]TABLE DATA'!H$9,"SIGN TOO WIDE")))))))))) -> 0.875 | R11: =IF(I11="Arm Too Long", "Reduce V or W",IF($I11>'[2]TABLE DATA'!$D$9,"SIGN TOO LARGE",IF(AND(OR($I11<'[2]TABLE DATA'!$D$7,$I11='[2]TABLE DATA'!$D$7),OR('[2]Input-Output Data'!$J11<'[2]Input-Output Data'!$K11,'[2]Input-Output Data'!$J11='[2]Input-Output Data'!$K11)),'[2]TABLE DATA'!I$7,IF(AND(OR($I11<'[2]TABLE DATA'!$D$7,$I11='[2]TABLE DATA'!$D$7),AND($J11>$L11),OR('[2]Input-Output Data'!$J11<'[2]Input-Output Data'!$M11,'[2]Input-Output Data'!$J11='[2]Input-Output Data'!$M11)),'[2]TABLE DATA'!I$8,IF(AND(OR($I11<'[2]TABLE DATA'!$D$7,$I11='[2]TABLE DATA'!$D$7),AND($J11>$M11),OR('[2]Input-Output Data'!$J11<'[2]Input-Output Data'!$N11,'[2]Input-Output Data'!$J11='[2]Input-Output Data'!$N11)),'[2]TABLE DATA'!I$9,IF(AND(OR($I11<'[2]TABLE DATA'!$D$7,$I11='[2]TABLE DATA'!$D$7),$J11>$N11),"SIGN TOO WIDE",IF(AND(AND($I11>'[2]TABLE DATA'!$D$7,OR($I11<'[2]TABLE DATA'!$D$8,$I11='[2]TABLE DATA'!$D$8)),'[2]Input-Output Data'!$J11<'[2]Input-Output Data'!$K11),'[2]TABLE DATA'!I$8,IF(AND(AND($I11>'[2]TABLE DATA'!$D$7,OR($I11<'[2]TABLE DATA'!$D$8,$I11='[2]TABLE DATA'!$D$8)),AND('[2]Input-Output Data'!$J11>'[2]Input-Output Data'!$M11,OR('[2]Input-Output Data'!$J11<'[2]Input-Output Data'!$N11,'[2]Input-Output Data'!$J11='[2]Input-Output Data'!$N11))),'[2]TABLE DATA'!I$9,IF(AND(AND($I11>'[2]TABLE DATA'!$D$7,OR($I11<'[2]TABLE DATA'!$D$8,$I11='[2]TABLE DATA'!$D$8)),$J11>'[2]Input-Output Data'!$N11),"SIGN TOO WIDE",IF(AND(AND($I11>'[2]TABLE DATA'!$D$8,OR($I11<'[2]TABLE DATA'!$D$9,$I11='[2]TABLE DATA'!$D$9)),'[2]Input-Output Data'!$J11<'[2]Input-Output Data'!$K11),'[2]TABLE DATA'!I$9,"SIGN TOO WIDE")))))))))) -> 8 | S11: =IF(I11="Arm Too Long", "Reduce V or W",IF($I11>'[2]TABLE DATA'!$D$9,"SIGN TOO LARGE",IF(AND(OR($I11<'[2]TABLE DATA'!$D$7,$I11='[2]TABLE DATA'!$D$7),OR('[2]Input-Output Data'!$J11<'[2]Input-Output Data'!$K11,'[2]Input-Output Data'!$J11='[2]Input-Output Data'!$K11)),'[2]TABLE DATA'!J$7,IF(AND(OR($I11<'[2]TABLE DATA'!$D$7,$I11='[2]TABLE DATA'!$D$7),AND($J11>$L11),OR('[2]Input-Output Data'!$J11<'[2]Input-Output Data'!$M11,'[2]Input-Output Data'!$J11='[2]Input-Output Data'!$M11)),'[2]TABLE DATA'!J$8,IF(AND(OR($I11<'[2]TABLE DATA'!$D$7,$I11='[2]TABLE DATA'!$D$7),AND($J11>$M11),OR('[2]Input-Output Data'!$J11<'[2]Input-Output Data'!$N11,'[2]Input-Output Data'!$J11='[2]Input-Output Data'!$N11)),'[2]TABLE DATA'!J$9,IF(AND(OR($I11<'[2]TABLE DATA'!$D$7,$I11='[2]TABLE DATA'!$D$7),$J11>$N11),"SIGN TOO WIDE",IF(AND(AND($I11>'[2]TABLE DATA'!$D$7,OR($I11<'[2]TABLE DATA'!$D$8,$I11='[2]TABLE DATA'!$D$8)),'[2]Input-Output Data'!$J11<'[2]Input-Output Data'!$K11),'[2]TABLE DATA'!J$8,IF(AND(AND($I11>'[2]TABLE DATA'!$D$7,OR($I11<'[2]TABLE DATA'!$D$8,$I11='[2]TABLE DATA'!$D$8)),AND('[2]Input-Output Data'!$J11>'[2]Input-Output Data'!$M11,OR('[2]Input-Output Data'!$J11<'[2]Input-Output Data'!$N11,'[2]Input-Output Data'!$J11='[2]Input-Output Data'!$N11))),'[2]TABLE DATA'!J$9,IF(AND(AND($I11>'[2]TABLE DATA'!$D$7,OR($I11<'[2]TABLE DATA'!$D$8,$I11='[2]TABLE DATA'!$D$8)),$J11>'[2]Input-Output Data'!$N11),"SIGN TOO WIDE",IF(AND(AND($I11>'[2]TABLE DATA'!$D$8,OR($I11<'[2]TABLE DATA'!$D$9,$I11='[2]TABLE DATA'!$D$9)),'[2]Input-Output Data'!$J11<'[2]Input-Output Data'!$K11),'[2]TABLE DATA'!J$9,"SIGN TOO WIDE")))))))))) -> 2 | T11: =IF(I11="Arm Too Long", "Reduce V or W",IF($I11>'[2]TABLE DATA'!$D$9,"SIGN TOO LARGE",IF(AND(OR($I11<'[2]TABLE DATA'!$D$7,$I11='[2]TABLE DATA'!$D$7),OR('[2]Input-Output Data'!$J11<'[2]Input-Output Data'!$K11,'[2]Input-Output Data'!$J11='[2]Input-Output Data'!$K11)),'[2]TABLE DATA'!K$7,IF(AND(OR($I11<'[2]TABLE DATA'!$D$7,$I11='[2]TABLE DATA'!$D$7),AND($J11>$L11),OR('[2]Input-Output Data'!$J11<'[2]Input-Output Data'!$M11,'[2]Input-Output Data'!$J11='[2]Input-Output Data'!$M11)),'[2]TABLE DATA'!K$8,IF(AND(OR($I11<'[2]TABLE DATA'!$D$7,$I11='[2]TABLE DATA'!$D$7),AND($J11>$M11),OR('[2]Input-Output Data'!$J11<'[2]Input-Output Data'!$N11,'[2]Input-Output Data'!$J11='[2]Input-Output Data'!$N11)),'[2]TABLE DATA'!K$9,IF(AND(OR($I11<'[2]TABLE DATA'!$D$7,$I11='[2]TABLE DATA'!$D$7),$J11>$N11),"SIGN TOO WIDE",IF(AND(AND($I11>'[2]TABLE DATA'!$D$7,OR($I11<'[2]TABLE DATA'!$D$8,$I11='[2]TABLE DATA'!$D$8)),'[2]Input-Output Data'!$J11<'[2]Input-Output Data'!$K11),'[2]TABLE DATA'!K$8,IF(AND(AND($I11>'[2]TABLE DATA'!$D$7,OR($I11<'[2]TABLE DATA'!$D$8,$I11='[2]TABLE DATA'!$D$8)),AND('[2]Input-Output Data'!$J11>'[2]Input-Output Data'!$M11,OR('[2]Input-Output Data'!$J11<'[2]Input-Output Data'!$N11,'[2]Input-Output Data'!$J11='[2]Input-Output Data'!$N11))),'[2]TABLE DATA'!K$9,IF(AND(AND($I11>'[2]TABLE DATA'!$D$7,OR($I11<'[2]TABLE DATA'!$D$8,$I11='[2]TABLE DATA'!$D$8)),$J11>'[2]Input-Output Data'!$N11),"SIGN TOO WIDE",IF(AND(AND($I11>'[2]TABLE DATA'!$D$8,OR($I11<'[2]TABLE DATA'!$D$9,$I11='[2]TABLE DATA'!$D$9)),'[2]Input-Output Data'!$J11<'[2]Input-Output Data'!$K11),'[2]TABLE DATA'!K$9,"SIGN TOO WIDE")))))))))) -> 80 | U11: =IF(I11="Arm Too Long", "Reduce V or W",IF($I11>'[2]TABLE DATA'!$D$9,"SIGN TOO LARGE",IF(AND(OR($I11<'[2]TABLE DATA'!$D$7,$I11='[2]TABLE DATA'!$D$7),OR('[2]Input-Output Data'!$J11<'[2]Input-Output Data'!$K11,'[2]Input-Output Data'!$J11='[2]Input-Output Data'!$K11)),'[2]TABLE DATA'!L$7,IF(AND(OR($I11<'[2]TABLE DATA'!$D$7,$I11='[2]TABLE DATA'!$D$7),AND($J11>$L11),OR('[2]Input-Output Data'!$J11<'[2]Input-Output Data'!$M11,'[2]Input-Output Data'!$J11='[2]Input-Output Data'!$M11)),'[2]TABLE DATA'!L$8,IF(AND(OR($I11<'[2]TABLE DATA'!$D$7,$I11='[2]TABLE DATA'!$D$7),AND($J11>$M11),OR('[2]Input-Output Data'!$J11<'[2]Input-Output Data'!$N11,'[2]Input-Output Data'!$J11='[2]Input-Output Data'!$N11)),'[2]TABLE DATA'!L$9,IF(AND(OR($I11<'[2]TABLE DATA'!$D$7,$I11='[2]TABLE DATA'!$D$7),$J11>$N11),"SIGN TOO WIDE",IF(AND(AND($I11>'[2]TABLE DATA'!$D$7,OR($I11<'[2]TABLE DATA'!$D$8,$I11='[2]TABLE DATA'!$D$8)),'[2]Input-Output Data'!$J11<'[2]Input-Output Data'!$K11),'[2]TABLE DATA'!L$8,IF(AND(AND($I11>'[2]TABLE DATA'!$D$7,OR($I11<'[2]TABLE DATA'!$D$8,$I11='[2]TABLE DATA'!$D$8)),AND('[2]Input-Output Data'!$J11>'[2]Input-Output Data'!$M11,OR('[2]Input-Output Data'!$J11<'[2]Input-Output Data'!$N11,'[2]Input-Output Data'!$J11='[2]Input-Output Data'!$N11))),'[2]TABLE DATA'!L$9,IF(AND(AND($I11>'[2]TABLE DATA'!$D$7,OR($I11<'[2]TABLE DATA'!$D$8,$I11='[2]TABLE DATA'!$D$8)),$J11>'[2]Input-Output Data'!$N11),"SIGN TOO WIDE",IF(AND(AND($I11>'[2]TABLE DATA'!$D$8,OR($I11<'[2]TABLE DATA'!$D$9,$I11='[2]TABLE DATA'!$D$9)),'[2]Input-Output Data'!$J11<'[2]Input-Output Data'!$K11),'[2]TABLE DATA'!L$9,"SIGN TOO WIDE")))))))))) -> 14.5 | V11: =IF(I11="Arm Too Long", "Reduce V or W",IF($I11>'[2]TABLE DATA'!$D$9,"SIGN TOO LARGE",IF(AND(OR($I11<'[2]TABLE DATA'!$D$7,$I11='[2]TABLE DATA'!$D$7),OR('[2]Input-Output Data'!$J11<'[2]Input-Output Data'!$K11,'[2]Input-Output Data'!$J11='[2]Input-Output Data'!$K11)),'[2]TABLE DATA'!M$7,IF(AND(OR($I11<'[2]TABLE DATA'!$D$7,$I11='[2]TABLE DATA'!$D$7),AND($J11>$L11),OR('[2]Input-Output Data'!$J11<'[2]Input-Output Data'!$M11,'[2]Input-Output Data'!$J11='[2]Input-Output Data'!$M11)),'[2]TABLE DATA'!M$8,IF(AND(OR($I11<'[2]TABLE DATA'!$D$7,$I11='[2]TABLE DATA'!$D$7),AND($J11>$M11),OR('[2]Input-Output Data'!$J11<'[2]Input-Output Data'!$N11,'[2]Input-Output Data'!$J11='[2]Input-Output Data'!$N11)),'[2]TABLE DATA'!M$9,IF(AND(OR($I11<'[2]TABLE DATA'!$D$7,$I11='[2]TABLE DATA'!$D$7),$J11>$N11),"SIGN TOO WIDE",IF(AND(AND($I11>'[2]TABLE DATA'!$D$7,OR($I11<'[2]TABLE DATA'!$D$8,$I11='[2]TABLE DATA'!$D$8)),'[2]Input-Output Data'!$J11<'[2]Input-Output Data'!$K11),'[2]TABLE DATA'!M$8,IF(AND(AND($I11>'[2]TABLE DATA'!$D$7,OR($I11<'[2]TABLE DATA'!$D$8,$I11='[2]TABLE DATA'!$D$8)),AND('[2]Input-Output Data'!$J11>'[2]Input-Output Data'!$M11,OR('[2]Input-Output Data'!$J11<'[2]Input-Output Data'!$N11,'[2]Input-Output Data'!$J11='[2]Input-Output Data'!$N11))),'[2]TABLE DATA'!M$9,IF(AND(AND($I11>'[2]TABLE DATA'!$D$7,OR($I11<'[2]TABLE DATA'!$D$8,$I11='[2]TABLE DATA'!$D$8)),$J11>'[2]Input-Output Data'!$N11),"SIGN TOO WIDE",IF(AND(AND($I11>'[2]TABLE DATA'!$D$8,OR($I11<'[2]TABLE DATA'!$D$9,$I11='[2]TABLE DATA'!$D$9)),'[2]Input-Output Data'!$J11<'[2]Input-Output Data'!$K11),'[2]TABLE DATA'!M$9,"SIGN TOO WIDE")))))))))) -> 0.625 | W11: =IF(I11="Arm Too Long", "Reduce V or W",IF($I11>'[2]TABLE DATA'!$D$9,"SIGN TOO LARGE",IF(AND(OR($I11<'[2]TABLE DATA'!$D$7,$I11='[2]TABLE DATA'!$D$7),OR('[2]Input-Output Data'!$J11<'[2]Input-Output Data'!$K11,'[2]Input-Output Data'!$J11='[2]Input-Output Data'!$K11)),'[2]TABLE DATA'!N$7,IF(AND(OR($I11<'[2]TABLE DATA'!$D$7,$I11='[2]TABLE DATA'!$D$7),AND($J11>$L11),OR('[2]Input-Output Data'!$J11<'[2]Input-Output Data'!$M11,'[2]Input-Output Data'!$J11='[2]Input-Output Data'!$M11)),'[2]TABLE DATA'!N$8,IF(AND(OR($I11<'[2]TABLE DATA'!$D$7,$I11='[2]TABLE DATA'!$D$7),AND($J11>$M11),OR('[2]Input-Output Data'!$J11<'[2]Input-Output Data'!$N11,'[2]Input-Output Data'!$J11='[2]Input-Output Data'!$N11)),'[2]TABLE DATA'!N$9,IF(AND(OR($I11<'[2]TABLE DATA'!$D$7,$I11='[2]TABLE DATA'!$D$7),$J11>$N11),"SIGN TOO WIDE",IF(AND(AND($I11>'[2]TABLE DATA'!$D$7,OR($I11<'[2]TABLE DATA'!$D$8,$I11='[2]TABLE DATA'!$D$8)),'[2]Input-Output Data'!$J11<'[2]Input-Output Data'!$K11),'[2]TABLE DATA'!N$8,IF(AND(AND($I11>'[2]TABLE DATA'!$D$7,OR($I11<'[2]TABLE DATA'!$D$8,$I11='[2]TABLE DATA'!$D$8)),AND('[2]Input-Output Data'!$J11>'[2]Input-Output Data'!$M11,OR('[2]Input-Output Data'!$J11<'[2]Input-Output Data'!$N11,'[2]Input-Output Data'!$J11='[2]Input-Output Data'!$N11))),'[2]TABLE DATA'!N$9,IF(AND(AND($I11>'[2]TABLE DATA'!$D$7,OR($I11<'[2]TABLE DATA'!$D$8,$I11='[2]TABLE DATA'!$D$8)),$J11>'[2]Input-Output Data'!$N11),"SIGN TOO WIDE",IF(AND(AND($I11>'[2]TABLE DATA'!$D$8,OR($I11<'[2]TABLE DATA'!$D$9,$I11='[2]TABLE DATA'!$D$9)),'[2]Input-Output Data'!$J11<'[2]Input-Output Data'!$K11),'[2]TABLE DATA'!N$9,"SIGN TOO WIDE")))))))))) -> 0.625 | X11: =IF(I11="Arm Too Long", "Reduce V or W",IF($I11>'[2]TABLE DATA'!$D$9,"SIGN TOO LARGE",IF(AND(OR($I11<'[2]TABLE DATA'!$D$7,$I11='[2]TABLE DATA'!$D$7),OR('[2]Input-Output Data'!$J11<'[2]Input-Output Data'!$K11,'[2]Input-Output Data'!$J11='[2]Input-Output Data'!$K11)),'[2]TABLE DATA'!O$7,IF(AND(OR($I11<'[2]TABLE DATA'!$D$7,$I11='[2]TABLE DATA'!$D$7),AND($J11>$L11),OR('[2]Input-Output Data'!$J11<'[2]Input-Output Data'!$M11,'[2]Input-Output Data'!$J11='[2]Input-Output Data'!$M11)),'[2]TABLE DATA'!O$8,IF(AND(OR($I11<'[2]TABLE DATA'!$D$7,$I11='[2]TABLE DATA'!$D$7),AND($J11>$M11),OR('[2]Input-Output Data'!$J11<'[2]Input-Output Data'!$N11,'[2]Input-Output Data'!$J11='[2]Input-Output Data'!$N11)),'[2]TABLE DATA'!O$9,IF(AND(OR($I11<'[2]TABLE DATA'!$D$7,$I11='[2]TABLE DATA'!$D$7),$J11>$N11),"SIGN TOO WIDE",IF(AND(AND($I11>'[2]TABLE DATA'!$D$7,OR($I11<'[2]TABLE DATA'!$D$8,$I11='[2]TABLE DATA'!$D$8)),'[2]Input-Output Data'!$J11<'[2]Input-Output Data'!$K11),'[2]TABLE DATA'!O$8,IF(AND(AND($I11>'[2]TABLE DATA'!$D$7,OR($I11<'[2]TABLE DATA'!$D$8,$I11='[2]TABLE DATA'!$D$8)),AND('[2]Input-Output Data'!$J11>'[2]Input-Output Data'!$M11,OR('[2]Input-Output Data'!$J11<'[2]Input-Output Data'!$N11,'[2]Input-Output Data'!$J11='[2]Input-Output Data'!$N11))),'[2]TABLE DATA'!O$9,IF(AND(AND($I11>'[2]TABLE DATA'!$D$7,OR($I11<'[2]TABLE DATA'!$D$8,$I11='[2]TABLE DATA'!$D$8)),$J11>'[2]Input-Output Data'!$N11),"SIGN TOO WIDE",IF(AND(AND($I11>'[2]TABLE DATA'!$D$8,OR($I11<'[2]TABLE DATA'!$D$9,$I11='[2]TABLE DATA'!$D$9)),'[2]Input-Output Data'!$J11<'[2]Input-Output Data'!$K11),'[2]TABLE DATA'!O$9,"SIGN TOO WIDE")))))))))) -> 0.625 | Y11: II
D12: 36 | E12: 36 | F12: Square | G12: I | H12: 21 | I12: 9 | J12: 20 | K12: =IF(OR(I12<'[2]TABLE DATA'!$D$7,I12='[2]TABLE DATA'!$D$7),717.75/I12,IF(AND('[2]TABLE DATA'!$D$7<I12,OR(I12<'[2]TABLE DATA'!$D$8,I12='[2]TABLE DATA'!$D$8)),1695/I12,IF(AND('[2]TABLE DATA'!$D$8<I12,OR(I12<'[2]TABLE DATA'!$D$9,I12='[2]TABLE DATA'!$D$9)),2268/I12,IF(I12="Arm Too Long", "Reduce V or W","Sign Too Wide")))) -> 79.75 | L12: =717.75/'[2]Input-Output Data'!I12 -> 79.75 | M12: 188.33 | N12: 252 | O12: =IF(I12="Arm Too Long", "Reduce V or W",IF($I12>'[2]TABLE DATA'!$D$9,"SIGN TOO LARGE",IF(AND(OR($I12<'[2]TABLE DATA'!$D$7,$I12='[2]TABLE DATA'!$D$7),OR('[2]Input-Output Data'!$J12<'[2]Input-Output Data'!$K12,'[2]Input-Output Data'!$J12='[2]Input-Output Data'!$K12)),'[2]TABLE DATA'!F$7,IF(AND(OR($I12<'[2]TABLE DATA'!$D$7,$I12='[2]TABLE DATA'!$D$7),AND($J12>$L12),OR('[2]Input-Output Data'!$J12<'[2]Input-Output Data'!$M12,'[2]Input-Output Data'!$J12='[2]Input-Output Data'!$M12)),'[2]TABLE DATA'!F$8,IF(AND(OR($I12<'[2]TABLE DATA'!$D$7,$I12='[2]TABLE DATA'!$D$7),AND($J12>$M12),OR('[2]Input-Output Data'!$J12<'[2]Input-Output Data'!$N12,'[2]Input-Output Data'!$J12='[2]Input-Output Data'!$N12)),'[2]TABLE DATA'!F$9,IF(AND(OR($I12<'[2]TABLE DATA'!$D$7,$I12='[2]TABLE DATA'!$D$7),$J12>$N12),"SIGN TOO WIDE",IF(AND(AND($I12>'[2]TABLE DATA'!$D$7,OR($I12<'[2]TABLE DATA'!$D$8,$I12='[2]TABLE DATA'!$D$8)),'[2]Input-Output Data'!$J12<'[2]Input-Output Data'!$K12),'[2]TABLE DATA'!F$8,IF(AND(AND($I12>'[2]TABLE DATA'!$D$7,OR($I12<'[2]TABLE DATA'!$D$8,$I12='[2]TABLE DATA'!$D$8)),AND('[2]Input-Output Data'!$J12>'[2]Input-Output Data'!$M12,OR('[2]Input-Output Data'!$J12<'[2]Input-Output Data'!$N12,'[2]Input-Output Data'!$J12='[2]Input-Output Data'!$N12))),'[2]TABLE DATA'!F$9,IF(AND(AND($I12>'[2]TABLE DATA'!$D$7,OR($I12<'[2]TABLE DATA'!$D$8,$I12='[2]TABLE DATA'!$D$8)),$J12>'[2]Input-Output Data'!$N12),"SIGN TOO WIDE",IF(AND(AND($I12>'[2]TABLE DATA'!$D$8,OR($I12<'[2]TABLE DATA'!$D$9,$I12='[2]TABLE DATA'!$D$9)),'[2]Input-Output Data'!$J12<'[2]Input-Output Data'!$K12),'[2]TABLE DATA'!F$9,"SIGN TOO WIDE")))))))))) -> 4 | P12: =IF(I12="Arm Too Long", "Reduce V or W",IF($I12>'[2]TABLE DATA'!$D$9,"SIGN TOO LARGE",IF(AND(OR($I12<'[2]TABLE DATA'!$D$7,$I12='[2]TABLE DATA'!$D$7),OR('[2]Input-Output Data'!$J12<'[2]Input-Output Data'!$K12,'[2]Input-Output Data'!$J12='[2]Input-Output Data'!$K12)),'[2]TABLE DATA'!G$7,IF(AND(OR($I12<'[2]TABLE DATA'!$D$7,$I12='[2]TABLE DATA'!$D$7),AND($J12>$L12),OR('[2]Input-Output Data'!$J12<'[2]Input-Output Data'!$M12,'[2]Input-Output Data'!$J12='[2]Input-Output Data'!$M12)),'[2]TABLE DATA'!G$8,IF(AND(OR($I12<'[2]TABLE DATA'!$D$7,$I12='[2]TABLE DATA'!$D$7),AND($J12>$M12),OR('[2]Input-Output Data'!$J12<'[2]Input-Output Data'!$N12,'[2]Input-Output Data'!$J12='[2]Input-Output Data'!$N12)),'[2]TABLE DATA'!G$9,IF(AND(OR($I12<'[2]TABLE DATA'!$D$7,$I12='[2]TABLE DATA'!$D$7),$J12>$N12),"SIGN TOO WIDE",IF(AND(AND($I12>'[2]TABLE DATA'!$D$7,OR($I12<'[2]TABLE DATA'!$D$8,$I12='[2]TABLE DATA'!$D$8)),'[2]Input-Output Data'!$J12<'[2]Input-Output Data'!$K12),'[2]TABLE DATA'!G$8,IF(AND(AND($I12>'[2]TABLE DATA'!$D$7,OR($I12<'[2]TABLE DATA'!$D$8,$I12='[2]TABLE DATA'!$D$8)),AND('[2]Input-Output Data'!$J12>'[2]Input-Output Data'!$M12,OR('[2]Input-Output Data'!$J12<'[2]Input-Output Data'!$N12,'[2]Input-Output Data'!$J12='[2]Input-Output Data'!$N12))),'[2]TABLE DATA'!G$9,IF(AND(AND($I12>'[2]TABLE DATA'!$D$7,OR($I12<'[2]TABLE DATA'!$D$8,$I12='[2]TABLE DATA'!$D$8)),$J12>'[2]Input-Output Data'!$N12),"SIGN TOO WIDE",IF(AND(AND($I12>'[2]TABLE DATA'!$D$8,OR($I12<'[2]TABLE DATA'!$D$9,$I12='[2]TABLE DATA'!$D$9)),'[2]Input-Output Data'!$J12<'[2]Input-Output Data'!$K12),'[2]TABLE DATA'!G$9,"SIGN TOO WIDE")))))))))) -> 2 | Q12: =IF(I12="Arm Too Long", "Reduce V or W",IF($I12>'[2]TABLE DATA'!$D$9,"SIGN TOO LARGE",IF(AND(OR($I12<'[2]TABLE DATA'!$D$7,$I12='[2]TABLE DATA'!$D$7),OR('[2]Input-Output Data'!$J12<'[2]Input-Output Data'!$K12,'[2]Input-Output Data'!$J12='[2]Input-Output Data'!$K12)),'[2]TABLE DATA'!H$7,IF(AND(OR($I12<'[2]TABLE DATA'!$D$7,$I12='[2]TABLE DATA'!$D$7),AND($J12>$L12),OR('[2]Input-Output Data'!$J12<'[2]Input-Output Data'!$M12,'[2]Input-Output Data'!$J12='[2]Input-Output Data'!$M12)),'[2]TABLE DATA'!H$8,IF(AND(OR($I12<'[2]TABLE DATA'!$D$7,$I12='[2]TABLE DATA'!$D$7),AND($J12>$M12),OR('[2]Input-Output Data'!$J12<'[2]Input-Output Data'!$N12,'[2]Input-Output Data'!$J12='[2]Input-Output Data'!$N12)),'[2]TABLE DATA'!H$9,IF(AND(OR($I12<'[2]TABLE DATA'!$D$7,$I12='[2]TABLE DATA'!$D$7),$J12>$N12),"SIGN TOO WIDE",IF(AND(AND($I12>'[2]TABLE DATA'!$D$7,OR($I12<'[2]TABLE DATA'!$D$8,$I12='[2]TABLE DATA'!$D$8)),'[2]Input-Output Data'!$J12<'[2]Input-Output Data'!$K12),'[2]TABLE DATA'!H$8,IF(AND(AND($I12>'[2]TABLE DATA'!$D$7,OR($I12<'[2]TABLE DATA'!$D$8,$I12='[2]TABLE DATA'!$D$8)),AND('[2]Input-Output Data'!$J12>'[2]Input-Output Data'!$M12,OR('[2]Input-Output Data'!$J12<'[2]Input-Output Data'!$N12,'[2]Input-Output Data'!$J12='[2]Input-Output Data'!$N12))),'[2]TABLE DATA'!H$9,IF(AND(AND($I12>'[2]TABLE DATA'!$D$7,OR($I12<'[2]TABLE DATA'!$D$8,$I12='[2]TABLE DATA'!$D$8)),$J12>'[2]Input-Output Data'!$N12),"SIGN TOO WIDE",IF(AND(AND($I12>'[2]TABLE DATA'!$D$8,OR($I12<'[2]TABLE DATA'!$D$9,$I12='[2]TABLE DATA'!$D$9)),'[2]Input-Output Data'!$J12<'[2]Input-Output Data'!$K12),'[2]TABLE DATA'!H$9,"SIGN TOO WIDE")))))))))) -> 0.625 | R12: =IF(I12="Arm Too Long", "Reduce V or W",IF($I12>'[2]TABLE DATA'!$D$9,"SIGN TOO LARGE",IF(AND(OR($I12<'[2]TABLE DATA'!$D$7,$I12='[2]TABLE DATA'!$D$7),OR('[2]Input-Output Data'!$J12<'[2]Input-Output Data'!$K12,'[2]Input-Output Data'!$J12='[2]Input-Output Data'!$K12)),'[2]TABLE DATA'!I$7,IF(AND(OR($I12<'[2]TABLE DATA'!$D$7,$I12='[2]TABLE DATA'!$D$7),AND($J12>$L12),OR('[2]Input-Output Data'!$J12<'[2]Input-Output Data'!$M12,'[2]Input-Output Data'!$J12='[2]Input-Output Data'!$M12)),'[2]TABLE DATA'!I$8,IF(AND(OR($I12<'[2]TABLE DATA'!$D$7,$I12='[2]TABLE DATA'!$D$7),AND($J12>$M12),OR('[2]Input-Output Data'!$J12<'[2]Input-Output Data'!$N12,'[2]Input-Output Data'!$J12='[2]Input-Output Data'!$N12)),'[2]TABLE DATA'!I$9,IF(AND(OR($I12<'[2]TABLE DATA'!$D$7,$I12='[2]TABLE DATA'!$D$7),$J12>$N12),"SIGN TOO WIDE",IF(AND(AND($I12>'[2]TABLE DATA'!$D$7,OR($I12<'[2]TABLE DATA'!$D$8,$I12='[2]TABLE DATA'!$D$8)),'[2]Input-Output Data'!$J12<'[2]Input-Output Data'!$K12),'[2]TABLE DATA'!I$8,IF(AND(AND($I12>'[2]TABLE DATA'!$D$7,OR($I12<'[2]TABLE DATA'!$D$8,$I12='[2]TABLE DATA'!$D$8)),AND('[2]Input-Output Data'!$J12>'[2]Input-Output Data'!$M12,OR('[2]Input-Output Data'!$J12<'[2]Input-Output Data'!$N12,'[2]Input-Output Data'!$J12='[2]Input-Output Data'!$N12))),'[2]TABLE DATA'!I$9,IF(AND(AND($I12>'[2]TABLE DATA'!$D$7,OR($I12<'[2]TABLE DATA'!$D$8,$I12='[2]TABLE DATA'!$D$8)),$J12>'[2]Input-Output Data'!$N12),"SIGN TOO WIDE",IF(AND(AND($I12>'[2]TABLE DATA'!$D$8,OR($I12<'[2]TABLE DATA'!$D$9,$I12='[2]TABLE DATA'!$D$9)),'[2]Input-Output Data'!$J12<'[2]Input-Output Data'!$K12),'[2]TABLE DATA'!I$9,"SIGN TOO WIDE")))))))))) -> 5.625 | S12: =IF(I12="Arm Too Long", "Reduce V or W",IF($I12>'[2]TABLE DATA'!$D$9,"SIGN TOO LARGE",IF(AND(OR($I12<'[2]TABLE DATA'!$D$7,$I12='[2]TABLE DATA'!$D$7),OR('[2]Input-Output Data'!$J12<'[2]Input-Output Data'!$K12,'[2]Input-Output Data'!$J12='[2]Input-Output Data'!$K12)),'[2]TABLE DATA'!J$7,IF(AND(OR($I12<'[2]TABLE DATA'!$D$7,$I12='[2]TABLE DATA'!$D$7),AND($J12>$L12),OR('[2]Input-Output Data'!$J12<'[2]Input-Output Data'!$M12,'[2]Input-Output Data'!$J12='[2]Input-Output Data'!$M12)),'[2]TABLE DATA'!J$8,IF(AND(OR($I12<'[2]TABLE DATA'!$D$7,$I12='[2]TABLE DATA'!$D$7),AND($J12>$M12),OR('[2]Input-Output Data'!$J12<'[2]Input-Output Data'!$N12,'[2]Input-Output Data'!$J12='[2]Input-Output Data'!$N12)),'[2]TABLE DATA'!J$9,IF(AND(OR($I12<'[2]TABLE DATA'!$D$7,$I12='[2]TABLE DATA'!$D$7),$J12>$N12),"SIGN TOO WIDE",IF(AND(AND($I12>'[2]TABLE DATA'!$D$7,OR($I12<'[2]TABLE DATA'!$D$8,$I12='[2]TABLE DATA'!$D$8)),'[2]Input-Output Data'!$J12<'[2]Input-Output Data'!$K12),'[2]TABLE DATA'!J$8,IF(AND(AND($I12>'[2]TABLE DATA'!$D$7,OR($I12<'[2]TABLE DATA'!$D$8,$I12='[2]TABLE DATA'!$D$8)),AND('[2]Input-Output Data'!$J12>'[2]Input-Output Data'!$M12,OR('[2]Input-Output Data'!$J12<'[2]Input-Output Data'!$N12,'[2]Input-Output Data'!$J12='[2]Input-Output Data'!$N12))),'[2]TABLE DATA'!J$9,IF(AND(AND($I12>'[2]TABLE DATA'!$D$7,OR($I12<'[2]TABLE DATA'!$D$8,$I12='[2]TABLE DATA'!$D$8)),$J12>'[2]Input-Output Data'!$N12),"SIGN TOO WIDE",IF(AND(AND($I12>'[2]TABLE DATA'!$D$8,OR($I12<'[2]TABLE DATA'!$D$9,$I12='[2]TABLE DATA'!$D$9)),'[2]Input-Output Data'!$J12<'[2]Input-Output Data'!$K12),'[2]TABLE DATA'!J$9,"SIGN TOO WIDE")))))))))) -> 2 | T12: =IF(I12="Arm Too Long", "Reduce V or W",IF($I12>'[2]TABLE DATA'!$D$9,"SIGN TOO LARGE",IF(AND(OR($I12<'[2]TABLE DATA'!$D$7,$I12='[2]TABLE DATA'!$D$7),OR('[2]Input-Output Data'!$J12<'[2]Input-Output Data'!$K12,'[2]Input-Output Data'!$J12='[2]Input-Output Data'!$K12)),'[2]TABLE DATA'!K$7,IF(AND(OR($I12<'[2]TABLE DATA'!$D$7,$I12='[2]TABLE DATA'!$D$7),AND($J12>$L12),OR('[2]Input-Output Data'!$J12<'[2]Input-Output Data'!$M12,'[2]Input-Output Data'!$J12='[2]Input-Output Data'!$M12)),'[2]TABLE DATA'!K$8,IF(AND(OR($I12<'[2]TABLE DATA'!$D$7,$I12='[2]TABLE DATA'!$D$7),AND($J12>$M12),OR('[2]Input-Output Data'!$J12<'[2]Input-Output Data'!$N12,'[2]Input-Output Data'!$J12='[2]Input-Output Data'!$N12)),'[2]TABLE DATA'!K$9,IF(AND(OR($I12<'[2]TABLE DATA'!$D$7,$I12='[2]TABLE DATA'!$D$7),$J12>$N12),"SIGN TOO WIDE",IF(AND(AND($I12>'[2]TABLE DATA'!$D$7,OR($I12<'[2]TABLE DATA'!$D$8,$I12='[2]TABLE DATA'!$D$8)),'[2]Input-Output Data'!$J12<'[2]Input-Output Data'!$K12),'[2]TABLE DATA'!K$8,IF(AND(AND($I12>'[2]TABLE DATA'!$D$7,OR($I12<'[2]TABLE DATA'!$D$8,$I12='[2]TABLE DATA'!$D$8)),AND('[2]Input-Output Data'!$J12>'[2]Input-Output Data'!$M12,OR('[2]Input-Output Data'!$J12<'[2]Input-Output Data'!$N12,'[2]Input-Output Data'!$J12='[2]Input-Output Data'!$N12))),'[2]TABLE DATA'!K$9,IF(AND(AND($I12>'[2]TABLE DATA'!$D$7,OR($I12<'[2]TABLE DATA'!$D$8,$I12='[2]TABLE DATA'!$D$8)),$J12>'[2]Input-Output Data'!$N12),"SIGN TOO WIDE",IF(AND(AND($I12>'[2]TABLE DATA'!$D$8,OR($I12<'[2]TABLE DATA'!$D$9,$I12='[2]TABLE DATA'!$D$9)),'[2]Input-Output Data'!$J12<'[2]Input-Output Data'!$K12),'[2]TABLE DATA'!K$9,"SIGN TOO WIDE")))))))))) -> 60 | U12: =IF(I12="Arm Too Long", "Reduce V or W",IF($I12>'[2]TABLE DATA'!$D$9,"SIGN TOO LARGE",IF(AND(OR($I12<'[2]TABLE DATA'!$D$7,$I12='[2]TABLE DATA'!$D$7),OR('[2]Input-Output Data'!$J12<'[2]Input-Output Data'!$K12,'[2]Input-Output Data'!$J12='[2]Input-Output Data'!$K12)),'[2]TABLE DATA'!L$7,IF(AND(OR($I12<'[2]TABLE DATA'!$D$7,$I12='[2]TABLE DATA'!$D$7),AND($J12>$L12),OR('[2]Input-Output Data'!$J12<'[2]Input-Output Data'!$M12,'[2]Input-Output Data'!$J12='[2]Input-Output Data'!$M12)),'[2]TABLE DATA'!L$8,IF(AND(OR($I12<'[2]TABLE DATA'!$D$7,$I12='[2]TABLE DATA'!$D$7),AND($J12>$M12),OR('[2]Input-Output Data'!$J12<'[2]Input-Output Data'!$N12,'[2]Input-Output Data'!$J12='[2]Input-Output Data'!$N12)),'[2]TABLE DATA'!L$9,IF(AND(OR($I12<'[2]TABLE DATA'!$D$7,$I12='[2]TABLE DATA'!$D$7),$J12>$N12),"SIGN TOO WIDE",IF(AND(AND($I12>'[2]TABLE DATA'!$D$7,OR($I12<'[2]TABLE DATA'!$D$8,$I12='[2]TABLE DATA'!$D$8)),'[2]Input-Output Data'!$J12<'[2]Input-Output Data'!$K12),'[2]TABLE DATA'!L$8,IF(AND(AND($I12>'[2]TABLE DATA'!$D$7,OR($I12<'[2]TABLE DATA'!$D$8,$I12='[2]TABLE DATA'!$D$8)),AND('[2]Input-Output Data'!$J12>'[2]Input-Output Data'!$M12,OR('[2]Input-Output Data'!$J12<'[2]Input-Output Data'!$N12,'[2]Input-Output Data'!$J12='[2]Input-Output Data'!$N12))),'[2]TABLE DATA'!L$9,IF(AND(AND($I12>'[2]TABLE DATA'!$D$7,OR($I12<'[2]TABLE DATA'!$D$8,$I12='[2]TABLE DATA'!$D$8)),$J12>'[2]Input-Output Data'!$N12),"SIGN TOO WIDE",IF(AND(AND($I12>'[2]TABLE DATA'!$D$8,OR($I12<'[2]TABLE DATA'!$D$9,$I12='[2]TABLE DATA'!$D$9)),'[2]Input-Output Data'!$J12<'[2]Input-Output Data'!$K12),'[2]TABLE DATA'!L$9,"SIGN TOO WIDE")))))))))) -> 7.4 | V12: =IF(I12="Arm Too Long", "Reduce V or W",IF($I12>'[2]TABLE DATA'!$D$9,"SIGN TOO LARGE",IF(AND(OR($I12<'[2]TABLE DATA'!$D$7,$I12='[2]TABLE DATA'!$D$7),OR('[2]Input-Output Data'!$J12<'[2]Input-Output Data'!$K12,'[2]Input-Output Data'!$J12='[2]Input-Output Data'!$K12)),'[2]TABLE DATA'!M$7,IF(AND(OR($I12<'[2]TABLE DATA'!$D$7,$I12='[2]TABLE DATA'!$D$7),AND($J12>$L12),OR('[2]Input-Output Data'!$J12<'[2]Input-Output Data'!$M12,'[2]Input-Output Data'!$J12='[2]Input-Output Data'!$M12)),'[2]TABLE DATA'!M$8,IF(AND(OR($I12<'[2]TABLE DATA'!$D$7,$I12='[2]TABLE DATA'!$D$7),AND($J12>$M12),OR('[2]Input-Output Data'!$J12<'[2]Input-Output Data'!$N12,'[2]Input-Output Data'!$J12='[2]Input-Output Data'!$N12)),'[2]TABLE DATA'!M$9,IF(AND(OR($I12<'[2]TABLE DATA'!$D$7,$I12='[2]TABLE DATA'!$D$7),$J12>$N12),"SIGN TOO WIDE",IF(AND(AND($I12>'[2]TABLE DATA'!$D$7,OR($I12<'[2]TABLE DATA'!$D$8,$I12='[2]TABLE DATA'!$D$8)),'[2]Input-Output Data'!$J12<'[2]Input-Output Data'!$K12),'[2]TABLE DATA'!M$8,IF(AND(AND($I12>'[2]TABLE DATA'!$D$7,OR($I12<'[2]TABLE DATA'!$D$8,$I12='[2]TABLE DATA'!$D$8)),AND('[2]Input-Output Data'!$J12>'[2]Input-Output Data'!$M12,OR('[2]Input-Output Data'!$J12<'[2]Input-Output Data'!$N12,'[2]Input-Output Data'!$J12='[2]Input-Output Data'!$N12))),'[2]TABLE DATA'!M$9,IF(AND(AND($I12>'[2]TABLE DATA'!$D$7,OR($I12<'[2]TABLE DATA'!$D$8,$I12='[2]TABLE DATA'!$D$8)),$J12>'[2]Input-Output Data'!$N12),"SIGN TOO WIDE",IF(AND(AND($I12>'[2]TABLE DATA'!$D$8,OR($I12<'[2]TABLE DATA'!$D$9,$I12='[2]TABLE DATA'!$D$9)),'[2]Input-Output Data'!$J12<'[2]Input-Output Data'!$K12),'[2]TABLE DATA'!M$9,"SIGN TOO WIDE")))))))))) -> 0.5 | W12: =IF(I12="Arm Too Long", "Reduce V or W",IF($I12>'[2]TABLE DATA'!$D$9,"SIGN TOO LARGE",IF(AND(OR($I12<'[2]TABLE DATA'!$D$7,$I12='[2]TABLE DATA'!$D$7),OR('[2]Input-Output Data'!$J12<'[2]Input-Output Data'!$K12,'[2]Input-Output Data'!$J12='[2]Input-Output Data'!$K12)),'[2]TABLE DATA'!N$7,IF(AND(OR($I12<'[2]TABLE DATA'!$D$7,$I12='[2]TABLE DATA'!$D$7),AND($J12>$L12),OR('[2]Input-Output Data'!$J12<'[2]Input-Output Data'!$M12,'[2]Input-Output Data'!$J12='[2]Input-Output Data'!$M12)),'[2]TABLE DATA'!N$8,IF(AND(OR($I12<'[2]TABLE DATA'!$D$7,$I12='[2]TABLE DATA'!$D$7),AND($J12>$M12),OR('[2]Input-Output Data'!$J12<'[2]Input-Output Data'!$N12,'[2]Input-Output Data'!$J12='[2]Input-Output Data'!$N12)),'[2]TABLE DATA'!N$9,IF(AND(OR($I12<'[2]TABLE DATA'!$D$7,$I12='[2]TABLE DATA'!$D$7),$J12>$N12),"SIGN TOO WIDE",IF(AND(AND($I12>'[2]TABLE DATA'!$D$7,OR($I12<'[2]TABLE DATA'!$D$8,$I12='[2]TABLE DATA'!$D$8)),'[2]Input-Output Data'!$J12<'[2]Input-Output Data'!$K12),'[2]TABLE DATA'!N$8,IF(AND(AND($I12>'[2]TABLE DATA'!$D$7,OR($I12<'[2]TABLE DATA'!$D$8,$I12='[2]TABLE DATA'!$D$8)),AND('[2]Input-Output Data'!$J12>'[2]Input-Output Data'!$M12,OR('[2]Input-Output Data'!$J12<'[2]Input-Output Data'!$N12,'[2]Input-Output Data'!$J12='[2]Input-Output Data'!$N12))),'[2]TABLE DATA'!N$9,IF(AND(AND($I12>'[2]TABLE DATA'!$D$7,OR($I12<'[2]TABLE DATA'!$D$8,$I12='[2]TABLE DATA'!$D$8)),$J12>'[2]Input-Output Data'!$N12),"SIGN TOO WIDE",IF(AND(AND($I12>'[2]TABLE DATA'!$D$8,OR($I12<'[2]TABLE DATA'!$D$9,$I12='[2]TABLE DATA'!$D$9)),'[2]Input-Output Data'!$J12<'[2]Input-Output Data'!$K12),'[2]TABLE DATA'!N$9,"SIGN TOO WIDE")))))))))) -> 0.5 | X12: =IF(I12="Arm Too Long", "Reduce V or W",IF($I12>'[2]TABLE DATA'!$D$9,"SIGN TOO LARGE",IF(AND(OR($I12<'[2]TABLE DATA'!$D$7,$I12='[2]TABLE DATA'!$D$7),OR('[2]Input-Output Data'!$J12<'[2]Input-Output Data'!$K12,'[2]Input-Output Data'!$J12='[2]Input-Output Data'!$K12)),'[2]TABLE DATA'!O$7,IF(AND(OR($I12<'[2]TABLE DATA'!$D$7,$I12='[2]TABLE DATA'!$D$7),AND($J12>$L12),OR('[2]Input-Output Data'!$J12<'[2]Input-Output Data'!$M12,'[2]Input-Output Data'!$J12='[2]Input-Output Data'!$M12)),'[2]TABLE DATA'!O$8,IF(AND(OR($I12<'[2]TABLE DATA'!$D$7,$I12='[2]TABLE DATA'!$D$7),AND($J12>$M12),OR('[2]Input-Output Data'!$J12<'[2]Input-Output Data'!$N12,'[2]Input-Output Data'!$J12='[2]Input-Output Data'!$N12)),'[2]TABLE DATA'!O$9,IF(AND(OR($I12<'[2]TABLE DATA'!$D$7,$I12='[2]TABLE DATA'!$D$7),$J12>$N12),"SIGN TOO WIDE",IF(AND(AND($I12>'[2]TABLE DATA'!$D$7,OR($I12<'[2]TABLE DATA'!$D$8,$I12='[2]TABLE DATA'!$D$8)),'[2]Input-Output Data'!$J12<'[2]Input-Output Data'!$K12),'[2]TABLE DATA'!O$8,IF(AND(AND($I12>'[2]TABLE DATA'!$D$7,OR($I12<'[2]TABLE DATA'!$D$8,$I12='[2]TABLE DATA'!$D$8)),AND('[2]Input-Output Data'!$J12>'[2]Input-Output Data'!$M12,OR('[2]Input-Output Data'!$J12<'[2]Input-Output Data'!$N12,'[2]Input-Output Data'!$J12='[2]Input-Output Data'!$N12))),'[2]TABLE DATA'!O$9,IF(AND(AND($I12>'[2]TABLE DATA'!$D$7,OR($I12<'[2]TABLE DATA'!$D$8,$I12='[2]TABLE DATA'!$D$8)),$J12>'[2]Input-Output Data'!$N12),"SIGN TOO WIDE",IF(AND(AND($I12>'[2]TABLE DATA'!$D$8,OR($I12<'[2]TABLE DATA'!$D$9,$I12='[2]TABLE DATA'!$D$9)),'[2]Input-Output Data'!$J12<'[2]Input-Output Data'!$K12),'[2]TABLE DATA'!O$9,"SIGN TOO WIDE")))))))))) -> 0.5 | Y12: =IF(V12=0.5,"I",IF(V12=0.625,"II",IF(V12=0.75,"III","N/A"))) -> I
D14: 24 | E14: 12 | F14: Square | G14: =Y14 -> I | I14: =(D14*E14+D15*E15+D16*E16)/144 -> 8.19 | J14: =MAX(IF(F14="Square",2+D14/2,2+(SQRT(2)/2)*D14),IF(F15="Square",2+D15/2,2+(SQRT(2)/2)*D15),IF(F16="Square",2+D16/2,2+(SQRT(2)/2)*D16)) -> 14 | K14: =IF(OR(I14<'[2]TABLE DATA'!$D$7,I14='[2]TABLE DATA'!$D$7),717.75/I14,IF(AND('[2]TABLE DATA'!$D$7<I14,OR(I14<'[2]TABLE DATA'!$D$8,I14='[2]TABLE DATA'!$D$8)),1695/I14,IF(AND('[2]TABLE DATA'!$D$8<I14,OR(I14<'[2]TABLE DATA'!$D$9,I14='[2]TABLE DATA'!$D$9)),2268/I14,"Sign Too Wide"))) -> 87.64 | L14: =717.75/I14 -> 87.64 | M14: =1695/I14 -> 206.96 | N14: =2268/I14 -> 276.92 | O14: =IF(I5="Arm Too Long", "Reduce V or W",IF($I14>'[2]TABLE DATA'!$D$9,"SIGN TOO LARGE",IF(AND(OR($I14<'[2]TABLE DATA'!$D$7,$I14='[2]TABLE DATA'!$D$7),OR('[2]Input-Output Data'!$J14<'[2]Input-Output Data'!$K14,'[2]Input-Output Data'!$J14='[2]Input-Output Data'!$K14)),'[2]TABLE DATA'!F$7,IF(AND(OR($I14<'[2]TABLE DATA'!$D$7,$I14='[2]TABLE DATA'!$D$7),AND($J14>$L14),OR('[2]Input-Output Data'!$J14<'[2]Input-Output Data'!$M14,'[2]Input-Output Data'!$J14='[2]Input-Output Data'!$M14)),'[2]TABLE DATA'!F$8,IF(AND(OR($I14<'[2]TABLE DATA'!$D$7,$I14='[2]TABLE DATA'!$D$7),AND($J14>$M14),OR('[2]Input-Output Data'!$J14<'[2]Input-Output Data'!$N14,'[2]Input-Output Data'!$J14='[2]Input-Output Data'!$N14)),'[2]TABLE DATA'!F$9,IF(AND(OR($I14<'[2]TABLE DATA'!$D$7,$I14='[2]TABLE DATA'!$D$7),$J14>$N14),"SIGN TOO WIDE",IF(AND(AND($I14>'[2]TABLE DATA'!$D$7,OR($I14<'[2]TABLE DATA'!$D$8,$I14='[2]TABLE DATA'!$D$8)),'[2]Input-Output Data'!$J14<'[2]Input-Output Data'!$K14),'[2]TABLE DATA'!F$8,IF(AND(AND($I14>'[2]TABLE DATA'!$D$7,OR($I14<'[2]TABLE DATA'!$D$8,$I14='[2]TABLE DATA'!$D$8)),AND('[2]Input-Output Data'!$J14>'[2]Input-Output Data'!$M14,OR('[2]Input-Output Data'!$J14<'[2]Input-Output Data'!$N14,'[2]Input-Output Data'!$J14='[2]Input-Output Data'!$N14))),'[2]TABLE DATA'!F$9,IF(AND(AND($I14>'[2]TABLE DATA'!$D$7,OR($I14<'[2]TABLE DATA'!$D$8,$I14='[2]TABLE DATA'!$D$8)),$J14>'[2]Input-Output Data'!$N14),"SIGN TOO WIDE",IF(AND(AND($I14>'[2]TABLE DATA'!$D$8,OR($I14<'[2]TABLE DATA'!$D$9,$I14='[2]TABLE DATA'!$D$9)),'[2]Input-Output Data'!$J14<'[2]Input-Output Data'!$K14),'[2]TABLE DATA'!F$9,"SIGN TOO WIDE")))))))))) -> 4 | P14: =IF(I5="Arm Too Long", "Reduce V or W",IF($I14>'[2]TABLE DATA'!$D$9,"SIGN TOO LARGE",IF(AND(OR($I14<'[2]TABLE DATA'!$D$7,$I14='[2]TABLE DATA'!$D$7),OR('[2]Input-Output Data'!$J14<'[2]Input-Output Data'!$K14,'[2]Input-Output Data'!$J14='[2]Input-Output Data'!$K14)),'[2]TABLE DATA'!G$7,IF(AND(OR($I14<'[2]TABLE DATA'!$D$7,$I14='[2]TABLE DATA'!$D$7),AND($J14>$L14),OR('[2]Input-Output Data'!$J14<'[2]Input-Output Data'!$M14,'[2]Input-Output Data'!$J14='[2]Input-Output Data'!$M14)),'[2]TABLE DATA'!G$8,IF(AND(OR($I14<'[2]TABLE DATA'!$D$7,$I14='[2]TABLE DATA'!$D$7),AND($J14>$M14),OR('[2]Input-Output Data'!$J14<'[2]Input-Output Data'!$N14,'[2]Input-Output Data'!$J14='[2]Input-Output Data'!$N14)),'[2]TABLE DATA'!G$9,IF(AND(OR($I14<'[2]TABLE DATA'!$D$7,$I14='[2]TABLE DATA'!$D$7),$J14>$N14),"SIGN TOO WIDE",IF(AND(AND($I14>'[2]TABLE DATA'!$D$7,OR($I14<'[2]TABLE DATA'!$D$8,$I14='[2]TABLE DATA'!$D$8)),'[2]Input-Output Data'!$J14<'[2]Input-Output Data'!$K14),'[2]TABLE DATA'!G$8,IF(AND(AND($I14>'[2]TABLE DATA'!$D$7,OR($I14<'[2]TABLE DATA'!$D$8,$I14='[2]TABLE DATA'!$D$8)),AND('[2]Input-Output Data'!$J14>'[2]Input-Output Data'!$M14,OR('[2]Input-Output Data'!$J14<'[2]Input-Output Data'!$N14,'[2]Input-Output Data'!$J14='[2]Input-Output Data'!$N14))),'[2]TABLE DATA'!G$9,IF(AND(AND($I14>'[2]TABLE DATA'!$D$7,OR($I14<'[2]TABLE DATA'!$D$8,$I14='[2]TABLE DATA'!$D$8)),$J14>'[2]Input-Output Data'!$N14),"SIGN TOO WIDE",IF(AND(AND($I14>'[2]TABLE DATA'!$D$8,OR($I14<'[2]TABLE DATA'!$D$9,$I14='[2]TABLE DATA'!$D$9)),'[2]Input-Output Data'!$J14<'[2]Input-Output Data'!$K14),'[2]TABLE DATA'!G$9,"SIGN TOO WIDE")))))))))) -> 2 | Q14: =IF(I5="Arm Too Long", "Reduce V or W",IF($I14>'[2]TABLE DATA'!$D$9,"SIGN TOO LARGE",IF(AND(OR($I14<'[2]TABLE DATA'!$D$7,$I14='[2]TABLE DATA'!$D$7),OR('[2]Input-Output Data'!$J14<'[2]Input-Output Data'!$K14,'[2]Input-Output Data'!$J14='[2]Input-Output Data'!$K14)),'[2]TABLE DATA'!H$7,IF(AND(OR($I14<'[2]TABLE DATA'!$D$7,$I14='[2]TABLE DATA'!$D$7),AND($J14>$L14),OR('[2]Input-Output Data'!$J14<'[2]Input-Output Data'!$M14,'[2]Input-Output Data'!$J14='[2]Input-Output Data'!$M14)),'[2]TABLE DATA'!H$8,IF(AND(OR($I14<'[2]TABLE DATA'!$D$7,$I14='[2]TABLE DATA'!$D$7),AND($J14>$M14),OR('[2]Input-Output Data'!$J14<'[2]Input-Output Data'!$N14,'[2]Input-Output Data'!$J14='[2]Input-Output Data'!$N14)),'[2]TABLE DATA'!H$9,IF(AND(OR($I14<'[2]TABLE DATA'!$D$7,$I14='[2]TABLE DATA'!$D$7),$J14>$N14),"SIGN TOO WIDE",IF(AND(AND($I14>'[2]TABLE DATA'!$D$7,OR($I14<'[2]TABLE DATA'!$D$8,$I14='[2]TABLE DATA'!$D$8)),'[2]Input-Output Data'!$J14<'[2]Input-Output Data'!$K14),'[2]TABLE DATA'!H$8,IF(AND(AND($I14>'[2]TABLE DATA'!$D$7,OR($I14<'[2]TABLE DATA'!$D$8,$I14='[2]TABLE DATA'!$D$8)),AND('[2]Input-Output Data'!$J14>'[2]Input-Output Data'!$M14,OR('[2]Input-Output Data'!$J14<'[2]Input-Output Data'!$N14,'[2]Input-Output Data'!$J14='[2]Input-Output Data'!$N14))),'[2]TABLE DATA'!H$9,IF(AND(AND($I14>'[2]TABLE DATA'!$D$7,OR($I14<'[2]TABLE DATA'!$D$8,$I14='[2]TABLE DATA'!$D$8)),$J14>'[2]Input-Output Data'!$N14),"SIGN TOO WIDE",IF(AND(AND($I14>'[2]TABLE DATA'!$D$8,OR($I14<'[2]TABLE DATA'!$D$9,$I14='[2]TABLE DATA'!$D$9)),'[2]Input-Output Data'!$J14<'[2]Input-Output Data'!$K14),'[2]TABLE DATA'!H$9,"SIGN TOO WIDE")))))))))) -> 0.625 | R14: =IF(I5="Arm Too Long", "Reduce V or W",IF($I14>'[2]TABLE DATA'!$D$9,"SIGN TOO LARGE",IF(AND(OR($I14<'[2]TABLE DATA'!$D$7,$I14='[2]TABLE DATA'!$D$7),OR('[2]Input-Output Data'!$J14<'[2]Input-Output Data'!$K14,'[2]Input-Output Data'!$J14='[2]Input-Output Data'!$K14)),'[2]TABLE DATA'!I$7,IF(AND(OR($I14<'[2]TABLE DATA'!$D$7,$I14='[2]TABLE DATA'!$D$7),AND($J14>$L14),OR('[2]Input-Output Data'!$J14<'[2]Input-Output Data'!$M14,'[2]Input-Output Data'!$J14='[2]Input-Output Data'!$M14)),'[2]TABLE DATA'!I$8,IF(AND(OR($I14<'[2]TABLE DATA'!$D$7,$I14='[2]TABLE DATA'!$D$7),AND($J14>$M14),OR('[2]Input-Output Data'!$J14<'[2]Input-Output Data'!$N14,'[2]Input-Output Data'!$J14='[2]Input-Output Data'!$N14)),'[2]TABLE DATA'!I$9,IF(AND(OR($I14<'[2]TABLE DATA'!$D$7,$I14='[2]TABLE DATA'!$D$7),$J14>$N14),"SIGN TOO WIDE",IF(AND(AND($I14>'[2]TABLE DATA'!$D$7,OR($I14<'[2]TABLE DATA'!$D$8,$I14='[2]TABLE DATA'!$D$8)),'[2]Input-Output Data'!$J14<'[2]Input-Output Data'!$K14),'[2]TABLE DATA'!I$8,IF(AND(AND($I14>'[2]TABLE DATA'!$D$7,OR($I14<'[2]TABLE DATA'!$D$8,$I14='[2]TABLE DATA'!$D$8)),AND('[2]Input-Output Data'!$J14>'[2]Input-Output Data'!$M14,OR('[2]Input-Output Data'!$J14<'[2]Input-Output Data'!$N14,'[2]Input-Output Data'!$J14='[2]Input-Output Data'!$N14))),'[2]TABLE DATA'!I$9,IF(AND(AND($I14>'[2]TABLE DATA'!$D$7,OR($I14<'[2]TABLE DATA'!$D$8,$I14='[2]TABLE DATA'!$D$8)),$J14>'[2]Input-Output Data'!$N14),"SIGN TOO WIDE",IF(AND(AND($I14>'[2]TABLE DATA'!$D$8,OR($I14<'[2]TABLE DATA'!$D$9,$I14='[2]TABLE DATA'!$D$9)),'[2]Input-Output Data'!$J14<'[2]Input-Output Data'!$K14),'[2]TABLE DATA'!I$9,"SIGN TOO WIDE")))))))))) -> 5.625 | S14: =IF(I5="Arm Too Long", "Reduce V or W",IF($I14>'[2]TABLE DATA'!$D$9,"SIGN TOO LARGE",IF(AND(OR($I14<'[2]TABLE DATA'!$D$7,$I14='[2]TABLE DATA'!$D$7),OR('[2]Input-Output Data'!$J14<'[2]Input-Output Data'!$K14,'[2]Input-Output Data'!$J14='[2]Input-Output Data'!$K14)),'[2]TABLE DATA'!J$7,IF(AND(OR($I14<'[2]TABLE DATA'!$D$7,$I14='[2]TABLE DATA'!$D$7),AND($J14>$L14),OR('[2]Input-Output Data'!$J14<'[2]Input-Output Data'!$M14,'[2]Input-Output Data'!$J14='[2]Input-Output Data'!$M14)),'[2]TABLE DATA'!J$8,IF(AND(OR($I14<'[2]TABLE DATA'!$D$7,$I14='[2]TABLE DATA'!$D$7),AND($J14>$M14),OR('[2]Input-Output Data'!$J14<'[2]Input-Output Data'!$N14,'[2]Input-Output Data'!$J14='[2]Input-Output Data'!$N14)),'[2]TABLE DATA'!J$9,IF(AND(OR($I14<'[2]TABLE DATA'!$D$7,$I14='[2]TABLE DATA'!$D$7),$J14>$N14),"SIGN TOO WIDE",IF(AND(AND($I14>'[2]TABLE DATA'!$D$7,OR($I14<'[2]TABLE DATA'!$D$8,$I14='[2]TABLE DATA'!$D$8)),'[2]Input-Output Data'!$J14<'[2]Input-Output Data'!$K14),'[2]TABLE DATA'!J$8,IF(AND(AND($I14>'[2]TABLE DATA'!$D$7,OR($I14<'[2]TABLE DATA'!$D$8,$I14='[2]TABLE DATA'!$D$8)),AND('[2]Input-Output Data'!$J14>'[2]Input-Output Data'!$M14,OR('[2]Input-Output Data'!$J14<'[2]Input-Output Data'!$N14,'[2]Input-Output Data'!$J14='[2]Input-Output Data'!$N14))),'[2]TABLE DATA'!J$9,IF(AND(AND($I14>'[2]TABLE DATA'!$D$7,OR($I14<'[2]TABLE DATA'!$D$8,$I14='[2]TABLE DATA'!$D$8)),$J14>'[2]Input-Output Data'!$N14),"SIGN TOO WIDE",IF(AND(AND($I14>'[2]TABLE DATA'!$D$8,OR($I14<'[2]TABLE DATA'!$D$9,$I14='[2]TABLE DATA'!$D$9)),'[2]Input-Output Data'!$J14<'[2]Input-Output Data'!$K14),'[2]TABLE DATA'!J$9,"SIGN TOO WIDE")))))))))) -> 2 | T14: =IF(I5="Arm Too Long", "Reduce V or W",IF($I14>'[2]TABLE DATA'!$D$9,"SIGN TOO LARGE",IF(AND(OR($I14<'[2]TABLE DATA'!$D$7,$I14='[2]TABLE DATA'!$D$7),OR('[2]Input-Output Data'!$J14<'[2]Input-Output Data'!$K14,'[2]Input-Output Data'!$J14='[2]Input-Output Data'!$K14)),'[2]TABLE DATA'!K$7,IF(AND(OR($I14<'[2]TABLE DATA'!$D$7,$I14='[2]TABLE DATA'!$D$7),AND($J14>$L14),OR('[2]Input-Output Data'!$J14<'[2]Input-Output Data'!$M14,'[2]Input-Output Data'!$J14='[2]Input-Output Data'!$M14)),'[2]TABLE DATA'!K$8,IF(AND(OR($I14<'[2]TABLE DATA'!$D$7,$I14='[2]TABLE DATA'!$D$7),AND($J14>$M14),OR('[2]Input-Output Data'!$J14<'[2]Input-Output Data'!$N14,'[2]Input-Output Data'!$J14='[2]Input-Output Data'!$N14)),'[2]TABLE DATA'!K$9,IF(AND(OR($I14<'[2]TABLE DATA'!$D$7,$I14='[2]TABLE DATA'!$D$7),$J14>$N14),"SIGN TOO WIDE",IF(AND(AND($I14>'[2]TABLE DATA'!$D$7,OR($I14<'[2]TABLE DATA'!$D$8,$I14='[2]TABLE DATA'!$D$8)),'[2]Input-Output Data'!$J14<'[2]Input-Output Data'!$K14),'[2]TABLE DATA'!K$8,IF(AND(AND($I14>'[2]TABLE DATA'!$D$7,OR($I14<'[2]TABLE DATA'!$D$8,$I14='[2]TABLE DATA'!$D$8)),AND('[2]Input-Output Data'!$J14>'[2]Input-Output Data'!$M14,OR('[2]Input-Output Data'!$J14<'[2]Input-Output Data'!$N14,'[2]Input-Output Data'!$J14='[2]Input-Output Data'!$N14))),'[2]TABLE DATA'!K$9,IF(AND(AND($I14>'[2]TABLE DATA'!$D$7,OR($I14<'[2]TABLE DATA'!$D$8,$I14='[2]TABLE DATA'!$D$8)),$J14>'[2]Input-Output Data'!$N14),"SIGN TOO WIDE",IF(AND(AND($I14>'[2]TABLE DATA'!$D$8,OR($I14<'[2]TABLE DATA'!$D$9,$I14='[2]TABLE DATA'!$D$9)),'[2]Input-Output Data'!$J14<'[2]Input-Output Data'!$K14),'[2]TABLE DATA'!K$9,"SIGN TOO WIDE")))))))))) -> 60 | U14: =IF(I5="Arm Too Long", "Reduce V or W",IF($I14>'[2]TABLE DATA'!$D$9,"SIGN TOO LARGE",IF(AND(OR($I14<'[2]TABLE DATA'!$D$7,$I14='[2]TABLE DATA'!$D$7),OR('[2]Input-Output Data'!$J14<'[2]Input-Output Data'!$K14,'[2]Input-Output Data'!$J14='[2]Input-Output Data'!$K14)),'[2]TABLE DATA'!L$7,IF(AND(OR($I14<'[2]TABLE DATA'!$D$7,$I14='[2]TABLE DATA'!$D$7),AND($J14>$L14),OR('[2]Input-Output Data'!$J14<'[2]Input-Output Data'!$M14,'[2]Input-Output Data'!$J14='[2]Input-Output Data'!$M14)),'[2]TABLE DATA'!L$8,IF(AND(OR($I14<'[2]TABLE DATA'!$D$7,$I14='[2]TABLE DATA'!$D$7),AND($J14>$M14),OR('[2]Input-Output Data'!$J14<'[2]Input-Output Data'!$N14,'[2]Input-Output Data'!$J14='[2]Input-Output Data'!$N14)),'[2]TABLE DATA'!L$9,IF(AND(OR($I14<'[2]TABLE DATA'!$D$7,$I14='[2]TABLE DATA'!$D$7),$J14>$N14),"SIGN TOO WIDE",IF(AND(AND($I14>'[2]TABLE DATA'!$D$7,OR($I14<'[2]TABLE DATA'!$D$8,$I14='[2]TABLE DATA'!$D$8)),'[2]Input-Output Data'!$J14<'[2]Input-Output Data'!$K14),'[2]TABLE DATA'!L$8,IF(AND(AND($I14>'[2]TABLE DATA'!$D$7,OR($I14<'[2]TABLE DATA'!$D$8,$I14='[2]TABLE DATA'!$D$8)),AND('[2]Input-Output Data'!$J14>'[2]Input-Output Data'!$M14,OR('[2]Input-Output Data'!$J14<'[2]Input-Output Data'!$N14,'[2]Input-Output Data'!$J14='[2]Input-Output Data'!$N14))),'[2]TABLE DATA'!L$9,IF(AND(AND($I14>'[2]TABLE DATA'!$D$7,OR($I14<'[2]TABLE DATA'!$D$8,$I14='[2]TABLE DATA'!$D$8)),$J14>'[2]Input-Output Data'!$N14),"SIGN TOO WIDE",IF(AND(AND($I14>'[2]TABLE DATA'!$D$8,OR($I14<'[2]TABLE DATA'!$D$9,$I14='[2]TABLE DATA'!$D$9)),'[2]Input-Output Data'!$J14<'[2]Input-Output Data'!$K14),'[2]TABLE DATA'!L$9,"SIGN TOO WIDE")))))))))) -> 7.4 | V14: =IF(I5="Arm Too Long", "Reduce V or W",IF($I14>'[2]TABLE DATA'!$D$9,"SIGN TOO LARGE",IF(AND(OR($I14<'[2]TABLE DATA'!$D$7,$I14='[2]TABLE DATA'!$D$7),OR('[2]Input-Output Data'!$J14<'[2]Input-Output Data'!$K14,'[2]Input-Output Data'!$J14='[2]Input-Output Data'!$K14)),'[2]TABLE DATA'!M$7,IF(AND(OR($I14<'[2]TABLE DATA'!$D$7,$I14='[2]TABLE DATA'!$D$7),AND($J14>$L14),OR('[2]Input-Output Data'!$J14<'[2]Input-Output Data'!$M14,'[2]Input-Output Data'!$J14='[2]Input-Output Data'!$M14)),'[2]TABLE DATA'!M$8,IF(AND(OR($I14<'[2]TABLE DATA'!$D$7,$I14='[2]TABLE DATA'!$D$7),AND($J14>$M14),OR('[2]Input-Output Data'!$J14<'[2]Input-Output Data'!$N14,'[2]Input-Output Data'!$J14='[2]Input-Output Data'!$N14)),'[2]TABLE DATA'!M$9,IF(AND(OR($I14<'[2]TABLE DATA'!$D$7,$I14='[2]TABLE DATA'!$D$7),$J14>$N14),"SIGN TOO WIDE",IF(AND(AND($I14>'[2]TABLE DATA'!$D$7,OR($I14<'[2]TABLE DATA'!$D$8,$I14='[2]TABLE DATA'!$D$8)),'[2]Input-Output Data'!$J14<'[2]Input-Output Data'!$K14),'[2]TABLE DATA'!M$8,IF(AND(AND($I14>'[2]TABLE DATA'!$D$7,OR($I14<'[2]TABLE DATA'!$D$8,$I14='[2]TABLE DATA'!$D$8)),AND('[2]Input-Output Data'!$J14>'[2]Input-Output Data'!$M14,OR('[2]Input-Output Data'!$J14<'[2]Input-Output Data'!$N14,'[2]Input-Output Data'!$J14='[2]Input-Output Data'!$N14))),'[2]TABLE DATA'!M$9,IF(AND(AND($I14>'[2]TABLE DATA'!$D$7,OR($I14<'[2]TABLE DATA'!$D$8,$I14='[2]TABLE DATA'!$D$8)),$J14>'[2]Input-Output Data'!$N14),"SIGN TOO WIDE",IF(AND(AND($I14>'[2]TABLE DATA'!$D$8,OR($I14<'[2]TABLE DATA'!$D$9,$I14='[2]TABLE DATA'!$D$9)),'[2]Input-Output Data'!$J14<'[2]Input-Output Data'!$K14),'[2]TABLE DATA'!M$9,"SIGN TOO WIDE")))))))))) -> 0.5 | W14: =IF(I5="Arm Too Long", "Reduce V or W",IF($I14>'[2]TABLE DATA'!$D$9,"SIGN TOO LARGE",IF(AND(OR($I14<'[2]TABLE DATA'!$D$7,$I14='[2]TABLE DATA'!$D$7),OR('[2]Input-Output Data'!$J14<'[2]Input-Output Data'!$K14,'[2]Input-Output Data'!$J14='[2]Input-Output Data'!$K14)),'[2]TABLE DATA'!N$7,IF(AND(OR($I14<'[2]TABLE DATA'!$D$7,$I14='[2]TABLE DATA'!$D$7),AND($J14>$L14),OR('[2]Input-Output Data'!$J14<'[2]Input-Output Data'!$M14,'[2]Input-Output Data'!$J14='[2]Input-Output Data'!$M14)),'[2]TABLE DATA'!N$8,IF(AND(OR($I14<'[2]TABLE DATA'!$D$7,$I14='[2]TABLE DATA'!$D$7),AND($J14>$M14),OR('[2]Input-Output Data'!$J14<'[2]Input-Output Data'!$N14,'[2]Input-Output Data'!$J14='[2]Input-Output Data'!$N14)),'[2]TABLE DATA'!N$9,IF(AND(OR($I14<'[2]TABLE DATA'!$D$7,$I14='[2]TABLE DATA'!$D$7),$J14>$N14),"SIGN TOO WIDE",IF(AND(AND($I14>'[2]TABLE DATA'!$D$7,OR($I14<'[2]TABLE DATA'!$D$8,$I14='[2]TABLE DATA'!$D$8)),'[2]Input-Output Data'!$J14<'[2]Input-Output Data'!$K14),'[2]TABLE DATA'!N$8,IF(AND(AND($I14>'[2]TABLE DATA'!$D$7,OR($I14<'[2]TABLE DATA'!$D$8,$I14='[2]TABLE DATA'!$D$8)),AND('[2]Input-Output Data'!$J14>'[2]Input-Output Data'!$M14,OR('[2]Input-Output Data'!$J14<'[2]Input-Output Data'!$N14,'[2]Input-Output Data'!$J14='[2]Input-Output Data'!$N14))),'[2]TABLE DATA'!N$9,IF(AND(AND($I14>'[2]TABLE DATA'!$D$7,OR($I14<'[2]TABLE DATA'!$D$8,$I14='[2]TABLE DATA'!$D$8)),$J14>'[2]Input-Output Data'!$N14),"SIGN TOO WIDE",IF(AND(AND($I14>'[2]TABLE DATA'!$D$8,OR($I14<'[2]TABLE DATA'!$D$9,$I14='[2]TABLE DATA'!$D$9)),'[2]Input-Output Data'!$J14<'[2]Input-Output Data'!$K14),'[2]TABLE DATA'!N$9,"SIGN TOO WIDE")))))))))) -> 0.5 | X14: =IF(I5="Arm Too Long", "Reduce V or W",IF($I14>'[2]TABLE DATA'!$D$9,"SIGN TOO LARGE",IF(AND(OR($I14<'[2]TABLE DATA'!$D$7,$I14='[2]TABLE DATA'!$D$7),OR('[2]Input-Output Data'!$J14<'[2]Input-Output Data'!$K14,'[2]Input-Output Data'!$J14='[2]Input-Output Data'!$K14)),'[2]TABLE DATA'!O$7,IF(AND(OR($I14<'[2]TABLE DATA'!$D$7,$I14='[2]TABLE DATA'!$D$7),AND($J14>$L14),OR('[2]Input-Output Data'!$J14<'[2]Input-Output Data'!$M14,'[2]Input-Output Data'!$J14='[2]Input-Output Data'!$M14)),'[2]TABLE DATA'!O$8,IF(AND(OR($I14<'[2]TABLE DATA'!$D$7,$I14='[2]TABLE DATA'!$D$7),AND($J14>$M14),OR('[2]Input-Output Data'!$J14<'[2]Input-Output Data'!$N14,'[2]Input-Output Data'!$J14='[2]Input-Output Data'!$N14)),'[2]TABLE DATA'!O$9,IF(AND(OR($I14<'[2]TABLE DATA'!$D$7,$I14='[2]TABLE DATA'!$D$7),$J14>$N14),"SIGN TOO WIDE",IF(AND(AND($I14>'[2]TABLE DATA'!$D$7,OR($I14<'[2]TABLE DATA'!$D$8,$I14='[2]TABLE DATA'!$D$8)),'[2]Input-Output Data'!$J14<'[2]Input-Output Data'!$K14),'[2]TABLE DATA'!O$8,IF(AND(AND($I14>'[2]TABLE DATA'!$D$7,OR($I14<'[2]TABLE DATA'!$D$8,$I14='[2]TABLE DATA'!$D$8)),AND('[2]Input-Output Data'!$J14>'[2]Input-Output Data'!$M14,OR('[2]Input-Output Data'!$J14<'[2]Input-Output Data'!$N14,'[2]Input-Output Data'!$J14='[2]Input-Output Data'!$N14))),'[2]TABLE DATA'!O$9,IF(AND(AND($I14>'[2]TABLE DATA'!$D$7,OR($I14<'[2]TABLE DATA'!$D$8,$I14='[2]TABLE DATA'!$D$8)),$J14>'[2]Input-Output Data'!$N14),"SIGN TOO WIDE",IF(AND(AND($I14>'[2]TABLE DATA'!$D$8,OR($I14<'[2]TABLE DATA'!$D$9,$I14='[2]TABLE DATA'!$D$9)),'[2]Input-Output Data'!$J14<'[2]Input-Output Data'!$K14),'[2]TABLE DATA'!O$9,"SIGN TOO WIDE")))))))))) -> 0.5 | Y14: =IF(V14=0.5,"I",IF(V14=0.625,"II",IF(V14=0.75,"III","N/A"))) -> I
D15: 24 | E15: 24 | F15: Square
D16: 21 | E16: 15 | F16: Square
D18: 48 | E18: 48 | F18: Square | G18: =Y18 -> I | I18: =(D18*E18+D19*E19)/144 -> 20 | J18: =MAX(IF(F18="Square",2+D18/2,2+(SQRT(2)/2)*D18),IF(F19="Square",2+D19/2,2+(SQRT(2)/2)*D19)) -> 26 | K18: =IF(OR(I18<'[2]TABLE DATA'!$D$7,I18='[2]TABLE DATA'!$D$7),717.75/I18,IF(AND('[2]TABLE DATA'!$D$7<I18,OR(I18<'[2]TABLE DATA'!$D$8,I18='[2]TABLE DATA'!$D$8)),1695/I18,IF(AND('[2]TABLE DATA'!$D$8<I18,OR(I18<'[2]TABLE DATA'!$D$9,I18='[2]TABLE DATA'!$D$9)),2268/I18,"Sign Too Wide"))) -> 35.89 | L18: =717.75/I18 -> 35.89 | M18: =1695/I18 -> 84.75 | N18: =2268/I18 -> 113.4 | O18: =IF(I5="Arm Too Long", "Reduce V or W",IF($I18>'[2]TABLE DATA'!$D$9,"SIGN TOO LARGE",IF(AND(OR($I18<'[2]TABLE DATA'!$D$7,$I18='[2]TABLE DATA'!$D$7),OR('[2]Input-Output Data'!$J18<'[2]Input-Output Data'!$K18,'[2]Input-Output Data'!$J18='[2]Input-Output Data'!$K18)),'[2]TABLE DATA'!F$7,IF(AND(OR($I18<'[2]TABLE DATA'!$D$7,$I18='[2]TABLE DATA'!$D$7),AND($J18>$L18),OR('[2]Input-Output Data'!$J18<'[2]Input-Output Data'!$M18,'[2]Input-Output Data'!$J18='[2]Input-Output Data'!$M18)),'[2]TABLE DATA'!F$8,IF(AND(OR($I18<'[2]TABLE DATA'!$D$7,$I18='[2]TABLE DATA'!$D$7),AND($J18>$M18),OR('[2]Input-Output Data'!$J18<'[2]Input-Output Data'!$N18,'[2]Input-Output Data'!$J18='[2]Input-Output Data'!$N18)),'[2]TABLE DATA'!F$9,IF(AND(OR($I18<'[2]TABLE DATA'!$D$7,$I18='[2]TABLE DATA'!$D$7),$J18>$N18),"SIGN TOO WIDE",IF(AND(AND($I18>'[2]TABLE DATA'!$D$7,OR($I18<'[2]TABLE DATA'!$D$8,$I18='[2]TABLE DATA'!$D$8)),'[2]Input-Output Data'!$J18<'[2]Input-Output Data'!$K18),'[2]TABLE DATA'!F$8,IF(AND(AND($I18>'[2]TABLE DATA'!$D$7,OR($I18<'[2]TABLE DATA'!$D$8,$I18='[2]TABLE DATA'!$D$8)),AND('[2]Input-Output Data'!$J18>'[2]Input-Output Data'!$M18,OR('[2]Input-Output Data'!$J18<'[2]Input-Output Data'!$N18,'[2]Input-Output Data'!$J18='[2]Input-Output Data'!$N18))),'[2]TABLE DATA'!F$9,IF(AND(AND($I18>'[2]TABLE DATA'!$D$7,OR($I18<'[2]TABLE DATA'!$D$8,$I18='[2]TABLE DATA'!$D$8)),$J18>'[2]Input-Output Data'!$N18),"SIGN TOO WIDE",IF(AND(AND($I18>'[2]TABLE DATA'!$D$8,OR($I18<'[2]TABLE DATA'!$D$9,$I18='[2]TABLE DATA'!$D$9)),'[2]Input-Output Data'!$J18<'[2]Input-Output Data'!$K18),'[2]TABLE DATA'!F$9,"SIGN TOO WIDE")))))))))) -> 4 | P18: =IF(I5="Arm Too Long", "Reduce V or W",IF($I18>'[2]TABLE DATA'!$D$9,"SIGN TOO LARGE",IF(AND(OR($I18<'[2]TABLE DATA'!$D$7,$I18='[2]TABLE DATA'!$D$7),OR('[2]Input-Output Data'!$J18<'[2]Input-Output Data'!$K18,'[2]Input-Output Data'!$J18='[2]Input-Output Data'!$K18)),'[2]TABLE DATA'!G$7,IF(AND(OR($I18<'[2]TABLE DATA'!$D$7,$I18='[2]TABLE DATA'!$D$7),AND($J18>$L18),OR('[2]Input-Output Data'!$J18<'[2]Input-Output Data'!$M18,'[2]Input-Output Data'!$J18='[2]Input-Output Data'!$M18)),'[2]TABLE DATA'!G$8,IF(AND(OR($I18<'[2]TABLE DATA'!$D$7,$I18='[2]TABLE DATA'!$D$7),AND($J18>$M18),OR('[2]Input-Output Data'!$J18<'[2]Input-Output Data'!$N18,'[2]Input-Output Data'!$J18='[2]Input-Output Data'!$N18)),'[2]TABLE DATA'!G$9,IF(AND(OR($I18<'[2]TABLE DATA'!$D$7,$I18='[2]TABLE DATA'!$D$7),$J18>$N18),"SIGN TOO WIDE",IF(AND(AND($I18>'[2]TABLE DATA'!$D$7,OR($I18<'[2]TABLE DATA'!$D$8,$I18='[2]TABLE DATA'!$D$8)),'[2]Input-Output Data'!$J18<'[2]Input-Output Data'!$K18),'[2]TABLE DATA'!G$8,IF(AND(AND($I18>'[2]TABLE DATA'!$D$7,OR($I18<'[2]TABLE DATA'!$D$8,$I18='[2]TABLE DATA'!$D$8)),AND('[2]Input-Output Data'!$J18>'[2]Input-Output Data'!$M18,OR('[2]Input-Output Data'!$J18<'[2]Input-Output Data'!$N18,'[2]Input-Output Data'!$J18='[2]Input-Output Data'!$N18))),'[2]TABLE DATA'!G$9,IF(AND(AND($I18>'[2]TABLE DATA'!$D$7,OR($I18<'[2]TABLE DATA'!$D$8,$I18='[2]TABLE DATA'!$D$8)),$J18>'[2]Input-Output Data'!$N18),"SIGN TOO WIDE",IF(AND(AND($I18>'[2]TABLE DATA'!$D$8,OR($I18<'[2]TABLE DATA'!$D$9,$I18='[2]TABLE DATA'!$D$9)),'[2]Input-Output Data'!$J18<'[2]Input-Output Data'!$K18),'[2]TABLE DATA'!G$9,"SIGN TOO WIDE")))))))))) -> 2 | Q18: =IF(I5="Arm Too Long", "Reduce V or W",IF($I18>'[2]TABLE DATA'!$D$9,"SIGN TOO LARGE",IF(AND(OR($I18<'[2]TABLE DATA'!$D$7,$I18='[2]TABLE DATA'!$D$7),OR('[2]Input-Output Data'!$J18<'[2]Input-Output Data'!$K18,'[2]Input-Output Data'!$J18='[2]Input-Output Data'!$K18)),'[2]TABLE DATA'!H$7,IF(AND(OR($I18<'[2]TABLE DATA'!$D$7,$I18='[2]TABLE DATA'!$D$7),AND($J18>$L18),OR('[2]Input-Output Data'!$J18<'[2]Input-Output Data'!$M18,'[2]Input-Output Data'!$J18='[2]Input-Output Data'!$M18)),'[2]TABLE DATA'!H$8,IF(AND(OR($I18<'[2]TABLE DATA'!$D$7,$I18='[2]TABLE DATA'!$D$7),AND($J18>$M18),OR('[2]Input-Output Data'!$J18<'[2]Input-Output Data'!$N18,'[2]Input-Output Data'!$J18='[2]Input-Output Data'!$N18)),'[2]TABLE DATA'!H$9,IF(AND(OR($I18<'[2]TABLE DATA'!$D$7,$I18='[2]TABLE DATA'!$D$7),$J18>$N18),"SIGN TOO WIDE",IF(AND(AND($I18>'[2]TABLE DATA'!$D$7,OR($I18<'[2]TABLE DATA'!$D$8,$I18='[2]TABLE DATA'!$D$8)),'[2]Input-Output Data'!$J18<'[2]Input-Output Data'!$K18),'[2]TABLE DATA'!H$8,IF(AND(AND($I18>'[2]TABLE DATA'!$D$7,OR($I18<'[2]TABLE DATA'!$D$8,$I18='[2]TABLE DATA'!$D$8)),AND('[2]Input-Output Data'!$J18>'[2]Input-Output Data'!$M18,OR('[2]Input-Output Data'!$J18<'[2]Input-Output Data'!$N18,'[2]Input-Output Data'!$J18='[2]Input-Output Data'!$N18))),'[2]TABLE DATA'!H$9,IF(AND(AND($I18>'[2]TABLE DATA'!$D$7,OR($I18<'[2]TABLE DATA'!$D$8,$I18='[2]TABLE DATA'!$D$8)),$J18>'[2]Input-Output Data'!$N18),"SIGN TOO WIDE",IF(AND(AND($I18>'[2]TABLE DATA'!$D$8,OR($I18<'[2]TABLE DATA'!$D$9,$I18='[2]TABLE DATA'!$D$9)),'[2]Input-Output Data'!$J18<'[2]Input-Output Data'!$K18),'[2]TABLE DATA'!H$9,"SIGN TOO WIDE")))))))))) -> 0.625 | R18: =IF(I5="Arm Too Long", "Reduce V or W",IF($I18>'[2]TABLE DATA'!$D$9,"SIGN TOO LARGE",IF(AND(OR($I18<'[2]TABLE DATA'!$D$7,$I18='[2]TABLE DATA'!$D$7),OR('[2]Input-Output Data'!$J18<'[2]Input-Output Data'!$K18,'[2]Input-Output Data'!$J18='[2]Input-Output Data'!$K18)),'[2]TABLE DATA'!I$7,IF(AND(OR($I18<'[2]TABLE DATA'!$D$7,$I18='[2]TABLE DATA'!$D$7),AND($J18>$L18),OR('[2]Input-Output Data'!$J18<'[2]Input-Output Data'!$M18,'[2]Input-Output Data'!$J18='[2]Input-Output Data'!$M18)),'[2]TABLE DATA'!I$8,IF(AND(OR($I18<'[2]TABLE DATA'!$D$7,$I18='[2]TABLE DATA'!$D$7),AND($J18>$M18),OR('[2]Input-Output Data'!$J18<'[2]Input-Output Data'!$N18,'[2]Input-Output Data'!$J18='[2]Input-Output Data'!$N18)),'[2]TABLE DATA'!I$9,IF(AND(OR($I18<'[2]TABLE DATA'!$D$7,$I18='[2]TABLE DATA'!$D$7),$J18>$N18),"SIGN TOO WIDE",IF(AND(AND($I18>'[2]TABLE DATA'!$D$7,OR($I18<'[2]TABLE DATA'!$D$8,$I18='[2]TABLE DATA'!$D$8)),'[2]Input-Output Data'!$J18<'[2]Input-Output Data'!$K18),'[2]TABLE DATA'!I$8,IF(AND(AND($I18>'[2]TABLE DATA'!$D$7,OR($I18<'[2]TABLE DATA'!$D$8,$I18='[2]TABLE DATA'!$D$8)),AND('[2]Input-Output Data'!$J18>'[2]Input-Output Data'!$M18,OR('[2]Input-Output Data'!$J18<'[2]Input-Output Data'!$N18,'[2]Input-Output Data'!$J18='[2]Input-Output Data'!$N18))),'[2]TABLE DATA'!I$9,IF(AND(AND($I18>'[2]TABLE DATA'!$D$7,OR($I18<'[2]TABLE DATA'!$D$8,$I18='[2]TABLE DATA'!$D$8)),$J18>'[2]Input-Output Data'!$N18),"SIGN TOO WIDE",IF(AND(AND($I18>'[2]TABLE DATA'!$D$8,OR($I18<'[2]TABLE DATA'!$D$9,$I18='[2]TABLE DATA'!$D$9)),'[2]Input-Output Data'!$J18<'[2]Input-Output Data'!$K18),'[2]TABLE DATA'!I$9,"SIGN TOO WIDE")))))))))) -> 5.625 | S18: =IF(I5="Arm Too Long", "Reduce V or W",IF($I18>'[2]TABLE DATA'!$D$9,"SIGN TOO LARGE",IF(AND(OR($I18<'[2]TABLE DATA'!$D$7,$I18='[2]TABLE DATA'!$D$7),OR('[2]Input-Output Data'!$J18<'[2]Input-Output Data'!$K18,'[2]Input-Output Data'!$J18='[2]Input-Output Data'!$K18)),'[2]TABLE DATA'!J$7,IF(AND(OR($I18<'[2]TABLE DATA'!$D$7,$I18='[2]TABLE DATA'!$D$7),AND($J18>$L18),OR('[2]Input-Output Data'!$J18<'[2]Input-Output Data'!$M18,'[2]Input-Output Data'!$J18='[2]Input-Output Data'!$M18)),'[2]TABLE DATA'!J$8,IF(AND(OR($I18<'[2]TABLE DATA'!$D$7,$I18='[2]TABLE DATA'!$D$7),AND($J18>$M18),OR('[2]Input-Output Data'!$J18<'[2]Input-Output Data'!$N18,'[2]Input-Output Data'!$J18='[2]Input-Output Data'!$N18)),'[2]TABLE DATA'!J$9,IF(AND(OR($I18<'[2]TABLE DATA'!$D$7,$I18='[2]TABLE DATA'!$D$7),$J18>$N18),"SIGN TOO WIDE",IF(AND(AND($I18>'[2]TABLE DATA'!$D$7,OR($I18<'[2]TABLE DATA'!$D$8,$I18='[2]TABLE DATA'!$D$8)),'[2]Input-Output Data'!$J18<'[2]Input-Output Data'!$K18),'[2]TABLE DATA'!J$8,IF(AND(AND($I18>'[2]TABLE DATA'!$D$7,OR($I18<'[2]TABLE DATA'!$D$8,$I18='[2]TABLE DATA'!$D$8)),AND('[2]Input-Output Data'!$J18>'[2]Input-Output Data'!$M18,OR('[2]Input-Output Data'!$J18<'[2]Input-Output Data'!$N18,'[2]Input-Output Data'!$J18='[2]Input-Output Data'!$N18))),'[2]TABLE DATA'!J$9,IF(AND(AND($I18>'[2]TABLE DATA'!$D$7,OR($I18<'[2]TABLE DATA'!$D$8,$I18='[2]TABLE DATA'!$D$8)),$J18>'[2]Input-Output Data'!$N18),"SIGN TOO WIDE",IF(AND(AND($I18>'[2]TABLE DATA'!$D$8,OR($I18<'[2]TABLE DATA'!$D$9,$I18='[2]TABLE DATA'!$D$9)),'[2]Input-Output Data'!$J18<'[2]Input-Output Data'!$K18),'[2]TABLE DATA'!J$9,"SIGN TOO WIDE")))))))))) -> 2 | T18: =IF(I5="Arm Too Long", "Reduce V or W",IF($I18>'[2]TABLE DATA'!$D$9,"SIGN TOO LARGE",IF(AND(OR($I18<'[2]TABLE DATA'!$D$7,$I18='[2]TABLE DATA'!$D$7),OR('[2]Input-Output Data'!$J18<'[2]Input-Output Data'!$K18,'[2]Input-Output Data'!$J18='[2]Input-Output Data'!$K18)),'[2]TABLE DATA'!K$7,IF(AND(OR($I18<'[2]TABLE DATA'!$D$7,$I18='[2]TABLE DATA'!$D$7),AND($J18>$L18),OR('[2]Input-Output Data'!$J18<'[2]Input-Output Data'!$M18,'[2]Input-Output Data'!$J18='[2]Input-Output Data'!$M18)),'[2]TABLE DATA'!K$8,IF(AND(OR($I18<'[2]TABLE DATA'!$D$7,$I18='[2]TABLE DATA'!$D$7),AND($J18>$M18),OR('[2]Input-Output Data'!$J18<'[2]Input-Output Data'!$N18,'[2]Input-Output Data'!$J18='[2]Input-Output Data'!$N18)),'[2]TABLE DATA'!K$9,IF(AND(OR($I18<'[2]TABLE DATA'!$D$7,$I18='[2]TABLE DATA'!$D$7),$J18>$N18),"SIGN TOO WIDE",IF(AND(AND($I18>'[2]TABLE DATA'!$D$7,OR($I18<'[2]TABLE DATA'!$D$8,$I18='[2]TABLE DATA'!$D$8)),'[2]Input-Output Data'!$J18<'[2]Input-Output Data'!$K18),'[2]TABLE DATA'!K$8,IF(AND(AND($I18>'[2]TABLE DATA'!$D$7,OR($I18<'[2]TABLE DATA'!$D$8,$I18='[2]TABLE DATA'!$D$8)),AND('[2]Input-Output Data'!$J18>'[2]Input-Output Data'!$M18,OR('[2]Input-Output Data'!$J18<'[2]Input-Output Data'!$N18,'[2]Input-Output Data'!$J18='[2]Input-Output Data'!$N18))),'[2]TABLE DATA'!K$9,IF(AND(AND($I18>'[2]TABLE DATA'!$D$7,OR($I18<'[2]TABLE DATA'!$D$8,$I18='[2]TABLE DATA'!$D$8)),$J18>'[2]Input-Output Data'!$N18),"SIGN TOO WIDE",IF(AND(AND($I18>'[2]TABLE DATA'!$D$8,OR($I18<'[2]TABLE DATA'!$D$9,$I18='[2]TABLE DATA'!$D$9)),'[2]Input-Output Data'!$J18<'[2]Input-Output Data'!$K18),'[2]TABLE DATA'!K$9,"SIGN TOO WIDE")))))))))) -> 60 | U18: =IF(I5="Arm Too Long", "Reduce V or W",IF($I18>'[2]TABLE DATA'!$D$9,"SIGN TOO LARGE",IF(AND(OR($I18<'[2]TABLE DATA'!$D$7,$I18='[2]TABLE DATA'!$D$7),OR('[2]Input-Output Data'!$J18<'[2]Input-Output Data'!$K18,'[2]Input-Output Data'!$J18='[2]Input-Output Data'!$K18)),'[2]TABLE DATA'!L$7,IF(AND(OR($I18<'[2]TABLE DATA'!$D$7,$I18='[2]TABLE DATA'!$D$7),AND($J18>$L18),OR('[2]Input-Output Data'!$J18<'[2]Input-Output Data'!$M18,'[2]Input-Output Data'!$J18='[2]Input-Output Data'!$M18)),'[2]TABLE DATA'!L$8,IF(AND(OR($I18<'[2]TABLE DATA'!$D$7,$I18='[2]TABLE DATA'!$D$7),AND($J18>$M18),OR('[2]Input-Output Data'!$J18<'[2]Input-Output Data'!$N18,'[2]Input-Output Data'!$J18='[2]Input-Output Data'!$N18)),'[2]TABLE DATA'!L$9,IF(AND(OR($I18<'[2]TABLE DATA'!$D$7,$I18='[2]TABLE DATA'!$D$7),$J18>$N18),"SIGN TOO WIDE",IF(AND(AND($I18>'[2]TABLE DATA'!$D$7,OR($I18<'[2]TABLE DATA'!$D$8,$I18='[2]TABLE DATA'!$D$8)),'[2]Input-Output Data'!$J18<'[2]Input-Output Data'!$K18),'[2]TABLE DATA'!L$8,IF(AND(AND($I18>'[2]TABLE DATA'!$D$7,OR($I18<'[2]TABLE DATA'!$D$8,$I18='[2]TABLE DATA'!$D$8)),AND('[2]Input-Output Data'!$J18>'[2]Input-Output Data'!$M18,OR('[2]Input-Output Data'!$J18<'[2]Input-Output Data'!$N18,'[2]Input-Output Data'!$J18='[2]Input-Output Data'!$N18))),'[2]TABLE DATA'!L$9,IF(AND(AND($I18>'[2]TABLE DATA'!$D$7,OR($I18<'[2]TABLE DATA'!$D$8,$I18='[2]TABLE DATA'!$D$8)),$J18>'[2]Input-Output Data'!$N18),"SIGN TOO WIDE",IF(AND(AND($I18>'[2]TABLE DATA'!$D$8,OR($I18<'[2]TABLE DATA'!$D$9,$I18='[2]TABLE DATA'!$D$9)),'[2]Input-Output Data'!$J18<'[2]Input-Output Data'!$K18),'[2]TABLE DATA'!L$9,"SIGN TOO WIDE")))))))))) -> 7.4 | V18: =IF(I5="Arm Too Long", "Reduce V or W",IF($I18>'[2]TABLE DATA'!$D$9,"SIGN TOO LARGE",IF(AND(OR($I18<'[2]TABLE DATA'!$D$7,$I18='[2]TABLE DATA'!$D$7),OR('[2]Input-Output Data'!$J18<'[2]Input-Output Data'!$K18,'[2]Input-Output Data'!$J18='[2]Input-Output Data'!$K18)),'[2]TABLE DATA'!M$7,IF(AND(OR($I18<'[2]TABLE DATA'!$D$7,$I18='[2]TABLE DATA'!$D$7),AND($J18>$L18),OR('[2]Input-Output Data'!$J18<'[2]Input-Output Data'!$M18,'[2]Input-Output Data'!$J18='[2]Input-Output Data'!$M18)),'[2]TABLE DATA'!M$8,IF(AND(OR($I18<'[2]TABLE DATA'!$D$7,$I18='[2]TABLE DATA'!$D$7),AND($J18>$M18),OR('[2]Input-Output Data'!$J18<'[2]Input-Output Data'!$N18,'[2]Input-Output Data'!$J18='[2]Input-Output Data'!$N18)),'[2]TABLE DATA'!M$9,IF(AND(OR($I18<'[2]TABLE DATA'!$D$7,$I18='[2]TABLE DATA'!$D$7),$J18>$N18),"SIGN TOO WIDE",IF(AND(AND($I18>'[2]TABLE DATA'!$D$7,OR($I18<'[2]TABLE DATA'!$D$8,$I18='[2]TABLE DATA'!$D$8)),'[2]Input-Output Data'!$J18<'[2]Input-Output Data'!$K18),'[2]TABLE DATA'!M$8,IF(AND(AND($I18>'[2]TABLE DATA'!$D$7,OR($I18<'[2]TABLE DATA'!$D$8,$I18='[2]TABLE DATA'!$D$8)),AND('[2]Input-Output Data'!$J18>'[2]Input-Output Data'!$M18,OR('[2]Input-Output Data'!$J18<'[2]Input-Output Data'!$N18,'[2]Input-Output Data'!$J18='[2]Input-Output Data'!$N18))),'[2]TABLE DATA'!M$9,IF(AND(AND($I18>'[2]TABLE DATA'!$D$7,OR($I18<'[2]TABLE DATA'!$D$8,$I18='[2]TABLE DATA'!$D$8)),$J18>'[2]Input-Output Data'!$N18),"SIGN TOO WIDE",IF(AND(AND($I18>'[2]TABLE DATA'!$D$8,OR($I18<'[2]TABLE DATA'!$D$9,$I18='[2]TABLE DATA'!$D$9)),'[2]Input-Output Data'!$J18<'[2]Input-Output Data'!$K18),'[2]TABLE DATA'!M$9,"SIGN TOO WIDE")))))))))) -> 0.5 | W18: =IF(I5="Arm Too Long", "Reduce V or W",IF($I18>'[2]TABLE DATA'!$D$9,"SIGN TOO LARGE",IF(AND(OR($I18<'[2]TABLE DATA'!$D$7,$I18='[2]TABLE DATA'!$D$7),OR('[2]Input-Output Data'!$J18<'[2]Input-Output Data'!$K18,'[2]Input-Output Data'!$J18='[2]Input-Output Data'!$K18)),'[2]TABLE DATA'!N$7,IF(AND(OR($I18<'[2]TABLE DATA'!$D$7,$I18='[2]TABLE DATA'!$D$7),AND($J18>$L18),OR('[2]Input-Output Data'!$J18<'[2]Input-Output Data'!$M18,'[2]Input-Output Data'!$J18='[2]Input-Output Data'!$M18)),'[2]TABLE DATA'!N$8,IF(AND(OR($I18<'[2]TABLE DATA'!$D$7,$I18='[2]TABLE DATA'!$D$7),AND($J18>$M18),OR('[2]Input-Output Data'!$J18<'[2]Input-Output Data'!$N18,'[2]Input-Output Data'!$J18='[2]Input-Output Data'!$N18)),'[2]TABLE DATA'!N$9,IF(AND(OR($I18<'[2]TABLE DATA'!$D$7,$I18='[2]TABLE DATA'!$D$7),$J18>$N18),"SIGN TOO WIDE",IF(AND(AND($I18>'[2]TABLE DATA'!$D$7,OR($I18<'[2]TABLE DATA'!$D$8,$I18='[2]TABLE DATA'!$D$8)),'[2]Input-Output Data'!$J18<'[2]Input-Output Data'!$K18),'[2]TABLE DATA'!N$8,IF(AND(AND($I18>'[2]TABLE DATA'!$D$7,OR($I18<'[2]TABLE DATA'!$D$8,$I18='[2]TABLE DATA'!$D$8)),AND('[2]Input-Output Data'!$J18>'[2]Input-Output Data'!$M18,OR('[2]Input-Output Data'!$J18<'[2]Input-Output Data'!$N18,'[2]Input-Output Data'!$J18='[2]Input-Output Data'!$N18))),'[2]TABLE DATA'!N$9,IF(AND(AND($I18>'[2]TABLE DATA'!$D$7,OR($I18<'[2]TABLE DATA'!$D$8,$I18='[2]TABLE DATA'!$D$8)),$J18>'[2]Input-Output Data'!$N18),"SIGN TOO WIDE",IF(AND(AND($I18>'[2]TABLE DATA'!$D$8,OR($I18<'[2]TABLE DATA'!$D$9,$I18='[2]TABLE DATA'!$D$9)),'[2]Input-Output Data'!$J18<'[2]Input-Output Data'!$K18),'[2]TABLE DATA'!N$9,"SIGN TOO WIDE")))))))))) -> 0.5 | X18: =IF(I5="Arm Too Long", "Reduce V or W",IF($I18>'[2]TABLE DATA'!$D$9,"SIGN TOO LARGE",IF(AND(OR($I18<'[2]TABLE DATA'!$D$7,$I18='[2]TABLE DATA'!$D$7),OR('[2]Input-Output Data'!$J18<'[2]Input-Output Data'!$K18,'[2]Input-Output Data'!$J18='[2]Input-Output Data'!$K18)),'[2]TABLE DATA'!O$7,IF(AND(OR($I18<'[2]TABLE DATA'!$D$7,$I18='[2]TABLE DATA'!$D$7),AND($J18>$L18),OR('[2]Input-Output Data'!$J18<'[2]Input-Output Data'!$M18,'[2]Input-Output Data'!$J18='[2]Input-Output Data'!$M18)),'[2]TABLE DATA'!O$8,IF(AND(OR($I18<'[2]TABLE DATA'!$D$7,$I18='[2]TABLE DATA'!$D$7),AND($J18>$M18),OR('[2]Input-Output Data'!$J18<'[2]Input-Output Data'!$N18,'[2]Input-Output Data'!$J18='[2]Input-Output Data'!$N18)),'[2]TABLE DATA'!O$9,IF(AND(OR($I18<'[2]TABLE DATA'!$D$7,$I18='[2]TABLE DATA'!$D$7),$J18>$N18),"SIGN TOO WIDE",IF(AND(AND($I18>'[2]TABLE DATA'!$D$7,OR($I18<'[2]TABLE DATA'!$D$8,$I18='[2]TABLE DATA'!$D$8)),'[2]Input-Output Data'!$J18<'[2]Input-Output Data'!$K18),'[2]TABLE DATA'!O$8,IF(AND(AND($I18>'[2]TABLE DATA'!$D$7,OR($I18<'[2]TABLE DATA'!$D$8,$I18='[2]TABLE DATA'!$D$8)),AND('[2]Input-Output Data'!$J18>'[2]Input-Output Data'!$M18,OR('[2]Input-Output Data'!$J18<'[2]Input-Output Data'!$N18,'[2]Input-Output Data'!$J18='[2]Input-Output Data'!$N18))),'[2]TABLE DATA'!O$9,IF(AND(AND($I18>'[2]TABLE DATA'!$D$7,OR($I18<'[2]TABLE DATA'!$D$8,$I18='[2]TABLE DATA'!$D$8)),$J18>'[2]Input-Output Data'!$N18),"SIGN TOO WIDE",IF(AND(AND($I18>'[2]TABLE DATA'!$D$8,OR($I18<'[2]TABLE DATA'!$D$9,$I18='[2]TABLE DATA'!$D$9)),'[2]Input-Output Data'!$J18<'[2]Input-Output Data'!$K18),'[2]TABLE DATA'!O$9,"SIGN TOO WIDE")))))))))) -> 0.5 | Y18: =IF(V18=0.5,"I",IF(V18=0.625,"II",IF(V18=0.75,"III","N/A"))) -> I
D19: 24 | E19: 24 | F19: Square
D21: 48 | E21: 48 | F21: Diamond | G21: =Y21 -> II | I21: =(D21*E21+D22*E22)/144 -> 21.25 | J21: =MAX(IF(F21="Square",2+D21/2,2+(SQRT(2)/2)*D21),IF(F22="Square",2+D22/2,2+(SQRT(2)/2)*D22)) -> 35.9 | K21: =IF(OR(I21<'[2]TABLE DATA'!$D$7,I21='[2]TABLE DATA'!$D$7),717.75/I21,IF(AND('[2]TABLE DATA'!$D$7<I21,OR(I21<'[2]TABLE DATA'!$D$8,I21='[2]TABLE DATA'!$D$8)),1695/I21,IF(AND('[2]TABLE DATA'!$D$8<I21,OR(I21<'[2]TABLE DATA'!$D$9,I21='[2]TABLE DATA'!$D$9)),2268/I21,"Sign Too Wide"))) -> 33.78 | L21: =717.75/I21 -> 33.78 | M21: =1695/I21 -> 79.76 | N21: =2268/I21 -> 106.73 | O21: =IF(I5="Arm Too Long", "Reduce V or W",IF($I21>'[2]TABLE DATA'!$D$9,"SIGN TOO LARGE",IF(AND(OR($I21<'[2]TABLE DATA'!$D$7,$I21='[2]TABLE DATA'!$D$7),OR('[2]Input-Output Data'!$J21<'[2]Input-Output Data'!$K21,'[2]Input-Output Data'!$J21='[2]Input-Output Data'!$K21)),'[2]TABLE DATA'!F$7,IF(AND(OR($I21<'[2]TABLE DATA'!$D$7,$I21='[2]TABLE DATA'!$D$7),AND($J21>$L21),OR('[2]Input-Output Data'!$J21<'[2]Input-Output Data'!$M21,'[2]Input-Output Data'!$J21='[2]Input-Output Data'!$M21)),'[2]TABLE DATA'!F$8,IF(AND(OR($I21<'[2]TABLE DATA'!$D$7,$I21='[2]TABLE DATA'!$D$7),AND($J21>$M21),OR('[2]Input-Output Data'!$J21<'[2]Input-Output Data'!$N21,'[2]Input-Output Data'!$J21='[2]Input-Output Data'!$N21)),'[2]TABLE DATA'!F$9,IF(AND(OR($I21<'[2]TABLE DATA'!$D$7,$I21='[2]TABLE DATA'!$D$7),$J21>$N21),"SIGN TOO WIDE",IF(AND(AND($I21>'[2]TABLE DATA'!$D$7,OR($I21<'[2]TABLE DATA'!$D$8,$I21='[2]TABLE DATA'!$D$8)),'[2]Input-Output Data'!$J21<'[2]Input-Output Data'!$K21),'[2]TABLE DATA'!F$8,IF(AND(AND($I21>'[2]TABLE DATA'!$D$7,OR($I21<'[2]TABLE DATA'!$D$8,$I21='[2]TABLE DATA'!$D$8)),AND('[2]Input-Output Data'!$J21>'[2]Input-Output Data'!$M21,OR('[2]Input-Output Data'!$J21<'[2]Input-Output Data'!$N21,'[2]Input-Output Data'!$J21='[2]Input-Output Data'!$N21))),'[2]TABLE DATA'!F$9,IF(AND(AND($I21>'[2]TABLE DATA'!$D$7,OR($I21<'[2]TABLE DATA'!$D$8,$I21='[2]TABLE DATA'!$D$8)),$J21>'[2]Input-Output Data'!$N21),"SIGN TOO WIDE",IF(AND(AND($I21>'[2]TABLE DATA'!$D$8,OR($I21<'[2]TABLE DATA'!$D$9,$I21='[2]TABLE DATA'!$D$9)),'[2]Input-Output Data'!$J21<'[2]Input-Output Data'!$K21),'[2]TABLE DATA'!F$9,"SIGN TOO WIDE")))))))))) -> 5 | P21: =IF(I5="Arm Too Long", "Reduce V or W",IF($I21>'[2]TABLE DATA'!$D$9,"SIGN TOO LARGE",IF(AND(OR($I21<'[2]TABLE DATA'!$D$7,$I21='[2]TABLE DATA'!$D$7),OR('[2]Input-Output Data'!$J21<'[2]Input-Output Data'!$K21,'[2]Input-Output Data'!$J21='[2]Input-Output Data'!$K21)),'[2]TABLE DATA'!G$7,IF(AND(OR($I21<'[2]TABLE DATA'!$D$7,$I21='[2]TABLE DATA'!$D$7),AND($J21>$L21),OR('[2]Input-Output Data'!$J21<'[2]Input-Output Data'!$M21,'[2]Input-Output Data'!$J21='[2]Input-Output Data'!$M21)),'[2]TABLE DATA'!G$8,IF(AND(OR($I21<'[2]TABLE DATA'!$D$7,$I21='[2]TABLE DATA'!$D$7),AND($J21>$M21),OR('[2]Input-Output Data'!$J21<'[2]Input-Output Data'!$N21,'[2]Input-Output Data'!$J21='[2]Input-Output Data'!$N21)),'[2]TABLE DATA'!G$9,IF(AND(OR($I21<'[2]TABLE DATA'!$D$7,$I21='[2]TABLE DATA'!$D$7),$J21>$N21),"SIGN TOO WIDE",IF(AND(AND($I21>'[2]TABLE DATA'!$D$7,OR($I21<'[2]TABLE DATA'!$D$8,$I21='[2]TABLE DATA'!$D$8)),'[2]Input-Output Data'!$J21<'[2]Input-Output Data'!$K21),'[2]TABLE DATA'!G$8,IF(AND(AND($I21>'[2]TABLE DATA'!$D$7,OR($I21<'[2]TABLE DATA'!$D$8,$I21='[2]TABLE DATA'!$D$8)),AND('[2]Input-Output Data'!$J21>'[2]Input-Output Data'!$M21,OR('[2]Input-Output Data'!$J21<'[2]Input-Output Data'!$N21,'[2]Input-Output Data'!$J21='[2]Input-Output Data'!$N21))),'[2]TABLE DATA'!G$9,IF(AND(AND($I21>'[2]TABLE DATA'!$D$7,OR($I21<'[2]TABLE DATA'!$D$8,$I21='[2]TABLE DATA'!$D$8)),$J21>'[2]Input-Output Data'!$N21),"SIGN TOO WIDE",IF(AND(AND($I21>'[2]TABLE DATA'!$D$8,OR($I21<'[2]TABLE DATA'!$D$9,$I21='[2]TABLE DATA'!$D$9)),'[2]Input-Output Data'!$J21<'[2]Input-Output Data'!$K21),'[2]TABLE DATA'!G$9,"SIGN TOO WIDE")))))))))) -> 3 | Q21: =IF(I5="Arm Too Long", "Reduce V or W",IF($I21>'[2]TABLE DATA'!$D$9,"SIGN TOO LARGE",IF(AND(OR($I21<'[2]TABLE DATA'!$D$7,$I21='[2]TABLE DATA'!$D$7),OR('[2]Input-Output Data'!$J21<'[2]Input-Output Data'!$K21,'[2]Input-Output Data'!$J21='[2]Input-Output Data'!$K21)),'[2]TABLE DATA'!H$7,IF(AND(OR($I21<'[2]TABLE DATA'!$D$7,$I21='[2]TABLE DATA'!$D$7),AND($J21>$L21),OR('[2]Input-Output Data'!$J21<'[2]Input-Output Data'!$M21,'[2]Input-Output Data'!$J21='[2]Input-Output Data'!$M21)),'[2]TABLE DATA'!H$8,IF(AND(OR($I21<'[2]TABLE DATA'!$D$7,$I21='[2]TABLE DATA'!$D$7),AND($J21>$M21),OR('[2]Input-Output Data'!$J21<'[2]Input-Output Data'!$N21,'[2]Input-Output Data'!$J21='[2]Input-Output Data'!$N21)),'[2]TABLE DATA'!H$9,IF(AND(OR($I21<'[2]TABLE DATA'!$D$7,$I21='[2]TABLE DATA'!$D$7),$J21>$N21),"SIGN TOO WIDE",IF(AND(AND($I21>'[2]TABLE DATA'!$D$7,OR($I21<'[2]TABLE DATA'!$D$8,$I21='[2]TABLE DATA'!$D$8)),'[2]Input-Output Data'!$J21<'[2]Input-Output Data'!$K21),'[2]TABLE DATA'!H$8,IF(AND(AND($I21>'[2]TABLE DATA'!$D$7,OR($I21<'[2]TABLE DATA'!$D$8,$I21='[2]TABLE DATA'!$D$8)),AND('[2]Input-Output Data'!$J21>'[2]Input-Output Data'!$M21,OR('[2]Input-Output Data'!$J21<'[2]Input-Output Data'!$N21,'[2]Input-Output Data'!$J21='[2]Input-Output Data'!$N21))),'[2]TABLE DATA'!H$9,IF(AND(AND($I21>'[2]TABLE DATA'!$D$7,OR($I21<'[2]TABLE DATA'!$D$8,$I21='[2]TABLE DATA'!$D$8)),$J21>'[2]Input-Output Data'!$N21),"SIGN TOO WIDE",IF(AND(AND($I21>'[2]TABLE DATA'!$D$8,OR($I21<'[2]TABLE DATA'!$D$9,$I21='[2]TABLE DATA'!$D$9)),'[2]Input-Output Data'!$J21<'[2]Input-Output Data'!$K21),'[2]TABLE DATA'!H$9,"SIGN TOO WIDE")))))))))) -> 0.875 | R21: =IF(I5="Arm Too Long", "Reduce V or W",IF($I21>'[2]TABLE DATA'!$D$9,"SIGN TOO LARGE",IF(AND(OR($I21<'[2]TABLE DATA'!$D$7,$I21='[2]TABLE DATA'!$D$7),OR('[2]Input-Output Data'!$J21<'[2]Input-Output Data'!$K21,'[2]Input-Output Data'!$J21='[2]Input-Output Data'!$K21)),'[2]TABLE DATA'!I$7,IF(AND(OR($I21<'[2]TABLE DATA'!$D$7,$I21='[2]TABLE DATA'!$D$7),AND($J21>$L21),OR('[2]Input-Output Data'!$J21<'[2]Input-Output Data'!$M21,'[2]Input-Output Data'!$J21='[2]Input-Output Data'!$M21)),'[2]TABLE DATA'!I$8,IF(AND(OR($I21<'[2]TABLE DATA'!$D$7,$I21='[2]TABLE DATA'!$D$7),AND($J21>$M21),OR('[2]Input-Output Data'!$J21<'[2]Input-Output Data'!$N21,'[2]Input-Output Data'!$J21='[2]Input-Output Data'!$N21)),'[2]TABLE DATA'!I$9,IF(AND(OR($I21<'[2]TABLE DATA'!$D$7,$I21='[2]TABLE DATA'!$D$7),$J21>$N21),"SIGN TOO WIDE",IF(AND(AND($I21>'[2]TABLE DATA'!$D$7,OR($I21<'[2]TABLE DATA'!$D$8,$I21='[2]TABLE DATA'!$D$8)),'[2]Input-Output Data'!$J21<'[2]Input-Output Data'!$K21),'[2]TABLE DATA'!I$8,IF(AND(AND($I21>'[2]TABLE DATA'!$D$7,OR($I21<'[2]TABLE DATA'!$D$8,$I21='[2]TABLE DATA'!$D$8)),AND('[2]Input-Output Data'!$J21>'[2]Input-Output Data'!$M21,OR('[2]Input-Output Data'!$J21<'[2]Input-Output Data'!$N21,'[2]Input-Output Data'!$J21='[2]Input-Output Data'!$N21))),'[2]TABLE DATA'!I$9,IF(AND(AND($I21>'[2]TABLE DATA'!$D$7,OR($I21<'[2]TABLE DATA'!$D$8,$I21='[2]TABLE DATA'!$D$8)),$J21>'[2]Input-Output Data'!$N21),"SIGN TOO WIDE",IF(AND(AND($I21>'[2]TABLE DATA'!$D$8,OR($I21<'[2]TABLE DATA'!$D$9,$I21='[2]TABLE DATA'!$D$9)),'[2]Input-Output Data'!$J21<'[2]Input-Output Data'!$K21),'[2]TABLE DATA'!I$9,"SIGN TOO WIDE")))))))))) -> 8 | S21: =IF(I5="Arm Too Long", "Reduce V or W",IF($I21>'[2]TABLE DATA'!$D$9,"SIGN TOO LARGE",IF(AND(OR($I21<'[2]TABLE DATA'!$D$7,$I21='[2]TABLE DATA'!$D$7),OR('[2]Input-Output Data'!$J21<'[2]Input-Output Data'!$K21,'[2]Input-Output Data'!$J21='[2]Input-Output Data'!$K21)),'[2]TABLE DATA'!J$7,IF(AND(OR($I21<'[2]TABLE DATA'!$D$7,$I21='[2]TABLE DATA'!$D$7),AND($J21>$L21),OR('[2]Input-Output Data'!$J21<'[2]Input-Output Data'!$M21,'[2]Input-Output Data'!$J21='[2]Input-Output Data'!$M21)),'[2]TABLE DATA'!J$8,IF(AND(OR($I21<'[2]TABLE DATA'!$D$7,$I21='[2]TABLE DATA'!$D$7),AND($J21>$M21),OR('[2]Input-Output Data'!$J21<'[2]Input-Output Data'!$N21,'[2]Input-Output Data'!$J21='[2]Input-Output Data'!$N21)),'[2]TABLE DATA'!J$9,IF(AND(OR($I21<'[2]TABLE DATA'!$D$7,$I21='[2]TABLE DATA'!$D$7),$J21>$N21),"SIGN TOO WIDE",IF(AND(AND($I21>'[2]TABLE DATA'!$D$7,OR($I21<'[2]TABLE DATA'!$D$8,$I21='[2]TABLE DATA'!$D$8)),'[2]Input-Output Data'!$J21<'[2]Input-Output Data'!$K21),'[2]TABLE DATA'!J$8,IF(AND(AND($I21>'[2]TABLE DATA'!$D$7,OR($I21<'[2]TABLE DATA'!$D$8,$I21='[2]TABLE DATA'!$D$8)),AND('[2]Input-Output Data'!$J21>'[2]Input-Output Data'!$M21,OR('[2]Input-Output Data'!$J21<'[2]Input-Output Data'!$N21,'[2]Input-Output Data'!$J21='[2]Input-Output Data'!$N21))),'[2]TABLE DATA'!J$9,IF(AND(AND($I21>'[2]TABLE DATA'!$D$7,OR($I21<'[2]TABLE DATA'!$D$8,$I21='[2]TABLE DATA'!$D$8)),$J21>'[2]Input-Output Data'!$N21),"SIGN TOO WIDE",IF(AND(AND($I21>'[2]TABLE DATA'!$D$8,OR($I21<'[2]TABLE DATA'!$D$9,$I21='[2]TABLE DATA'!$D$9)),'[2]Input-Output Data'!$J21<'[2]Input-Output Data'!$K21),'[2]TABLE DATA'!J$9,"SIGN TOO WIDE")))))))))) -> 2 | T21: =IF(I5="Arm Too Long", "Reduce V or W",IF($I21>'[2]TABLE DATA'!$D$9,"SIGN TOO LARGE",IF(AND(OR($I21<'[2]TABLE DATA'!$D$7,$I21='[2]TABLE DATA'!$D$7),OR('[2]Input-Output Data'!$J21<'[2]Input-Output Data'!$K21,'[2]Input-Output Data'!$J21='[2]Input-Output Data'!$K21)),'[2]TABLE DATA'!K$7,IF(AND(OR($I21<'[2]TABLE DATA'!$D$7,$I21='[2]TABLE DATA'!$D$7),AND($J21>$L21),OR('[2]Input-Output Data'!$J21<'[2]Input-Output Data'!$M21,'[2]Input-Output Data'!$J21='[2]Input-Output Data'!$M21)),'[2]TABLE DATA'!K$8,IF(AND(OR($I21<'[2]TABLE DATA'!$D$7,$I21='[2]TABLE DATA'!$D$7),AND($J21>$M21),OR('[2]Input-Output Data'!$J21<'[2]Input-Output Data'!$N21,'[2]Input-Output Data'!$J21='[2]Input-Output Data'!$N21)),'[2]TABLE DATA'!K$9,IF(AND(OR($I21<'[2]TABLE DATA'!$D$7,$I21='[2]TABLE DATA'!$D$7),$J21>$N21),"SIGN TOO WIDE",IF(AND(AND($I21>'[2]TABLE DATA'!$D$7,OR($I21<'[2]TABLE DATA'!$D$8,$I21='[2]TABLE DATA'!$D$8)),'[2]Input-Output Data'!$J21<'[2]Input-Output Data'!$K21),'[2]TABLE DATA'!K$8,IF(AND(AND($I21>'[2]TABLE DATA'!$D$7,OR($I21<'[2]TABLE DATA'!$D$8,$I21='[2]TABLE DATA'!$D$8)),AND('[2]Input-Output Data'!$J21>'[2]Input-Output Data'!$M21,OR('[2]Input-Output Data'!$J21<'[2]Input-Output Data'!$N21,'[2]Input-Output Data'!$J21='[2]Input-Output Data'!$N21))),'[2]TABLE DATA'!K$9,IF(AND(AND($I21>'[2]TABLE DATA'!$D$7,OR($I21<'[2]TABLE DATA'!$D$8,$I21='[2]TABLE DATA'!$D$8)),$J21>'[2]Input-Output Data'!$N21),"SIGN TOO WIDE",IF(AND(AND($I21>'[2]TABLE DATA'!$D$8,OR($I21<'[2]TABLE DATA'!$D$9,$I21='[2]TABLE DATA'!$D$9)),'[2]Input-Output Data'!$J21<'[2]Input-Output Data'!$K21),'[2]TABLE DATA'!K$9,"SIGN TOO WIDE")))))))))) -> 80 | U21: =IF(I5="Arm Too Long", "Reduce V or W",IF($I21>'[2]TABLE DATA'!$D$9,"SIGN TOO LARGE",IF(AND(OR($I21<'[2]TABLE DATA'!$D$7,$I21='[2]TABLE DATA'!$D$7),OR('[2]Input-Output Data'!$J21<'[2]Input-Output Data'!$K21,'[2]Input-Output Data'!$J21='[2]Input-Output Data'!$K21)),'[2]TABLE DATA'!L$7,IF(AND(OR($I21<'[2]TABLE DATA'!$D$7,$I21='[2]TABLE DATA'!$D$7),AND($J21>$L21),OR('[2]Input-Output Data'!$J21<'[2]Input-Output Data'!$M21,'[2]Input-Output Data'!$J21='[2]Input-Output Data'!$M21)),'[2]TABLE DATA'!L$8,IF(AND(OR($I21<'[2]TABLE DATA'!$D$7,$I21='[2]TABLE DATA'!$D$7),AND($J21>$M21),OR('[2]Input-Output Data'!$J21<'[2]Input-Output Data'!$N21,'[2]Input-Output Data'!$J21='[2]Input-Output Data'!$N21)),'[2]TABLE DATA'!L$9,IF(AND(OR($I21<'[2]TABLE DATA'!$D$7,$I21='[2]TABLE DATA'!$D$7),$J21>$N21),"SIGN TOO WIDE",IF(AND(AND($I21>'[2]TABLE DATA'!$D$7,OR($I21<'[2]TABLE DATA'!$D$8,$I21='[2]TABLE DATA'!$D$8)),'[2]Input-Output Data'!$J21<'[2]Input-Output Data'!$K21),'[2]TABLE DATA'!L$8,IF(AND(AND($I21>'[2]TABLE DATA'!$D$7,OR($I21<'[2]TABLE DATA'!$D$8,$I21='[2]TABLE DATA'!$D$8)),AND('[2]Input-Output Data'!$J21>'[2]Input-Output Data'!$M21,OR('[2]Input-Output Data'!$J21<'[2]Input-Output Data'!$N21,'[2]Input-Output Data'!$J21='[2]Input-Output Data'!$N21))),'[2]TABLE DATA'!L$9,IF(AND(AND($I21>'[2]TABLE DATA'!$D$7,OR($I21<'[2]TABLE DATA'!$D$8,$I21='[2]TABLE DATA'!$D$8)),$J21>'[2]Input-Output Data'!$N21),"SIGN TOO WIDE",IF(AND(AND($I21>'[2]TABLE DATA'!$D$8,OR($I21<'[2]TABLE DATA'!$D$9,$I21='[2]TABLE DATA'!$D$9)),'[2]Input-Output Data'!$J21<'[2]Input-Output Data'!$K21),'[2]TABLE DATA'!L$9,"SIGN TOO WIDE")))))))))) -> 14.5 | V21: =IF(I5="Arm Too Long", "Reduce V or W",IF($I21>'[2]TABLE DATA'!$D$9,"SIGN TOO LARGE",IF(AND(OR($I21<'[2]TABLE DATA'!$D$7,$I21='[2]TABLE DATA'!$D$7),OR('[2]Input-Output Data'!$J21<'[2]Input-Output Data'!$K21,'[2]Input-Output Data'!$J21='[2]Input-Output Data'!$K21)),'[2]TABLE DATA'!M$7,IF(AND(OR($I21<'[2]TABLE DATA'!$D$7,$I21='[2]TABLE DATA'!$D$7),AND($J21>$L21),OR('[2]Input-Output Data'!$J21<'[2]Input-Output Data'!$M21,'[2]Input-Output Data'!$J21='[2]Input-Output Data'!$M21)),'[2]TABLE DATA'!M$8,IF(AND(OR($I21<'[2]TABLE DATA'!$D$7,$I21='[2]TABLE DATA'!$D$7),AND($J21>$M21),OR('[2]Input-Output Data'!$J21<'[2]Input-Output Data'!$N21,'[2]Input-Output Data'!$J21='[2]Input-Output Data'!$N21)),'[2]TABLE DATA'!M$9,IF(AND(OR($I21<'[2]TABLE DATA'!$D$7,$I21='[2]TABLE DATA'!$D$7),$J21>$N21),"SIGN TOO WIDE",IF(AND(AND($I21>'[2]TABLE DATA'!$D$7,OR($I21<'[2]TABLE DATA'!$D$8,$I21='[2]TABLE DATA'!$D$8)),'[2]Input-Output Data'!$J21<'[2]Input-Output Data'!$K21),'[2]TABLE DATA'!M$8,IF(AND(AND($I21>'[2]TABLE DATA'!$D$7,OR($I21<'[2]TABLE DATA'!$D$8,$I21='[2]TABLE DATA'!$D$8)),AND('[2]Input-Output Data'!$J21>'[2]Input-Output Data'!$M21,OR('[2]Input-Output Data'!$J21<'[2]Input-Output Data'!$N21,'[2]Input-Output Data'!$J21='[2]Input-Output Data'!$N21))),'[2]TABLE DATA'!M$9,IF(AND(AND($I21>'[2]TABLE DATA'!$D$7,OR($I21<'[2]TABLE DATA'!$D$8,$I21='[2]TABLE DATA'!$D$8)),$J21>'[2]Input-Output Data'!$N21),"SIGN TOO WIDE",IF(AND(AND($I21>'[2]TABLE DATA'!$D$8,OR($I21<'[2]TABLE DATA'!$D$9,$I21='[2]TABLE DATA'!$D$9)),'[2]Input-Output Data'!$J21<'[2]Input-Output Data'!$K21),'[2]TABLE DATA'!M$9,"SIGN TOO WIDE")))))))))) -> 0.625 | W21: =IF(I5="Arm Too Long", "Reduce V or W",IF($I21>'[2]TABLE DATA'!$D$9,"SIGN TOO LARGE",IF(AND(OR($I21<'[2]TABLE DATA'!$D$7,$I21='[2]TABLE DATA'!$D$7),OR('[2]Input-Output Data'!$J21<'[2]Input-Output Data'!$K21,'[2]Input-Output Data'!$J21='[2]Input-Output Data'!$K21)),'[2]TABLE DATA'!N$7,IF(AND(OR($I21<'[2]TABLE DATA'!$D$7,$I21='[2]TABLE DATA'!$D$7),AND($J21>$L21),OR('[2]Input-Output Data'!$J21<'[2]Input-Output Data'!$M21,'[2]Input-Output Data'!$J21='[2]Input-Output Data'!$M21)),'[2]TABLE DATA'!N$8,IF(AND(OR($I21<'[2]TABLE DATA'!$D$7,$I21='[2]TABLE DATA'!$D$7),AND($J21>$M21),OR('[2]Input-Output Data'!$J21<'[2]Input-Output Data'!$N21,'[2]Input-Output Data'!$J21='[2]Input-Output Data'!$N21)),'[2]TABLE DATA'!N$9,IF(AND(OR($I21<'[2]TABLE DATA'!$D$7,$I21='[2]TABLE DATA'!$D$7),$J21>$N21),"SIGN TOO WIDE",IF(AND(AND($I21>'[2]TABLE DATA'!$D$7,OR($I21<'[2]TABLE DATA'!$D$8,$I21='[2]TABLE DATA'!$D$8)),'[2]Input-Output Data'!$J21<'[2]Input-Output Data'!$K21),'[2]TABLE DATA'!N$8,IF(AND(AND($I21>'[2]TABLE DATA'!$D$7,OR($I21<'[2]TABLE DATA'!$D$8,$I21='[2]TABLE DATA'!$D$8)),AND('[2]Input-Output Data'!$J21>'[2]Input-Output Data'!$M21,OR('[2]Input-Output Data'!$J21<'[2]Input-Output Data'!$N21,'[2]Input-Output Data'!$J21='[2]Input-Output Data'!$N21))),'[2]TABLE DATA'!N$9,IF(AND(AND($I21>'[2]TABLE DATA'!$D$7,OR($I21<'[2]TABLE DATA'!$D$8,$I21='[2]TABLE DATA'!$D$8)),$J21>'[2]Input-Output Data'!$N21),"SIGN TOO WIDE",IF(AND(AND($I21>'[2]TABLE DATA'!$D$8,OR($I21<'[2]TABLE DATA'!$D$9,$I21='[2]TABLE DATA'!$D$9)),'[2]Input-Output Data'!$J21<'[2]Input-Output Data'!$K21),'[2]TABLE DATA'!N$9,"SIGN TOO WIDE")))))))))) -> 0.625 | X21: =IF(I5="Arm Too Long", "Reduce V or W",IF($I21>'[2]TABLE DATA'!$D$9,"SIGN TOO LARGE",IF(AND(OR($I21<'[2]TABLE DATA'!$D$7,$I21='[2]TABLE DATA'!$D$7),OR('[2]Input-Output Data'!$J21<'[2]Input-Output Data'!$K21,'[2]Input-Output Data'!$J21='[2]Input-Output Data'!$K21)),'[2]TABLE DATA'!O$7,IF(AND(OR($I21<'[2]TABLE DATA'!$D$7,$I21='[2]TABLE DATA'!$D$7),AND($J21>$L21),OR('[2]Input-Output Data'!$J21<'[2]Input-Output Data'!$M21,'[2]Input-Output Data'!$J21='[2]Input-Output Data'!$M21)),'[2]TABLE DATA'!O$8,IF(AND(OR($I21<'[2]TABLE DATA'!$D$7,$I21='[2]TABLE DATA'!$D$7),AND($J21>$M21),OR('[2]Input-Output Data'!$J21<'[2]Input-Output Data'!$N21,'[2]Input-Output Data'!$J21='[2]Input-Output Data'!$N21)),'[2]TABLE DATA'!O$9,IF(AND(OR($I21<'[2]TABLE DATA'!$D$7,$I21='[2]TABLE DATA'!$D$7),$J21>$N21),"SIGN TOO WIDE",IF(AND(AND($I21>'[2]TABLE DATA'!$D$7,OR($I21<'[2]TABLE DATA'!$D$8,$I21='[2]TABLE DATA'!$D$8)),'[2]Input-Output Data'!$J21<'[2]Input-Output Data'!$K21),'[2]TABLE DATA'!O$8,IF(AND(AND($I21>'[2]TABLE DATA'!$D$7,OR($I21<'[2]TABLE DATA'!$D$8,$I21='[2]TABLE DATA'!$D$8)),AND('[2]Input-Output Data'!$J21>'[2]Input-Output Data'!$M21,OR('[2]Input-Output Data'!$J21<'[2]Input-Output Data'!$N21,'[2]Input-Output Data'!$J21='[2]Input-Output Data'!$N21))),'[2]TABLE DATA'!O$9,IF(AND(AND($I21>'[2]TABLE DATA'!$D$7,OR($I21<'[2]TABLE DATA'!$D$8,$I21='[2]TABLE DATA'!$D$8)),$J21>'[2]Input-Output Data'!$N21),"SIGN TOO WIDE",IF(AND(AND($I21>'[2]TABLE DATA'!$D$8,OR($I21<'[2]TABLE DATA'!$D$9,$I21='[2]TABLE DATA'!$D$9)),'[2]Input-Output Data'!$J21<'[2]Input-Output Data'!$K21),'[2]TABLE DATA'!O$9,"SIGN TOO WIDE")))))))))) -> 0.625 | Y21: =IF(V21=0.5,"I",IF(V21=0.625,"II",IF(V21=0.75,"III","N/A"))) -> II
D22: 42 | E22: 18 | F22: Square

Sheet SIGN CODES
A1: CODE NO | B1: PANEL LEGEND | C1: NOTES
A2: D10-1 | B2: MILE X
A3: D10-2 | B3: MILE XX
A4: D10-3 | B4: MILE XXX
A5: D10-4 | B5: ENHANCED REFERENCE LOCATION
A6: D10-5 | B6: INTERMEDIATE ENHANCED REFERENCE LOCATION
A7: D11-1 | B7: BIKE ROUTE
A8: D12-2M | B8: CAR POOL INFO
A9: D12-4 | B9: EMERGENCY CALL 911
A10: D12-5a | B10: TRAVEL INFO CALL 511
A11: D13-3M | B11: FREEWAY ENTRANCE
A12: D17-2 | B12: TRUCK LANE XX MILES
A13: D18-X1 | B13: ALTERNATE FUELS CORRIDOR
A14: D18-X1P | B14: EV-CHARGING PLAQUE
A15: D1-X1DH | B15: FRONTAGE ROAD DOUBLE ARROW
A16: D1-X1L | B16: FRONTAGE ROAD LEFT
A17: D1-X1R | B17: FRONTAGE ROAD RIGHT
A18: D4-1L | B18: PARKING LEFT
A19: D4-1R | B19: PARKING RIGHT
A20: D4-2L | B20: PARK - RIDE LEFT
A21: D4-2M | B21: PARK - RIDE
A22: D4-2R | B22: PARK - RIDE RIGHT
A23: D5-1 | B23: REST AREA XX MILES
A24: D5-1a | B24: REST AREA NEXT RIGHT
A25: D5-1M | B25: REST AREA XX MILES NEXT REST AREA XX MILES
A26: D5-2 | B26: REST AREA 45 DEG ARROW
A27: D5-2a | B27: REST AREA 45 DEG ARROW
A28: D5-6 | B28: NEXT REST AREA XX MILES
A29: D5-X1L | B29: WAYSIDE REST XX MILES ON LEFT
A30: D5-X1R | B30: WAYSIDE REST XX MILES ON RIGHT
A31: D5-X2L | B31: WAYSIDE REST LEFT
A32: D5-X2R | B32: WAYSIDE REST RIGHT
A33: D6-2ML | B33: SCENIC OVERLOOK XX MILES ON LEFT
A34: D6-2MR | B34: SCENIC OVERLOOK XX MILES ON RIGHT
A35: D6-3ML | B35: SCENIC OVERLOOK LEFT
A36: D6-3MR | B36: SCENIC OVERLOOK RIGHT
A37: D7-X10aL | B37: PARK NAME CANOE LAUNCH XX MILES LEFT
A38: D7-X10aR | B38: PARK NAME CANOE LAUNCH XX MILES RIGHT
A39: D7-X10L | B39: PARK NAME BOAT LAUNCH XX MILES LEFT
A40: D7-X10R | B40: PARK NAME BOAT LAUNCH XX MILES RIGHT
A41: D7-X11L | B41: CITY PARK LEFT
A42: D7-X11R | B42: CITY PARK RIGHT
A43: D7-X11T | B43: CITY PARK AHEAD
A44: D7-X12aL | B44: COUNTY PARK XX MILES LEFT
A45: D7-X12aR | B45: COUNTY PARK XX MILES RIGHT
A46: D7-X12L | B46: COUNTY PARK LEFT
A47: D7-X12R | B47: COUNTY PARK RIGHT
A48: D7-X12T | B48: COUNTY PARK AHEAD
A49: D7-X13L | B49: STATE PARK LEFT
A50: D7-X13R | B50: STATE PARK RIGHT
A51: D7-X13T | B51: STATE PARK AHEAD
A52: D7-X14L | B52: PICNIC GROUNDS LEFT
A53: D7-X14R | B53: PICNIC GROUNDS RIGHT
A54: D7-X14L | B54: PICNIC GROUNDS AHEAD
A55: D7-X15L | B55: COUNTY MUSEUM LEFT
A56: D7-X15R | B56: COUNTY MUSEUM RIGHT
A57: D7-X15T | B57: COUNTY MUSEUM AHEAD
A58: D7-X16L | B58: GOLF COURSE LEFT
A59: D7-X16R | B59: GOLF COURSE RIGHT
A60: D7-X16T | B60: GOLF COURSE AHEAD
A61: D7-X17L | B61: DISC GOLF COURSE LEFT
A62: D7-X17R | B62: DISC GOLF COURSE RIGHT
A63: D7-X17T | B63: DISC GOLF COURSE AHEAD
A64: D7-X18L | B64: COUNTY FAIRGROUND LEFT
A65: D7-X18R | B65: COUNTY FAIRGROUND RIGHT
A66: D7-X18T | B66: COUNTY FAIRGROUND AHEAD
A67: D7-X19L | B67: HIGH SCHOOL LEFT
A68: D7-X19R | B68: HIGH SCHOOL RIGHT
A69: D7-X19T | B69: HIGH SCHOOL AHEAD
A70: D7-X1L | B70: GEOLOGICAL MARKER XX MILES ON LEFT
A71: D7-X1R | B71: GEOLOGICAL MARKER XX MILES ON RIGHT
A72: D7-X20L | B72: INDUSTRIAL PARK LEFT
A73: D7-X20R | B73: INDUSTRIAL PARK RIGHT
A74: D7-X20T | B74: INDUSTRIAL PARK AHEAD
A75: D7-X21L | B75: CAREERFORCE CENTER LEFT
A76: D7-X21R | B76: CAREERFORCE CENTER RIGHT
A77: D7-X21T | B77: CAREERFORCE CENTER AHEAD
A78: D7-X22L | B78: DOWNTOWN LEFT
A79: D7-X22R | B79: DOWNTOWN RIGHT
A80: D7-X22T | B80: DOWNTOWN AHEAD
A81: D7-X23L | B81: BUSINESS DISTRICT LEFT
A82: D7-X23R | B82: BUSINESS DISTRICT RIGHT
A83: D7-X24L | B83: TOWN HALL LEFT
A84: D7-X24R | B84: TOWN HALL RIGHT
A85: D7-X25L | B85: AIRPORT LEFT
A86: D7-X25R | B86: AIRPORT RIGHT
A87: D7-X26L | B87: RECYCLING CENTER LEFT
A88: D7-X26R | B88: RECYCLING CENTER RIGHT
A89: D7-X27L | B89: SANITARY LANDFILL LEFT
A90: D7-X27R | B90: SANITARY LANDFILL RIGHT
A91: D7-X28L | B91: SOLID WASTE TRANSFER STATION LEFT
A92: D7-X28R | B92: SOLID WASTE TRANSFER STATION RIGHT
A93: D7-X29L | B93: DEMOLITION LANDFILL LEFT
A94: D7-X29R | B94: DEMOLITION LANDFILL RIGHT
A95: D7-X29T | B95: DEMOLITION LANDFILL AHEAD
A96: D7-X2L | B96: GEOLOGICAL MARKER LEFT
A97: D7-X2R | B97: GEOLOGICAL MARKER RIGHT
A98: D7-X3 | B98: GEOLOGICAL MARKER
A99: D7-X4 | B99: HISTORICAL MARKER
A100: D7-X5L | B100: HISTORICAL MARKER XX MILES ON LEFT
A101: D7-X5R | B101: HISTORICAL MARKER XX MILES ON RIGHT
A102: D7-X6L | B102: HISTORICAL MARKER LEFT
A103: D7-X6R | B103: HISTORICAL MARKER RIGHT
A104: D7-X7L | B104: HISTORIC SITE XX MILES ON LEFT
A105: D7-X7R | B105: HISTORIC SITE XX MILES ON RIGHT
A106: D7-X8L | B106: HISTORIC SITE LEFT
A107: D7-X8R | B107: HISTORIC SITE RIGHT
A108: D7-X8T | B108: HISTORIC SITE AHEAD
A109: D7-X9L | B109: HISTORIC DISTRICT LEFT
A110: D7-X9R | B110: HISTORIC DISTRICT RIGHT
A111: D7-X9T | B111: HISTORIC DISTRICT AHEAD
A112: D8-1 | B112: WEIGH STATION XX MILES
A113: D8-2M | B113: WEIGH STATION NEXT RIGHT
A114: D8-3 | B114: WEIGH STATION 45 DEG ARROW
A115: D8-3ML | B115: WEIGH STATION LEFT
A116: D8-3MR | B116: WEIGH STATION RIGHT
A117: D9-1 | B117: PHONE
A118: D9-10ML | B118: TOURIST INFO LEFT
A119: D9-10MR | B119: TOURIST INFO RIGHT
A120: D9-16 | B120: TRUCK PARKING
A121: D9-18cMaL | B121: HOSPITAL XX MILES LEFT
A122: D9-18cMaR | B122: HOSPITAL XX MILES RIGHT
A123: D9-18cMbL | B123: GAS LEFT
A124: D9-18cMbR | B124: GAS RIGHT
A125: D9-18cMbRL | B125: GAS RIGHT AND LEFT
A126: D9-18cMcL | B126: FOOD LEFT
A127: D9-18cMcR | B127: FOOD RIGHT
A128: D9-18cMcRL | B128: FOOD RIGHT AND LEFT
A129: D9-18cMdL | B129: LODGING LEFT
A130: D9-18cMdR | B130: LODGING RIGHT
A131: D9-18cMdRL | B131: LODGING RIGHT AND LEFT
A132: D9-18cMeL | B132: HOSPITAL LEFT
A133: D9-18cMeR | B133: HOSPITAL RIGHT
A134: D9-18cMfL | B134: CAMPING LEFT
A135: D9-18cMfR | B135: CAMPING RIGHT
A136: D9-18cMfRL | B136: CAMPING RIGHT AND LEFT
A137: D9-18cMgL | B137: DIESEL LEFT
A138: D9-18cMgR | B138: DIESEL RIGHT
A139: D9-18cMgRL | B139: DIESEL RIGHT AND LEFT
A140: D9-18cMhL | B140: LP-GAS LEFT
A141: D9-18cMhR | B141: LP-GAS RIGHT
A142: D9-18cMhRL | B142: LP-GAS RIGHT AND LEFT
A143: D9-18cMiL | B143: E85 LEFT
A144: D9-18cMiR | B144: E85 RIGHT
A145: D9-18cMiRL | B145: E85 RIGHT AND LEFT
A146: D9-18cMjL | B146: EV-CHARGING LEFT
A147: D9-18cMjR | B147: EV-CHARGING RIGHT
A148: D9-2 | B148: HOSPITAL
A149: D9-21 | B149: PHONE TTY
A150: D9-2MaALTL | B150: HOSPITAL XX BLKS ADVANCED LEFT
A151: D9-2MaALTR | B151: HOSPITAL XX BLKS ADVANCED RIGHT
A152: D9-2MaL | B152: HOSPITAL XX BLKS LEFT
A153: D9-2MaR | B153: HOSPITAL XX BLKS RIGHT
A154: D9-2MaT | B154: HOSPITAL XX BLKS AHEAD
A155: D9-2MbL | B155: HOSPITAL LEFT
A156: D9-2MbR | B156: HOSPITAL RIGHT
A157: D9-6 | B157: HANDICAPED
A158: D9-6P | B158: VAN ACCESSIBLE PLAQUE
A159: D9-X1L | B159: HANDICAP LEFT
A160: D9-X1R | B160: HANDICAP RIGHT
A161: D9-X3L | B161: RESORTS LEFT
A162: D9-X3R | B162: RESORTS RIGHT
A163: D9-X3RL | B163: RESORTS RIGHT AND LEFT
A164: D9-X4L | B164: CAMPING LEFT
A165: D9-X4R | B165: CAMPING RIGHT
A166: D9-X4RL | B166: CAMPING RIGHT AND LEFT
A167: E13-1P | B167: XX MPH PLAQUE
A168: E5-1 | B168: EXIT XX DEG ARROW
A169: E5-1a | B169: EXIT X XX DEG ARROW
A170: E5-1aM | B170: EXIT XX XX DEG ARROW
A171: I-11 | B171: RECYCLING COLLECTION CENTER
A172: I-12 | B172: LIGHT RAIL TRANSIT STATION
A173: I2-X1 | B173: MINNESOTA ENTRANCE SIGN
A174: I2-X2 | B174: MINNESOTA EXIT SIGN
A175: I-5 | B175: AIRPORT
A176: I-6 | B176: BUS STATION
A177: I-7 | B177: TRAIN STATION
A178: I-8 | B178: LIBRARY
A179: M1-1 | B179: INTERSTATE XX
A180: M1-10 | B180: EISENHOWER INTERSTATE SYSTEM
A181: M1-2 | B181: INTERSTATE XX BUSINESS LOOP
A182: M1-3 | B182: INTERSTATE XX BUSINESS SPUR
A183: M1-4 | B183: US XX
A184: M1-4M | B184: US XX BUSINESS
A185: M1-5M | B185: MINNESOTA HWY XX
A186: M1-5Ma | B186: MINNESOTA HWY XX BUSINESS
A187: M1-6M | B187: XX COUNTY XX
A188: M1-9M | B188: MISSISSIPPI RIVER TRAIL
A189: M1-X4 | B189: XX COUNTY XX
A190: M1-X5 | B190: TOWNSHIP XX
A191: M2-1 | B191: JCT (COLOR)
A192: M3-1 | B192: NORTH (COLOR)
A193: M3-2 | B193: EAST (COLOR)
A194: M3-3 | B194: SOUTH (COLOR)
A195: M3-4 | B195: WEST (COLOR)
A196: M4-14 | B196: BEGIN (COLOR)
A197: M4-1a | B197: ALT (COLOR)
A198: M4-3 | B198: BUSINESS (COLOR)
A199: M4-4 | B199: TRUCK
A200: M4-5 | B200: TO (COLOR)
... 441 more rows

Sheet ACTIVITIES
B2: IN PLAN | C2: ACTIVITY NO | D2: ACTIVITY DESCRIPTION
B3: x | C3: 1 | D3: F & I
B4: x | C4: 2 | D4: INPLACE
C5: 3 | D5: SALVAGE
B6: x | C6: 4 | D6: REMOVE
B7: x | C7: 5 | D7: REMOVE SIGN PANEL
B8: x | C8: 6 | D8: INSTALL
B9: x | C9: 7 | D9: F & I SIGN PANEL
B10: x | C10: =SUBTOTAL(3,$D$10:D10)+7 -> 8 | D10: F & I DELINEATOR/MARKER
C11: =SUBTOTAL(3,$D$10:D11)+7 -> 9 | D11: F & I DELINEATOR/MARKER PANEL
C12: =SUBTOTAL(3,$D$10:D12)+7 -> 10 | D12: F & I LEFT SIGN PANEL
C13: =SUBTOTAL(3,$D$10:D13)+7 -> 11 | D13: F & I MIDDLE SIGN PANEL
C14: =SUBTOTAL(3,$D$10:D14)+7 -> 12 | D14: F & I RIGHT SIGN PANEL
C15: =SUBTOTAL(3,$D$10:D15)+7 -> 13 | D15: F & I SIGN PANEL(S) AND PANEL MOUNTING POSTS
B16: x | C16: =SUBTOTAL(3,$D$10:D16)+7 -> 14 | D16: F & I LEFT SIGN PANEL AND PANEL MOUNTING POSTS
C17: =SUBTOTAL(3,$D$10:D17)+7 -> 15 | D17: F & I MIDDLE SIGN PANEL AND PANEL MOUNTING POSTS
C18: =SUBTOTAL(3,$D$10:D18)+7 -> 16 | D18: F & I RIGHT SIGN PANEL AND PANEL MOUNTING POSTS
B19: x | C19: =SUBTOTAL(3,$D$10:D19)+7 -> 17 | D19: F & I SIGN PANEL OVERLAY(S)
C20: =SUBTOTAL(3,$D$10:D20)+7 -> 18 | D20: F & I SIGN PANEL OVERLAY LEFT SIGN PANEL
B21: x | C21: =SUBTOTAL(3,$D$10:D21)+7 -> 19 | D21: F & I SIGN PANEL OVERLAY MIDDLE SIGN PANEL
C22: =SUBTOTAL(3,$D$10:D22)+7 -> 20 | D22: F & I SIGN PANEL OVERLAY RIGHT SIGN PANEL
C23: =SUBTOTAL(3,$D$10:D23)+7 -> 21 | D23: SALVAGE SIGN PANEL(S)
C24: =SUBTOTAL(3,$D$10:D24)+7 -> 22 | D24: SALVAGE LEFT SIGN PANEL
C25: =SUBTOTAL(3,$D$10:D25)+7 -> 23 | D25: SALVAGE MIDDLE SIGN PANEL
C26: =SUBTOTAL(3,$D$10:D26)+7 -> 24 | D26: SALVAGE RIGHT SIGN PANEL
C27: =SUBTOTAL(3,$D$10:D27)+7 -> 25 | D27: REMOVE SIGN PANEL(S)
C28: =SUBTOTAL(3,$D$10:D28)+7 -> 26 | D28: REMOVE LEFT SIGN PANEL
C29: =SUBTOTAL(3,$D$10:D29)+7 -> 27 | D29: REMOVE MIDDLE SIGN PANEL
C30: =SUBTOTAL(3,$D$10:D30)+7 -> 28 | D30: REMOVE RIGHT SIGN PANEL
C31: =SUBTOTAL(3,$D$10:D31)+7 -> 29 | D31: MODIFY PANEL MOUNTING POSTS
C32: =SUBTOTAL(3,$D$10:D32)+7 -> 30 | D32: MODIFY PANEL MOUNTING POSTS LEFT SIGN PANEL
C33: =SUBTOTAL(3,$D$10:D33)+7 -> 31 | D33: MODIFY PANEL MOUNTING POSTS MIDDLE SIGN PANEL
C34: =SUBTOTAL(3,$D$10:D34)+7 -> 32 | D34: MODIFY PANEL MOUNTING POSTS RIGHT SIGN PANEL
C35: =SUBTOTAL(3,$D$10:D35)+7 -> 33 | D35: F & I EXTRUDED PANEL SECTION(S)
C36: =SUBTOTAL(3,$D$10:D36)+7 -> 34 | D36: F & I EXTRUDED PANEL SECTION(S) LEFT SIGN PANEL
C37: =SUBTOTAL(3,$D$10:D37)+7 -> 35 | D37: F & I EXTRUDED PANEL SECTION(S) MIDDLE SIGN PANEL
B38: X | C38: =SUBTOTAL(3,$D$10:D38)+7 -> 36 | D38: F & I EXTRUDED PANEL SECTION(S) RIGHT SIGN PANEL
C39: =SUBTOTAL(3,$D$10:D39)+7 -> 37 | D39: REMOVE EXTRUDED PANEL SECTION(S)
C40: =SUBTOTAL(3,$D$10:D40)+7 -> 38 | D40: REMOVE EXTRUDED PANEL SECTION(S) LEFT SIGN PANEL
C41: =SUBTOTAL(3,$D$10:D41)+7 -> 39 | D41: REMOVE EXTRUDED PANEL SECTION(S) MIDDLE SIGN PANEL
C42: =SUBTOTAL(3,$D$10:D42)+7 -> 40 | D42: REMOVE EXTRUDED PANEL SECTION(S) RIGHT SIGN PANEL
C43: =SUBTOTAL(3,$D$10:D43)+7 -> 41 | D43: SAW SIGN PANEL(S)
C44: =SUBTOTAL(3,$D$10:D44)+7 -> 42 | D44: SAW LEFT SIGN PANEL
C45: =SUBTOTAL(3,$D$10:D45)+7 -> 43 | D45: SAW MIDDLE SIGN PANEL
C46: =SUBTOTAL(3,$D$10:D46)+7 -> 44 | D46: SAW RIGHT SIGN PANEL
C47: =SUBTOTAL(3,$D$10:D47)+7 -> 45 | D47: MODIFY SIGN STRUCTURE
C48: =SUBTOTAL(3,$D$10:D48)+7 -> 46 | D48: REPOSITION LEFT SIGN PANEL
C49: =SUBTOTAL(3,$D$10:D49)+7 -> 47 | D49: REPOSITION MIDDLE SIGN PANEL
C50: =SUBTOTAL(3,$D$10:D50)+7 -> 48 | D50: REPOSITION RIGHT SIGN PANEL
C51: =SUBTOTAL(3,$D$10:D51)+7 -> 49 | D51: INSTALL SIGN PANEL(S)
C52: =SUBTOTAL(3,$D$10:D52)+7 -> 50 | D52: INSTALL LEFT SIGN PANEL
C53: =SUBTOTAL(3,$D$10:D53)+7 -> 51 | D53: INSTALL MIDDLE SIGN PANEL
C54: =SUBTOTAL(3,$D$10:D54)+7 -> 52 | D54: INSTALL RIGHT SIGN PANEL
C55: =SUBTOTAL(3,$D$10:D55)+7 -> 53 | D55: MODIFY POSTS
C56: =SUBTOTAL(3,$D$10:D56)+7 -> 54 | D56: F & I OVERHEAD SIGN IDENTIFICATION PLATE
C57: =SUBTOTAL(3,$D$10:D57)+7 -> 55 | D57: REMOVE SIGN WALKWAY
C58: =SUBTOTAL(3,$D$10:D58)+7 -> 56 | D58: REMOVE SIGN LIGHTING SYSTEM
